Workbook

Sheet Mergefields (hidden)
A1: Counter | B1: Age | C1: salary | D1: Service | E1: Purchase
A2: 928 | B2: =VLOOKUP(A2,Sheet1!$A$2:$E$929,2,) -> 60 | C2: =VLOOKUP(A2,Sheet1!$A$2:$E$929,3,) -> 50000 | D2: =VLOOKUP(A2,Sheet1!$A$2:$E$929,4,) -> 22 | E2: =VLOOKUP(A2,Sheet1!$A$2:$E$929,5,) -> 3
A4: Begin | B4: 1
A5: End | B5: 928

Sheet Output (hidden)
A1: =Mergefields!A2 -> 928 | B1: =Mergefields!B2 -> 60 | C1: =Mergefields!C2 -> 50000 | D1: =Mergefields!D2 -> 22 | E1: =Mergefields!E2 -> 3 | F1: =Input!H68 -> 
A3: 1 | B3: 25 | C3: 50000 | D3: 5 | E3: 3 | F3: 125274.9985
A4: 2 | B4: 25 | C4: 50000 | D4: 5 | E4: 4 | F4: 165806.7094
A5: 3 | B5: 25 | C5: 50000 | D5: 5 | E5: 5 | F5: 205118.0424
A6: 4 | B6: 25 | C6: 50000 | D6: 5 | E6: 6 | F6: 242950.8361
A7: 5 | B7: 25 | C7: 50000 | D7: 5 | E7: 7 | F7: 279166.0555
A8: 6 | B8: 25 | C8: 50000 | D8: 5 | E8: 8 | F8: 313709.7981
A9: 7 | B9: 25 | C9: 50000 | D9: 5 | E9: 9 | F9: 346500.2994
A10: 8 | B10: 25 | C10: 50000 | D10: 5 | E10: 10 | F10: 377391.9392
A11: 9 | B11: 25 | C11: 50000 | D11: 6 | E11: 3 | F11: 123838.3984
A12: 10 | B12: 25 | C12: 50000 | D12: 6 | E12: 4 | F12: 163150.8556
A13: 11 | B13: 25 | C13: 50000 | D13: 6 | E13: 5 | F13: 200984.7725
A14: 12 | B14: 25 | C14: 50000 | D14: 6 | E14: 6 | F14: 237201.1142
A15: 13 | B15: 25 | C15: 50000 | D15: 6 | E15: 7 | F15: 271745.978
A16: 14 | B16: 25 | C16: 50000 | D16: 6 | E16: 8 | F16: 304537.5995
A17: 15 | B17: 25 | C17: 50000 | D17: 6 | E17: 9 | F17: 335430.3586
A18: 16 | B18: 25 | C18: 50000 | D18: 6 | E18: 10 | F18: 364393.7857
A19: 17 | B19: 25 | C19: 50000 | D19: 7 | E19: 3 | F19: 121258.7549
A20: 18 | B20: 25 | C20: 50000 | D20: 7 | E20: 4 | F20: 159093.8462
A21: 19 | B21: 25 | C21: 50000 | D21: 7 | E21: 5 | F21: 195311.3611
A22: 20 | B22: 25 | C22: 50000 | D22: 7 | E22: 6 | F22: 229857.3973
A23: 21 | B23: 25 | C23: 50000 | D23: 7 | E23: 7 | F23: 262650.19
A24: 22 | B24: 25 | C24: 50000 | D24: 7 | E24: 8 | F24: 293544.1193
A25: 23 | B25: 25 | C25: 50000 | D25: 7 | E25: 9 | F25: 322508.7156
A26: 24 | B26: 25 | C26: 50000 | D26: 7 | E26: 10 | F26: 349669.667
A27: 25 | B27: 25 | C27: 50000 | D27: 8 | E27: 3 | F27: 117686.423
A28: 26 | B28: 25 | C28: 50000 | D28: 8 | E28: 4 | F28: 153905.1647
A29: 27 | B29: 25 | C29: 50000 | D29: 8 | E29: 5 | F29: 188452.4265
A30: 28 | B30: 25 | C30: 50000 | D30: 8 | E30: 6 | F30: 221246.4438
A31: 29 | B31: 25 | C31: 50000 | D31: 8 | E31: 7 | F31: 252141.5965
A32: 30 | B32: 25 | C32: 50000 | D32: 8 | E32: 8 | F32: 281107.4152
A33: 31 | B33: 25 | C33: 50000 | D33: 8 | E33: 9 | F33: 308269.5879
A34: 32 | B34: 25 | C34: 50000 | D34: 8 | E34: 10 | F34: 340806.9671
A35: 33 | B35: 25 | C35: 50000 | D35: 9 | E35: 3 | F35: 113373.7733
A36: 34 | B36: 25 | C36: 50000 | D36: 9 | E36: 4 | F36: 147922.3165
A37: 35 | B37: 25 | C37: 50000 | D37: 9 | E37: 5 | F37: 180717.6141
A38: 36 | B38: 25 | C38: 50000 | D38: 9 | E38: 6 | F38: 211614.046
A39: 37 | B39: 25 | C39: 50000 | D39: 9 | E39: 7 | F39: 240581.1427
A40: 38 | B40: 25 | C40: 50000 | D40: 9 | E40: 8 | F40: 267744.5923
A41: 39 | B41: 25 | C41: 50000 | D41: 9 | E41: 9 | F41: 300283.2473
A42: 40 | B42: 25 | C42: 50000 | D42: 9 | E42: 10 | F42: 347912.1321
A43: 41 | B43: 25 | C43: 50000 | D43: 10 | E43: 3 | F43: 108610.193
A44: 42 | B44: 25 | C44: 50000 | D44: 10 | E44: 4 | F44: 141406.8292
A45: 43 | B45: 25 | C45: 50000 | D45: 10 | E45: 5 | F45: 172304.5985
A46: 44 | B46: 25 | C46: 50000 | D46: 10 | E46: 6 | F46: 201273.0314
A47: 45 | B47: 25 | C47: 50000 | D47: 10 | E47: 7 | F47: 228437.8161
A48: 46 | B48: 25 | C48: 50000 | D48: 10 | E48: 8 | F48: 260977.8049
A49: 47 | B49: 25 | C49: 50000 | D49: 10 | E49: 9 | F49: 308608.0224
A50: 48 | B50: 25 | C50: 50000 | D50: 10 | E50: 10 | F50: 375244.6722
A51: 49 | B51: 25 | C51: 50000 | D51: 11 | E51: 3 | F51: 103572.0866
A52: 50 | B52: 25 | C52: 50000 | D52: 11 | E52: 4 | F52: 134471.2542
A53: 51 | B53: 25 | C53: 50000 | D53: 11 | E53: 5 | F53: 163441.0841
A54: 52 | B54: 25 | C54: 50000 | D54: 11 | E54: 6 | F54: 190607.2646
A55: 53 | B55: 25 | C55: 50000 | D55: 11 | E55: 7 | F55: 223148.6481
A56: 54 | B56: 25 | C56: 50000 | D56: 11 | E56: 8 | F56: 270780.2588
A57: 55 | B57: 25 | C57: 50000 | D57: 11 | E57: 9 | F57: 337418.3007
A58: 56 | B58: 25 | C58: 50000 | D58: 11 | E58: 10 | F58: 374865.3007
A59: 57 | B59: 25 | C59: 50000 | D59: 12 | E59: 3 | F59: 98252.87664
A60: 58 | B60: 25 | C60: 50000 | D60: 12 | E60: 4 | F60: 127224.1673
A61: 59 | B61: 25 | C61: 50000 | D61: 12 | E61: 5 | F61: 154391.8071
A62: 60 | B62: 25 | C62: 50000 | D62: 12 | E62: 6 | F62: 186934.6486
A63: 61 | B63: 25 | C63: 50000 | D63: 12 | E63: 7 | F63: 234567.7162
A64: 62 | B64: 25 | C64: 50000 | D64: 12 | E64: 8 | F64: 301207.2136
A65: 63 | B65: 25 | C65: 50000 | D65: 12 | E65: 9 | F65: 338654.2136
A66: 64 | B66: 25 | C66: 50000 | D66: 12 | E66: 10 | F66: 376101.2136
A67: 65 | B67: 25 | C67: 50000 | D67: 13 | E67: 3 | F67: 92676.00454
A68: 66 | B68: 25 | C68: 50000 | D68: 13 | E68: 4 | F68: 119845.1701
A69: 67 | B69: 25 | C69: 50000 | D69: 13 | E69: 5 | F69: 152389.5361
A70: 68 | B70: 25 | C70: 50000 | D70: 13 | E70: 6 | F70: 200024.1267
A71: 69 | B71: 25 | C71: 50000 | D71: 13 | E71: 7 | F71: 266665.1459
A72: 70 | B72: 25 | C72: 50000 | D72: 13 | E72: 8 | F72: 304112.1459
A73: 71 | B73: 25 | C73: 50000 | D73: 13 | E73: 9 | F73: 341559.1459
A74: 72 | B74: 25 | C74: 50000 | D74: 13 | E74: 10 | F74: 379006.1459
A75: 73 | B75: 25 | C75: 50000 | D75: 14 | E75: 3 | F75: 87048.93134
A76: 74 | B76: 25 | C76: 50000 | D76: 14 | E76: 4 | F76: 119594.8911
A77: 75 | B77: 25 | C77: 50000 | D77: 14 | E77: 5 | F77: 167231.0742
A78: 76 | B78: 25 | C78: 50000 | D78: 14 | E78: 6 | F78: 233873.6844
A79: 77 | B79: 25 | C79: 50000 | D79: 14 | E79: 7 | F79: 271320.6844
A80: 78 | B80: 25 | C80: 50000 | D80: 14 | E80: 8 | F80: 308767.6844
A81: 79 | B81: 25 | C81: 50000 | D81: 14 | E81: 9 | F81: 346214.6844
A82: 80 | B82: 25 | C82: 50000 | D82: 14 | E82: 10 | F82: 383661.6844
A83: 81 | B83: 25 | C83: 50000 | D83: 15 | E83: 3 | F83: 88696.13868
A84: 82 | B84: 25 | C84: 50000 | D84: 15 | E84: 4 | F84: 136333.9867
A85: 83 | B85: 25 | C85: 50000 | D85: 15 | E85: 5 | F85: 202978.2603
A86: 84 | B86: 25 | C86: 50000 | D86: 15 | E86: 6 | F86: 240425.2603
A87: 85 | B87: 25 | C87: 50000 | D87: 15 | E87: 7 | F87: 277872.2603
A88: 86 | B88: 25 | C88: 50000 | D88: 15 | E88: 8 | F88: 315319.2603
A89: 87 | B89: 25 | C89: 50000 | D89: 15 | E89: 9 | F89: 352766.2603
A90: 88 | B90: 25 | C90: 50000 | D90: 15 | E90: 10 | F90: 390213.2603
A91: 89 | B91: 25 | C91: 50000 | D91: 16 | E91: 3 | F91: 107363.1297
A92: 90 | B92: 25 | C92: 50000 | D92: 16 | E92: 4 | F92: 174009.1425
A93: 91 | B93: 25 | C93: 50000 | D93: 16 | E93: 5 | F93: 211456.1425
A94: 92 | B94: 25 | C94: 50000 | D94: 16 | E94: 6 | F94: 248903.1425
A95: 93 | B95: 25 | C95: 50000 | D95: 16 | E95: 7 | F95: 286350.1425
A96: 94 | B96: 25 | C96: 50000 | D96: 16 | E96: 8 | F96: 323797.1425
A97: 95 | B97: 25 | C97: 50000 | D97: 16 | E97: 9 | F97: 361244.1425
A98: 96 | B98: 25 | C98: 50000 | D98: 17 | E98: 3 | F98: 146840.4299
A99: 97 | B99: 25 | C99: 50000 | D99: 17 | E99: 4 | F99: 184287.4299
A100: 98 | B100: 25 | C100: 50000 | D100: 17 | E100: 5 | F100: 221734.4299
A101: 99 | B101: 25 | C101: 50000 | D101: 17 | E101: 6 | F101: 259181.4299
A102: 100 | B102: 25 | C102: 50000 | D102: 17 | E102: 7 | F102: 296628.4299
A103: 101 | B103: 25 | C103: 50000 | D103: 17 | E103: 8 | F103: 334075.4299
A104: 102 | B104: 25 | C104: 50000 | D104: 18 | E104: 3 | F104: 151740.0438
A105: 103 | B105: 25 | C105: 50000 | D105: 18 | E105: 4 | F105: 189187.0438
A106: 104 | B106: 25 | C106: 50000 | D106: 18 | E106: 5 | F106: 226634.0438
A107: 105 | B107: 25 | C107: 50000 | D107: 18 | E107: 6 | F107: 264081.0438
A108: 106 | B108: 25 | C108: 50000 | D108: 18 | E108: 7 | F108: 301528.0438
A109: 107 | B109: 25 | C109: 50000 | D109: 19 | E109: 3 | F109: 141545.72
A110: 108 | B110: 25 | C110: 50000 | D110: 19 | E110: 4 | F110: 178992.72
A111: 109 | B111: 25 | C111: 50000 | D111: 19 | E111: 5 | F111: 216439.72
A112: 110 | B112: 25 | C112: 50000 | D112: 19 | E112: 6 | F112: 253886.72
A113: 111 | B113: 25 | C113: 50000 | D113: 20 | E113: 3 | F113: 112341
A114: 112 | B114: 25 | C114: 50000 | D114: 20 | E114: 4 | F114: 149788
A115: 113 | B115: 25 | C115: 50000 | D115: 20 | E115: 5 | F115: 187235
A116: 114 | B116: 25 | C116: 50000 | D116: 21 | E116: 3 | F116: 112341
A117: 115 | B117: 25 | C117: 50000 | D117: 21 | E117: 4 | F117: 149788
A118: 116 | B118: 25 | C118: 50000 | D118: 22 | E118: 3 | F118: 112341
A119: 117 | B119: 30 | C119: 50000 | D119: 5 | E119: 3 | F119: 112832.9985
A120: 118 | B120: 30 | C120: 50000 | D120: 5 | E120: 4 | F120: 151506.7094
A121: 119 | B121: 30 | C121: 50000 | D121: 5 | E121: 5 | F121: 190336.0424
A122: 120 | B122: 30 | C122: 50000 | D122: 5 | E122: 6 | F122: 229038.8361
A123: 121 | B123: 30 | C123: 50000 | D123: 5 | E123: 7 | F123: 267249.0555
A124: 122 | B124: 30 | C124: 50000 | D124: 5 | E124: 8 | F124: 304552.7981
A125: 123 | B125: 30 | C125: 50000 | D125: 5 | E125: 9 | F125: 340578.2994
A126: 124 | B126: 30 | C126: 50000 | D126: 5 | E126: 10 | F126: 375027.9392
A127: 125 | B127: 30 | C127: 50000 | D127: 6 | E127: 3 | F127: 114665.3984
A128: 126 | B128: 30 | C128: 50000 | D128: 6 | E128: 4 | F128: 153495.8556
A129: 127 | B129: 30 | C129: 50000 | D129: 6 | E129: 5 | F129: 192199.7725
A130: 128 | B130: 30 | C130: 50000 | D130: 6 | E130: 6 | F130: 230411.1142
A131: 129 | B131: 30 | C131: 50000 | D131: 6 | E131: 7 | F131: 267715.978
A132: 130 | B132: 30 | C132: 50000 | D132: 6 | E132: 8 | F132: 303742.5995
A133: 131 | B133: 30 | C133: 50000 | D133: 6 | E133: 9 | F133: 338193.3586
A134: 132 | B134: 30 | C134: 50000 | D134: 6 | E134: 10 | F134: 370877.7857
A135: 133 | B135: 30 | C135: 50000 | D135: 7 | E135: 3 | F135: 115808.7549
A136: 134 | B136: 30 | C136: 50000 | D136: 7 | E136: 4 | F136: 154513.8462
A137: 135 | B137: 30 | C137: 50000 | D137: 7 | E137: 5 | F137: 192726.3611
A138: 136 | B138: 30 | C138: 50000 | D138: 7 | E138: 6 | F138: 230032.3973
A139: 137 | B139: 30 | C139: 50000 | D139: 7 | E139: 7 | F139: 266060.19
A140: 138 | B140: 30 | C140: 50000 | D140: 7 | E140: 8 | F140: 300512.1193
A141: 139 | B141: 30 | C141: 50000 | D141: 7 | E141: 9 | F141: 333197.7156
A142: 140 | B142: 30 | C142: 50000 | D142: 7 | E142: 10 | F142: 364069.667
A143: 141 | B143: 30 | C143: 50000 | D143: 8 | E143: 3 | F143: 116216.423
A144: 142 | B144: 30 | C144: 50000 | D144: 8 | E144: 4 | F144: 154430.1647
A145: 143 | B145: 30 | C145: 50000 | D145: 8 | E145: 5 | F145: 191737.4265
A146: 144 | B146: 30 | C146: 50000 | D146: 8 | E146: 6 | F146: 227766.4438
A147: 145 | B147: 30 | C147: 50000 | D147: 8 | E147: 7 | F147: 262219.5965
A148: 146 | B148: 30 | C148: 50000 | D148: 8 | E148: 8 | F148: 294906.4152
A149: 147 | B149: 30 | C149: 50000 | D149: 8 | E149: 9 | F149: 325779.5879
A150: 148 | B150: 30 | C150: 50000 | D150: 8 | E150: 10 | F150: 361180.9671
A151: 149 | B151: 30 | C151: 50000 | D151: 9 | E151: 3 | F151: 115756.7733
A152: 150 | B152: 30 | C152: 50000 | D152: 9 | E152: 4 | F152: 153065.3165
A153: 151 | B153: 30 | C153: 50000 | D153: 9 | E153: 5 | F153: 189095.6141
A154: 152 | B154: 30 | C154: 50000 | D154: 9 | E154: 6 | F154: 223550.046
A155: 153 | B155: 30 | C155: 50000 | D155: 9 | E155: 7 | F155: 256238.1427
A156: 154 | B156: 30 | C156: 50000 | D156: 9 | E156: 8 | F156: 287112.5923
A157: 155 | B157: 30 | C157: 50000 | D157: 9 | E157: 9 | F157: 322515.2473
A158: 156 | B158: 30 | C158: 50000 | D158: 9 | E158: 10 | F158: 371257.1321
A159: 157 | B159: 30 | C159: 50000 | D159: 10 | E159: 3 | F159: 114235.193
A160: 158 | B160: 30 | C160: 50000 | D160: 10 | E160: 4 | F160: 150266.8292
A161: 159 | B161: 30 | C161: 50000 | D161: 10 | E161: 5 | F161: 184722.5985
A162: 160 | B162: 30 | C162: 50000 | D162: 10 | E162: 6 | F162: 217412.0314
A163: 161 | B163: 30 | C163: 50000 | D163: 10 | E163: 7 | F163: 248287.8161
A164: 162 | B164: 30 | C164: 50000 | D164: 10 | E164: 8 | F164: 283691.8049
A165: 163 | B165: 30 | C165: 50000 | D165: 10 | E165: 9 | F165: 332435.0224
A166: 164 | B166: 30 | C166: 50000 | D166: 10 | E166: 10 | F166: 398309.6722
A167: 165 | B167: 30 | C167: 50000 | D167: 11 | E167: 3 | F167: 111562.0866
A168: 166 | B168: 30 | C168: 50000 | D168: 11 | E168: 4 | F168: 146019.2542
A169: 167 | B169: 30 | C169: 50000 | D169: 11 | E169: 5 | F169: 178710.0841
A170: 168 | B170: 30 | C170: 50000 | D170: 11 | E170: 6 | F170: 209587.2646
A171: 169 | B171: 30 | C171: 50000 | D171: 11 | E171: 7 | F171: 244992.6481
A172: 170 | B172: 30 | C172: 50000 | D172: 11 | E172: 8 | F172: 293737.2588
A173: 171 | B173: 30 | C173: 50000 | D173: 11 | E173: 9 | F173: 359613.3007
A174: 172 | B174: 30 | C174: 50000 | D174: 11 | E174: 10 | F174: 395742.3007
A175: 173 | B175: 30 | C175: 50000 | D175: 12 | E175: 3 | F175: 107805.8766
A176: 174 | B176: 30 | C176: 50000 | D176: 12 | E176: 4 | F176: 140498.1673
A177: 175 | B177: 30 | C177: 50000 | D177: 12 | E177: 5 | F177: 171376.8071
A178: 176 | B178: 30 | C178: 50000 | D178: 12 | E178: 6 | F178: 206783.6486
A179: 177 | B179: 30 | C179: 50000 | D179: 12 | E179: 7 | F179: 255529.7162
A180: 178 | B180: 30 | C180: 50000 | D180: 12 | E180: 8 | F180: 321407.2136
A181: 179 | B181: 30 | C181: 50000 | D181: 12 | E181: 9 | F181: 357536.2136
A182: 180 | B182: 30 | C182: 50000 | D182: 12 | E182: 10 | F182: 393665.2136
A183: 181 | B183: 30 | C183: 50000 | D183: 13 | E183: 3 | F183: 103190.0045
A184: 182 | B184: 30 | C184: 50000 | D184: 13 | E184: 4 | F184: 134070.1701
A185: 183 | B185: 30 | C185: 50000 | D185: 13 | E185: 5 | F185: 169478.5361
A186: 184 | B186: 30 | C186: 50000 | D186: 13 | E186: 6 | F186: 218226.1267
A187: 185 | B187: 30 | C187: 50000 | D187: 13 | E187: 7 | F187: 284105.1459
A188: 186 | B188: 30 | C188: 50000 | D188: 13 | E188: 8 | F188: 320234.1459
A189: 187 | B189: 30 | C189: 50000 | D189: 13 | E189: 9 | F189: 356363.1459
A190: 188 | B190: 30 | C190: 50000 | D190: 13 | E190: 10 | F190: 392493.1459
A191: 189 | B191: 30 | C191: 50000 | D191: 14 | E191: 3 | F191: 98038.93134
A192: 190 | B192: 30 | C192: 50000 | D192: 14 | E192: 4 | F192: 133448.8911
A193: 191 | B193: 30 | C193: 50000 | D193: 14 | E193: 5 | F193: 182198.0742
A194: 192 | B194: 30 | C194: 50000 | D194: 14 | E194: 6 | F194: 248078.6844
A195: 193 | B195: 30 | C195: 50000 | D195: 14 | E195: 7 | F195: 284207.6844
A196: 194 | B196: 30 | C196: 50000 | D196: 14 | E196: 8 | F196: 320336.6844
A197: 195 | B197: 30 | C197: 50000 | D197: 14 | E197: 9 | F197: 356466.6844
A198: 196 | B198: 30 | C198: 50000 | D198: 14 | E198: 10 | F198: 392595.6844
A199: 197 | B199: 30 | C199: 50000 | D199: 15 | E199: 3 | F199: 98992.13868
A200: 198 | B200: 30 | C200: 50000 | D200: 15 | E200: 4 | F200: 147742.9867
A201: 199 | B201: 30 | C201: 50000 | D201: 15 | E201: 5 | F201: 213625.2603
... 729 more rows

Sheet Sheet1 (hidden)
A1: Order | B1: Age | C1: Salary | D1: Service | E1: Purchase
A2: 1 | B2: 25 | C2: 50000 | D2: 5 | E2: 3
A3: 2 | B3: 25 | C3: 50000 | D3: 5 | E3: 4
A4: 3 | B4: 25 | C4: 50000 | D4: 5 | E4: 5
A5: 4 | B5: 25 | C5: 50000 | D5: 5 | E5: 6
A6: 5 | B6: 25 | C6: 50000 | D6: 5 | E6: 7
A7: 6 | B7: 25 | C7: 50000 | D7: 5 | E7: 8
A8: 7 | B8: 25 | C8: 50000 | D8: 5 | E8: 9
A9: 8 | B9: 25 | C9: 50000 | D9: 5 | E9: 10
A10: 9 | B10: 25 | C10: 50000 | D10: 6 | E10: 3
A11: 10 | B11: 25 | C11: 50000 | D11: 6 | E11: 4
A12: 11 | B12: 25 | C12: 50000 | D12: 6 | E12: 5
A13: 12 | B13: 25 | C13: 50000 | D13: 6 | E13: 6
A14: 13 | B14: 25 | C14: 50000 | D14: 6 | E14: 7
A15: 14 | B15: 25 | C15: 50000 | D15: 6 | E15: 8
A16: 15 | B16: 25 | C16: 50000 | D16: 6 | E16: 9
A17: 16 | B17: 25 | C17: 50000 | D17: 6 | E17: 10
A18: 17 | B18: 25 | C18: 50000 | D18: 7 | E18: 3
A19: 18 | B19: 25 | C19: 50000 | D19: 7 | E19: 4
A20: 19 | B20: 25 | C20: 50000 | D20: 7 | E20: 5
A21: 20 | B21: 25 | C21: 50000 | D21: 7 | E21: 6
A22: 21 | B22: 25 | C22: 50000 | D22: 7 | E22: 7
A23: 22 | B23: 25 | C23: 50000 | D23: 7 | E23: 8
A24: 23 | B24: 25 | C24: 50000 | D24: 7 | E24: 9
A25: 24 | B25: 25 | C25: 50000 | D25: 7 | E25: 10
A26: 25 | B26: 25 | C26: 50000 | D26: 8 | E26: 3
A27: 26 | B27: 25 | C27: 50000 | D27: 8 | E27: 4
A28: 27 | B28: 25 | C28: 50000 | D28: 8 | E28: 5
A29: 28 | B29: 25 | C29: 50000 | D29: 8 | E29: 6
A30: 29 | B30: 25 | C30: 50000 | D30: 8 | E30: 7
A31: 30 | B31: 25 | C31: 50000 | D31: 8 | E31: 8
A32: 31 | B32: 25 | C32: 50000 | D32: 8 | E32: 9
A33: 32 | B33: 25 | C33: 50000 | D33: 8 | E33: 10
A34: 33 | B34: 25 | C34: 50000 | D34: 9 | E34: 3
A35: 34 | B35: 25 | C35: 50000 | D35: 9 | E35: 4
A36: 35 | B36: 25 | C36: 50000 | D36: 9 | E36: 5
A37: 36 | B37: 25 | C37: 50000 | D37: 9 | E37: 6
A38: 37 | B38: 25 | C38: 50000 | D38: 9 | E38: 7
A39: 38 | B39: 25 | C39: 50000 | D39: 9 | E39: 8
A40: 39 | B40: 25 | C40: 50000 | D40: 9 | E40: 9
A41: 40 | B41: 25 | C41: 50000 | D41: 9 | E41: 10
A42: 41 | B42: 25 | C42: 50000 | D42: 10 | E42: 3
A43: 42 | B43: 25 | C43: 50000 | D43: 10 | E43: 4
A44: 43 | B44: 25 | C44: 50000 | D44: 10 | E44: 5
A45: 44 | B45: 25 | C45: 50000 | D45: 10 | E45: 6
A46: 45 | B46: 25 | C46: 50000 | D46: 10 | E46: 7
A47: 46 | B47: 25 | C47: 50000 | D47: 10 | E47: 8
A48: 47 | B48: 25 | C48: 50000 | D48: 10 | E48: 9
A49: 48 | B49: 25 | C49: 50000 | D49: 10 | E49: 10
A50: 49 | B50: 25 | C50: 50000 | D50: 11 | E50: 3
A51: 50 | B51: 25 | C51: 50000 | D51: 11 | E51: 4
A52: 51 | B52: 25 | C52: 50000 | D52: 11 | E52: 5
A53: 52 | B53: 25 | C53: 50000 | D53: 11 | E53: 6
A54: 53 | B54: 25 | C54: 50000 | D54: 11 | E54: 7
A55: 54 | B55: 25 | C55: 50000 | D55: 11 | E55: 8
A56: 55 | B56: 25 | C56: 50000 | D56: 11 | E56: 9
A57: 56 | B57: 25 | C57: 50000 | D57: 11 | E57: 10
A58: 57 | B58: 25 | C58: 50000 | D58: 12 | E58: 3
A59: 58 | B59: 25 | C59: 50000 | D59: 12 | E59: 4
A60: 59 | B60: 25 | C60: 50000 | D60: 12 | E60: 5
A61: 60 | B61: 25 | C61: 50000 | D61: 12 | E61: 6
A62: 61 | B62: 25 | C62: 50000 | D62: 12 | E62: 7
A63: 62 | B63: 25 | C63: 50000 | D63: 12 | E63: 8
A64: 63 | B64: 25 | C64: 50000 | D64: 12 | E64: 9
A65: 64 | B65: 25 | C65: 50000 | D65: 12 | E65: 10
A66: 65 | B66: 25 | C66: 50000 | D66: 13 | E66: 3
A67: 66 | B67: 25 | C67: 50000 | D67: 13 | E67: 4
A68: 67 | B68: 25 | C68: 50000 | D68: 13 | E68: 5
A69: 68 | B69: 25 | C69: 50000 | D69: 13 | E69: 6
A70: 69 | B70: 25 | C70: 50000 | D70: 13 | E70: 7
A71: 70 | B71: 25 | C71: 50000 | D71: 13 | E71: 8
A72: 71 | B72: 25 | C72: 50000 | D72: 13 | E72: 9
A73: 72 | B73: 25 | C73: 50000 | D73: 13 | E73: 10
A74: 73 | B74: 25 | C74: 50000 | D74: 14 | E74: 3
A75: 74 | B75: 25 | C75: 50000 | D75: 14 | E75: 4
A76: 75 | B76: 25 | C76: 50000 | D76: 14 | E76: 5
A77: 76 | B77: 25 | C77: 50000 | D77: 14 | E77: 6
A78: 77 | B78: 25 | C78: 50000 | D78: 14 | E78: 7
A79: 78 | B79: 25 | C79: 50000 | D79: 14 | E79: 8
A80: 79 | B80: 25 | C80: 50000 | D80: 14 | E80: 9
A81: 80 | B81: 25 | C81: 50000 | D81: 14 | E81: 10
A82: 81 | B82: 25 | C82: 50000 | D82: 15 | E82: 3
A83: 82 | B83: 25 | C83: 50000 | D83: 15 | E83: 4
A84: 83 | B84: 25 | C84: 50000 | D84: 15 | E84: 5
A85: 84 | B85: 25 | C85: 50000 | D85: 15 | E85: 6
A86: 85 | B86: 25 | C86: 50000 | D86: 15 | E86: 7
A87: 86 | B87: 25 | C87: 50000 | D87: 15 | E87: 8
A88: 87 | B88: 25 | C88: 50000 | D88: 15 | E88: 9
A89: 88 | B89: 25 | C89: 50000 | D89: 15 | E89: 10
A90: 89 | B90: 25 | C90: 50000 | D90: 16 | E90: 3
A91: 90 | B91: 25 | C91: 50000 | D91: 16 | E91: 4
A92: 91 | B92: 25 | C92: 50000 | D92: 16 | E92: 5
A93: 92 | B93: 25 | C93: 50000 | D93: 16 | E93: 6
A94: 93 | B94: 25 | C94: 50000 | D94: 16 | E94: 7
A95: 94 | B95: 25 | C95: 50000 | D95: 16 | E95: 8
A96: 95 | B96: 25 | C96: 50000 | D96: 16 | E96: 9
A97: 96 | B97: 25 | C97: 50000 | D97: 17 | E97: 3
A98: 97 | B98: 25 | C98: 50000 | D98: 17 | E98: 4
A99: 98 | B99: 25 | C99: 50000 | D99: 17 | E99: 5
A100: 99 | B100: 25 | C100: 50000 | D100: 17 | E100: 6
A101: 100 | B101: 25 | C101: 50000 | D101: 17 | E101: 7
A102: 101 | B102: 25 | C102: 50000 | D102: 17 | E102: 8
A103: 102 | B103: 25 | C103: 50000 | D103: 18 | E103: 3
A104: 103 | B104: 25 | C104: 50000 | D104: 18 | E104: 4
A105: 104 | B105: 25 | C105: 50000 | D105: 18 | E105: 5
A106: 105 | B106: 25 | C106: 50000 | D106: 18 | E106: 6
A107: 106 | B107: 25 | C107: 50000 | D107: 18 | E107: 7
A108: 107 | B108: 25 | C108: 50000 | D108: 19 | E108: 3
A109: 108 | B109: 25 | C109: 50000 | D109: 19 | E109: 4
A110: 109 | B110: 25 | C110: 50000 | D110: 19 | E110: 5
A111: 110 | B111: 25 | C111: 50000 | D111: 19 | E111: 6
A112: 111 | B112: 25 | C112: 50000 | D112: 20 | E112: 3
A113: 112 | B113: 25 | C113: 50000 | D113: 20 | E113: 4
A114: 113 | B114: 25 | C114: 50000 | D114: 20 | E114: 5
A115: 114 | B115: 25 | C115: 50000 | D115: 21 | E115: 3
A116: 115 | B116: 25 | C116: 50000 | D116: 21 | E116: 4
A117: 116 | B117: 25 | C117: 50000 | D117: 22 | E117: 3
A118: 117 | B118: 30 | C118: 50000 | D118: 5 | E118: 3
A119: 118 | B119: 30 | C119: 50000 | D119: 5 | E119: 4
A120: 119 | B120: 30 | C120: 50000 | D120: 5 | E120: 5
A121: 120 | B121: 30 | C121: 50000 | D121: 5 | E121: 6
A122: 121 | B122: 30 | C122: 50000 | D122: 5 | E122: 7
A123: 122 | B123: 30 | C123: 50000 | D123: 5 | E123: 8
A124: 123 | B124: 30 | C124: 50000 | D124: 5 | E124: 9
A125: 124 | B125: 30 | C125: 50000 | D125: 5 | E125: 10
A126: 125 | B126: 30 | C126: 50000 | D126: 6 | E126: 3
A127: 126 | B127: 30 | C127: 50000 | D127: 6 | E127: 4
A128: 127 | B128: 30 | C128: 50000 | D128: 6 | E128: 5
A129: 128 | B129: 30 | C129: 50000 | D129: 6 | E129: 6
A130: 129 | B130: 30 | C130: 50000 | D130: 6 | E130: 7
A131: 130 | B131: 30 | C131: 50000 | D131: 6 | E131: 8
A132: 131 | B132: 30 | C132: 50000 | D132: 6 | E132: 9
A133: 132 | B133: 30 | C133: 50000 | D133: 6 | E133: 10
A134: 133 | B134: 30 | C134: 50000 | D134: 7 | E134: 3
A135: 134 | B135: 30 | C135: 50000 | D135: 7 | E135: 4
A136: 135 | B136: 30 | C136: 50000 | D136: 7 | E136: 5
A137: 136 | B137: 30 | C137: 50000 | D137: 7 | E137: 6
A138: 137 | B138: 30 | C138: 50000 | D138: 7 | E138: 7
A139: 138 | B139: 30 | C139: 50000 | D139: 7 | E139: 8
A140: 139 | B140: 30 | C140: 50000 | D140: 7 | E140: 9
A141: 140 | B141: 30 | C141: 50000 | D141: 7 | E141: 10
A142: 141 | B142: 30 | C142: 50000 | D142: 8 | E142: 3
A143: 142 | B143: 30 | C143: 50000 | D143: 8 | E143: 4
A144: 143 | B144: 30 | C144: 50000 | D144: 8 | E144: 5
A145: 144 | B145: 30 | C145: 50000 | D145: 8 | E145: 6
A146: 145 | B146: 30 | C146: 50000 | D146: 8 | E146: 7
A147: 146 | B147: 30 | C147: 50000 | D147: 8 | E147: 8
A148: 147 | B148: 30 | C148: 50000 | D148: 8 | E148: 9
A149: 148 | B149: 30 | C149: 50000 | D149: 8 | E149: 10
A150: 149 | B150: 30 | C150: 50000 | D150: 9 | E150: 3
A151: 150 | B151: 30 | C151: 50000 | D151: 9 | E151: 4
A152: 151 | B152: 30 | C152: 50000 | D152: 9 | E152: 5
A153: 152 | B153: 30 | C153: 50000 | D153: 9 | E153: 6
A154: 153 | B154: 30 | C154: 50000 | D154: 9 | E154: 7
A155: 154 | B155: 30 | C155: 50000 | D155: 9 | E155: 8
A156: 155 | B156: 30 | C156: 50000 | D156: 9 | E156: 9
A157: 156 | B157: 30 | C157: 50000 | D157: 9 | E157: 10
A158: 157 | B158: 30 | C158: 50000 | D158: 10 | E158: 3
A159: 158 | B159: 30 | C159: 50000 | D159: 10 | E159: 4
A160: 159 | B160: 30 | C160: 50000 | D160: 10 | E160: 5
A161: 160 | B161: 30 | C161: 50000 | D161: 10 | E161: 6
A162: 161 | B162: 30 | C162: 50000 | D162: 10 | E162: 7
A163: 162 | B163: 30 | C163: 50000 | D163: 10 | E163: 8
A164: 163 | B164: 30 | C164: 50000 | D164: 10 | E164: 9
A165: 164 | B165: 30 | C165: 50000 | D165: 10 | E165: 10
A166: 165 | B166: 30 | C166: 50000 | D166: 11 | E166: 3
A167: 166 | B167: 30 | C167: 50000 | D167: 11 | E167: 4
A168: 167 | B168: 30 | C168: 50000 | D168: 11 | E168: 5
A169: 168 | B169: 30 | C169: 50000 | D169: 11 | E169: 6
A170: 169 | B170: 30 | C170: 50000 | D170: 11 | E170: 7
A171: 170 | B171: 30 | C171: 50000 | D171: 11 | E171: 8
A172: 171 | B172: 30 | C172: 50000 | D172: 11 | E172: 9
A173: 172 | B173: 30 | C173: 50000 | D173: 11 | E173: 10
A174: 173 | B174: 30 | C174: 50000 | D174: 12 | E174: 3
A175: 174 | B175: 30 | C175: 50000 | D175: 12 | E175: 4
A176: 175 | B176: 30 | C176: 50000 | D176: 12 | E176: 5
A177: 176 | B177: 30 | C177: 50000 | D177: 12 | E177: 6
A178: 177 | B178: 30 | C178: 50000 | D178: 12 | E178: 7
A179: 178 | B179: 30 | C179: 50000 | D179: 12 | E179: 8
A180: 179 | B180: 30 | C180: 50000 | D180: 12 | E180: 9
A181: 180 | B181: 30 | C181: 50000 | D181: 12 | E181: 10
A182: 181 | B182: 30 | C182: 50000 | D182: 13 | E182: 3
A183: 182 | B183: 30 | C183: 50000 | D183: 13 | E183: 4
A184: 183 | B184: 30 | C184: 50000 | D184: 13 | E184: 5
A185: 184 | B185: 30 | C185: 50000 | D185: 13 | E185: 6
A186: 185 | B186: 30 | C186: 50000 | D186: 13 | E186: 7
A187: 186 | B187: 30 | C187: 50000 | D187: 13 | E187: 8
A188: 187 | B188: 30 | C188: 50000 | D188: 13 | E188: 9
A189: 188 | B189: 30 | C189: 50000 | D189: 13 | E189: 10
A190: 189 | B190: 30 | C190: 50000 | D190: 14 | E190: 3
A191: 190 | B191: 30 | C191: 50000 | D191: 14 | E191: 4
A192: 191 | B192: 30 | C192: 50000 | D192: 14 | E192: 5
A193: 192 | B193: 30 | C193: 50000 | D193: 14 | E193: 6
A194: 193 | B194: 30 | C194: 50000 | D194: 14 | E194: 7
A195: 194 | B195: 30 | C195: 50000 | D195: 14 | E195: 8
A196: 195 | B196: 30 | C196: 50000 | D196: 14 | E196: 9
A197: 196 | B197: 30 | C197: 50000 | D197: 14 | E197: 10
A198: 197 | B198: 30 | C198: 50000 | D198: 15 | E198: 3
A199: 198 | B199: 30 | C199: 50000 | D199: 15 | E199: 4
A200: 199 | B200: 30 | C200: 50000 | D200: 15 | E200: 5
... 729 more rows

Sheet Estimator
A1: 1 | B1: 1 | AE1: PSPRS | AF1: CORP | AG1: EORP
B2: ="Tier "&B1 -> Tier 1 | C2: Plan | D2: =IF(A1=1,"PSPRS",IF(A1=2,"CORP",IF(A1=3,"EORP",""))) -> PSPRS | E2: =Input!B3 -> PSPRS | G2: Select Membership Plan | P2: Disclosure Statement: | AI2: PSPRS | AJ2: 1 | AN2: 1
A3: =INDEX(AE3:AG3,$A$1) -> AK CHIN INDIAN COMM. FIRE DEPT. | C3: Employer Name | D3: =G10 -> PHOENIX FIRE DEPT. | E3: =Input!B5 -> PHOENIX FIRE DEPT. | P3: The costs to purchase service credit are estimates only. The values displayed do not commit PSPRS to accept as the cost to purchase service credit. | AE3: AK CHIN INDIAN COMM. FIRE DEPT. | AF3: ADMINISTRATIVE OFFICE OF THE COURTS | AG3: STATE OF ARIZONA | AI3: CORP | AJ3: 2 | AL3: =SUMIF(AN4:AN8,AN2,AL4:AL8) -> 26.07142857 | AO3: =SUMIF(AN4:AN8,AN2,AO4:AO8) -> 390
A4: AK CHIN INDIAN COMM. POLICE DEPT. | C4: Member Tier | D4: =B2 -> Tier 1 | E4: =Input!B4 -> Tier 1 | AE4: AK CHIN INDIAN COMM. POLICE DEPT. | AF4: APACHE COUNTY - Detention | AG4: CITY OF APACHE JUNCTION | AI4: EORP | AJ4: 3 | AK4: 26 | AL4: 26.07142857 | AM4: Bi-Weekly | AN4: 1 | AO4: =AK4*15 -> 390
A5: APACHE COUNTY SHERIFF'S DEPT. | G5: Select Membership Tier | AE5: APACHE COUNTY SHERIFF'S DEPT. | AF5: CITY OF AVONDALE - Detention | AG5: CITY OF AVONDALE | AK5: 24 | AL5: 24 | AM5: Semi-Monthly | AN5: 2 | AO5: =AK5*15 -> 360
A6: APACHE JUNCTION POLICE DEPT. | C6: Date of Birth | D6: =H13 -> 00:00:00 | E6: =Input!B10 -> 00:00:00 | AE6: APACHE JUNCTION POLICE DEPT. | AF6: CITY OF SOMERTON - Dispatchers | AG6: CITY OF CHANDLER | AI6: Tier 1 | AK6: 12 | AL6: 12 | AM6: Monthly | AN6: 4 | AO6: =AK6*15 -> 180
A7: ASU CAMPUS POLICE | C7: Current Salary | D7: =H14 -> 0 | E7: =Input!B15 -> 0 | P7: If interested in purchasing service credit using the Payroll Deduction Authorization (PDA), enter required values in yellow cells below. | AE7: ASU CAMPUS POLICE | AF7: COCHISE COUNTY - Detention | AG7: CITY OF FLAGSTAFF | AI7: Tier 2 | AK7: 4 | AL7: 4 | AM7: Quarterly
A8: ATTORNEY GENERAL INVEST. | C8: Current Service | D8: =H16 -> 0 | E8: =Input!B12 -> 0 | G8: Click on Yellow Cell below to Select Employer from Dropdown Menu | AE8: ATTORNEY GENERAL INVEST. | AF8: COCONINO COUNTY - Detention | AG8: CITY OF GLENDALE | AI8: Tier 3 | AK8: 52 | AL8: =AL4*2 -> 52.14285714 | AM8: Weekly | AN8: 3 | AO8: =AK8*15 -> 780
A9: AVONDALE FIRE DEPT. | J9: You can use this section to calculate service using years, month and days | AE9: AVONDALE FIRE DEPT. | AF9: DEPARTMENT OF CORRECTIONS - Detention | AG9: CITY OF GLOBE
A10: AVONDALE POLICE DEPT. | C10: Service for Purchase | D10: =H17 -> 0 | E10: =Input!B14 -> 0 | G10: PHOENIX FIRE DEPT. | AE10: AVONDALE POLICE DEPT. | AF10: DEPT OF JUVENILE CORRECTIONS - Detention | AG10: CITY OF MESA
A11: AVRA VALLEY FIRE DISTRICT | G11: If menu is blank, scroll to top of menu | P11: Select Your Payroll Cycle | AE11: AVRA VALLEY FIRE DISTRICT | AF11: DEPARTMENT OF PUBLIC SAFETY - Dispatchers | AG11: CITY OF PEORIA
A12: AZ DEPT. LIQ. LIC. & CONTROL INVEST. | C12: Cost of Purchase | D12: =Input!B18 ->  | G12: Enter Requested Data in Yellow Cells | AE12: AZ DEPT. LIQ. LIC. & CONTROL INVEST. | AF12: DEPARTMENT OF PUBLIC SAFETY - Detention | AG12: CITY OF PHOENIX
A13: AZ. STATE PARK RANGERS | G13: Date of Birth | J13: Years | P13: Cost of Service Credit Purchase | AE13: AZ. STATE PARK RANGERS | AF13: GILA COUNTY - Detention | AG13: CITY OF SAFFORD
A14: BENSON FIRE DEPT. | G14: Current Gross Salary | J14: Months | P14: Number of Payroll Deductions | T14: =IF(S14>AO3,"Maximum PDAs is "&AO3,"") ->  | AE14: BENSON FIRE DEPT. | AF14: GILA COUNTY - Dispatchers | AG14: CITY OF SAN LUIS
A15: BENSON POLICE DEPT. | J15: Days | R15: Payroll Deduction Amount | S15: =IF(T14="",IF(H16<0.005,0,IF(S14=0,0,ROUNDUP(-PMT(0.074/AL3,S14,S13,0,1),2))),"") -> 0 | AE15: BENSON POLICE DEPT. | AF15: GRAHAM COUNTY - Detention | AG15: CITY OF SCOTTSDALE
A16: BISBEE FIRE DEPT. | G16: Current Years of Service | J16: Service | K16: =ROUND(K13+K14/12+K15/365.25,3) -> 0 | S16: =ROUND(S14/AL3,2) -> 0 | AE16: BISBEE FIRE DEPT. | AF16: GRAHAM COUNTY - Dispatchers | AG16: CITY OF SOUTH TUCSON
A17: BISBEE POLICE DEPT. | G17: Service to be Purchased | K17: Enter Value Here | R17: Total Principal | S17: =IF(T14="",IF(H16<0.005,0,S13),"") -> 0 | AE17: BISBEE POLICE DEPT. | AF17: MARICOPA COUNTY - Detention | AG17: CITY OF SURPRISE
A18: BLACK CANYON FIRE DISTRICT | R18: Total Interest | S18: =IF(T14="",IF(S13=0,0,S19-S17),"") -> 0 | AE18: BLACK CANYON FIRE DISTRICT | AF18: MOHAVE COUNTY - Detention | AG18: CITY OF TEMPE
A19: BUCKEYE FIRE DEPT. | G19: Lump Sum Purchase of Service Credit | R19: Total PDA Payments | S19: =IF(T14="",IF(S14=0,0,S14*S15),"") -> 0 | AE19: BUCKEYE FIRE DEPT. | AF19: NAVAJO COUNTY - Detention | AG19: CITY OF TOLLESON
A20: BUCKEYE POLICE DEPT. | G20: =TODAY() -> 2018-04-23 | H20: =IF(H17=0,"",D12) ->  | R20: =IF(T14="",IF(S14=0,"","Based on the total of "&S14&" payroll deductions, the PDA will be approximately "&S16&" years in length."),"") ->  | AE20: BUCKEYE POLICE DEPT. | AF20: PIMA COUNTY - Detention | AG20: CITY OF TUCSON
A21: BUCKEYE VALLEY FIRE DISTRICT | AE21: BUCKEYE VALLEY FIRE DISTRICT | AF21: PINAL COUNTY - Detention | AG21: CITY OF YUMA
A22: BUCKSKIN FIRE DISTRICT | AE22: BUCKSKIN FIRE DISTRICT | AF22: PINAL COUNTY - Dispatchers | AG22: TOWN OF GILBERT
A23: BULLHEAD CITY FIRE DEPT. | AE23: BULLHEAD CITY FIRE DEPT. | AF23: SANTA CRUZ COUNTY - Detention | AG23: TOWN OF MARANA
A24: BULLHEAD CITY POLICE DEPT. | AE24: BULLHEAD CITY POLICE DEPT. | AF24: TOWN OF MARANA - Dispatchers | AG24: TOWN OF SAHUARITA
A25: CAMP VERDE MARSHALS | AE25: CAMP VERDE MARSHALS | AF25: TOWN OF ORO VALLEY - Dispatchers | AG25: TOWN OF THATCHER
A26: CASA GRANDE FIRE DEPT. | AE26: CASA GRANDE FIRE DEPT. | AF26: TOWN OF WICKENBURG - Dispatchers
A27: CASA GRANDE POLICE DEPT. | AE27: CASA GRANDE POLICE DEPT. | AF27: YAVAPAI COUNTY - Detention
A28: CAVE CREEK MARSHALS | AE28: CAVE CREEK MARSHALS | AF28: YAVAPAI COUNTY - Dispatchers
A29: CENTRAL AZ FIRE AND MEDICAL | AE29: CENTRAL AZ FIRE AND MEDICAL | AF29: YUMA COUNTY - Detention
A30: CENTRAL AZ. COLLEGE POLICE DEPT. | AE30: CENTRAL AZ. COLLEGE POLICE DEPT.
A31: CHANDLER FIRE DEPT. | AE31: CHANDLER FIRE DEPT.
A32: CHANDLER POLICE DEPT. | AE32: CHANDLER POLICE DEPT.
A33: CHINO VALLEY POLICE DEPT. | AE33: CHINO VALLEY POLICE DEPT.
A34: CHRISTOPHER-KOHL'S FIRE DISTRICT | AE34: CHRISTOPHER-KOHL'S FIRE DISTRICT
A35: CITY OF MARICOPA FIRE DEPT. | AE35: CITY OF MARICOPA FIRE DEPT.
A36: CITY OF MARICOPA POLICE DEPT. | AE36: CITY OF MARICOPA POLICE DEPT.
A37: CLARKDALE POLICE DEPT. | AE37: CLARKDALE POLICE DEPT.
A38: CLIFTON FIRE DEPT. | AE38: CLIFTON FIRE DEPT.
A39: CLIFTON POLICE DEPT. | AE39: CLIFTON POLICE DEPT.
A40: COCHISE COUNTY SHERIFF'S DEPT. | AE40: COCHISE COUNTY SHERIFF'S DEPT.
A41: COCONINO COUNTY SHERIFF'S DEPT. | AE41: COCONINO COUNTY SHERIFF'S DEPT.
A42: COOLIDGE FIRE DEPT. | AE42: COOLIDGE FIRE DEPT.
A43: COOLIDGE POLICE DEPT. | AE43: COOLIDGE POLICE DEPT.
A44: COPPER CANYON FIRE AND MEDICAL | AE44: COPPER CANYON FIRE AND MEDICAL
A45: CORONA DE TUCSON FIRE DISTRICT | AE45: CORONA DE TUCSON FIRE DISTRICT
A46: COTTONWOOD FIRE DEPT. | AE46: COTTONWOOD FIRE DEPT.
A47: COTTONWOOD POLICE DEPT. | AE47: COTTONWOOD POLICE DEPT.
A48: DAISY MOUNTAIN FIRE DISTRICT | AE48: DAISY MOUNTAIN FIRE DISTRICT
A49: DEPT. OF EMER & MILITARY AFF | AE49: DEPT. OF EMER & MILITARY AFF
A50: DEPT. OF PUBLIC SAFETY | AE50: DEPT. OF PUBLIC SAFETY
A51: DESERT HILLS FIRE DEPT. | AE51: DESERT HILLS FIRE DEPT.
A52: DOUGLAS FIRE DEPT. | AE52: DOUGLAS FIRE DEPT.
A53: DOUGLAS POLICE DEPT. | AE53: DOUGLAS POLICE DEPT.
A54: DREXEL HEIGHTS FIRE DISTRICT | AE54: DREXEL HEIGHTS FIRE DISTRICT
A55: EAGAR POLICE DEPT. | AE55: EAGAR POLICE DEPT.
A56: EL MIRAGE FIRE DEPT. | AE56: EL MIRAGE FIRE DEPT.
A57: EL MIRAGE POLICE DEPT. | AE57: EL MIRAGE POLICE DEPT.
A58: ELOY FIRE DISTRICT | AE58: ELOY FIRE DISTRICT
A59: ELOY POLICE DEPT. | AE59: ELOY POLICE DEPT.
A60: FLAGSTAFF FIRE DEPT. | AE60: FLAGSTAFF FIRE DEPT.
A61: FLAGSTAFF POLICE DEPT. | AE61: FLAGSTAFF POLICE DEPT.
A62: FLORENCE FIRE DEPT. | AE62: FLORENCE FIRE DEPT.
A63: FLORENCE POLICE DEPT. | AE63: FLORENCE POLICE DEPT.
A64: FORT MCDOWELL TRIBAL FIRE DEPT. | AE64: FORT MCDOWELL TRIBAL FIRE DEPT.
A65: FORT MCDOWELL TRIBAL POLICE DEPT. | AE65: FORT MCDOWELL TRIBAL POLICE DEPT.
A66: FORT MOJAVE MESA FIRE DISTRICT | AE66: FORT MOJAVE MESA FIRE DISTRICT
A67: =INDEX(AE67:AG67,$A$1) -> FORT MOJAVE TRIBAL POLICE DEPT. | AE67: FORT MOJAVE TRIBAL POLICE DEPT.
A68: FREDONIA MARSHALS | AE68: FREDONIA MARSHALS
A69: FRY FIRE DISTRICT | AE69: FRY FIRE DISTRICT
A70: GAME AND FISH DEPT. | AE70: GAME AND FISH DEPT.
A71: GILA COUNTY SHERIFF'S DEPT. | AE71: GILA COUNTY SHERIFF'S DEPT.
A72: GILA RIVER FIRE DEPT. | AE72: GILA RIVER FIRE DEPT.
A73: GILA RIVER POLICE DEPT. | AE73: GILA RIVER POLICE DEPT.
A74: GILBERT FIRE DEPT. | AE74: GILBERT FIRE DEPT.
A75: GILBERT POLICE DEPT. | AE75: GILBERT POLICE DEPT.
A76: GLENDALE FIRE DEPT. | AE76: GLENDALE FIRE DEPT.
A77: GLENDALE POLICE DEPT. | AE77: GLENDALE POLICE DEPT.
A78: GLOBE FIRE DEPT. | AE78: GLOBE FIRE DEPT.
A79: GLOBE POLICE DEPT. | AE79: GLOBE POLICE DEPT.
A80: GOLDEN SHORES FIRE DISTRICT | AE80: GOLDEN SHORES FIRE DISTRICT
A81: GOLDEN VALLEY FIRE DISTRICT | AE81: GOLDEN VALLEY FIRE DISTRICT
A82: GOLDER RANCH FIRE DISTRICT | AE82: GOLDER RANCH FIRE DISTRICT
A83: GOODYEAR FIRE DEPT. | AE83: GOODYEAR FIRE DEPT.
A84: GOODYEAR POLICE DEPT. | AE84: GOODYEAR POLICE DEPT.
A85: GRAHAM COUNTY SHERIFF'S DEPT. | AE85: GRAHAM COUNTY SHERIFF'S DEPT.
A86: GREEN VALLEY FIRE DISTRICT | AE86: GREEN VALLEY FIRE DISTRICT
A87: GREENLEE COUNTY ATTORNEY INVEST. | AE87: GREENLEE COUNTY ATTORNEY INVEST.
A88: GREENLEE COUNTY SHERIFF'S DEPT. | AE88: GREENLEE COUNTY SHERIFF'S DEPT.
A89: GROOM CREEK FIRE DISTRICT | AE89: GROOM CREEK FIRE DISTRICT
A90: GUADALUPE FIRE DEPT. | AE90: GUADALUPE FIRE DEPT.
A91: HARQUAHALA FIRE DISTRICT | AE91: HARQUAHALA FIRE DISTRICT
A92: HAYDEN POLICE DEPT. | AE92: HAYDEN POLICE DEPT.
A93: HEBER-OVERGAARD FIRE DISTRICT | AE93: HEBER-OVERGAARD FIRE DISTRICT
A94: HELLSGATE FIRE DISTRICT | AE94: HELLSGATE FIRE DISTRICT
A95: HIGHLANDS FIRE DISTRICT | AE95: HIGHLANDS FIRE DISTRICT
A96: HOLBROOK POLICE DEPT. | AE96: HOLBROOK POLICE DEPT.
A97: HUACHUCA CITY POLICE DEPT. | AE97: HUACHUCA CITY POLICE DEPT.
A98: HUALAPAI INDIAN TRIBE POLICE DEPT. | AE98: HUALAPAI INDIAN TRIBE POLICE DEPT.
A99: JEROME POLICE DEPT. | AE99: JEROME POLICE DEPT.
A100: KEARNY POLICE DEPT. | AE100: KEARNY POLICE DEPT.
A101: KINGMAN FIRE DEPT. | AE101: KINGMAN FIRE DEPT.
A102: KINGMAN POLICE DEPT. | AE102: KINGMAN POLICE DEPT.
A103: LA PAZ COUNTY ATTORNEY INVEST. | AE103: LA PAZ COUNTY ATTORNEY INVEST.
A104: LA PAZ COUNTY SHERIFF'S DEPT. | AE104: LA PAZ COUNTY SHERIFF'S DEPT.
A105: LAKE HAVASU CITY FIRE DEPT. | AE105: LAKE HAVASU CITY FIRE DEPT.
A106: LAKE HAVASU CITY POLICE DEPT. | AE106: LAKE HAVASU CITY POLICE DEPT.
A107: LAKE MOHAVE RANCHOS FIRE DISTRICT | AE107: LAKE MOHAVE RANCHOS FIRE DISTRICT
A108: MAMMOTH POLICE DEPT. | AE108: MAMMOTH POLICE DEPT.
A109: MARANA POLICE DEPT. | AE109: MARANA POLICE DEPT.
A110: MARICOPA COUNTY ATTORNEY INVEST. | AE110: MARICOPA COUNTY ATTORNEY INVEST.
A111: MARICOPA COUNTY PARK RANGERS | AE111: MARICOPA COUNTY PARK RANGERS
A112: MARICOPA COUNTY SHERIFF'S OFFICE | AE112: MARICOPA COUNTY SHERIFF'S OFFICE
A113: MAYER FIRE DISTRICT | AE113: MAYER FIRE DISTRICT
A114: MESA FIRE DEPT. | AE114: MESA FIRE DEPT.
A115: MESA POLICE DEPT. | AE115: MESA POLICE DEPT.
A116: MIAMI POLICE DEPT. | AE116: MIAMI POLICE DEPT.
A117: MOHAVE COUNTY SHERIFF'S DEPT. | AE117: MOHAVE COUNTY SHERIFF'S DEPT.
A118: MOHAVE VALLEY FIRE DISTRICT | AE118: MOHAVE VALLEY FIRE DISTRICT
A119: MOUNT LEMMON FIRE DISTRICT | AE119: MOUNT LEMMON FIRE DISTRICT
A120: NAU CAMPUS POLICE | AE120: NAU CAMPUS POLICE
A121: NAVAJO COUNTY ATTORNEY INVEST. | AE121: NAVAJO COUNTY ATTORNEY INVEST.
A122: NAVAJO COUNTY SHERIFF'S DEPT. | AE122: NAVAJO COUNTY SHERIFF'S DEPT.
A123: NOGALES FIRE DEPT. | AE123: NOGALES FIRE DEPT.
A124: NOGALES POLICE DEPT. | AE124: NOGALES POLICE DEPT.
A125: NORTHERN AZ. CONSOLIDATED FIRE DISTRICT #1 | AE125: NORTHERN AZ. CONSOLIDATED FIRE DISTRICT #1
A126: NORTHWEST FIRE DISTRICT | AE126: NORTHWEST FIRE DISTRICT
A127: ORACLE FIRE DISTRICT | AE127: ORACLE FIRE DISTRICT
A128: ORO VALLEY POLICE DEPT. | AE128: ORO VALLEY POLICE DEPT.
A129: PAGE FIRE DEPT. | AE129: PAGE FIRE DEPT.
A130: PAGE POLICE DEPT. | AE130: PAGE POLICE DEPT.
A131: =INDEX(AE131:AG131,$A$1) -> PALOMINAS FIRE DISTRICT | AE131: PALOMINAS FIRE DISTRICT
A132: PARADISE VALLEY POLICE DEPT. | AE132: PARADISE VALLEY POLICE DEPT.
A133: PARKER POLICE DEPT. | AE133: PARKER POLICE DEPT.
A134: PASCUA YAQUI TRIBE FIRE DEPT. | AE134: PASCUA YAQUI TRIBE FIRE DEPT.
A135: PASCUA YAQUI TRIBE POLICE DEPT. | AE135: PASCUA YAQUI TRIBE POLICE DEPT.
A136: PATAGONIA MARSHALS | AE136: PATAGONIA MARSHALS
A137: PAYSON FIRE DEPT. | AE137: PAYSON FIRE DEPT.
A138: PAYSON POLICE DEPT. | AE138: PAYSON POLICE DEPT.
A139: PEORIA FIRE DEPT. | AE139: PEORIA FIRE DEPT.
A140: PEORIA POLICE DEPT. | AE140: PEORIA POLICE DEPT.
A141: PHOENIX FIRE DEPT. | AE141: PHOENIX FIRE DEPT.
A142: PHOENIX POLICE DEPT. | AE142: PHOENIX POLICE DEPT.
A143: PICTURE ROCKS FIRE DISTRICT | AE143: PICTURE ROCKS FIRE DISTRICT
A144: PIMA COUNTY ATTORNEY INVEST. | AE144: PIMA COUNTY ATTORNEY INVEST.
A145: PIMA COUNTY COMM. COLLEGE POLICE | AE145: PIMA COUNTY COMM. COLLEGE POLICE
A146: PIMA COUNTY SHERIFF'S DEPT. | AE146: PIMA COUNTY SHERIFF'S DEPT.
A147: PIMA POLICE DEPT. | AE147: PIMA POLICE DEPT.
A148: PINAL COUNTY SHERIFF'S DEPT. | AE148: PINAL COUNTY SHERIFF'S DEPT.
A149: PINE-STRAWBERRY FIRE DISTRICT | AE149: PINE-STRAWBERRY FIRE DISTRICT
A150: PINETOP FIRE DISTRICT | AE150: PINETOP FIRE DISTRICT
A151: PINETOP-LAKESIDE POLICE DEPT. | AE151: PINETOP-LAKESIDE POLICE DEPT.
A152: PINEWOOD FIRE DISTRICT | AE152: PINEWOOD FIRE DISTRICT
A153: PONDEROSA FIRE DISTRICT | AE153: PONDEROSA FIRE DISTRICT
A154: PRESCOTT FIRE DEPT. | AE154: PRESCOTT FIRE DEPT.
A155: PRESCOTT POLICE DEPT. | AE155: PRESCOTT POLICE DEPT.
A156: PRESCOTT VALLEY POLICE DEPT. | AE156: PRESCOTT VALLEY POLICE DEPT.
A157: QUARTZSITE FIRE DISTRICT | AE157: QUARTZSITE FIRE DISTRICT
A158: QUARTZSITE POLICE DEPT. | AE158: QUARTZSITE POLICE DEPT.
A159: QUEEN CREEK FIRE DEPT. | AE159: QUEEN CREEK FIRE DEPT.
A160: QUEEN VALLEY FIRE DISTRICT | AE160: QUEEN VALLEY FIRE DISTRICT
A161: RINCON VALLEY FIRE DISTRICT | AE161: RINCON VALLEY FIRE DISTRICT
A162: RIO RICO FIRE DISTRICT | AE162: RIO RICO FIRE DISTRICT
A163: RIO VERDE FIRE DISTRICT | AE163: RIO VERDE FIRE DISTRICT
A164: SAFFORD POLICE DEPT. | AE164: SAFFORD POLICE DEPT.
A165: SAHUARITA POLICE DEPT. | AE165: SAHUARITA POLICE DEPT.
A166: SALT RIVER PIMA-MARICOPA FIRE | AE166: SALT RIVER PIMA-MARICOPA FIRE
A167: SALT RIVER PIMA-MARICOPA POLICE | AE167: SALT RIVER PIMA-MARICOPA POLICE
A168: SAN CARLOS TRIBAL POLICE DEPT. | AE168: SAN CARLOS TRIBAL POLICE DEPT.
A169: SAN LUIS FIRE DEPT. | AE169: SAN LUIS FIRE DEPT.
A170: SAN LUIS POLICE DEPT. | AE170: SAN LUIS POLICE DEPT.
A171: SANTA CRUZ COUNTY SHERIFF'S DEPT. | AE171: SANTA CRUZ COUNTY SHERIFF'S DEPT.
A172: SCOTTSDALE FIRE DEPT. | AE172: SCOTTSDALE FIRE DEPT.
A173: SCOTTSDALE POLICE DEPT. | AE173: SCOTTSDALE POLICE DEPT.
A174: SEDONA FIRE DISTRICT | AE174: SEDONA FIRE DISTRICT
A175: SEDONA POLICE DEPT. | AE175: SEDONA POLICE DEPT.
A176: SHOW LOW POLICE DEPT. | AE176: SHOW LOW POLICE DEPT.
A177: SIERRA VISTA FIRE DEPT. | AE177: SIERRA VISTA FIRE DEPT.
A178: SIERRA VISTA POLICE DEPT. | AE178: SIERRA VISTA POLICE DEPT.
A179: SNOWFLAKE POLICE DEPT. | AE179: SNOWFLAKE POLICE DEPT.
A180: SOMERTON FIRE DEPT. | AE180: SOMERTON FIRE DEPT.
A181: SOMERTON POLICE DEPT. | AE181: SOMERTON POLICE DEPT.
A182: SONOITA ELGIN FIRE DEPT. | AE182: SONOITA ELGIN FIRE DEPT.
A183: SOUTH TUCSON FIRE DEPT. | AE183: SOUTH TUCSON FIRE DEPT.
A184: SOUTH TUCSON POLICE DEPT. | AE184: SOUTH TUCSON POLICE DEPT.
A185: SPRINGERVILLE POLICE DEPT. | AE185: SPRINGERVILLE POLICE DEPT.
A186: ST. JOHNS POLICE DEPT. | AE186: ST. JOHNS POLICE DEPT.
A187: SUMMIT FIRE DISTRICT | AE187: SUMMIT FIRE DISTRICT
A188: SUN CITY FIRE DISTRICT | AE188: SUN CITY FIRE DISTRICT
A189: SUN CITY WEST FIRE DISTRICT | AE189: SUN CITY WEST FIRE DISTRICT
A190: SUN LAKES FIRE DISTRICT | AE190: SUN LAKES FIRE DISTRICT
A191: SUN SITES PEARCE FIRE DISTRICT | AE191: SUN SITES PEARCE FIRE DISTRICT
A192: SUPERIOR POLICE DEPT. | AE192: SUPERIOR POLICE DEPT.
A193: SUPERSTITION FIRE AND MEDICAL DISTRICT | AE193: SUPERSTITION FIRE AND MEDICAL DISTRICT
A194: SURPRISE FIRE DEPT. | AE194: SURPRISE FIRE DEPT.
A195: =INDEX(AE195:AG195,$A$1) -> SURPRISE POLICE DEPT. | AE195: SURPRISE POLICE DEPT.
A196: TEMPE FIRE DEPT. | AE196: TEMPE FIRE DEPT.
A197: TEMPE POLICE DEPT. | AE197: TEMPE POLICE DEPT.
A198: THATCHER POLICE DEPT. | AE198: THATCHER POLICE DEPT.
A199: THREE POINTS FIRE DISTRICT | AE199: THREE POINTS FIRE DISTRICT
A200: TIMBER MESA FIRE AND MEDICAL DIST | AE200: TIMBER MESA FIRE AND MEDICAL DIST
... 32 more rows

Sheet Input (hidden)
A1: Input Data: | F1: Calculation | AG1: No
G2: Without Purchase | H2: With Purchase | AG2: Yes
A3: System: | B3: =Estimator!D2 -> PSPRS
A4: Tier: | B4: =Estimator!D4 -> Tier 1 | F4: Calculate Current Age:
A5: Employer: | B5: =Estimator!D3 -> PHOENIX FIRE DEPT. | F5: Date of Birth | G5: ='Service Purchase'!$B$4 -> 00:00:00 | H5: ='Service Purchase'!$B$4 -> 00:00:00
A6: Employee Contribution Rate: | F6: Date of Service Purchase | G6: ='Service Purchase'!$B$8 -> 2018-04-23 | H6: ='Service Purchase'!$B$8 -> 2018-04-23
F7: Current Age | G7: =ROUND(YEAR(G6)-YEAR(G5)+(MONTH(G6)-MONTH(G5))/12+(DAY(G6)-DAY(G5))/360,4) -> 118.3139 | H7: =ROUND(YEAR(H6)-YEAR(H5)+(MONTH(H6)-MONTH(H5))/12+(DAY(H6)-DAY(H5))/360,4) -> 118.3139
A9: Name: | F9: Earliest Normal Retirement Date:
A10: Date of Birth: | B10: =Estimator!H13 -> 00:00:00 | F10: First Eligibility Age | G10: ='Service Purchase'!B33 -> 0 | H10: =G10 -> 0
A11: Calculcation Date: | B11: =Estimator!G20 -> 2018-04-23 | F11: Date at first Eligibility Age | G11: ='Service Purchase'!D33 -> 00:00:00 | H11: ='Service Purchase'!D33 -> 00:00:00
A12: Service with Current Employer: | B12: =Estimator!H16 -> 0 | C12: (service as of calcution date) | F12: First Eligibility Service | G12: ='Service Purchase'!C33 -> 20 | H12: =G12 -> 20
A13: Prior Service Granted: | F13: Date at first Eligibility Service | G13: ='Service Purchase'!E33 -> 2038-04-23 | H13: ='Service Purchase'!G33 -> 2038-04-23
A14: Additional Service to be Purchased: | B14: =Estimator!H17 -> 0 | F14: Date of retirement under first eligibility | G14: ='Service Purchase'!F33 -> 2038-04-23 | H14: ='Service Purchase'!H33 -> 2038-04-23
A15: Current Pay: | B15: =Estimator!H14 -> 0
A16: Allow Pay to be projected backwards | B16: No | F16: Second Eligibility Age | G16: ='Service Purchase'!B34 -> 0 | H16: ='Service Purchase'!B34 -> 0
F17: Date at second Eligibility Age | G17: ='Service Purchase'!D34 -> 00:00:00 | H17: ='Service Purchase'!D34 -> 00:00:00
A18: Service Purchase Cost: | B18: =H68 ->  | F18: Second Eligibility Service | G18: ='Service Purchase'!C34 -> 20 | H18: ='Service Purchase'!C34 -> 20
F19: Date at second Eligibility Service | G19: ='Service Purchase'!E34 -> 2038-04-23 | H19: ='Service Purchase'!G34 -> 2038-04-23
F20: Date of retirement under second eligibility | G20: ='Service Purchase'!F34 -> 2038-04-23 | H20: ='Service Purchase'!H34 -> 2038-04-23
F22: Third Eligibility Age | G22: ='Service Purchase'!B35 -> 62 | H22: ='Service Purchase'!B35 -> 62
F23: Date at third Eligibility Age | G23: ='Service Purchase'!D35 -> 1961-12-31 | H23: ='Service Purchase'!D35 -> 1961-12-31
F24: Third Eligibility Service | G24: ='Service Purchase'!C35 -> 15 | H24: ='Service Purchase'!C35 -> 15
F25: Date at third Eligibility Service | G25: ='Service Purchase'!E35 -> 2033-04-23 | H25: ='Service Purchase'!G35 -> 2033-04-23
F26: Date of retirement under third eligibility | G26: ='Service Purchase'!F35 -> 2033-04-23 | H26: ='Service Purchase'!H35 -> 2033-04-23
F28: Normal Retirement Date | G28: ='Service Purchase'!F36 -> 2033-04-23 | H28: ='Service Purchase'!H36 -> 2033-04-23
F30: Calculate Age at Earliest Retirement:
F31: Date of Birth | G31: =G5 -> 00:00:00 | H31: =H5 -> 00:00:00
F32: Earliest Retirement Date | G32: =MAX(G28,G6) -> 2033-04-23 | H32: =MAX(H28,H6) -> 2033-04-23
F33: Retirement Age | G33: =ROUND(YEAR(G32)-YEAR(G31)+(MONTH(G32)-MONTH(G31))/12+(DAY(G32)-DAY(G31))/360,4) -> 133.3139 | H33: =ROUND(YEAR(H32)-YEAR(H31)+(MONTH(H32)-MONTH(H31))/12+(DAY(H32)-DAY(H31))/360,4) -> 133.3139
F35: Calculate future service
F36: Date of Service Purchase | G36: =B11 -> 2018-04-23 | H36: =B11 -> 2018-04-23
F37: Earliest Retirement Date | G37: =G32 -> 2033-04-23 | H37: =H32 -> 2033-04-23
F38: Future Service | G38: =MAX(ROUND(YEAR(G37)-YEAR(G36)+(MONTH(G37)-MONTH(G36))/12+(DAY(G37)-DAY(G36))/360,4),0) -> 15 | H38: =MAX(ROUND(YEAR(H37)-YEAR(H36)+(MONTH(H37)-MONTH(H36))/12+(DAY(H37)-DAY(H36))/360,4),0) -> 15
F40: Calculate final average pay at retirement date
F41: Final average pay at retirement | G41: ='Service Purchase'!D18 ->  | H41: ='Service Purchase'!E18 -> 
F43: Calculate monthly benefit
F44: Benefit Percentage for past service | G44: =IF('Service Purchase'!$N$2=1,'Service Purchase'!M18,IF('Service Purchase'!$N$2=3,'Service Purchase'!M20,'Service Purchase'!M19)) -> 0 | H44: =IF('Service Purchase'!$N$2=1,'Service Purchase'!N18,IF('Service Purchase'!$N$2=3,'Service Purchase'!N20,'Service Purchase'!N19)) -> 0
F45: Benefit maximum | G45: =IF(AND('Service Purchase'!N2=3,'Service Purchase'!O2=2),0.75,0.8) -> 0.8 | H45: =IF(AND('Service Purchase'!N2=3,'Service Purchase'!O2=2),0.75,0.8) -> 0.8
F46: Final benefit percentage | G46: =MIN(G44,G45) -> 0 | H46: =MIN(H44,H45) -> 0
F47: Annual benefit | G47: =G46*G41 ->  | H47: =H46*H41 -> 
F49: Calculate present value of benefit
F50: Age at normal retirement date | G50: =G33 -> 133.3139 | H50: =H33 -> 133.3139
F51: Present value factor at normal retirement | G51: =ROUND('Service Purchase'!B21/'Service Purchase'!B20,4) ->  | H51: =ROUND('Service Purchase'!C21/'Service Purchase'!C20,4) -> 
F52: Annual benefit | G52: =G47 ->  | H52: =H47 -> 
F53: Total present value of benefit | G53: =ROUND(G52*G51,0) ->  | H53: =ROUND(H52*H51,0) -> 
F55: Calculate present value of additional health subsidy
F56: Years of additional subsidy due to purchase of service | G56: 0 | H56: ='Service Purchase'!N34 -> 0
F57: Monthly subsidy | G57: =IF(G33<65,200,130) -> 130 | H57: =IF(H33<65,200,130) -> 130
F58: Present Value of Health Subsidy | G58: =ROUND(PV('Service Purchase'!$B$39/12,Input!G56*12,-Input!G57,,1)*(1+'Service Purchase'!$B$39)^-G38,0) -> 0 | H58: =ROUND(PV('Service Purchase'!$B$39/12,Input!H56*12,-Input!H57,,1)*(1+'Service Purchase'!$B$39)^-H38,10) -> 0
F60: Calculate net present value
F61: Present value of benefit | G61: =G53 ->  | H61: =H53 -> 
F62: Present value of additional health subsidy | G62: =G58 -> 0 | H62: =H58 -> 0
F63: Net present value | G63: =G61+G62 ->  | H63: =H61+H62 -> 
F65: Calculate service purchase cost
F66: Net present value without service purchase | H66: =G63 -> 
F67: Net present value with service purchase | H67: =H63 -> 
F68: Service purchase cost | H68: =H67-H66 -> 

Sheet Service Purchase (hidden)
A1: Data | N1: ER | O1: Tier
A2: Name | B2: =Input!B9 -> 0 | N2: =VLOOKUP(Input!B5,Employers!$P$1:$R$280,2,) -> 1 | O2: =IF(Input!B4="Tier 1",1,IF(Input!B4="Tier 2",2,3)) -> 1
A4: DOB | B4: =Input!B10 -> 00:00:00
A8: Calculation Date | B8: =Input!B11 -> 2018-04-23
A9: Final Average Pay (as of Calc Date) | B9: =FAC!G7 -> 0
A10: Last year's pay | B10: =Input!B15 -> 0
A11: Prior Service already purchased | B11: =Input!B13 -> 0 | E11: =INT(B11) -> 0 | F11: =INT((B11-INT(B11))*12) -> 0 | G11: =MIN(INT((B11-E11-F11/12)*360),31) -> 0
A12: Service (as of Calc Date) | B12: =Input!B12 -> 0 | E12: =INT(B12) -> 0 | F12: =INT((B12-INT(B12))*12) -> 0 | G12: =MIN(INT((B12-E12-F12/12)*360),31) -> 0
A13: Additional Service to buy at cost | B13: =Input!B14 -> 0 | E13: =INT(B13) -> 0 | F13: =INT((B13-INT(B13))*12) -> 0 | G13: =MIN(INT((B13-E13-F13/12)*360),31) -> 0
C14: =(1+$B$39)^((C17-B8)/365.25) -> 1.924257966
D15: Override amounts if needed | F15: Health
A16: Calculations | B16: w/out svc | C16: with svc | D16: w/out svc | E16: with svc | J16: Benefit
A17: Earliest Retirement Date | B17: =IF(D17>0,D17,MAX($B$8,F36)) -> 2033-04-23 | C17: =IF(E17>0,E17,MAX($B$8,H36)) -> 2033-04-23 | J17: Before | K17: After
A18: Final Average Pay at ERD | B18: =(IF(D18>0,D18,IF(B17>$B$8,$B$9*(1+$B$40)^((B17-$B$8)/365.25),$B$9))) ->  | C18: =IF(E18>0,E18,IF(C17>$B$8,$B$9*(1+$B$40)^((C17-$B$8)/365.25),$B$9)) ->  | D18: =FAC!J18 ->  | E18: =FAC!K18 ->  | I18: PSPRS | J18: =MIN(Benefit!B6,$B$31) -> 0.375 | K18: =MIN(Benefit!C6,$B$31) -> 0.375 | M18: =MIN(B31,Benefit!B4) -> 0 | N18: =MIN(B31,Benefit!C4) -> 0
A19: Service at ERD | B19: =(IF(D19>0,D19,IF(B17>$B$8,YEAR(B17)-YEAR($B$8)+$E$12+$E$11+(MONTH(B17)-MONTH($B$8))/12+$F$12/12+$F$11/12+(DAY(B17)-DAY($B$8))/360+$G$12/360+$G$11/360,($B$12+B11)))) -> 15 | C19: =(IF(E19>0,E19,IF(C17>$B$8,YEAR(C17)-YEAR($B$8)+$E$12+$E$11+$E$13+(MONTH(C17)-MONTH($B$8))/12+$F$12/12+$F$11/12+$F$13/12+(DAY(C17)-DAY($B$8))/360+$G$12/360+$G$11/360+$G$13/360,($B$12+B11+B13)))) -> 15 | I19: CORP | J19: =MIN(B31,Benefit!F6) -> 0.375 | K19: =MIN(B31,Benefit!G6) -> 0.375 | M19: =MIN(B31,Benefit!F4) -> 0 | N19: =MIN(B31,Benefit!G4) -> 0
A20: Benefit/Cont at ERD | B20: =IF($N$2=1,B18*J18,IF($N$2=3,J20*B18,J19*B18)) ->  | C20: =IF($N$2=1,C18*K18,IF($N$2=3,K20*C18,K19*C18)) ->  | D20: =B10*B26 -> 0 | E20: =D20 -> 0 | I20: EORP | J20: =MIN(B31,Benefit!J6) -> 0.45 | K20: =MIN('Service Purchase'!B31,Benefit!K6) -> 0.45 | M20: =MIN(B31,Benefit!J4) -> 0 | N20: =MIN(B31,Benefit!K4) -> 0
A21: PVFB/PVFC at Calc date | B21: =Before!C6 ->  | C21: =After!C6 ->  | D21: ='EE Before'!C6 -> 0 | E21: ='EE After'!C6 -> 0
A22: Total Cost | B22: =C21-B21 ->  | F22: =P34 -> 0
B24: =C21-B21+F22 -> 
A25: Benefits
A26: Employee Contribution Rate | B26: =Input!B6 -> 0
B27: 1st x yrs | C27: 2nd x yrs | D27: 3rd x yrs | M27: Age @ Earliest Before Purchase | N27: =YEAR(B17)-YEAR(B4)+(MONTH(B17)-MONTH(B4))/12+(DAY(B17)-DAY(B4))/360 -> 133.3138889
A28: Multiplier | B28: 0.025 | C28: 0.025 | D28: 0.025 | M28: Age @ Earliest After Purchase | N28: =YEAR(C17)-YEAR(B4)+(MONTH(C17)-MONTH(B4))/12+(DAY(C17)-DAY(B4))/360 -> 133.3138889
A29: Years | B29: 20 | C29: 5 | D29: 99 | M29: Current Age | N29: =YEAR(B8)-YEAR(B4)+(MONTH(B8)-MONTH(B4))/12+(DAY(B8)-DAY(B4))/360 -> 118.3138889
A30: Bonus at 25 years | B30: 0
A31: Maximum Benefit | B31: =IF(AND($N$2=3,$O$2=2),0.75,0.8) -> 0.8
B32: age | C32: service | F32: w/out svc | H32: w/svc
A33: Eligibility1 | B33: =IF($N$2=1,Eligibility!B3,IF($N$2=2,Eligibility!E3,IF($N$2=3,Eligibility!H3,Eligibility!K3))) -> 0 | C33: =IF($N$2=1,Eligibility!C3,IF($N$2=2,Eligibility!F3,IF($N$2=3,Eligibility!I3,Eligibility!L3))) -> 20 | D33: =DATE(YEAR($B$4)+INT(B33),MONTH($B$4)+(B33-INT(B33))*12,DAY($B$4)) -> 00:00:00 | E33: =DATE(YEAR($B$8)+C33-($E$12+$E$11),MONTH($B$8)-($F$12+$F$11),DAY($B$8)-($G$12+$G$11)) -> 2038-04-23 | F33: =MAX(E33,D33) -> 2038-04-23 | G33: =DATE(YEAR($B$8)+C33-($E$12+$E$11+$E$13),MONTH($B$8)-($F$12+$F$11+$F$13),DAY($B$8)-($G$12+$G$11+$G$13)) -> 2038-04-23 | H33: =MAX(G33,D33) -> 2038-04-23 | M33: Health Subsidy - Additional Years Covered
A34: Eligibility2 | B34: =IF($N$2=1,Eligibility!B4,IF($N$2=2,Eligibility!E4,IF($N$2=3,Eligibility!H4,Eligibility!K4))) -> 0 | C34: =IF($N$2=1,Eligibility!C4,IF($N$2=2,Eligibility!F4,IF($N$2=3,Eligibility!I4,Eligibility!L4))) -> 20 | D34: =DATE(YEAR($B$4)+INT(B34),MONTH($B$4)+(B34-INT(B34))*12,DAY($B$4)) -> 00:00:00 | E34: =DATE(YEAR($B$8)+C34-($E$12+$E$11),MONTH($B$8)-($F$12+$F$11),DAY($B$8)-($G$12+$G$11)) -> 2038-04-23 | F34: =MAX(E34,D34) -> 2038-04-23 | G34: =DATE(YEAR($B$8)+C34-($E$12+$E$11+$E$13),MONTH($B$8)-($F$12+$F$11+$F$13),DAY($B$8)-($G$12+$G$11+$G$13)) -> 2038-04-23 | H34: =MAX(G34,D34) -> 2038-04-23 | M34: Yrs < 65 | N34: =MAX(MIN(N27,65)-N28,0) -> 0 | O34: 200 | P34: =PV(B39/12,N34*12,-O34,,1)*(1+B39)^-(N28-N29) -> 0
A35: Eligibility3 | B35: =IF($N$2=1,Eligibility!B5,IF($N$2=2,Eligibility!E5,IF($N$2=3,Eligibility!H5,Eligibility!K5))) -> 62 | C35: =IF($N$2=1,Eligibility!C5,IF($N$2=2,Eligibility!F5,IF($N$2=3,Eligibility!I5,Eligibility!L5))) -> 15 | D35: =DATE(YEAR($B$4)+INT(B35),MONTH($B$4)+(B35-INT(B35))*12,DAY($B$4)) -> 1961-12-31 | E35: =DATE(YEAR($B$8)+C35-($E$12+$E$11),MONTH($B$8)-($F$12+$F$11),DAY($B$8)-($G$12+$G$11)) -> 2033-04-23 | F35: =MAX(E35,D35) -> 2033-04-23 | G35: =DATE(YEAR($B$8)+C35-($E$12+$E$11+$E$13),MONTH($B$8)-($F$12+$F$11+$F$13),DAY($B$8)-($G$12+$G$11+$G$13)) -> 2033-04-23 | H35: =MAX(G35,D35) -> 2033-04-23 | M35: Yrs >=65 | N35: =MAX(N27-MAX(N28,65),0) -> 0 | O35: 130
F36: =MIN(F33,F34,F35) -> 2033-04-23 | H36: =MIN(H33,H34,H35) -> 2033-04-23
A38: Assumptions
A39: Interest Rate | B39: 0.0446
A40: Wage Increase | B40: 0.035
A41: Pay Load | B41: 0
A42: Other Loads | B42: 0
A43: Pre-ret mortality | B43: 1 | C43: (1 = yes, 2 = no)
A44: Male Mortality table | B44: =IF(N2=1,1,IF(N2=3,5,3)) -> 1 | C44: 1
A45: Female Mortality table | B45: =IF(N2=1,2,IF(N2=3,6,4)) -> 2 | C45: 1
A46: GRS Annuity | B46: Benefits | D46: Contributions
A47: Retiree Age | B47: =IF($B$43=1,ROUND(YEAR(B8)-YEAR(B4)+(MONTH(B8)-MONTH(B4))/12+(DAY(B8)-DAY(B4))/360,4),B50) -> 118.3139 | C47: =IF($B$43=1,ROUND(YEAR(B8)-YEAR(B4)+(MONTH(B8)-MONTH(B4))/12+(DAY(B8)-DAY(B4))/360,4),B50) -> 118.3139 | D47: =ROUND(YEAR(B8)-YEAR(B4)+(MONTH(B8)-MONTH(B4))/12+(DAY(B8)-DAY(B4))/360,4) -> 118.3139 | E47: =ROUND(YEAR(B8)-YEAR(B4)+(MONTH(B8)-MONTH(B4))/12+(DAY(B8)-DAY(B4))/360,4) -> 118.3139 | I47: =DATEDIF($B$4,$B$8,"D")/365.25 -> 118.3107461
A48: Beneficiary Age | B48: =B47 -> 118.3139 | C48: =C47 -> 118.3139 | D48: =D47 -> 118.3139 | E48: =E47 -> 118.3139
A49: Retiree Change Age | B49: 999 | C49: =B49 -> 999 | D49: =B50 -> 133.3139 | E49: =C50 -> 133.3139
A50: Retiree Deferral Age | B50: =IF(B17>=$B$17,ROUND(YEAR(B17)-YEAR(B4)+(MONTH(B17)-MONTH(B4))/12+(DAY(B17)-DAY(B4))/360,4),0) -> 133.3139 | C50: =IF(C17>=$B$8,ROUND(YEAR(C17)-YEAR(B4)+(MONTH(C17)-MONTH(B4))/12+(DAY(C17)-DAY(B4))/360,4),0) -> 133.3139 | D50: 0 | E50: 0
A51: Period Certain | B51: 0 | C51: =B51 -> 0 | D51: =B51 -> 0 | E51: =C51 -> 0
A52: Period Certain Method | B52: 0 | C52: 0 | D52: =B52 -> 0 | E52: =C52 -> 0
A53: Timing of Payment | B53: 0 | C53: 0 | D53: =B53 -> 0 | E53: =D53 -> 0
A54: Interest Rate | B54: =B39 -> 0.0446 | C54: 0.0446 | D54: =B54 -> 0.0446 | E54: =C54 -> 0.0446
A55: Esc Rate | B55: =IF($N$2=1,0.0175,IF(AND($N$2=3,$O$2=1),0.03,IF(AND(OR($N$2=2,N2=4),$O$2=1),0.0225,0.005))) -> 0.0175 | C55: 0.0175 | D55: =B40 -> 0.035 | E55: =B40 -> 0.035
A56: Esc Type | B56: C | C56: C | D56: =B56 -> C | E56: C
A57: Esc Delay | B57: 1 | C57: 1 | D57: 1 | E57: 1
A58: No of Increases | B58: 999 | C58: 999 | D58: 999 | E58: 999
A59: Ret only benefit 1 | B59: 1 | C59: 1 | D59: 1 | E59: 1
A60: Ben only benefit 1 | B60: 1 | C60: 1 | D60: 0 | E60: 0
A61: Both benefit 1 | B61: 1 | C61: 1 | D61: =B61 -> 1 | E61: 1
A62: Certain period 1 | B62: 0 | C62: 0 | D62: 0 | E62: 0
A63: Death Benefit 1 | B63: 0 | C63: 0 | D63: 0 | E63: 0
A64: Ret only benefit 2 | B64: 0 | C64: 0 | D64: 0 | E64: 0
A65: Ben only benefit 2 | B65: 0 | C65: 0 | D65: 0 | E65: 0
A66: Both benefit 2 | B66: 0 | C66: 0 | D66: 0 | E66: 0
A67: Certain period 2 | B67: 0 | C67: 0 | D67: 0 | E67: 0
A68: Death Benefit 2 | B68: 0 | C68: 0 | D68: 0 | E68: 0
A69: Retiree Mort Table | B69: =B44 -> 1 | C69: 1 | D69: =IF($B$43=1,B69,1) -> 1 | E69: =IF($B$43=1,C69,1) -> 1
A70: Retiree Setfwd | B70: 0 | C70: 0 | D70: =B70 -> 0 | E70: =C70 -> 0
A71: Retiree Percnt | B71: =C44 -> 1 | C71: 1 | D71: =B71 -> 1 | E71: =C71 -> 1
A72: Ben Mort Table | B72: =B45 -> 2 | C72: 2 | D72: =IF($B$43=1,B72,1) -> 2 | E72: =IF($B$43=1,C72,1) -> 2
A73: Ben Setfwd | B73: 0 | C73: 0 | D73: =B73 -> 0 | E73: 0
A74: Ben Percent | B74: =C45 -> 1 | C74: 1 | D74: 1 | E74: 1
A75: Unisex Percent | B75: =IF($N$2=1,0.9,0.7) -> 0.9 | C75: 0.9 | D75: 0.9 | E75: 0.9

Sheet Benefit (hidden)
B1: PSPRS Benefits | F1: CORP Benefits | J1: EORP Benefits
B2: Before | C2: After | F2: Before | G2: After | J2: Before | K2: After
A3: Current Service | B3: ='Service Purchase'!B11+'Service Purchase'!B12 -> 0 | C3: ='Service Purchase'!B11+'Service Purchase'!B12+'Service Purchase'!B13 -> 0 | F3: ='Service Purchase'!B11+'Service Purchase'!B12 -> 0 | G3: ='Service Purchase'!B11+'Service Purchase'!B12+'Service Purchase'!B13 -> 0 | J3: ='Service Purchase'!B11+'Service Purchase'!B12 -> 0 | K3: ='Service Purchase'!B11+'Service Purchase'!B12+'Service Purchase'!B13 -> 0
A4: Benefit% | B4: =IF(AND('Service Purchase'!$N$2=1,'Service Purchase'!$O$2=1),IF(B3<=20,0.025*B3,IF(AND(B3>20,B3<=25),0.5+0.025*(B3-20),0.025*B3)),IF(AND('Service Purchase'!$N$2=1,'Service Purchase'!$O$2=3),IF(B3<17,0.025*B3,IF(B3<19,0.025*B3,IF(B3<22,0.025*B3,IF(B3<25,0.025*B3,0.025*B3)))),0.025*Benefit!B3)) -> 0 | C4: =IF(AND('Service Purchase'!$N$2=1,'Service Purchase'!$O$2=1),IF(C3<=20,0.025*C3,IF(AND(C3>20,C3<25),0.5+0.025*(C3-20),0.025*C3)),IF(AND('Service Purchase'!$N$2=1,'Service Purchase'!$O$2=3),IF(C3<17,0.025*C3,IF(C3<19,0.025*C3,IF(C3<22,0.025*C3,IF(C3<25,0.025*C3,0.025*C3)))),0.025*Benefit!C3)) -> 0 | F4: =IF(AND('Service Purchase'!$N$2=2,'Service Purchase'!$O$2=1),IF(F3<=20,0.025*F3,IF(AND(F3>20,F3<=25),0.5+0.025*(F3-20),0.025*F3)),0.025*Benefit!F3) -> 0 | G4: =IF(AND('Service Purchase'!$N$2=2,'Service Purchase'!$O$2=1),IF(G3<=20,0.025*G3,IF(AND(G3>20,G3<=25),0.5+0.025*(G3-20),0.025*G3)),0.025*Benefit!G3) -> 0 | J4: =IF(AND('Service Purchase'!$N$2=3,'Service Purchase'!$O$2=1),0.04*J3,0.03*J3) -> 0 | K4: =IF(AND('Service Purchase'!$N$2=3,'Service Purchase'!$O$2=1),0.04*K3,0.03*K3) -> 0
A5: Service at earliest retirement: | B5: ='Service Purchase'!B19 -> 15 | C5: ='Service Purchase'!C19 -> 15 | F5: ='Service Purchase'!B19 -> 15 | G5: ='Service Purchase'!C19 -> 15 | J5: ='Service Purchase'!B19 -> 15 | K5: ='Service Purchase'!C19 -> 15
A6: Benefit% at earliest ret: | B6: =IF(AND('Service Purchase'!$N$2=1,'Service Purchase'!$O$2=1),IF(B5<20,0.025*B5,IF(AND(B5>=20,B5<25),0.5+0.025*(B5-20),0.025*B5)),IF(AND('Service Purchase'!$N$2=1,'Service Purchase'!$O$2=3),IF(B5<17,0.015*B5,IF(B5<19,0.0175*B5,IF(B5<22,0.02*B5,IF(B5<25,0.0225*B5,0.025*B5)))),0.025*Benefit!B5)) -> 0.375 | C6: =IF(AND('Service Purchase'!$N$2=1,'Service Purchase'!$O$2=1),IF(C5<20,0.025*C5,IF(AND(C5>=20,C5<25),0.5+0.025*(C5-20),0.025*C5)),IF(AND('Service Purchase'!$N$2=1,'Service Purchase'!$O$2=3),IF(C5<17,0.015*C5,IF(C5<19,0.0175*C5,IF(C5<22,0.02*C5,IF(C5<25,0.0225*C5,0.025*C5)))),0.025*Benefit!C5)) -> 0.375 | F6: =IF(AND(OR('Service Purchase'!$N$2=2,'Service Purchase'!$N$2=4),'Service Purchase'!$O$2=1),IF(F5<20,0.025*F5,IF(AND(F5>=20,F5<25),0.5+0.025*(F5-20),0.025*F5)),0.025*Benefit!F5) -> 0.375 | G6: =IF(AND(OR('Service Purchase'!$N$2=2,'Service Purchase'!$N$2=4),'Service Purchase'!$O$2=1),IF(G5<20,0.025*G5,IF(AND(G5>=20,G5<25),0.5+0.025*(G5-20),0.025*G5)),0.025*Benefit!G5) -> 0.375 | J6: =IF(AND('Service Purchase'!$N$2=3,'Service Purchase'!$O$2=1),0.04*J5,0.03*J5) -> 0.45 | K6: =IF(AND('Service Purchase'!$N$2=3,'Service Purchase'!$O$2=1),0.04*K5,0.03*K5) -> 0.45

Sheet Eligibility (hidden)
B1: PSPRS Eligibility | E1: CORP Detention Eligibility | H1: EORP Eligibility | K1: CORP Dispatchers Eligibility
B2: Age | C2: Service | E2: Age | F2: Service | H2: Age | I2: Service | K2: Age | L2: Service
A3: Eligibility1 | B3: =IF('Service Purchase'!$O$2=1,0,IF('Service Purchase'!$O$2=2,52.5,55)) -> 0 | C3: =IF('Service Purchase'!$O$2=1,20,15) -> 20 | E3: =IF('Service Purchase'!$O$2=1,0,52.5) -> 0 | F3: =IF('Service Purchase'!$O$2=1,20,25) -> 20 | H3: =IF('Service Purchase'!$O$2=1,0,62) -> 0 | I3: =IF('Service Purchase'!$O$2=1,20,10) -> 20 | K3: 0 | L3: 25
A4: Eligibility2 | B4: =IF('Service Purchase'!$O$2=1,0,IF('Service Purchase'!$O$2=2,52.5,55)) -> 0 | C4: =IF('Service Purchase'!$O$2=1,20,25) -> 20 | E4: =IF('Service Purchase'!$O$2=1,0,52.5) -> 0 | F4: =IF('Service Purchase'!$O$2=1,20,25) -> 20 | H4: =IF('Service Purchase'!$O$2=1,62,65) -> 62 | I4: =IF('Service Purchase'!$O$2=1,10,5) -> 10 | K4: 0 | L4: 25
A5: Eligibility3 | B5: 62 | C5: 15 | E5: 62 | F5: 10 | H5: 65 | I5: 5 | K5: 62 | L5: 10

Sheet FAC (hidden)
A1: Age | G1: =VLOOKUP(Input!$B$5,Employers!$P$1:$S$280,4,)+1 -> 3 | O1: MCP | P1: MCF | Q1: PCP | R1: PCF | S1: OP | T1: OF | U1: CORP | V1: EORP | Y1: 11 | Z1: 12 | AA1: 13 | AB1: 14 | AC1: 15 | AD1: 16 | AE1: 21 | AF1: 31 | AG1: 41
A2: =A3-1 -> 113 | B2: 5 years ago | C2: =IF(Input!$B$16="No",FAC!C3,FAC!C3/(1+'Service Purchase'!$B$40+VLOOKUP(A4-1,$N$2:$T$121,$G$1,))) -> 0 | N2: 1 | O2: 0.04 | P2: 0.04 | Q2: 0.04 | R2: 0.04 | S2: 0.04 | T2: 0.037 | U2: 0.03 | V2: 0.0025
A3: 114 | B3: 4 years ago | C3: =IF(Input!$B$16="No",FAC!C4,FAC!C4/(1+'Service Purchase'!$B$40+VLOOKUP(A5-1,$N$2:$T$121,$G$1,))) -> 0 | N3: 2 | O3: 0.04 | P3: 0.04 | Q3: 0.04 | R3: 0.04 | S3: 0.04 | T3: 0.037 | U3: 0.03 | V3: 0.0025
A4: 115 | B4: 3 years ago | C4: =IF(Input!$B$16="No",FAC!C5,FAC!C5/(1+'Service Purchase'!$B$40+VLOOKUP(A6-1,$N$2:$T$121,$G$1,))) -> 0 | N4: 3 | O4: 0.04 | P4: 0.04 | Q4: 0.04 | R4: 0.04 | S4: 0.04 | T4: 0.037 | U4: 0.03 | V4: 0.0025
A5: 116 | B5: 2 years ago | C5: =IF(Input!$B$16="No",FAC!C6,FAC!C6/(1+'Service Purchase'!$B$40+VLOOKUP(A7-1,$N$2:$T$121,$G$1,))) -> 0 | N5: 4 | O5: 0.04 | P5: 0.04 | Q5: 0.04 | R5: 0.04 | S5: 0.04 | T5: 0.037 | U5: 0.03 | V5: 0.0025
A6: =A7-1 -> 117 | B6: 1 year ago | C6: =IF(Input!$B$16="No",FAC!C7,FAC!C7/(1+'Service Purchase'!$B$40+VLOOKUP(A8-1,$N$2:$T$121,$G$1,))) -> 0 | J6: FAC before | K6: FAC After | N6: 5 | O6: 0.04 | P6: 0.04 | Q6: 0.04 | R6: 0.04 | S6: 0.04 | T6: 0.037 | U6: 0.03 | V6: 0.0025
A7: =ROUND(Input!G7,0) -> 118 | B7: Current Pay: | C7: ='Service Purchase'!B10 -> 0 | E7: 0 | F7: Current FAC: | G7: =IF('Service Purchase'!$O$2=1,(0.5*C7+C6+C5+0.5*C4)/3,(0.5*C7+C6+C5+C4+C3+0.5*C2)/5) -> 0 | J7: =MAX(ROUND(YEAR('Service Purchase'!$B$17)-YEAR('Service Purchase'!$B$8)+(MONTH('Service Purchase'!$B$17)-MONTH('Service Purchase'!$B$8))/12+(DAY('Service Purchase'!$B$17)-DAY('Service Purchase'!$B$8))/360,4),0) -> 15 | K7: =MAX(ROUND(YEAR('Service Purchase'!$C$17)-YEAR('Service Purchase'!$B$8)+(MONTH('Service Purchase'!$C$17)-MONTH('Service Purchase'!$B$8))/12+(DAY('Service Purchase'!$C$17)-DAY('Service Purchase'!$B$8))/360,4),0) -> 15 | N7: 6 | O7: 0.04 | P7: 0.04 | Q7: 0.04 | R7: 0.04 | S7: 0.04 | T7: 0.037 | U7: 0.03 | V7: 0.0025
A8: =A7+1 -> 119 | B8: Pay year+1 | C8: =C7*(1+'Service Purchase'!$B$40+VLOOKUP(A8-1,$N$2:$V$121,$G$1,)) ->  | E8: 1 | F8: FAC year+1 | G8: =IF('Service Purchase'!$O$2=1,(0.5*C8+C7+C6+0.5*C5)/3,(0.5*C8+C7+C6+C5+C4+0.5*C3)/5) ->  | N8: 7 | O8: 0.04 | P8: 0.04 | Q8: 0.04 | R8: 0.04 | S8: 0.04 | T8: 0.037 | U8: 0.03 | V8: 0.0025
A9: =A8+1 -> 120 | B9: Pay year+2 | C9: =C8*(1+'Service Purchase'!$B$40+VLOOKUP(A9-1,$N$2:$V$121,$G$1,)) ->  | E9: 2 | F9: FAC year+2 | G9: =IF('Service Purchase'!$O$2=1,(0.5*C9+C8+C7+0.5*C6)/3,(0.5*C9+C8+C7+C6+C5+0.5*C4)/5) ->  | N9: 8 | O9: 0.04 | P9: 0.04 | Q9: 0.04 | R9: 0.04 | S9: 0.04 | T9: 0.037 | U9: 0.03 | V9: 0.0025
A10: 121 | B10: Pay year+3 | C10: =C9*(1+'Service Purchase'!$B$40+VLOOKUP(A10-1,$N$2:$V$121,$G$1,)) ->  | E10: 3 | F10: FAC year+3 | G10: =IF('Service Purchase'!$O$2=1,(0.5*C10+C9+C8+0.5*C7)/3,(0.5*C10+C9+C8+C7+C6+0.5*C5)/5) ->  | J10: =INT(J7) -> 15 | K10: =INT(K7) -> 15 | N10: 9 | O10: 0.04 | P10: 0.04 | Q10: 0.04 | R10: 0.04 | S10: 0.04 | T10: 0.037 | U10: 0.03 | V10: 0.0025
A11: 122 | B11: Pay year+4 | C11: =C10*(1+'Service Purchase'!$B$40+VLOOKUP(A11-1,$N$2:$V$121,$G$1,)) ->  | E11: 4 | F11: FAC year+4 | G11: =IF('Service Purchase'!$O$2=1,(0.5*C11+C10+C9+0.5*C8)/3,(0.5*C11+C10+C9+C8+C7+0.5*C6)/5) ->  | J11: =J10+1 -> 16 | K11: =K10+1 -> 16 | N11: 10 | O11: 0.04 | P11: 0.04 | Q11: 0.04 | R11: 0.04 | S11: 0.04 | T11: 0.037 | U11: 0.03 | V11: 0.0025
A12: 123 | B12: Pay year+5 | C12: =C11*(1+'Service Purchase'!$B$40+VLOOKUP(A12-1,$N$2:$V$121,$G$1,)) ->  | E12: 5 | F12: FAC year+5 | G12: =IF('Service Purchase'!$O$2=1,(0.5*C12+C11+C10+0.5*C9)/3,(0.5*C12+C11+C10+C9+C8+0.5*C7)/5) ->  | N12: 11 | O12: 0.04 | P12: 0.04 | Q12: 0.04 | R12: 0.04 | S12: 0.04 | T12: 0.037 | U12: 0.03 | V12: 0.0025
A13: 124 | B13: Pay year+6 | C13: =C12*(1+'Service Purchase'!$B$40+VLOOKUP(A13-1,$N$2:$V$121,$G$1,)) ->  | E13: 6 | F13: FAC year+6 | G13: =IF('Service Purchase'!$O$2=1,(0.5*C13+C12+C11+0.5*C10)/3,(0.5*C13+C12+C11+C10+C9+0.5*C8)/5) ->  | J13: =VLOOKUP(J10,$E$7:$G$57,3,) ->  | K13: =VLOOKUP(K10,$E$7:$G$57,3,) ->  | N13: 12 | O13: 0.04 | P13: 0.04 | Q13: 0.04 | R13: 0.04 | S13: 0.04 | T13: 0.037 | U13: 0.03 | V13: 0.0025
A14: 125 | B14: Pay year+7 | C14: =C13*(1+'Service Purchase'!$B$40+VLOOKUP(A14-1,$N$2:$V$121,$G$1,)) ->  | E14: 7 | F14: FAC year+7 | G14: =IF('Service Purchase'!$O$2=1,(0.5*C14+C13+C12+0.5*C11)/3,(0.5*C14+C13+C12+C11+C10+0.5*C9)/5) ->  | J14: =VLOOKUP(J11,$E$7:$G$57,3,) ->  | K14: =VLOOKUP(K11,$E$7:$G$57,3,) ->  | N14: 13 | O14: 0.04 | P14: 0.04 | Q14: 0.04 | R14: 0.04 | S14: 0.04 | T14: 0.037 | U14: 0.03 | V14: 0.0025
A15: 126 | B15: Pay year+8 | C15: =C14*(1+'Service Purchase'!$B$40+VLOOKUP(A15-1,$N$2:$V$121,$G$1,)) ->  | E15: 8 | F15: FAC year+8 | G15: =IF('Service Purchase'!$O$2=1,(0.5*C15+C14+C13+0.5*C12)/3,(0.5*C15+C14+C13+C12+C11+0.5*C10)/5) ->  | N15: 14 | O15: 0.04 | P15: 0.04 | Q15: 0.04 | R15: 0.04 | S15: 0.04 | T15: 0.037 | U15: 0.03 | V15: 0.0025
A16: 127 | B16: Pay year+9 | C16: =C15*(1+'Service Purchase'!$B$40+VLOOKUP(A16-1,$N$2:$V$121,$G$1,)) ->  | E16: 9 | F16: FAC year+9 | G16: =IF('Service Purchase'!$O$2=1,(0.5*C16+C15+C14+0.5*C13)/3,(0.5*C16+C15+C14+C13+C12+0.5*C11)/5) ->  | J16: =J7-J10 -> 0 | K16: =K7-K10 -> 0 | N16: 15 | O16: 0.04 | P16: 0.04 | Q16: 0.04 | R16: 0.04 | S16: 0.04 | T16: 0.037 | U16: 0.03 | V16: 0.0025
A17: 128 | B17: Pay year+10 | C17: =C16*(1+'Service Purchase'!$B$40+VLOOKUP(A17-1,$N$2:$V$121,$G$1,)) ->  | E17: 10 | F17: FAC year+10 | G17: =IF('Service Purchase'!$O$2=1,(0.5*C17+C16+C15+0.5*C14)/3,(0.5*C17+C16+C15+C14+C13+0.5*C12)/5) ->  | N17: 16 | O17: 0.04 | P17: 0.04 | Q17: 0.04 | R17: 0.04 | S17: 0.04 | T17: 0.037 | U17: 0.03 | V17: 0.0025
A18: 129 | B18: Pay year+11 | C18: =C17*(1+'Service Purchase'!$B$40+VLOOKUP(A18-1,$N$2:$V$121,$G$1,)) ->  | E18: 11 | F18: FAC year+11 | G18: =IF('Service Purchase'!$O$2=1,(0.5*C18+C17+C16+0.5*C15)/3,(0.5*C18+C17+C16+C15+C14+0.5*C13)/5) ->  | J18: =ROUND(J13*(1-J16)+J14*J16,2) ->  | K18: =ROUND(K13*(1-K16)+K14*K16,2) ->  | N18: 17 | O18: 0.04 | P18: 0.04 | Q18: 0.04 | R18: 0.04 | S18: 0.04 | T18: 0.037 | U18: 0.03 | V18: 0.0025
A19: 130 | B19: Pay year+12 | C19: =C18*(1+'Service Purchase'!$B$40+VLOOKUP(A19-1,$N$2:$V$121,$G$1,)) ->  | E19: 12 | F19: FAC year+12 | G19: =IF('Service Purchase'!$O$2=1,(0.5*C19+C18+C17+0.5*C16)/3,(0.5*C19+C18+C17+C16+C15+0.5*C14)/5) ->  | N19: 18 | O19: 0.04 | P19: 0.04 | Q19: 0.04 | R19: 0.04 | S19: 0.04 | T19: 0.037 | U19: 0.03 | V19: 0.0025
A20: 131 | B20: Pay year+13 | C20: =C19*(1+'Service Purchase'!$B$40+VLOOKUP(A20-1,$N$2:$V$121,$G$1,)) ->  | E20: 13 | F20: FAC year+13 | G20: =IF('Service Purchase'!$O$2=1,(0.5*C20+C19+C18+0.5*C17)/3,(0.5*C20+C19+C18+C17+C16+0.5*C15)/5) ->  | N20: 19 | O20: 0.04 | P20: 0.04 | Q20: 0.04 | R20: 0.04 | S20: 0.04 | T20: 0.037 | U20: 0.03 | V20: 0.0025
A21: 132 | B21: Pay year+14 | C21: =C20*(1+'Service Purchase'!$B$40+VLOOKUP(A21-1,$N$2:$V$121,$G$1,)) ->  | E21: 14 | F21: FAC year+14 | G21: =IF('Service Purchase'!$O$2=1,(0.5*C21+C20+C19+0.5*C18)/3,(0.5*C21+C20+C19+C18+C17+0.5*C16)/5) ->  | N21: 20 | O21: 0.04 | P21: 0.04 | Q21: 0.04 | R21: 0.04 | S21: 0.04 | T21: 0.037 | U21: 0.03 | V21: 0.0025
A22: 133 | B22: Pay year+15 | C22: =C21*(1+'Service Purchase'!$B$40+VLOOKUP(A22-1,$N$2:$V$121,$G$1,)) ->  | E22: 15 | F22: FAC year+15 | G22: =IF('Service Purchase'!$O$2=1,(0.5*C22+C21+C20+0.5*C19)/3,(0.5*C22+C21+C20+C19+C18+0.5*C17)/5) ->  | N22: 21 | O22: 0.04 | P22: 0.04 | Q22: 0.04 | R22: 0.04 | S22: 0.04 | T22: 0.037 | U22: 0.03 | V22: 0.0025
A23: 134 | B23: Pay year+16 | C23: =C22*(1+'Service Purchase'!$B$40+VLOOKUP(A23-1,$N$2:$V$121,$G$1,)) ->  | E23: 16 | F23: FAC year+16 | G23: =IF('Service Purchase'!$O$2=1,(0.5*C23+C22+C21+0.5*C20)/3,(0.5*C23+C22+C21+C20+C19+0.5*C18)/5) ->  | N23: 22 | O23: 0.04 | P23: 0.04 | Q23: 0.04 | R23: 0.04 | S23: 0.04 | T23: 0.037 | U23: 0.03 | V23: 0.0025
A24: 135 | B24: Pay year+17 | C24: =C23*(1+'Service Purchase'!$B$40+VLOOKUP(A24-1,$N$2:$V$121,$G$1,)) ->  | E24: 17 | F24: FAC year+17 | G24: =IF('Service Purchase'!$O$2=1,(0.5*C24+C23+C22+0.5*C21)/3,(0.5*C24+C23+C22+C21+C20+0.5*C19)/5) ->  | N24: 23 | O24: 0.0388 | P24: 0.0395 | Q24: 0.0358 | R24: 0.0362 | S24: 0.037 | T24: 0.035 | U24: 0.0285 | V24: 0.0025
A25: 136 | B25: Pay year+18 | C25: =C24*(1+'Service Purchase'!$B$40+VLOOKUP(A25-1,$N$2:$V$121,$G$1,)) ->  | E25: 18 | F25: FAC year+18 | G25: =IF('Service Purchase'!$O$2=1,(0.5*C25+C24+C23+0.5*C22)/3,(0.5*C25+C24+C23+C22+C21+0.5*C20)/5) ->  | N25: 24 | O25: 0.0376 | P25: 0.039 | Q25: 0.0316 | R25: 0.0324 | S25: 0.034 | T25: 0.033 | U25: 0.027 | V25: 0.0025
A26: 137 | B26: Pay year+19 | C26: =C25*(1+'Service Purchase'!$B$40+VLOOKUP(A26-1,$N$2:$V$121,$G$1,)) ->  | E26: 19 | F26: FAC year+19 | G26: =IF('Service Purchase'!$O$2=1,(0.5*C26+C25+C24+0.5*C23)/3,(0.5*C26+C25+C24+C23+C22+0.5*C21)/5) ->  | N26: 25 | O26: 0.0364 | P26: 0.0385 | Q26: 0.0274 | R26: 0.0286 | S26: 0.031 | T26: 0.031 | U26: 0.0255 | V26: 0.0025
A27: 138 | B27: Pay year+20 | C27: =C26*(1+'Service Purchase'!$B$40+VLOOKUP(A27-1,$N$2:$V$121,$G$1,)) ->  | E27: 20 | F27: FAC year+20 | G27: =IF('Service Purchase'!$O$2=1,(0.5*C27+C26+C25+0.5*C24)/3,(0.5*C27+C26+C25+C24+C23+0.5*C22)/5) ->  | N27: 26 | O27: 0.0352 | P27: 0.038 | Q27: 0.0232 | R27: 0.0248 | S27: 0.028 | T27: 0.029 | U27: 0.024 | V27: 0.0025
A28: 139 | B28: Pay year+21 | C28: =C27*(1+'Service Purchase'!$B$40+VLOOKUP(A28-1,$N$2:$V$121,$G$1,)) ->  | E28: 21 | F28: FAC year+21 | G28: =IF('Service Purchase'!$O$2=1,(0.5*C28+C27+C26+0.5*C25)/3,(0.5*C28+C27+C26+C25+C24+0.5*C23)/5) ->  | N28: 27 | O28: 0.034 | P28: 0.0375 | Q28: 0.019 | R28: 0.021 | S28: 0.025 | T28: 0.027 | U28: 0.0225 | V28: 0.0025
A29: 140 | B29: Pay year+22 | C29: =C28*(1+'Service Purchase'!$B$40+VLOOKUP(A29-1,$N$2:$V$121,$G$1,)) ->  | E29: 22 | F29: FAC year+22 | G29: =IF('Service Purchase'!$O$2=1,(0.5*C29+C28+C27+0.5*C26)/3,(0.5*C29+C28+C27+C26+C25+0.5*C24)/5) ->  | N29: 28 | O29: 0.031 | P29: 0.0358 | Q29: 0.0182 | R29: 0.0206 | S29: 0.0225 | T29: 0.025 | U29: 0.0212 | V29: 0.0025
A30: 141 | B30: Pay year+23 | C30: =C29*(1+'Service Purchase'!$B$40+VLOOKUP(A30-1,$N$2:$V$121,$G$1,)) ->  | E30: 23 | F30: FAC year+23 | G30: =IF('Service Purchase'!$O$2=1,(0.5*C30+C29+C28+0.5*C27)/3,(0.5*C30+C29+C28+C27+C26+0.5*C25)/5) ->  | N30: 29 | O30: 0.028 | P30: 0.0341 | Q30: 0.0174 | R30: 0.0202 | S30: 0.02 | T30: 0.023 | U30: 0.0199 | V30: 0.0025
A31: 142 | B31: Pay year+24 | C31: =C30*(1+'Service Purchase'!$B$40+VLOOKUP(A31-1,$N$2:$V$121,$G$1,)) ->  | E31: 24 | F31: FAC year+24 | G31: =IF('Service Purchase'!$O$2=1,(0.5*C31+C30+C29+0.5*C28)/3,(0.5*C31+C30+C29+C28+C27+0.5*C26)/5) ->  | N31: 30 | O31: 0.025 | P31: 0.0324 | Q31: 0.0166 | R31: 0.0198 | S31: 0.0175 | T31: 0.021 | U31: 0.0186 | V31: 0.0025
A32: 143 | B32: Pay year+25 | C32: =C31*(1+'Service Purchase'!$B$40+VLOOKUP(A32-1,$N$2:$V$121,$G$1,)) ->  | E32: 25 | F32: FAC year+25 | G32: =IF('Service Purchase'!$O$2=1,(0.5*C32+C31+C30+0.5*C29)/3,(0.5*C32+C31+C30+C29+C28+0.5*C27)/5) ->  | N32: 31 | O32: 0.022 | P32: 0.0307 | Q32: 0.0158 | R32: 0.0194 | S32: 0.015 | T32: 0.019 | U32: 0.0173 | V32: 0.0025
A33: 144 | B33: Pay year+26 | C33: =C32*(1+'Service Purchase'!$B$40+VLOOKUP(A33-1,$N$2:$V$121,$G$1,)) ->  | E33: 26 | F33: FAC year+26 | G33: =IF('Service Purchase'!$O$2=1,(0.5*C33+C32+C31+0.5*C30)/3,(0.5*C33+C32+C31+C30+C29+0.5*C28)/5) ->  | N33: 32 | O33: 0.019 | P33: 0.029 | Q33: 0.015 | R33: 0.019 | S33: 0.0125 | T33: 0.017 | U33: 0.016 | V33: 0.0025
A34: 145 | B34: Pay year+27 | C34: =C33*(1+'Service Purchase'!$B$40+VLOOKUP(A34-1,$N$2:$V$121,$G$1,)) ->  | E34: 27 | F34: FAC year+27 | G34: =IF('Service Purchase'!$O$2=1,(0.5*C34+C33+C32+0.5*C31)/3,(0.5*C34+C33+C32+C31+C30+0.5*C29)/5) ->  | N34: 33 | O34: 0.0169 | P34: 0.0262 | Q34: 0.0135 | R34: 0.0171 | S34: 0.0105 | T34: 0.0162 | U34: 0.0146 | V34: 0.0025
A35: 146 | B35: Pay year+28 | C35: =C34*(1+'Service Purchase'!$B$40+VLOOKUP(A35-1,$N$2:$V$121,$G$1,)) ->  | E35: 28 | F35: FAC year+28 | G35: =IF('Service Purchase'!$O$2=1,(0.5*C35+C34+C33+0.5*C32)/3,(0.5*C35+C34+C33+C32+C31+0.5*C30)/5) ->  | N35: 34 | O35: 0.0148 | P35: 0.0234 | Q35: 0.012 | R35: 0.0152 | S35: 0.0085 | T35: 0.0154 | U35: 0.0132 | V35: 0.0025
A36: 147 | B36: Pay year+29 | C36: =C35*(1+'Service Purchase'!$B$40+VLOOKUP(A36-1,$N$2:$V$121,$G$1,)) ->  | E36: 29 | F36: FAC year+29 | G36: =IF('Service Purchase'!$O$2=1,(0.5*C36+C35+C34+0.5*C33)/3,(0.5*C36+C35+C34+C33+C32+0.5*C31)/5) ->  | N36: 35 | O36: 0.0127 | P36: 0.0206 | Q36: 0.0105 | R36: 0.0133 | S36: 0.0065 | T36: 0.0146 | U36: 0.0118 | V36: 0.0025
A37: 148 | B37: Pay year+30 | C37: =C36*(1+'Service Purchase'!$B$40+VLOOKUP(A37-1,$N$2:$V$121,$G$1,)) ->  | E37: 30 | F37: FAC year+30 | G37: =IF('Service Purchase'!$O$2=1,(0.5*C37+C36+C35+0.5*C34)/3,(0.5*C37+C36+C35+C34+C33+0.5*C32)/5) ->  | N37: 36 | O37: 0.0106 | P37: 0.0178 | Q37: 0.009 | R37: 0.0114 | S37: 0.0045 | T37: 0.0138 | U37: 0.0104 | V37: 0.0025
A38: 149 | B38: Pay year+31 | C38: =C37*(1+'Service Purchase'!$B$40+VLOOKUP(A38-1,$N$2:$V$121,$G$1,)) ->  | E38: 31 | F38: FAC year+31 | G38: =IF('Service Purchase'!$O$2=1,(0.5*C38+C37+C36+0.5*C35)/3,(0.5*C38+C37+C36+C35+C34+0.5*C33)/5) ->  | N38: 37 | O38: 0.0085 | P38: 0.015 | Q38: 0.0075 | R38: 0.0095 | S38: 0.0025 | T38: 0.013 | U38: 0.009 | V38: 0.0025
A39: 150 | B39: Pay year+32 | C39: =C38*(1+'Service Purchase'!$B$40+VLOOKUP(A39-1,$N$2:$V$121,$G$1,)) ->  | E39: 32 | F39: FAC year+32 | G39: =IF('Service Purchase'!$O$2=1,(0.5*C39+C38+C37+0.5*C36)/3,(0.5*C39+C38+C37+C36+C35+0.5*C34)/5) ->  | N39: 38 | O39: 0.007 | P39: 0.0132 | Q39: 0.0063 | R39: 0.0081 | S39: 0.002 | T39: 0.0118 | U39: 0.0084 | V39: 0.0025
A40: 151 | B40: Pay year+33 | C40: =C39*(1+'Service Purchase'!$B$40+VLOOKUP(A40-1,$N$2:$V$121,$G$1,)) ->  | E40: 33 | F40: FAC year+33 | G40: =IF('Service Purchase'!$O$2=1,(0.5*C40+C39+C38+0.5*C37)/3,(0.5*C40+C39+C38+C37+C36+0.5*C35)/5) ->  | N40: 39 | O40: 0.0055 | P40: 0.0114 | Q40: 0.0051 | R40: 0.0067 | S40: 0.0015 | T40: 0.0106 | U40: 0.0078 | V40: 0.0025
A41: 152 | B41: Pay year+34 | C41: =C40*(1+'Service Purchase'!$B$40+VLOOKUP(A41-1,$N$2:$V$121,$G$1,)) ->  | E41: 34 | F41: FAC year+34 | G41: =IF('Service Purchase'!$O$2=1,(0.5*C41+C40+C39+0.5*C38)/3,(0.5*C41+C40+C39+C38+C37+0.5*C36)/5) ->  | N41: 40 | O41: 0.004 | P41: 0.0096 | Q41: 0.0039 | R41: 0.0053 | S41: 0.001 | T41: 0.0094 | U41: 0.0072 | V41: 0.0025
A42: 153 | B42: Pay year+35 | C42: =C41*(1+'Service Purchase'!$B$40+VLOOKUP(A42-1,$N$2:$V$121,$G$1,)) ->  | E42: 35 | F42: FAC year+35 | G42: =IF('Service Purchase'!$O$2=1,(0.5*C42+C41+C40+0.5*C39)/3,(0.5*C42+C41+C40+C39+C38+0.5*C37)/5) ->  | N42: 41 | O42: 0.0025 | P42: 0.0078 | Q42: 0.0027 | R42: 0.0039 | S42: 0.0005 | T42: 0.0082 | U42: 0.0068 | V42: 0.0025
A43: 154 | B43: Pay year+36 | C43: =C42*(1+'Service Purchase'!$B$40+VLOOKUP(A43-1,$N$2:$V$121,$G$1,)) ->  | E43: 36 | F43: FAC year+36 | G43: =IF('Service Purchase'!$O$2=1,(0.5*C43+C42+C41+0.5*C40)/3,(0.5*C43+C42+C41+C40+C39+0.5*C38)/5) ->  | N43: 42 | O43: 0.001 | P43: 0.006 | Q43: 0.0015 | R43: 0.0025 | S43: 0 | T43: 0.007 | U43: 0.006 | V43: 0.0025
A44: 155 | B44: Pay year+37 | C44: =C43*(1+'Service Purchase'!$B$40+VLOOKUP(A44-1,$N$2:$V$121,$G$1,)) ->  | E44: 37 | F44: FAC year+37 | G44: =IF('Service Purchase'!$O$2=1,(0.5*C44+C43+C42+0.5*C41)/3,(0.5*C44+C43+C42+C41+C40+0.5*C39)/5) ->  | N44: 43 | O44: 0.0008 | P44: 0.0048 | Q44: 0.0012 | R44: 0.002 | S44: 0 | T44: 0.0056 | U44: 0.0058 | V44: 0.0025
A45: 156 | B45: Pay year+38 | C45: =C44*(1+'Service Purchase'!$B$40+VLOOKUP(A45-1,$N$2:$V$121,$G$1,)) ->  | E45: 38 | F45: FAC year+38 | G45: =IF('Service Purchase'!$O$2=1,(0.5*C45+C44+C43+0.5*C42)/3,(0.5*C45+C44+C43+C42+C41+0.5*C40)/5) ->  | N45: 44 | O45: 0.0006 | P45: 0.0036 | Q45: 0.0009 | R45: 0.0015 | S45: 0 | T45: 0.0042 | U45: 0.0056 | V45: 0.0025
A46: 157 | B46: Pay year+39 | C46: =C45*(1+'Service Purchase'!$B$40+VLOOKUP(A46-1,$N$2:$V$121,$G$1,)) ->  | E46: 39 | F46: FAC year+39 | G46: =IF('Service Purchase'!$O$2=1,(0.5*C46+C45+C44+0.5*C43)/3,(0.5*C46+C45+C44+C43+C42+0.5*C41)/5) ->  | N46: 45 | O46: 0.0004 | P46: 0.0024 | Q46: 0.0006 | R46: 0.001 | S46: 0 | T46: 0.0028 | U46: 0.0054 | V46: 0.0025
A47: 158 | B47: Pay year+40 | C47: =C46*(1+'Service Purchase'!$B$40+VLOOKUP(A47-1,$N$2:$V$121,$G$1,)) ->  | E47: 40 | F47: FAC year+40 | G47: =IF('Service Purchase'!$O$2=1,(0.5*C47+C46+C45+0.5*C44)/3,(0.5*C47+C46+C45+C44+C43+0.5*C42)/5) ->  | N47: 46 | O47: 0.0002 | P47: 0.0012 | Q47: 0.0006 | R47: 0.0005 | S47: 0 | T47: 0.0014 | U47: 0.0052 | V47: 0.0025
A48: 159 | B48: Pay year+41 | C48: =C47*(1+'Service Purchase'!$B$40+VLOOKUP(A48-1,$N$2:$V$121,$G$1,)) ->  | E48: 41 | F48: FAC year+41 | G48: =IF('Service Purchase'!$O$2=1,(0.5*C48+C47+C46+0.5*C45)/3,(0.5*C48+C47+C46+C45+C44+0.5*C43)/5) ->  | N48: 47 | O48: 0 | P48: 0 | Q48: 0 | R48: 0 | S48: 0 | T48: 0 | U48: 0.005 | V48: 0.0025
A49: 160 | B49: Pay year+42 | C49: =C48*(1+'Service Purchase'!$B$40+VLOOKUP(A49-1,$N$2:$V$121,$G$1,)) ->  | E49: 42 | F49: FAC year+42 | G49: =IF('Service Purchase'!$O$2=1,(0.5*C49+C48+C47+0.5*C46)/3,(0.5*C49+C48+C47+C46+C45+0.5*C44)/5) ->  | N49: 48 | O49: 0 | P49: 0 | Q49: 0 | R49: 0 | S49: 0 | T49: 0 | U49: 0.0045 | V49: 0.0025
A50: 161 | B50: Pay year+43 | C50: =C49*(1+'Service Purchase'!$B$40+VLOOKUP(A50-1,$N$2:$V$121,$G$1,)) ->  | E50: 43 | F50: FAC year+43 | G50: =IF('Service Purchase'!$O$2=1,(0.5*C50+C49+C48+0.5*C47)/3,(0.5*C50+C49+C48+C47+C46+0.5*C45)/5) ->  | N50: 49 | O50: 0 | P50: 0 | Q50: 0 | R50: 0 | S50: 0 | T50: 0 | U50: 0.004 | V50: 0.0025
A51: 162 | B51: Pay year+44 | C51: =C50*(1+'Service Purchase'!$B$40+VLOOKUP(A51-1,$N$2:$V$121,$G$1,)) ->  | E51: 44 | F51: FAC year+44 | G51: =IF('Service Purchase'!$O$2=1,(0.5*C51+C50+C49+0.5*C48)/3,(0.5*C51+C50+C49+C48+C47+0.5*C46)/5) ->  | N51: 50 | O51: 0 | P51: 0 | Q51: 0 | R51: 0 | S51: 0 | T51: 0 | U51: 0.0035 | V51: 0.0025
A52: 163 | B52: Pay year+45 | C52: =C51*(1+'Service Purchase'!$B$40+VLOOKUP(A52-1,$N$2:$V$121,$G$1,)) ->  | E52: 45 | F52: FAC year+45 | G52: =IF('Service Purchase'!$O$2=1,(0.5*C52+C51+C50+0.5*C49)/3,(0.5*C52+C51+C50+C49+C48+0.5*C47)/5) ->  | N52: 51 | O52: 0 | P52: 0 | Q52: 0 | R52: 0 | S52: 0 | T52: 0 | U52: 0.003 | V52: 0.0025
A53: 164 | B53: Pay year+46 | C53: =C52*(1+'Service Purchase'!$B$40+VLOOKUP(A53-1,$N$2:$V$121,$G$1,)) ->  | E53: 46 | F53: FAC year+46 | G53: =IF('Service Purchase'!$O$2=1,(0.5*C53+C52+C51+0.5*C50)/3,(0.5*C53+C52+C51+C50+C49+0.5*C48)/5) ->  | N53: 52 | O53: 0 | P53: 0 | Q53: 0 | R53: 0 | S53: 0 | T53: 0 | U53: 0.0025 | V53: 0.0025
A54: 165 | B54: Pay year+47 | C54: =C53*(1+'Service Purchase'!$B$40+VLOOKUP(A54-1,$N$2:$V$121,$G$1,)) ->  | E54: 47 | F54: FAC year+47 | G54: =IF('Service Purchase'!$O$2=1,(0.5*C54+C53+C52+0.5*C51)/3,(0.5*C54+C53+C52+C51+C50+0.5*C49)/5) ->  | N54: 53 | O54: 0 | P54: 0 | Q54: 0 | R54: 0 | S54: 0 | T54: 0 | U54: 0.0022 | V54: 0.0025
A55: 166 | B55: Pay year+48 | C55: =C54*(1+'Service Purchase'!$B$40+VLOOKUP(A55-1,$N$2:$V$121,$G$1,)) ->  | E55: 48 | F55: FAC year+48 | G55: =IF('Service Purchase'!$O$2=1,(0.5*C55+C54+C53+0.5*C52)/3,(0.5*C55+C54+C53+C52+C51+0.5*C50)/5) ->  | N55: 54 | O55: 0 | P55: 0 | Q55: 0 | R55: 0 | S55: 0 | T55: 0 | U55: 0.0019 | V55: 0.0025
A56: 167 | B56: Pay year+49 | C56: =C55*(1+'Service Purchase'!$B$40+VLOOKUP(A56-1,$N$2:$V$121,$G$1,)) ->  | E56: 49 | F56: FAC year+49 | G56: =IF('Service Purchase'!$O$2=1,(0.5*C56+C55+C54+0.5*C53)/3,(0.5*C56+C55+C54+C53+C52+0.5*C51)/5) ->  | N56: 55 | O56: 0 | P56: 0 | Q56: 0 | R56: 0 | S56: 0 | T56: 0 | U56: 0.0016 | V56: 0.0025
A57: 168 | B57: Pay year+50 | C57: =C56*(1+'Service Purchase'!$B$40+VLOOKUP(A57-1,$N$2:$V$121,$G$1,)) ->  | E57: 50 | F57: FAC year+50 | G57: =IF('Service Purchase'!$O$2=1,(0.5*C57+C56+C55+0.5*C54)/3,(0.5*C57+C56+C55+C54+C53+0.5*C52)/5) ->  | N57: 56 | O57: 0 | P57: 0 | Q57: 0 | R57: 0 | S57: 0 | T57: 0 | U57: 0.0013 | V57: 0.0025
N58: 57 | O58: 0 | P58: 0 | Q58: 0 | R58: 0 | S58: 0 | T58: 0 | U58: 0.001 | V58: 0.0025
N59: 58 | O59: 0 | P59: 0 | Q59: 0 | R59: 0 | S59: 0 | T59: 0 | U59: 0.0008 | V59: 0.0025
N60: 59 | O60: 0 | P60: 0 | Q60: 0 | R60: 0 | S60: 0 | T60: 0 | U60: 0.0006 | V60: 0.0025
N61: 60 | O61: 0 | P61: 0 | Q61: 0 | R61: 0 | S61: 0 | T61: 0 | U61: 0.0004 | V61: 0.0025
N62: 61 | O62: 0 | P62: 0 | Q62: 0 | R62: 0 | S62: 0 | T62: 0 | U62: 0.0002 | V62: 0.0025
N63: 62 | O63: 0 | P63: 0 | Q63: 0 | R63: 0 | S63: 0 | T63: 0 | U63: 0 | V63: 0.0025
N64: 63 | O64: 0 | P64: 0 | Q64: 0 | R64: 0 | S64: 0 | T64: 0 | U64: 0 | V64: 0.0025
N65: 64 | O65: 0 | P65: 0 | Q65: 0 | R65: 0 | S65: 0 | T65: 0 | U65: 0 | V65: 0.0025
N66: 65 | O66: 0 | P66: 0 | Q66: 0 | R66: 0 | S66: 0 | T66: 0 | U66: 0 | V66: 0.0025
N67: 66 | O67: 0 | P67: 0 | Q67: 0 | R67: 0 | S67: 0 | T67: 0 | U67: 0 | V67: 0.0025
N68: 67 | O68: 0 | P68: 0 | Q68: 0 | R68: 0 | S68: 0 | T68: 0 | U68: 0 | V68: 0.0025
N69: 68 | O69: 0 | P69: 0 | Q69: 0 | R69: 0 | S69: 0 | T69: 0 | U69: 0 | V69: 0.0025
N70: 69 | O70: 0 | P70: 0 | Q70: 0 | R70: 0 | S70: 0 | T70: 0 | U70: 0 | V70: 0.0025
N71: 70 | O71: 0 | P71: 0 | Q71: 0 | R71: 0 | S71: 0 | T71: 0 | U71: 0 | V71: 0.0025
N72: 71 | O72: 0 | P72: 0 | Q72: 0 | R72: 0 | S72: 0 | T72: 0 | U72: 0 | V72: 0.0025
N73: 72 | O73: 0 | P73: 0 | Q73: 0 | R73: 0 | S73: 0 | T73: 0 | U73: 0 | V73: 0.0025
N74: 73 | O74: 0 | P74: 0 | Q74: 0 | R74: 0 | S74: 0 | T74: 0 | U74: 0 | V74: 0.0025
N75: 74 | O75: 0 | P75: 0 | Q75: 0 | R75: 0 | S75: 0 | T75: 0 | U75: 0 | V75: 0.0025
N76: 75 | O76: 0 | P76: 0 | Q76: 0 | R76: 0 | S76: 0 | T76: 0 | U76: 0 | V76: 0.0025
N77: 76 | O77: 0 | P77: 0 | Q77: 0 | R77: 0 | S77: 0 | T77: 0 | U77: 0 | V77: 0.0025
N78: 77 | O78: 0 | P78: 0 | Q78: 0 | R78: 0 | S78: 0 | T78: 0 | U78: 0 | V78: 0.0025
N79: 78 | O79: 0 | P79: 0 | Q79: 0 | R79: 0 | S79: 0 | T79: 0 | U79: 0 | V79: 0.0025
N80: 79 | O80: 0 | P80: 0 | Q80: 0 | R80: 0 | S80: 0 | T80: 0 | U80: 0 | V80: 0.0025
N81: 80 | O81: 0 | P81: 0 | Q81: 0 | R81: 0 | S81: 0 | T81: 0 | U81: 0 | V81: 0.0025
N82: 81 | O82: 0 | P82: 0 | Q82: 0 | R82: 0 | S82: 0 | T82: 0 | U82: 0 | V82: 0.0025
N83: 82 | O83: 0 | P83: 0 | Q83: 0 | R83: 0 | S83: 0 | T83: 0 | U83: 0 | V83: 0.0025
N84: 83 | O84: 0 | P84: 0 | Q84: 0 | R84: 0 | S84: 0 | T84: 0 | U84: 0 | V84: 0.0025
N85: 84 | O85: 0 | P85: 0 | Q85: 0 | R85: 0 | S85: 0 | T85: 0 | U85: 0 | V85: 0.0025
N86: 85 | O86: 0 | P86: 0 | Q86: 0 | R86: 0 | S86: 0 | T86: 0 | U86: 0 | V86: 0.0025
N87: 86 | O87: 0 | P87: 0 | Q87: 0 | R87: 0 | S87: 0 | T87: 0 | U87: 0 | V87: 0.0025
N88: 87 | O88: 0 | P88: 0 | Q88: 0 | R88: 0 | S88: 0 | T88: 0 | U88: 0 | V88: 0.0025
N89: 88 | O89: 0 | P89: 0 | Q89: 0 | R89: 0 | S89: 0 | T89: 0 | U89: 0 | V89: 0.0025
N90: 89 | O90: 0 | P90: 0 | Q90: 0 | R90: 0 | S90: 0 | T90: 0 | U90: 0 | V90: 0.0025
N91: 90 | O91: 0 | P91: 0 | Q91: 0 | R91: 0 | S91: 0 | T91: 0 | U91: 0 | V91: 0.0025
N92: 91 | O92: 0 | P92: 0 | Q92: 0 | R92: 0 | S92: 0 | T92: 0 | U92: 0 | V92: 0.0025
N93: 92 | O93: 0 | P93: 0 | Q93: 0 | R93: 0 | S93: 0 | T93: 0 | U93: 0 | V93: 0.0025
N94: 93 | O94: 0 | P94: 0 | Q94: 0 | R94: 0 | S94: 0 | T94: 0 | U94: 0 | V94: 0.0025
N95: 94 | O95: 0 | P95: 0 | Q95: 0 | R95: 0 | S95: 0 | T95: 0 | U95: 0 | V95: 0.0025
N96: 95 | O96: 0 | P96: 0 | Q96: 0 | R96: 0 | S96: 0 | T96: 0 | U96: 0 | V96: 0.0025
N97: 96 | O97: 0 | P97: 0 | Q97: 0 | R97: 0 | S97: 0 | T97: 0 | U97: 0 | V97: 0.0025
N98: 97 | O98: 0 | P98: 0 | Q98: 0 | R98: 0 | S98: 0 | T98: 0 | U98: 0 | V98: 0.0025
N99: 98 | O99: 0 | P99: 0 | Q99: 0 | R99: 0 | S99: 0 | T99: 0 | U99: 0 | V99: 0.0025
N100: 99 | O100: 0 | P100: 0 | Q100: 0 | R100: 0 | S100: 0 | T100: 0 | U100: 0 | V100: 0.0025
N101: 100 | O101: 0 | P101: 0 | Q101: 0 | R101: 0 | S101: 0 | T101: 0 | U101: 0 | V101: 0.0025

Sheet Employers (hidden)
A1: PSPRS Tier 1 | B1: PSPRS Tier 2 | C1: PSPRS Tier 3 | D1: CORP Tier 1 | E1: CORP Tier 2 | F1: EORP Tier 1 | G1: EORP Tier 2 | K1: PSPRS | M1: Tier 1 | N1: Tier 1 | P1: AK CHIN INDIAN COMM. FIRE DEPT. | Q1: 1 | R1: 6 | S1: 6
A2: AK CHIN INDIAN COMM. FIRE DEPT. | B2: AK CHIN INDIAN COMM. FIRE DEPT. | C2: AK CHIN INDIAN COMM. FIRE DEPT. | D2: ADMINISTRATIVE OFFICE OF THE COURTS | E2: ADMINISTRATIVE OFFICE OF THE COURTS | F2: CITY OF APACHE JUNCTION | G2: CITY OF APACHE JUNCTION | K2: CORP | M2: Tier 2 | N2: Tier 2 | P2: AK CHIN INDIAN COMM. POLICE DEPT. | Q2: 1 | R2: 5 | S2: 5
A3: AK CHIN INDIAN COMM. POLICE DEPT. | B3: AK CHIN INDIAN COMM. POLICE DEPT. | C3: AK CHIN INDIAN COMM. POLICE DEPT. | D3: APACHE COUNTY - Detention | E3: APACHE COUNTY - Detention | F3: CITY OF AVONDALE | G3: CITY OF AVONDALE | K3: EORP | M3: Tier 3 | P3: APACHE COUNTY SHERIFF'S DEPT. | Q3: 1 | R3: 5 | S3: 5
A4: APACHE COUNTY SHERIFF'S DEPT. | B4: APACHE COUNTY SHERIFF'S DEPT. | C4: APACHE COUNTY SHERIFF'S DEPT. | D4: CITY OF AVONDALE - Detention | E4: CITY OF AVONDALE - Detention | F4: CITY OF CHANDLER | G4: CITY OF CHANDLER | P4: APACHE JUNCTION POLICE DEPT. | Q4: 1 | R4: 5 | S4: 5
A5: APACHE JUNCTION POLICE DEPT. | B5: APACHE JUNCTION POLICE DEPT. | C5: APACHE JUNCTION POLICE DEPT. | D5: CITY OF SOMERTON - Dispatchers | E5: CITY OF SOMERTON - Dispatchers | F5: CITY OF FLAGSTAFF | G5: CITY OF FLAGSTAFF | P5: ASU CAMPUS POLICE | Q5: 1 | R5: 1 | S5: 1
A6: ASU CAMPUS POLICE | B6: ASU CAMPUS POLICE | C6: ASU CAMPUS POLICE | D6: COCHISE COUNTY - Detention | E6: COCHISE COUNTY - Detention | F6: CITY OF GLENDALE | G6: CITY OF GLENDALE | P6: ATTORNEY GENERAL INVEST. | Q6: 1 | R6: 5 | S6: 5
A7: ATTORNEY GENERAL INVEST. | B7: ATTORNEY GENERAL INVEST. | C7: ATTORNEY GENERAL INVEST. | D7: COCONINO COUNTY - Detention | E7: COCONINO COUNTY - Detention | F7: CITY OF GLOBE | G7: CITY OF GLOBE | P7: AVONDALE FIRE DEPT. | Q7: 1 | R7: 2 | S7: 2
A8: AVONDALE FIRE DEPT. | B8: AVONDALE FIRE DEPT. | C8: AVONDALE FIRE DEPT. | D8: DEPARTMENT OF CORRECTIONS - Detention | E8: DEPARTMENT OF CORRECTIONS - Detention | F8: CITY OF MESA | G8: CITY OF MESA | P8: AVONDALE POLICE DEPT. | Q8: 1 | R8: 1 | S8: 1
A9: AVONDALE POLICE DEPT. | B9: AVONDALE POLICE DEPT. | C9: AVONDALE POLICE DEPT. | D9: DEPT OF JUVENILE CORRECTIONS - Detention | E9: DEPT OF JUVENILE CORRECTIONS - Detention | F9: CITY OF PEORIA | G9: CITY OF PEORIA | P9: AVRA VALLEY FIRE DISTRICT | Q9: 1 | R9: 4 | S9: 4
A10: AVRA VALLEY FIRE DISTRICT | B10: AVRA VALLEY FIRE DISTRICT | C10: AVRA VALLEY FIRE DISTRICT | D10: DEPARTMENT OF PUBLIC SAFETY - Dispatchers | E10: DEPARTMENT OF PUBLIC SAFETY - Dispatchers | F10: CITY OF PHOENIX | G10: CITY OF PHOENIX | P10: AZ DEPT. LIQ. LIC. & CONTROL INVEST. | Q10: 1 | R10: 5 | S10: 5
A11: AZ DEPT. LIQ. LIC. & CONTROL INVEST. | B11: AZ DEPT. LIQ. LIC. & CONTROL INVEST. | C11: AZ DEPT. LIQ. LIC. & CONTROL INVEST. | D11: DEPARTMENT OF PUBLIC SAFETY - Detention | E11: DEPARTMENT OF PUBLIC SAFETY - Detention | F11: CITY OF SAFFORD | G11: CITY OF SAFFORD | P11: AZ. STATE PARK RANGERS | Q11: 1 | R11: 5 | S11: 5
A12: AZ. STATE PARK RANGERS | B12: AZ. STATE PARK RANGERS | C12: AZ. STATE PARK RANGERS | D12: GILA COUNTY - Detention | E12: GILA COUNTY - Detention | F12: CITY OF SAN LUIS | G12: CITY OF SAN LUIS | P12: BENSON FIRE DEPT. | Q12: 1 | R12: 6 | S12: 6
A13: BENSON FIRE DEPT. | B13: BENSON FIRE DEPT. | C13: BENSON FIRE DEPT. | D13: GILA COUNTY - Dispatchers | E13: GILA COUNTY - Dispatchers | F13: CITY OF SCOTTSDALE | G13: CITY OF SCOTTSDALE | P13: BENSON POLICE DEPT. | Q13: 1 | R13: 5 | S13: 5
A14: BENSON POLICE DEPT. | B14: BENSON POLICE DEPT. | C14: BENSON POLICE DEPT. | D14: GRAHAM COUNTY - Detention | E14: GRAHAM COUNTY - Detention | F14: CITY OF SOUTH TUCSON | G14: CITY OF SOUTH TUCSON | P14: BISBEE FIRE DEPT. | Q14: 1 | R14: 6 | S14: 6
A15: BISBEE FIRE DEPT. | B15: BISBEE FIRE DEPT. | C15: BISBEE FIRE DEPT. | D15: GRAHAM COUNTY - Dispatchers | E15: GRAHAM COUNTY - Dispatchers | F15: CITY OF SURPRISE | G15: CITY OF SURPRISE | P15: BISBEE POLICE DEPT. | Q15: 1 | R15: 5 | S15: 5
A16: BISBEE POLICE DEPT. | B16: BISBEE POLICE DEPT. | C16: BISBEE POLICE DEPT. | D16: MARICOPA COUNTY - Detention | E16: MARICOPA COUNTY - Detention | F16: CITY OF TEMPE | G16: CITY OF TEMPE | P16: BLACK CANYON FIRE DISTRICT | Q16: 1 | R16: 6 | S16: 6
A17: BLACK CANYON FIRE DISTRICT | B17: BLACK CANYON FIRE DISTRICT | C17: BLACK CANYON FIRE DISTRICT | D17: MOHAVE COUNTY - Detention | E17: MOHAVE COUNTY - Detention | F17: CITY OF TOLLESON | G17: CITY OF TOLLESON | P17: BUCKEYE FIRE DEPT. | Q17: 1 | R17: 2 | S17: 2
A18: BUCKEYE FIRE DEPT. | B18: BUCKEYE FIRE DEPT. | C18: BUCKEYE FIRE DEPT. | D18: NAVAJO COUNTY - Detention | E18: NAVAJO COUNTY - Detention | F18: CITY OF TUCSON | G18: CITY OF TUCSON | P18: BUCKEYE POLICE DEPT. | Q18: 1 | R18: 1 | S18: 1
A19: BUCKEYE POLICE DEPT. | B19: BUCKEYE POLICE DEPT. | C19: BUCKEYE POLICE DEPT. | D19: PIMA COUNTY - Detention | E19: PIMA COUNTY - Detention | F19: CITY OF YUMA | G19: CITY OF YUMA | P19: BUCKEYE VALLEY FIRE DISTRICT | Q19: 1 | R19: 2 | S19: 2
A20: BUCKEYE VALLEY FIRE DISTRICT | B20: BUCKEYE VALLEY FIRE DISTRICT | C20: BUCKEYE VALLEY FIRE DISTRICT | D20: PINAL COUNTY - Detention | E20: PINAL COUNTY - Detention | F20: STATE OF ARIZONA | G20: STATE OF ARIZONA | P20: BUCKSKIN FIRE DISTRICT | Q20: 1 | R20: 6 | S20: 6
A21: BUCKSKIN FIRE DISTRICT | B21: BUCKSKIN FIRE DISTRICT | C21: BUCKSKIN FIRE DISTRICT | D21: PINAL COUNTY - Dispatchers | E21: PINAL COUNTY - Dispatchers | F21: TOWN OF GILBERT | G21: TOWN OF GILBERT | P21: BULLHEAD CITY FIRE DEPT. | Q21: 1 | R21: 6 | S21: 6
A22: BULLHEAD CITY FIRE DEPT. | B22: BULLHEAD CITY FIRE DEPT. | C22: BULLHEAD CITY FIRE DEPT. | D22: SANTA CRUZ COUNTY - Detention | E22: SANTA CRUZ COUNTY - Detention | F22: TOWN OF MARANA | G22: TOWN OF MARANA | P22: BULLHEAD CITY POLICE DEPT. | Q22: 1 | R22: 5 | S22: 5
A23: BULLHEAD CITY POLICE DEPT. | B23: BULLHEAD CITY POLICE DEPT. | C23: BULLHEAD CITY POLICE DEPT. | D23: TOWN OF MARANA - Dispatchers | E23: TOWN OF MARANA - Dispatchers | F23: TOWN OF SAHUARITA | G23: TOWN OF SAHUARITA | P23: CAMP VERDE MARSHALS | Q23: 1 | R23: 5 | S23: 5
A24: CAMP VERDE MARSHALS | B24: CAMP VERDE MARSHALS | C24: CAMP VERDE MARSHALS | D24: TOWN OF ORO VALLEY - Dispatchers | E24: TOWN OF ORO VALLEY - Dispatchers | F24: TOWN OF THATCHER | G24: TOWN OF THATCHER | P24: CASA GRANDE FIRE DEPT. | Q24: 1 | R24: 6 | S24: 6
A25: CASA GRANDE FIRE DEPT. | B25: CASA GRANDE FIRE DEPT. | C25: CASA GRANDE FIRE DEPT. | D25: TOWN OF WICKENBURG - Dispatchers | E25: TOWN OF WICKENBURG - Dispatchers | P25: CASA GRANDE POLICE DEPT. | Q25: 1 | R25: 5 | S25: 5
A26: CASA GRANDE POLICE DEPT. | B26: CASA GRANDE POLICE DEPT. | C26: CASA GRANDE POLICE DEPT. | D26: YAVAPAI COUNTY - Detention | E26: YAVAPAI COUNTY - Detention | P26: CAVE CREEK MARSHALS | Q26: 1 | R26: 1 | S26: 1
A27: CAVE CREEK MARSHALS | B27: CAVE CREEK MARSHALS | C27: CAVE CREEK MARSHALS | D27: YAVAPAI COUNTY - Dispatchers | E27: YAVAPAI COUNTY - Dispatchers | P27: CENTRAL AZ FIRE AND MEDICAL | Q27: 1 | R27: 6 | S27: 6
A28: CENTRAL AZ FIRE AND MEDICAL | B28: CENTRAL AZ FIRE AND MEDICAL | C28: CENTRAL AZ FIRE AND MEDICAL | D28: YUMA COUNTY - Detention | E28: YUMA COUNTY - Detention | P28: CENTRAL AZ. COLLEGE POLICE DEPT. | Q28: 1 | R28: 5 | S28: 5
A29: CENTRAL AZ. COLLEGE POLICE DEPT. | B29: CENTRAL AZ. COLLEGE POLICE DEPT. | C29: CENTRAL AZ. COLLEGE POLICE DEPT. | P29: CHANDLER FIRE DEPT. | Q29: 1 | R29: 2 | S29: 2
A30: CHANDLER FIRE DEPT. | B30: CHANDLER FIRE DEPT. | C30: CHANDLER FIRE DEPT. | P30: CHANDLER POLICE DEPT. | Q30: 1 | R30: 1 | S30: 1
A31: CHANDLER POLICE DEPT. | B31: CHANDLER POLICE DEPT. | C31: CHANDLER POLICE DEPT. | P31: CHINO VALLEY POLICE DEPT. | Q31: 1 | R31: 5 | S31: 5
A32: CHINO VALLEY POLICE DEPT. | B32: CHINO VALLEY POLICE DEPT. | C32: CHINO VALLEY POLICE DEPT. | P32: CHRISTOPHER-KOHL'S FIRE DISTRICT | Q32: 1 | R32: 6 | S32: 6
A33: CHRISTOPHER-KOHL'S FIRE DISTRICT | B33: CHRISTOPHER-KOHL'S FIRE DISTRICT | C33: CHRISTOPHER-KOHL'S FIRE DISTRICT | P33: CITY OF MARICOPA FIRE DEPT. | Q33: 1 | R33: 6 | S33: 6
A34: CITY OF MARICOPA FIRE DEPT. | B34: CITY OF MARICOPA FIRE DEPT. | C34: CITY OF MARICOPA FIRE DEPT. | P34: CITY OF MARICOPA POLICE DEPT. | Q34: 1 | R34: 5 | S34: 5
A35: CITY OF MARICOPA POLICE DEPT. | B35: CITY OF MARICOPA POLICE DEPT. | C35: CITY OF MARICOPA POLICE DEPT. | P35: CLARKDALE POLICE DEPT. | Q35: 1 | R35: 5 | S35: 5
A36: CLARKDALE POLICE DEPT. | B36: CLARKDALE POLICE DEPT. | C36: CLARKDALE POLICE DEPT. | P36: CLIFTON FIRE DEPT. | Q36: 1 | R36: 6 | S36: 6
A37: CLIFTON FIRE DEPT. | B37: CLIFTON FIRE DEPT. | C37: CLIFTON FIRE DEPT. | P37: CLIFTON POLICE DEPT. | Q37: 1 | R37: 5 | S37: 5
A38: CLIFTON POLICE DEPT. | B38: CLIFTON POLICE DEPT. | C38: CLIFTON POLICE DEPT. | P38: COCHISE COUNTY SHERIFF'S DEPT. | Q38: 1 | R38: 5 | S38: 5
A39: COCHISE COUNTY SHERIFF'S DEPT. | B39: COCHISE COUNTY SHERIFF'S DEPT. | C39: COCHISE COUNTY SHERIFF'S DEPT. | P39: COCONINO COUNTY SHERIFF'S DEPT. | Q39: 1 | R39: 5 | S39: 5
A40: COCONINO COUNTY SHERIFF'S DEPT. | B40: COCONINO COUNTY SHERIFF'S DEPT. | C40: COCONINO COUNTY SHERIFF'S DEPT. | P40: COOLIDGE FIRE DEPT. | Q40: 1 | R40: 6 | S40: 6
A41: COOLIDGE FIRE DEPT. | B41: COOLIDGE FIRE DEPT. | C41: COOLIDGE FIRE DEPT. | P41: COOLIDGE POLICE DEPT. | Q41: 1 | R41: 5 | S41: 5
A42: COOLIDGE POLICE DEPT. | B42: COOLIDGE POLICE DEPT. | C42: COOLIDGE POLICE DEPT. | P42: COPPER CANYON FIRE AND MEDICAL | Q42: 1 | R42: 6 | S42: 6
A43: COPPER CANYON FIRE AND MEDICAL | B43: COPPER CANYON FIRE AND MEDICAL | C43: COPPER CANYON FIRE AND MEDICAL | P43: CORONA DE TUCSON FIRE DISTRICT | Q43: 1 | R43: 4 | S43: 4
A44: CORONA DE TUCSON FIRE DISTRICT | B44: CORONA DE TUCSON FIRE DISTRICT | C44: CORONA DE TUCSON FIRE DISTRICT | P44: COTTONWOOD FIRE DEPT. | Q44: 1 | R44: 6 | S44: 6
A45: COTTONWOOD FIRE DEPT. | B45: COTTONWOOD FIRE DEPT. | C45: COTTONWOOD FIRE DEPT. | P45: COTTONWOOD POLICE DEPT. | Q45: 1 | R45: 5 | S45: 5
A46: COTTONWOOD POLICE DEPT. | B46: COTTONWOOD POLICE DEPT. | C46: COTTONWOOD POLICE DEPT. | P46: DAISY MOUNTAIN FIRE DISTRICT | Q46: 1 | R46: 2 | S46: 2
A47: DAISY MOUNTAIN FIRE DISTRICT | B47: DAISY MOUNTAIN FIRE DISTRICT | C47: DAISY MOUNTAIN FIRE DISTRICT | P47: DEPT. OF EMER & MILITARY AFF | Q47: 1 | R47: 5 | S47: 5
A48: DEPT. OF EMER & MILITARY AFF | B48: DEPT. OF EMER & MILITARY AFF | C48: DEPT. OF EMER & MILITARY AFF | P48: DEPT. OF PUBLIC SAFETY | Q48: 1 | R48: 1 | S48: 1
A49: DEPT. OF PUBLIC SAFETY | B49: DEPT. OF PUBLIC SAFETY | C49: DEPT. OF PUBLIC SAFETY | P49: DESERT HILLS FIRE DEPT. | Q49: 1 | R49: 2 | S49: 2
A50: DESERT HILLS FIRE DEPT. | B50: DESERT HILLS FIRE DEPT. | C50: DESERT HILLS FIRE DEPT. | P50: DOUGLAS FIRE DEPT. | Q50: 1 | R50: 6 | S50: 6
A51: DOUGLAS FIRE DEPT. | B51: DOUGLAS FIRE DEPT. | C51: DOUGLAS FIRE DEPT. | P51: DOUGLAS POLICE DEPT. | Q51: 1 | R51: 5 | S51: 5
A52: DOUGLAS POLICE DEPT. | B52: DOUGLAS POLICE DEPT. | C52: DOUGLAS POLICE DEPT. | P52: DREXEL HEIGHTS FIRE DISTRICT | Q52: 1 | R52: 4 | S52: 4
A53: DREXEL HEIGHTS FIRE DISTRICT | B53: DREXEL HEIGHTS FIRE DISTRICT | C53: DREXEL HEIGHTS FIRE DISTRICT | P53: EAGAR POLICE DEPT. | Q53: 1 | R53: 5 | S53: 5
A54: EAGAR POLICE DEPT. | B54: EAGAR POLICE DEPT. | C54: EAGAR POLICE DEPT. | P54: EL MIRAGE FIRE DEPT. | Q54: 1 | R54: 2 | S54: 2
A55: EL MIRAGE FIRE DEPT. | B55: EL MIRAGE FIRE DEPT. | C55: EL MIRAGE FIRE DEPT. | P55: EL MIRAGE POLICE DEPT. | Q55: 1 | R55: 1 | S55: 1
A56: EL MIRAGE POLICE DEPT. | B56: EL MIRAGE POLICE DEPT. | C56: EL MIRAGE POLICE DEPT. | P56: ELOY FIRE DISTRICT | Q56: 1 | R56: 6 | S56: 6
A57: ELOY FIRE DISTRICT | B57: ELOY FIRE DISTRICT | C57: ELOY FIRE DISTRICT | P57: ELOY POLICE DEPT. | Q57: 1 | R57: 5 | S57: 5
A58: ELOY POLICE DEPT. | B58: ELOY POLICE DEPT. | C58: ELOY POLICE DEPT. | P58: FLAGSTAFF FIRE DEPT. | Q58: 1 | R58: 6 | S58: 6
A59: FLAGSTAFF FIRE DEPT. | B59: FLAGSTAFF FIRE DEPT. | C59: FLAGSTAFF FIRE DEPT. | P59: FLAGSTAFF POLICE DEPT. | Q59: 1 | R59: 5 | S59: 5
A60: FLAGSTAFF POLICE DEPT. | B60: FLAGSTAFF POLICE DEPT. | C60: FLAGSTAFF POLICE DEPT. | P60: FLORENCE FIRE DEPT. | Q60: 1 | R60: 6 | S60: 6
A61: FLORENCE FIRE DEPT. | B61: FLORENCE FIRE DEPT. | C61: FLORENCE FIRE DEPT. | P61: FLORENCE POLICE DEPT. | Q61: 1 | R61: 5 | S61: 5
A62: FLORENCE POLICE DEPT. | B62: FLORENCE POLICE DEPT. | C62: FLORENCE POLICE DEPT. | P62: FORT MCDOWELL TRIBAL FIRE DEPT. | Q62: 1 | R62: 2 | S62: 2
A63: FORT MCDOWELL TRIBAL FIRE DEPT. | B63: FORT MCDOWELL TRIBAL FIRE DEPT. | C63: FORT MCDOWELL TRIBAL FIRE DEPT. | P63: FORT MCDOWELL TRIBAL POLICE DEPT. | Q63: 1 | R63: 1 | S63: 1
A64: FORT MCDOWELL TRIBAL POLICE DEPT. | B64: FORT MCDOWELL TRIBAL POLICE DEPT. | C64: FORT MCDOWELL TRIBAL POLICE DEPT. | P64: FORT MOJAVE MESA FIRE DISTRICT | Q64: 1 | R64: 6 | S64: 6
A65: FORT MOJAVE MESA FIRE DISTRICT | B65: FORT MOJAVE MESA FIRE DISTRICT | C65: FORT MOJAVE MESA FIRE DISTRICT | P65: FORT MOJAVE TRIBAL POLICE DEPT. | Q65: 1 | R65: 5 | S65: 5
A66: FORT MOJAVE TRIBAL POLICE DEPT. | B66: FORT MOJAVE TRIBAL POLICE DEPT. | C66: FORT MOJAVE TRIBAL POLICE DEPT. | P66: FREDONIA MARSHALS | Q66: 1 | R66: 5 | S66: 5
A67: FREDONIA MARSHALS | B67: FREDONIA MARSHALS | C67: FREDONIA MARSHALS | P67: FRY FIRE DISTRICT | Q67: 1 | R67: 6 | S67: 6
A68: FRY FIRE DISTRICT | B68: FRY FIRE DISTRICT | C68: FRY FIRE DISTRICT | P68: GAME AND FISH DEPT. | Q68: 1 | R68: 5 | S68: 5
A69: GAME AND FISH DEPT. | B69: GAME AND FISH DEPT. | C69: GAME AND FISH DEPT. | P69: GILA COUNTY SHERIFF'S DEPT. | Q69: 1 | R69: 5 | S69: 5
A70: GILA COUNTY SHERIFF'S DEPT. | B70: GILA COUNTY SHERIFF'S DEPT. | C70: GILA COUNTY SHERIFF'S DEPT. | P70: GILA RIVER FIRE DEPT. | Q70: 1 | R70: 6 | S70: 6
A71: GILA RIVER FIRE DEPT. | B71: GILA RIVER FIRE DEPT. | C71: GILA RIVER FIRE DEPT. | P71: GILA RIVER POLICE DEPT. | Q71: 1 | R71: 5 | S71: 5
A72: GILA RIVER POLICE DEPT. | B72: GILA RIVER POLICE DEPT. | C72: GILA RIVER POLICE DEPT. | P72: GILBERT FIRE DEPT. | Q72: 1 | R72: 2 | S72: 2
A73: GILBERT FIRE DEPT. | B73: GILBERT FIRE DEPT. | C73: GILBERT FIRE DEPT. | P73: GILBERT POLICE DEPT. | Q73: 1 | R73: 1 | S73: 1
A74: GILBERT POLICE DEPT. | B74: GILBERT POLICE DEPT. | C74: GILBERT POLICE DEPT. | P74: GLENDALE FIRE DEPT. | Q74: 1 | R74: 2 | S74: 2
A75: GLENDALE FIRE DEPT. | B75: GLENDALE FIRE DEPT. | C75: GLENDALE FIRE DEPT. | P75: GLENDALE POLICE DEPT. | Q75: 1 | R75: 1 | S75: 1
A76: GLENDALE POLICE DEPT. | B76: GLENDALE POLICE DEPT. | C76: GLENDALE POLICE DEPT. | P76: GLOBE FIRE DEPT. | Q76: 1 | R76: 6 | S76: 6
A77: GLOBE FIRE DEPT. | B77: GLOBE FIRE DEPT. | C77: GLOBE FIRE DEPT. | P77: GLOBE POLICE DEPT. | Q77: 1 | R77: 5 | S77: 5
A78: GLOBE POLICE DEPT. | B78: GLOBE POLICE DEPT. | C78: GLOBE POLICE DEPT. | P78: GOLDEN SHORES FIRE DISTRICT | Q78: 1 | R78: 6 | S78: 6
A79: GOLDEN SHORES FIRE DISTRICT | B79: GOLDEN SHORES FIRE DISTRICT | C79: GOLDEN SHORES FIRE DISTRICT | P79: GOLDEN VALLEY FIRE DISTRICT | Q79: 1 | R79: 6 | S79: 6
A80: GOLDEN VALLEY FIRE DISTRICT | B80: GOLDEN VALLEY FIRE DISTRICT | C80: GOLDEN VALLEY FIRE DISTRICT | P80: GOLDER RANCH FIRE DISTRICT | Q80: 1 | R80: 4 | S80: 4
A81: GOLDER RANCH FIRE DISTRICT | B81: GOLDER RANCH FIRE DISTRICT | C81: GOLDER RANCH FIRE DISTRICT | P81: GOODYEAR FIRE DEPT. | Q81: 1 | R81: 2 | S81: 2
A82: GOODYEAR FIRE DEPT. | B82: GOODYEAR FIRE DEPT. | C82: GOODYEAR FIRE DEPT. | P82: GOODYEAR POLICE DEPT. | Q82: 1 | R82: 1 | S82: 1
A83: GOODYEAR POLICE DEPT. | B83: GOODYEAR POLICE DEPT. | C83: GOODYEAR POLICE DEPT. | P83: GRAHAM COUNTY SHERIFF'S DEPT. | Q83: 1 | R83: 5 | S83: 5
A84: GRAHAM COUNTY SHERIFF'S DEPT. | B84: GRAHAM COUNTY SHERIFF'S DEPT. | C84: GRAHAM COUNTY SHERIFF'S DEPT. | P84: GREEN VALLEY FIRE DISTRICT | Q84: 1 | R84: 4 | S84: 4
A85: GREEN VALLEY FIRE DISTRICT | B85: GREEN VALLEY FIRE DISTRICT | C85: GREEN VALLEY FIRE DISTRICT | P85: GREENLEE COUNTY ATTORNEY INVEST. | Q85: 1 | R85: 5 | S85: 5
A86: GREENLEE COUNTY ATTORNEY INVEST. | B86: GREENLEE COUNTY ATTORNEY INVEST. | C86: GREENLEE COUNTY ATTORNEY INVEST. | P86: GREENLEE COUNTY SHERIFF'S DEPT. | Q86: 1 | R86: 5 | S86: 5
A87: GREENLEE COUNTY SHERIFF'S DEPT. | B87: GREENLEE COUNTY SHERIFF'S DEPT. | C87: GREENLEE COUNTY SHERIFF'S DEPT. | P87: GROOM CREEK FIRE DISTRICT | Q87: 1 | R87: 6 | S87: 6
A88: GROOM CREEK FIRE DISTRICT | B88: GROOM CREEK FIRE DISTRICT | C88: GROOM CREEK FIRE DISTRICT | P88: GUADALUPE FIRE DEPT. | Q88: 1 | R88: 2 | S88: 2
A89: GUADALUPE FIRE DEPT. | B89: GUADALUPE FIRE DEPT. | C89: GUADALUPE FIRE DEPT. | P89: HARQUAHALA FIRE DISTRICT | Q89: 1 | R89: 2 | S89: 2
A90: HARQUAHALA FIRE DISTRICT | B90: HARQUAHALA FIRE DISTRICT | C90: HARQUAHALA FIRE DISTRICT | P90: HAYDEN POLICE DEPT. | Q90: 1 | R90: 5 | S90: 5
A91: HAYDEN POLICE DEPT. | B91: HAYDEN POLICE DEPT. | C91: HAYDEN POLICE DEPT. | P91: HEBER-OVERGAARD FIRE DISTRICT | Q91: 1 | R91: 6 | S91: 6
A92: HEBER-OVERGAARD FIRE DISTRICT | B92: HEBER-OVERGAARD FIRE DISTRICT | C92: HEBER-OVERGAARD FIRE DISTRICT | P92: HELLSGATE FIRE DISTRICT | Q92: 1 | R92: 6 | S92: 6
A93: HELLSGATE FIRE DISTRICT | B93: HELLSGATE FIRE DISTRICT | C93: HELLSGATE FIRE DISTRICT | P93: HIGHLANDS FIRE DISTRICT | Q93: 1 | R93: 6 | S93: 6
A94: HIGHLANDS FIRE DISTRICT | B94: HIGHLANDS FIRE DISTRICT | C94: HIGHLANDS FIRE DISTRICT | P94: HOLBROOK POLICE DEPT. | Q94: 1 | R94: 5 | S94: 5
A95: HOLBROOK POLICE DEPT. | B95: HOLBROOK POLICE DEPT. | C95: HOLBROOK POLICE DEPT. | P95: HUACHUCA CITY POLICE DEPT. | Q95: 1 | R95: 5 | S95: 5
A96: HUACHUCA CITY POLICE DEPT. | B96: HUACHUCA CITY POLICE DEPT. | C96: HUACHUCA CITY POLICE DEPT. | P96: HUALAPAI INDIAN TRIBE POLICE DEPT. | Q96: 1 | R96: 5 | S96: 5
A97: HUALAPAI INDIAN TRIBE POLICE DEPT. | B97: HUALAPAI INDIAN TRIBE POLICE DEPT. | C97: HUALAPAI INDIAN TRIBE POLICE DEPT. | P97: JEROME POLICE DEPT. | Q97: 1 | R97: 5 | S97: 5
A98: JEROME POLICE DEPT. | B98: JEROME POLICE DEPT. | C98: JEROME POLICE DEPT. | P98: KEARNY POLICE DEPT. | Q98: 1 | R98: 5 | S98: 5
A99: KEARNY POLICE DEPT. | B99: KEARNY POLICE DEPT. | C99: KEARNY POLICE DEPT. | P99: KINGMAN FIRE DEPT. | Q99: 1 | R99: 6 | S99: 6
A100: KINGMAN FIRE DEPT. | B100: KINGMAN FIRE DEPT. | C100: KINGMAN FIRE DEPT. | P100: KINGMAN POLICE DEPT. | Q100: 1 | R100: 5 | S100: 5
A101: KINGMAN POLICE DEPT. | B101: KINGMAN POLICE DEPT. | C101: KINGMAN POLICE DEPT. | P101: LA PAZ COUNTY ATTORNEY INVEST. | Q101: 1 | R101: 5 | S101: 5
A102: LA PAZ COUNTY ATTORNEY INVEST. | B102: LA PAZ COUNTY ATTORNEY INVEST. | C102: LA PAZ COUNTY ATTORNEY INVEST. | P102: LA PAZ COUNTY SHERIFF'S DEPT. | Q102: 1 | R102: 5 | S102: 5
A103: LA PAZ COUNTY SHERIFF'S DEPT. | B103: LA PAZ COUNTY SHERIFF'S DEPT. | C103: LA PAZ COUNTY SHERIFF'S DEPT. | P103: LAKE HAVASU CITY FIRE DEPT. | Q103: 1 | R103: 6 | S103: 6
A104: LAKE HAVASU CITY FIRE DEPT. | B104: LAKE HAVASU CITY FIRE DEPT. | C104: LAKE HAVASU CITY FIRE DEPT. | P104: LAKE HAVASU CITY POLICE DEPT. | Q104: 1 | R104: 5 | S104: 5
A105: LAKE HAVASU CITY POLICE DEPT. | B105: LAKE HAVASU CITY POLICE DEPT. | C105: LAKE HAVASU CITY POLICE DEPT. | P105: LAKE MOHAVE RANCHOS FIRE DISTRICT | Q105: 1 | R105: 6 | S105: 6
A106: LAKE MOHAVE RANCHOS FIRE DISTRICT | B106: LAKE MOHAVE RANCHOS FIRE DISTRICT | C106: LAKE MOHAVE RANCHOS FIRE DISTRICT | P106: MAMMOTH POLICE DEPT. | Q106: 1 | R106: 5 | S106: 5
A107: MAMMOTH POLICE DEPT. | B107: MAMMOTH POLICE DEPT. | C107: MAMMOTH POLICE DEPT. | P107: MARANA POLICE DEPT. | Q107: 1 | R107: 3 | S107: 3
A108: MARANA POLICE DEPT. | B108: MARANA POLICE DEPT. | C108: MARANA POLICE DEPT. | P108: MARICOPA COUNTY ATTORNEY INVEST. | Q108: 1 | R108: 1 | S108: 1
A109: MARICOPA COUNTY ATTORNEY INVEST. | B109: MARICOPA COUNTY ATTORNEY INVEST. | C109: MARICOPA COUNTY ATTORNEY INVEST. | P109: MARICOPA COUNTY PARK RANGERS | Q109: 1 | R109: 1 | S109: 1
A110: MARICOPA COUNTY PARK RANGERS | B110: MARICOPA COUNTY PARK RANGERS | C110: MARICOPA COUNTY PARK RANGERS | P110: MARICOPA COUNTY SHERIFF'S OFFICE | Q110: 1 | R110: 1 | S110: 1
A111: MARICOPA COUNTY SHERIFF'S OFFICE | B111: MARICOPA COUNTY SHERIFF'S OFFICE | C111: MARICOPA COUNTY SHERIFF'S OFFICE | P111: MAYER FIRE DISTRICT | Q111: 1 | R111: 6 | S111: 6
A112: MAYER FIRE DISTRICT | B112: MAYER FIRE DISTRICT | C112: MAYER FIRE DISTRICT | P112: MESA FIRE DEPT. | Q112: 1 | R112: 2 | S112: 2
A113: MESA FIRE DEPT. | B113: MESA FIRE DEPT. | C113: MESA FIRE DEPT. | P113: MESA POLICE DEPT. | Q113: 1 | R113: 1 | S113: 1
A114: MESA POLICE DEPT. | B114: MESA POLICE DEPT. | C114: MESA POLICE DEPT. | P114: MIAMI POLICE DEPT. | Q114: 1 | R114: 5 | S114: 5
A115: MIAMI POLICE DEPT. | B115: MIAMI POLICE DEPT. | C115: MIAMI POLICE DEPT. | P115: MOHAVE COUNTY SHERIFF'S DEPT. | Q115: 1 | R115: 5 | S115: 5
A116: MOHAVE COUNTY SHERIFF'S DEPT. | B116: MOHAVE COUNTY SHERIFF'S DEPT. | C116: MOHAVE COUNTY SHERIFF'S DEPT. | P116: MOHAVE VALLEY FIRE DISTRICT | Q116: 1 | R116: 6 | S116: 6
A117: MOHAVE VALLEY FIRE DISTRICT | B117: MOHAVE VALLEY FIRE DISTRICT | C117: MOHAVE VALLEY FIRE DISTRICT | P117: MOUNT LEMMON FIRE DISTRICT | Q117: 1 | R117: 4 | S117: 4
A118: MOUNT LEMMON FIRE DISTRICT | B118: MOUNT LEMMON FIRE DISTRICT | C118: MOUNT LEMMON FIRE DISTRICT | P118: NAU CAMPUS POLICE | Q118: 1 | R118: 5 | S118: 5
A119: NAU CAMPUS POLICE | B119: NAU CAMPUS POLICE | C119: NAU CAMPUS POLICE | P119: NAVAJO COUNTY ATTORNEY INVEST. | Q119: 1 | R119: 5 | S119: 5
A120: NAVAJO COUNTY ATTORNEY INVEST. | B120: NAVAJO COUNTY ATTORNEY INVEST. | C120: NAVAJO COUNTY ATTORNEY INVEST. | P120: NAVAJO COUNTY SHERIFF'S DEPT. | Q120: 1 | R120: 5 | S120: 5
A121: NAVAJO COUNTY SHERIFF'S DEPT. | B121: NAVAJO COUNTY SHERIFF'S DEPT. | C121: NAVAJO COUNTY SHERIFF'S DEPT. | P121: NOGALES FIRE DEPT. | Q121: 1 | R121: 6 | S121: 6
A122: NOGALES FIRE DEPT. | B122: NOGALES FIRE DEPT. | C122: NOGALES FIRE DEPT. | P122: NOGALES POLICE DEPT. | Q122: 1 | R122: 5 | S122: 5
A123: NOGALES POLICE DEPT. | B123: NOGALES POLICE DEPT. | C123: NOGALES POLICE DEPT. | P123: NORTHERN AZ. CONSOLIDATED FIRE DISTRICT #1 | Q123: 1 | R123: 6 | S123: 6
A124: NORTHERN AZ. CONSOLIDATED FIRE DISTRICT #1 | B124: NORTHERN AZ. CONSOLIDATED FIRE DISTRICT #1 | C124: NORTHERN AZ. CONSOLIDATED FIRE DISTRICT #1 | P124: NORTHWEST FIRE DISTRICT | Q124: 1 | R124: 4 | S124: 4
A125: NORTHWEST FIRE DISTRICT | B125: NORTHWEST FIRE DISTRICT | C125: NORTHWEST FIRE DISTRICT | P125: ORACLE FIRE DISTRICT | Q125: 1 | R125: 6 | S125: 6
A126: ORACLE FIRE DISTRICT | B126: ORACLE FIRE DISTRICT | C126: ORACLE FIRE DISTRICT | P126: ORO VALLEY POLICE DEPT. | Q126: 1 | R126: 3 | S126: 3
A127: ORO VALLEY POLICE DEPT. | B127: ORO VALLEY POLICE DEPT. | C127: ORO VALLEY POLICE DEPT. | P127: PAGE FIRE DEPT. | Q127: 1 | R127: 6 | S127: 6
A128: PAGE FIRE DEPT. | B128: PAGE FIRE DEPT. | C128: PAGE FIRE DEPT. | P128: PAGE POLICE DEPT. | Q128: 1 | R128: 5 | S128: 5
A129: PAGE POLICE DEPT. | B129: PAGE POLICE DEPT. | C129: PAGE POLICE DEPT. | P129: PALOMINAS FIRE DISTRICT | Q129: 1 | R129: 6 | S129: 6
A130: PALOMINAS FIRE DISTRICT | B130: PALOMINAS FIRE DISTRICT | C130: PALOMINAS FIRE DISTRICT | P130: PARADISE VALLEY POLICE DEPT. | Q130: 1 | R130: 1 | S130: 1
A131: PARADISE VALLEY POLICE DEPT. | B131: PARADISE VALLEY POLICE DEPT. | C131: PARADISE VALLEY POLICE DEPT. | P131: PARKER POLICE DEPT. | Q131: 1 | R131: 5 | S131: 5
A132: PARKER POLICE DEPT. | B132: PARKER POLICE DEPT. | C132: PARKER POLICE DEPT. | P132: PASCUA YAQUI TRIBE FIRE DEPT. | Q132: 1 | R132: 4 | S132: 4
A133: PASCUA YAQUI TRIBE FIRE DEPT. | B133: PASCUA YAQUI TRIBE FIRE DEPT. | C133: PASCUA YAQUI TRIBE FIRE DEPT. | P133: PASCUA YAQUI TRIBE POLICE DEPT. | Q133: 1 | R133: 3 | S133: 3
A134: PASCUA YAQUI TRIBE POLICE DEPT. | B134: PASCUA YAQUI TRIBE POLICE DEPT. | C134: PASCUA YAQUI TRIBE POLICE DEPT. | P134: PATAGONIA MARSHALS | Q134: 1 | R134: 5 | S134: 5
A135: PATAGONIA MARSHALS | B135: PATAGONIA MARSHALS | C135: PATAGONIA MARSHALS | P135: PAYSON FIRE DEPT. | Q135: 1 | R135: 6 | S135: 6
A136: PAYSON FIRE DEPT. | B136: PAYSON FIRE DEPT. | C136: PAYSON FIRE DEPT. | P136: PAYSON POLICE DEPT. | Q136: 1 | R136: 5 | S136: 5
A137: PAYSON POLICE DEPT. | B137: PAYSON POLICE DEPT. | C137: PAYSON POLICE DEPT. | P137: PEORIA FIRE DEPT. | Q137: 1 | R137: 2 | S137: 2
A138: PEORIA FIRE DEPT. | B138: PEORIA FIRE DEPT. | C138: PEORIA FIRE DEPT. | P138: PEORIA POLICE DEPT. | Q138: 1 | R138: 1 | S138: 1
A139: PEORIA POLICE DEPT. | B139: PEORIA POLICE DEPT. | C139: PEORIA POLICE DEPT. | P139: PHOENIX FIRE DEPT. | Q139: 1 | R139: 2 | S139: 2
A140: PHOENIX FIRE DEPT. | B140: PHOENIX FIRE DEPT. | C140: PHOENIX FIRE DEPT. | P140: PHOENIX POLICE DEPT. | Q140: 1 | R140: 1 | S140: 1
A141: PHOENIX POLICE DEPT. | B141: PHOENIX POLICE DEPT. | C141: PHOENIX POLICE DEPT. | P141: PICTURE ROCKS FIRE DISTRICT | Q141: 1 | R141: 4 | S141: 4
A142: PICTURE ROCKS FIRE DISTRICT | B142: PICTURE ROCKS FIRE DISTRICT | C142: PICTURE ROCKS FIRE DISTRICT | P142: PIMA COUNTY ATTORNEY INVEST. | Q142: 1 | R142: 3 | S142: 3
A143: PIMA COUNTY ATTORNEY INVEST. | B143: PIMA COUNTY ATTORNEY INVEST. | C143: PIMA COUNTY ATTORNEY INVEST. | P143: PIMA COUNTY COMM. COLLEGE POLICE | Q143: 1 | R143: 3 | S143: 3
A144: PIMA COUNTY COMM. COLLEGE POLICE | B144: PIMA COUNTY COMM. COLLEGE POLICE | C144: PIMA COUNTY COMM. COLLEGE POLICE | P144: PIMA COUNTY SHERIFF'S DEPT. | Q144: 1 | R144: 3 | S144: 3
A145: PIMA COUNTY SHERIFF'S DEPT. | B145: PIMA COUNTY SHERIFF'S DEPT. | C145: PIMA COUNTY SHERIFF'S DEPT. | P145: PIMA POLICE DEPT. | Q145: 1 | R145: 5 | S145: 5
A146: PIMA POLICE DEPT. | B146: PIMA POLICE DEPT. | C146: PIMA POLICE DEPT. | P146: PINAL COUNTY SHERIFF'S DEPT. | Q146: 1 | R146: 5 | S146: 5
A147: PINAL COUNTY SHERIFF'S DEPT. | B147: PINAL COUNTY SHERIFF'S DEPT. | C147: PINAL COUNTY SHERIFF'S DEPT. | P147: PINE-STRAWBERRY FIRE DISTRICT | Q147: 1 | R147: 6 | S147: 6
A148: PINE-STRAWBERRY FIRE DISTRICT | B148: PINE-STRAWBERRY FIRE DISTRICT | C148: PINE-STRAWBERRY FIRE DISTRICT | P148: PINETOP FIRE DISTRICT | Q148: 1 | R148: 6 | S148: 6
A149: PINETOP FIRE DISTRICT | B149: PINETOP FIRE DISTRICT | C149: PINETOP FIRE DISTRICT | P149: PINETOP-LAKESIDE POLICE DEPT. | Q149: 1 | R149: 5 | S149: 5
A150: PINETOP-LAKESIDE POLICE DEPT. | B150: PINETOP-LAKESIDE POLICE DEPT. | C150: PINETOP-LAKESIDE POLICE DEPT. | P150: PINEWOOD FIRE DISTRICT | Q150: 1 | R150: 6 | S150: 6
A151: PINEWOOD FIRE DISTRICT | B151: PINEWOOD FIRE DISTRICT | C151: PINEWOOD FIRE DISTRICT | P151: PONDEROSA FIRE DISTRICT | Q151: 1 | R151: 6 | S151: 6
A152: PONDEROSA FIRE DISTRICT | B152: PONDEROSA FIRE DISTRICT | C152: PONDEROSA FIRE DISTRICT | P152: PRESCOTT FIRE DEPT. | Q152: 1 | R152: 6 | S152: 6
A153: PRESCOTT FIRE DEPT. | B153: PRESCOTT FIRE DEPT. | C153: PRESCOTT FIRE DEPT. | P153: PRESCOTT POLICE DEPT. | Q153: 1 | R153: 5 | S153: 5
A154: PRESCOTT POLICE DEPT. | B154: PRESCOTT POLICE DEPT. | C154: PRESCOTT POLICE DEPT. | P154: PRESCOTT VALLEY POLICE DEPT. | Q154: 1 | R154: 5 | S154: 5
A155: PRESCOTT VALLEY POLICE DEPT. | B155: PRESCOTT VALLEY POLICE DEPT. | C155: PRESCOTT VALLEY POLICE DEPT. | P155: QUARTZSITE FIRE DISTRICT | Q155: 1 | R155: 6 | S155: 6
A156: QUARTZSITE FIRE DISTRICT | B156: QUARTZSITE FIRE DISTRICT | C156: QUARTZSITE FIRE DISTRICT | P156: QUARTZSITE POLICE DEPT. | Q156: 1 | R156: 5 | S156: 5
A157: QUARTZSITE POLICE DEPT. | B157: QUARTZSITE POLICE DEPT. | C157: QUARTZSITE POLICE DEPT. | P157: QUEEN CREEK FIRE DEPT. | Q157: 1 | R157: 2 | S157: 2
A158: QUEEN CREEK FIRE DEPT. | B158: QUEEN CREEK FIRE DEPT. | C158: QUEEN CREEK FIRE DEPT. | P158: QUEEN VALLEY FIRE DISTRICT | Q158: 1 | R158: 6 | S158: 6
A159: QUEEN VALLEY FIRE DISTRICT | B159: QUEEN VALLEY FIRE DISTRICT | C159: QUEEN VALLEY FIRE DISTRICT | P159: RINCON VALLEY FIRE DISTRICT | Q159: 1 | R159: 4 | S159: 4
A160: RINCON VALLEY FIRE DISTRICT | B160: RINCON VALLEY FIRE DISTRICT | C160: RINCON VALLEY FIRE DISTRICT | P160: RIO RICO FIRE DISTRICT | Q160: 1 | R160: 6 | S160: 6
A161: RIO RICO FIRE DISTRICT | B161: RIO RICO FIRE DISTRICT | C161: RIO RICO FIRE DISTRICT | P161: RIO VERDE FIRE DISTRICT | Q161: 1 | R161: 2 | S161: 2
A162: RIO VERDE FIRE DISTRICT | B162: RIO VERDE FIRE DISTRICT | C162: RIO VERDE FIRE DISTRICT | P162: SAFFORD POLICE DEPT. | Q162: 1 | R162: 5 | S162: 5
A163: SAFFORD POLICE DEPT. | B163: SAFFORD POLICE DEPT. | C163: SAFFORD POLICE DEPT. | P163: SAHUARITA POLICE DEPT. | Q163: 1 | R163: 3 | S163: 3
A164: SAHUARITA POLICE DEPT. | B164: SAHUARITA POLICE DEPT. | C164: SAHUARITA POLICE DEPT. | P164: SALT RIVER PIMA-MARICOPA FIRE | Q164: 1 | R164: 2 | S164: 2
A165: SALT RIVER PIMA-MARICOPA FIRE | B165: SALT RIVER PIMA-MARICOPA FIRE | C165: SALT RIVER PIMA-MARICOPA FIRE | P165: SALT RIVER PIMA-MARICOPA POLICE | Q165: 1 | R165: 1 | S165: 1
A166: SALT RIVER PIMA-MARICOPA POLICE | B166: SALT RIVER PIMA-MARICOPA POLICE | C166: SALT RIVER PIMA-MARICOPA POLICE | P166: SAN CARLOS TRIBAL POLICE DEPT. | Q166: 1 | R166: 5 | S166: 5
A167: SAN CARLOS TRIBAL POLICE DEPT. | B167: SAN CARLOS TRIBAL POLICE DEPT. | C167: SAN CARLOS TRIBAL POLICE DEPT. | P167: SAN LUIS FIRE DEPT. | Q167: 1 | R167: 6 | S167: 6
A168: SAN LUIS FIRE DEPT. | B168: SAN LUIS FIRE DEPT. | C168: SAN LUIS FIRE DEPT. | P168: SAN LUIS POLICE DEPT. | Q168: 1 | R168: 5 | S168: 5
A169: SAN LUIS POLICE DEPT. | B169: SAN LUIS POLICE DEPT. | C169: SAN LUIS POLICE DEPT. | P169: SANTA CRUZ COUNTY SHERIFF'S DEPT. | Q169: 1 | R169: 5 | S169: 5
A170: SANTA CRUZ COUNTY SHERIFF'S DEPT. | B170: SANTA CRUZ COUNTY SHERIFF'S DEPT. | C170: SANTA CRUZ COUNTY SHERIFF'S DEPT. | P170: SCOTTSDALE FIRE DEPT. | Q170: 1 | R170: 2 | S170: 2
A171: SCOTTSDALE FIRE DEPT. | B171: SCOTTSDALE FIRE DEPT. | C171: SCOTTSDALE FIRE DEPT. | P171: SCOTTSDALE POLICE DEPT. | Q171: 1 | R171: 1 | S171: 1
A172: SCOTTSDALE POLICE DEPT. | B172: SCOTTSDALE POLICE DEPT. | C172: SCOTTSDALE POLICE DEPT. | P172: SEDONA FIRE DISTRICT | Q172: 1 | R172: 6 | S172: 6
A173: SEDONA FIRE DISTRICT | B173: SEDONA FIRE DISTRICT | C173: SEDONA FIRE DISTRICT | P173: SEDONA POLICE DEPT. | Q173: 1 | R173: 5 | S173: 5
A174: SEDONA POLICE DEPT. | B174: SEDONA POLICE DEPT. | C174: SEDONA POLICE DEPT. | P174: SHOW LOW POLICE DEPT. | Q174: 1 | R174: 5 | S174: 5
A175: SHOW LOW POLICE DEPT. | B175: SHOW LOW POLICE DEPT. | C175: SHOW LOW POLICE DEPT. | P175: SIERRA VISTA FIRE DEPT. | Q175: 1 | R175: 6 | S175: 6
A176: SIERRA VISTA FIRE DEPT. | B176: SIERRA VISTA FIRE DEPT. | C176: SIERRA VISTA FIRE DEPT. | P176: SIERRA VISTA POLICE DEPT. | Q176: 1 | R176: 5 | S176: 5
A177: SIERRA VISTA POLICE DEPT. | B177: SIERRA VISTA POLICE DEPT. | C177: SIERRA VISTA POLICE DEPT. | P177: SNOWFLAKE POLICE DEPT. | Q177: 1 | R177: 5 | S177: 5
A178: SNOWFLAKE POLICE DEPT. | B178: SNOWFLAKE POLICE DEPT. | C178: SNOWFLAKE POLICE DEPT. | P178: SOMERTON FIRE DEPT. | Q178: 1 | R178: 6 | S178: 6
A179: SOMERTON FIRE DEPT. | B179: SOMERTON FIRE DEPT. | C179: SOMERTON FIRE DEPT. | P179: SOMERTON POLICE DEPT. | Q179: 1 | R179: 5 | S179: 5
A180: SOMERTON POLICE DEPT. | B180: SOMERTON POLICE DEPT. | C180: SOMERTON POLICE DEPT. | P180: SONOITA ELGIN FIRE DEPT. | Q180: 1 | R180: 6 | S180: 6
A181: SONOITA ELGIN FIRE DEPT. | B181: SONOITA ELGIN FIRE DEPT. | C181: SONOITA ELGIN FIRE DEPT. | P181: SOUTH TUCSON FIRE DEPT. | Q181: 1 | R181: 4 | S181: 4
A182: SOUTH TUCSON FIRE DEPT. | B182: SOUTH TUCSON FIRE DEPT. | C182: SOUTH TUCSON FIRE DEPT. | P182: SOUTH TUCSON POLICE DEPT. | Q182: 1 | R182: 3 | S182: 3
A183: SOUTH TUCSON POLICE DEPT. | B183: SOUTH TUCSON POLICE DEPT. | C183: SOUTH TUCSON POLICE DEPT. | P183: SPRINGERVILLE POLICE DEPT. | Q183: 1 | R183: 5 | S183: 5
A184: SPRINGERVILLE POLICE DEPT. | B184: SPRINGERVILLE POLICE DEPT. | C184: SPRINGERVILLE POLICE DEPT. | P184: ST. JOHNS POLICE DEPT. | Q184: 1 | R184: 5 | S184: 5
A185: ST. JOHNS POLICE DEPT. | B185: ST. JOHNS POLICE DEPT. | C185: ST. JOHNS POLICE DEPT. | P185: SUMMIT FIRE DISTRICT | Q185: 1 | R185: 4 | S185: 4
A186: SUMMIT FIRE DISTRICT | B186: SUMMIT FIRE DISTRICT | C186: SUMMIT FIRE DISTRICT | P186: SUN CITY FIRE DISTRICT | Q186: 1 | R186: 2 | S186: 2
A187: SUN CITY FIRE DISTRICT | B187: SUN CITY FIRE DISTRICT | C187: SUN CITY FIRE DISTRICT | P187: SUN CITY WEST FIRE DISTRICT | Q187: 1 | R187: 2 | S187: 2
A188: SUN CITY WEST FIRE DISTRICT | B188: SUN CITY WEST FIRE DISTRICT | C188: SUN CITY WEST FIRE DISTRICT | P188: SUN LAKES FIRE DISTRICT | Q188: 1 | R188: 2 | S188: 2
A189: SUN LAKES FIRE DISTRICT | B189: SUN LAKES FIRE DISTRICT | C189: SUN LAKES FIRE DISTRICT | P189: SUN SITES PEARCE FIRE DISTRICT | Q189: 1 | R189: 6 | S189: 6
A190: SUN SITES PEARCE FIRE DISTRICT | B190: SUN SITES PEARCE FIRE DISTRICT | C190: SUN SITES PEARCE FIRE DISTRICT | P190: SUPERIOR POLICE DEPT. | Q190: 1 | R190: 5 | S190: 5
A191: SUPERIOR POLICE DEPT. | B191: SUPERIOR POLICE DEPT. | C191: SUPERIOR POLICE DEPT. | P191: SUPERSTITION FIRE AND MEDICAL DISTRICT | Q191: 1 | R191: 6 | S191: 6
A192: SUPERSTITION FIRE AND MEDICAL DISTRICT | B192: SUPERSTITION FIRE AND MEDICAL DISTRICT | C192: SUPERSTITION FIRE AND MEDICAL DISTRICT | P192: SURPRISE FIRE DEPT. | Q192: 1 | R192: 2 | S192: 2
A193: SURPRISE FIRE DEPT. | B193: SURPRISE FIRE DEPT. | C193: SURPRISE FIRE DEPT. | P193: SURPRISE POLICE DEPT. | Q193: 1 | R193: 1 | S193: 1
A194: SURPRISE POLICE DEPT. | B194: SURPRISE POLICE DEPT. | C194: SURPRISE POLICE DEPT. | P194: TEMPE FIRE DEPT. | Q194: 1 | R194: 2 | S194: 2
A195: TEMPE FIRE DEPT. | B195: TEMPE FIRE DEPT. | C195: TEMPE FIRE DEPT. | P195: TEMPE POLICE DEPT. | Q195: 1 | R195: 1 | S195: 1
A196: TEMPE POLICE DEPT. | B196: TEMPE POLICE DEPT. | C196: TEMPE POLICE DEPT. | P196: THATCHER POLICE DEPT. | Q196: 1 | R196: 5 | S196: 5
A197: THATCHER POLICE DEPT. | B197: THATCHER POLICE DEPT. | C197: THATCHER POLICE DEPT. | P197: THREE POINTS FIRE DISTRICT | Q197: 1 | R197: 4 | S197: 4
A198: THREE POINTS FIRE DISTRICT | B198: THREE POINTS FIRE DISTRICT | C198: THREE POINTS FIRE DISTRICT | P198: TIMBER MESA FIRE AND MEDICAL DIST | Q198: 1 | R198: 6 | S198: 6
A199: TIMBER MESA FIRE AND MEDICAL DIST | B199: TIMBER MESA FIRE AND MEDICAL DIST | C199: TIMBER MESA FIRE AND MEDICAL DIST | P199: TOHONO O'ODHAM NATION FIRE DEPT. | Q199: 1 | R199: 4 | S199: 4
A200: TOHONO O'ODHAM NATION FIRE DEPT. | B200: TOHONO O'ODHAM NATION FIRE DEPT. | C200: TOHONO O'ODHAM NATION FIRE DEPT. | P200: TOHONO O'ODHAM NATION POLICE DEPT. | Q200: 1 | R200: 3 | S200: 3
... 80 more rows

Sheet Before (hidden)
A1: WITH SPECIAL LANGUAGE - CELL D29, Life Ins Ben Factor (basis of 1.415(b)-1(c)(3)(A)) | J1: HARD CODED | K1: NOT USED | L1: REFERENCED IN | Q1: Interest Rate Method | R1: Sel&Ult
A2: Age | B2: Total | C2: Integer | D2: Fraction | F2: Retonly | G2: ='Service Purchase'!B20 ->  | J2: Int Rate | K2: ='Service Purchase'!B39 -> 0.0446 | O2: Mortality | R2: Segmented Interest Rates
A3: Ret | B3: ='Service Purchase'!B47 -> 118.3139 | C3: =INT(B3) -> 118 | D3: =B3-C3 -> 0.3139 | F3: Benonly | G3: =G2 ->  | H3: jspct | I3: =IF(AND('Service Purchase'!$N$2=3,'Service Purchase'!$O$2=2),0.5*0.85,IF('Service Purchase'!$N$2=1,0.8*0.85,IF('Service Purchase'!$N$2=3,0.75*0.85,0.8*0.8))) -> 0.68 | J3: Cola Rate, Type | K3: ='Service Purchase'!B55 -> 0.0175 | L3: C | N3: Table | O3: ='Service Purchase'!B44 -> 1 | P3: ='Service Purchase'!B45 -> 2 | R3: =K2 -> 0.0446 | S3: 999
A4: Ben | B4: ='Service Purchase'!B48 -> 118.3139 | C4: =INT(B4) -> 118 | D4: =B4-C4 -> 0.3139 | F4: Both | G4: =G2 ->  | J4: Timing | K4: 0 | N4: sf | O4: 0 | P4: 0 | R4: =K2 -> 0.0446 | S4: 999 | AO4: Interest Rate Factor Lookup
B5: Contingent Age | C5: 999 | D5: ='Service Purchase'!B50 -> 133.3139 | F5: Certain | G5: 0 | H5: Period | I5: 0 | J5: Fpay | K5: =IF(K4=1,13/24,IF(K4=2,11/24,0.5)) -> 0.5 | N5: mult | O5: ='Service Purchase'!C44 -> 1 | P5: ='Service Purchase'!C45 -> 1 | R5: =K2 -> 0.0446
A6: Present Value | C6: =C127 ->  | F6: LumpDB | G6: 0 | N6: Unisex | O6: ='Service Purchase'!B75 -> 0.9 | P6: Opposite | AE6: Unisex applied | AK6: Ret | AL6: Ben | AP6: Select and Ultimate Method | AR6: Segmented Rate Method
A7: Year | B7: Age | C7: Value | D7: = | E7: RetOnly$ | G7: Retonly | I7: Both | K7: + | L7: BenOnly$ | N7: Benonly | P7: Both | Q7: + | R7: Both$ | T7: Both | U7: + | V7: Cert$ | X7: Cert | Y7: + | Z7: Lump$ | AB7: Lump Prob | AE7: Ret Mort | AF7: Ben Mort | AG7: Interst by Yr | AH7: Esc | AI7: ESCACCUM | AK7: Qx | AL7: Qx | AN7: Year | AO7: Interst by Yr | AP7: Vboy | AQ7: Veoy | AR7: Vboy | AS7: Veoy
A8: 1 | B8: =B3 -> 118.3139 | C8: 0 | D8: + | E8: =IF(B8-0.0000001<$D$5-1,0,IF(AND($D$5-B8<1,$D$5-B8>0),AI8*$G$2*(1-($D$5-B8)),AI8*$G$2)) -> 0 | F8: *( | G8: =AB130 -> 0.7369327972 | H8: - | I8: =V378 -> 0.6078044227 | J8: ) | K8: + | L8: =$I$3*E8 -> 0 | M8: *( | N8: =AG253 -> 0.5915367126 | O8: - | P8: =V378 -> 0.6078044227 | Q8: )+ | R8: =E8 -> 0 | S8: * | T8: =V378 -> 0.6078044227 | U8: + | V8: =IF(AND(A8<$I$5+1,B8<$C$5),IF($C$5-B8<1,$G$5*AI8*(1-$D$3),$G$5*AI8),0) -> 0 | W8: * | X8: =L130*N130+X130*Z130 -> 0.9786521156 | Y8: + | Z8: =$G$6 -> 0 | AA8: * | AB8: =AC130 -> 0.4941017219 | AD8: 1 | AE8: =AK8*$O$6+(1-$O$6)*AL8 -> 0.0003740573382 | AF8: =IF($P$6="Opposite",AK8*(1-$O$6)+$O$6*AL8,AE8) -> 0.0003711318456 | AG8: =IF(A8<=$S$3,$R$3,IF(A8<=$S$4+$S$3,$R$4,$R$5)) -> 0.0446 | AH8: =IF(B8-0.000001<$D$5-1,0,IF(AND($D$5-B8<1,$D$5-B8>0),$K$3*(1-($D$5-B8)),$K$3)) -> 0 | AI8: 1 | AK8: =IF($AD8+O$4<120,IF($AD8+O$4>0,HLOOKUP($O$3,'Mortality Tables'!$B$1:$AA$151,$A8+1+O$4,FALSE)*O$5,0),1) -> 0.0003744230248 | AL8: =IF($AD8+P$4<120,IF($AD8+P$4>0,HLOOKUP($P$3,'Mortality Tables'!$B$1:$AA$151,$A8+1+P$4,FALSE)*P$5,0),1) -> 0.000370766159 | AN8: 1 | AO8: =IF(A8<=$S$3,$R$3,IF(A8<=$S$4+$S$3,$R$4,$R$5)) -> 0.0446 | AP8: 1 | AQ8: =1/(1+AO8) -> 0.9573042313 | AR8: =(1+AO8)^-(AD8-1) -> 1 | AS8: =(1+AO8)^(-AD8) -> 0.9573042313
A9: =A8+1 -> 2 | B9: =B8+1 -> 119.3139 | C9: =C8+E8*(G8-I8)+L8*(N8-P8)+R8*T8+V8*X8+Z8*AB8 -> 0 | D9: + | E9: =IF(B9-0.0000001<$D$5-1,0,IF(AND($D$5-B9<1,$D$5-B9>0),AI9*$G$2*(1-($D$5-B9)),AI9*$G$2)) -> 0 | F9: *( | G9: 0.313964195 | H9: - | I9: =V379 -> 0.1187459511 | J9: ) | K9: + | L9: 0 | M9: *( | N9: =AG254 -> 0.1456686958 | O9: - | P9: =V379 -> 0.1187459511 | Q9: )+ | R9: =E9 -> 0 | S9: * | T9: =V379 -> 0.1187459511 | U9: + | V9: =IF(AND(A9<$I$5+1,B9<$C$5),IF($C$5-B9<1,$G$5*AI9*(1-$D$3),$G$5*AI9),0) -> 0 | W9: * | X9: =X8/(1+AG9) -> 0.9368678113 | Y9: + | Z9: =$G$6 -> 0 | AA9: * | AB9: =AC131 -> 0.3061783 | AD9: =AD8+1 -> 2 | AE9: 0.0002518664512 | AF9: =IF($P$6="Opposite",AK9*(1-$O$6)+$O$6*AL9,AE9) -> 0.0002438490166 | AG9: =IF(A9<=$S$3,$R$3,IF(A9<=$S$4+$S$3,$R$4,$R$5)) -> 0.0446 | AH9: =IF(B9-0.000001<$D$5-1,0,IF(AND($D$5-B9<1,$D$5-B9>0),$K$3*(1-($D$5-B9)),$K$3)) -> 0 | AI9: =IF($L$3="S",AI8+AH8,AI8*(1+AH8)) -> 1 | AK9: =IF($AD9+O$4<120,IF($AD9+O$4>0,HLOOKUP($O$3,'Mortality Tables'!$B$1:$AA$151,$A9+1+O$4,FALSE)*O$5,0),1) -> 0.0002528686305 | AL9: =IF($AD9+P$4<120,IF($AD9+P$4>0,HLOOKUP($P$3,'Mortality Tables'!$B$1:$AA$151,$A9+1+P$4,FALSE)*P$5,0),1) -> 0.0002428468373 | AN9: =AN8+1 -> 2 | AO9: =IF(A9<=$S$3,$R$3,IF(A9<=$S$4+$S$3,$R$4,$R$5)) -> 0.0446 | AP9: =AQ8 -> 0.9573042313 | AQ9: =AQ8/(1+AO9) -> 0.9164313912 | AR9: =(1+AO9)^-(AD9-1) -> 0.9573042313 | AS9: =(1+AO9)^(-AD9) -> 0.9164313912
A10: =A9+1 -> 3 | B10: 120.3139 | C10: =C9+E9*(G9-I9)+L9*(N9-P9)+R9*T9+V9*X9+Z9*AB9 -> 0 | D10: + | E10: 0 | F10: *( | G10: 0.07703139779 | H10: - | I10: 0.01094152838 | J10: ) | K10: + | L10: 0 | M10: *( | N10: 0.007973712564 | O10: - | P10: 0.01094152838 | Q10: )+ | R10: 0 | S10: * | T10: 0.01094152838 | U10: + | V10: 0 | W10: * | X10: 0.8968675199 | Y10: + | Z10: 0 | AA10: * | AB10: 0.1507380051 | AD10: =AD9+1 -> 3 | AE10: 0.0002073407982 | AF10: =IF($P$6="Opposite",AK10*(1-$O$6)+$O$6*AL10,AE10) -> 0.0001838253472 | AG10: 0.0446 | AH10: 0 | AI10: 1 | AK10: =IF($AD10+O$4<120,IF($AD10+O$4>0,HLOOKUP($O$3,'Mortality Tables'!$B$1:$AA$151,$A10+1+O$4,FALSE)*O$5,0),1) -> 0.0002102802296 | AL10: =IF($AD10+P$4<120,IF($AD10+P$4>0,HLOOKUP($P$3,'Mortality Tables'!$B$1:$AA$151,$A10+1+P$4,FALSE)*P$5,0),1) -> 0.0001808859158 | AN10: =AN9+1 -> 3 | AO10: 0.0446 | AP10: =AQ9 -> 0.9164313912 | AQ10: =AQ9/(1+AO10) -> 0.8773036485 | AR10: 0.9164313912 | AS10: 0.8773036485
A11: 4 | B11: 121.3139 | C11: 0 | D11: + | E11: 0 | F11: *( | G11: 0 | H11: - | I11: 0 | J11: ) | K11: + | L11: 0 | M11: *( | N11: 0 | O11: - | P11: 0 | Q11: )+ | R11: 0 | S11: * | T11: 0 | U11: + | V11: 0 | W11: * | X11: 0.8585750717 | Y11: + | Z11: 0 | AA11: * | AB11: 0 | AD11: 4 | AE11: 0.0001605214111 | AF11: =IF($P$6="Opposite",AK11*(1-$O$6)+$O$6*AL11,AE11) -> 0.0001386484051 | AG11: 0.0446 | AH11: 0 | AI11: 1 | AK11: =IF($AD11+O$4<120,IF($AD11+O$4>0,HLOOKUP($O$3,'Mortality Tables'!$B$1:$AA$151,$A11+1+O$4,FALSE)*O$5,0),1) -> 0.0001632555369 | AL11: =IF($AD11+P$4<120,IF($AD11+P$4>0,HLOOKUP($P$3,'Mortality Tables'!$B$1:$AA$151,$A11+1+P$4,FALSE)*P$5,0),1) -> 0.0001359142793 | AN11: 4 | AO11: 0.0446 | AP11: 0.8773036485 | AQ11: 0.8398464948 | AR11: 0.8773036485 | AS11: 0.8398464948
A12: 5 | B12: 122.3139 | C12: 0 | D12: + | E12: 0 | F12: *( | G12: 0 | H12: - | I12: 0 | J12: ) | K12: + | L12: 0 | M12: *( | N12: 0 | O12: - | P12: 0 | Q12: )+ | R12: 0 | S12: * | T12: 0 | U12: + | V12: 0 | W12: * | X12: 0.821917549 | Y12: + | Z12: 0 | AA12: * | AB12: 0 | AD12: 5 | AE12: 0.0001415545782 | AF12: 0.0001241043785 | AG12: 0.0446 | AH12: 0 | AI12: 1 | AK12: =IF($AD12+O$4<120,IF($AD12+O$4>0,HLOOKUP($O$3,'Mortality Tables'!$B$1:$AA$151,$A12+1+O$4,FALSE)*O$5,0),1) -> 0.0001437358531 | AL12: =IF($AD12+P$4<120,IF($AD12+P$4>0,HLOOKUP($P$3,'Mortality Tables'!$B$1:$AA$151,$A12+1+P$4,FALSE)*P$5,0),1) -> 0.0001219231035 | AN12: 5 | AO12: 0.0446 | AP12: 0.8398464948 | AQ12: 0.8039886031 | AR12: 0.8398464948 | AS12: 0.8039886031
A13: 6 | B13: 123.3139 | C13: 0 | D13: + | E13: 0 | F13: *( | G13: 0 | H13: - | I13: 0 | J13: ) | K13: + | L13: 0 | M13: *( | N13: 0 | O13: - | P13: 0 | Q13: )+ | R13: 0 | S13: * | T13: 0 | U13: + | V13: 0 | W13: * | X13: 0.7868251474 | Y13: + | Z13: 0 | AA13: * | AB13: 0 | AD13: 6 | AE13: 0.0001270800926 | AF13: 0.0001145011447 | AG13: 0.0446 | AH13: 0 | AI13: 1 | AK13: =IF($AD13+O$4<120,IF($AD13+O$4>0,HLOOKUP($O$3,'Mortality Tables'!$B$1:$AA$151,$A13+1+O$4,FALSE)*O$5,0),1) -> 0.0001286524611 | AL13: =IF($AD13+P$4<120,IF($AD13+P$4>0,HLOOKUP($P$3,'Mortality Tables'!$B$1:$AA$151,$A13+1+P$4,FALSE)*P$5,0),1) -> 0.0001129287762 | AN13: 6 | AO13: 0.0446 | AP13: 0.8039886031 | AQ13: 0.7696616917 | AR13: 0.8039886031 | AS13: 0.7696616917
A14: 7 | B14: 124.3139 | C14: 0 | D14: + | E14: 0 | F14: *( | G14: 0 | H14: - | I14: 0 | J14: ) | K14: + | L14: 0 | M14: *( | N14: 0 | O14: - | P14: 0 | Q14: )+ | R14: 0 | S14: * | T14: 0 | U14: + | V14: 0 | W14: * | X14: 0.7532310429 | Y14: + | Z14: 0 | AA14: * | AB14: 0 | AD14: 7 | AE14: 0.0001127055441 | AF14: 0.0001057973436 | AG14: 0.0446 | AH14: 0 | AI14: 1 | AK14: =IF($AD14+O$4<120,IF($AD14+O$4>0,HLOOKUP($O$3,'Mortality Tables'!$B$1:$AA$151,$A14+1+O$4,FALSE)*O$5,0),1) -> 0.0001135690691 | AL14: =IF($AD14+P$4<120,IF($AD14+P$4>0,HLOOKUP($P$3,'Mortality Tables'!$B$1:$AA$151,$A14+1+P$4,FALSE)*P$5,0),1) -> 0.0001049338186 | AN14: 7 | AO14: 0.0446 | AP14: 0.7696616917 | AQ14: 0.7368003941 | AR14: 0.7696616917 | AS14: 0.7368003941
A15: 8 | B15: 125.3139 | C15: 0 | D15: + | E15: 0 | F15: *( | G15: 0 | H15: - | I15: 0 | J15: ) | K15: + | L15: 0 | M15: *( | N15: 0 | O15: - | P15: 0 | Q15: )+ | R15: 0 | S15: * | T15: 0 | U15: + | V15: 0 | W15: * | X15: 0.7210712645 | Y15: + | Z15: 0 | AA15: * | AB15: 0 | AD15: 8 | AE15: 9.593539797e-05 | AF15: 9.682736509e-05 | AG15: 0.0446 | AH15: 0 | AI15: 1 | AK15: =IF($AD15+O$4<120,IF($AD15+O$4>0,HLOOKUP($O$3,'Mortality Tables'!$B$1:$AA$151,$A15+1+O$4,FALSE)*O$5,0),1) -> 9.582390208e-05 | AL15: =IF($AD15+P$4<120,IF($AD15+P$4>0,HLOOKUP($P$3,'Mortality Tables'!$B$1:$AA$151,$A15+1+P$4,FALSE)*P$5,0),1) -> 9.693886097e-05 | AN15: 8 | AO15: 0.0446 | AP15: 0.7368003941 | AQ15: 0.7053421349 | AR15: 0.7368003941 | AS15: 0.7053421349
A16: 9 | B16: 126.3139 | C16: 0 | D16: + | E16: 0 | F16: *( | G16: 0 | H16: - | I16: 0 | J16: ) | K16: + | L16: 0 | M16: *( | N16: 0 | O16: - | P16: 0 | Q16: )+ | R16: 0 | S16: * | T16: 0 | U16: + | V16: 0 | W16: * | X16: 0.6902845726 | Y16: + | Z16: 0 | AA16: * | AB16: 0 | AD16: 9 | AE16: 7.926518884e-05 | AF16: 8.875681927e-05 | AG16: 0.0446 | AH16: 0 | AI16: 1 | AK16: =IF($AD16+O$4<120,IF($AD16+O$4>0,HLOOKUP($O$3,'Mortality Tables'!$B$1:$AA$151,$A16+1+O$4,FALSE)*O$5,0),1) -> 7.807873503e-05 | AL16: =IF($AD16+P$4<120,IF($AD16+P$4>0,HLOOKUP($P$3,'Mortality Tables'!$B$1:$AA$151,$A16+1+P$4,FALSE)*P$5,0),1) -> 8.994327307e-05 | AN16: 9 | AO16: 0.0446 | AP16: 0.7053421349 | AQ16: 0.6752270102 | AR16: 0.7053421349 | AS16: 0.6752270102
A17: 10 | B17: 127.3139 | C17: 0 | D17: + | E17: 0 | F17: *( | G17: 0 | H17: - | I17: 0 | J17: ) | K17: + | L17: 0 | M17: *( | N17: 0 | O17: - | P17: 0 | Q17: )+ | R17: 0 | S17: * | T17: 0 | U17: + | V17: 0 | W17: * | X17: 0.6608123421 | Y17: + | Z17: 0 | AA17: * | AB17: 0 | AD17: 10 | AE17: 6.748611177e-05 | AF17: 8.211806119e-05 | AG17: 0.0446 | AH17: 0 | AI17: 1 | AK17: =IF($AD17+O$4<120,IF($AD17+O$4>0,HLOOKUP($O$3,'Mortality Tables'!$B$1:$AA$151,$A17+1+O$4,FALSE)*O$5,0),1) -> 6.565711809e-05 | AL17: =IF($AD17+P$4<120,IF($AD17+P$4>0,HLOOKUP($P$3,'Mortality Tables'!$B$1:$AA$151,$A17+1+P$4,FALSE)*P$5,0),1) -> 8.394705486e-05 | AN17: 10 | AO17: 0.0446 | AP17: 0.6752270102 | AQ17: 0.646397674 | AR17: 0.6752270102 | AS17: 0.646397674
A18: 11 | B18: 128.3139 | C18: 0 | D18: + | E18: 0 | F18: *( | G18: 0 | H18: - | I18: 0 | J18: ) | K18: + | L18: 0 | M18: *( | N18: 0 | O18: - | P18: 0 | Q18: )+ | R18: 0 | S18: * | T18: 0 | U18: + | V18: 0 | W18: * | X18: 0.6325984512 | Y18: + | Z18: 0 | AA18: * | AB18: 0 | AD18: 11 | AE18: 7.088011578e-05 | AF18: 8.427182999e-05 | AG18: 0.0446 | AH18: 0 | AI18: 1 | AK18: =IF($AD18+O$4<120,IF($AD18+O$4>0,HLOOKUP($O$3,'Mortality Tables'!$B$1:$AA$151,$A18+1+O$4,FALSE)*O$5,0),1) -> 6.920615151e-05 | AL18: =IF($AD18+P$4<120,IF($AD18+P$4>0,HLOOKUP($P$3,'Mortality Tables'!$B$1:$AA$151,$A18+1+P$4,FALSE)*P$5,0),1) -> 8.594579427e-05 | AN18: 11 | AO18: 0.0446 | AP18: 0.646397674 | AQ18: 0.6187992284 | AR18: 0.646397674 | AS18: 0.6187992284
A19: 12 | B19: 129.3139 | C19: 0 | D19: + | E19: 0 | F19: *( | G19: 0 | H19: - | I19: 0 | J19: ) | K19: + | L19: 0 | M19: *( | N19: 0 | O19: - | P19: 0 | Q19: )+ | R19: 0 | S19: * | T19: 0 | U19: + | V19: 0 | W19: * | X19: 0.605589174 | Y19: + | Z19: 0 | AA19: * | AB19: 0 | AD19: 12 | AE19: 0.000102623469 | AF19: 0.00010023547 | AG19: 0.0446 | AH19: 0 | AI19: 1 | AK19: =IF($AD19+O$4<120,IF($AD19+O$4>0,HLOOKUP($O$3,'Mortality Tables'!$B$1:$AA$151,$A19+1+O$4,FALSE)*O$5,0),1) -> 0.0001029219689 | AL19: =IF($AD19+P$4<120,IF($AD19+P$4>0,HLOOKUP($P$3,'Mortality Tables'!$B$1:$AA$151,$A19+1+P$4,FALSE)*P$5,0),1) -> 9.993697008e-05 | AN19: 12 | AO19: 0.0446 | AP19: 0.6187992284 | AQ19: 0.5923791197 | AR19: 0.6187992284 | AS19: 0.5923791197
A20: 13 | B20: 130.3139 | C20: 0 | D20: + | E20: 0 | F20: *( | G20: 0 | H20: - | I20: 0 | J20: ) | K20: + | L20: 0 | M20: *( | N20: 0 | O20: - | P20: 0 | Q20: )+ | R20: 0 | S20: * | T20: 0 | U20: + | V20: 0 | W20: * | X20: 0.5797330787 | Y20: + | Z20: 0 | AA20: * | AB20: 0 | AD20: 13 | AE20: 0.0001334683528 | AF20: 0.0001152109514 | AG20: 0.0446 | AH20: 0 | AI20: 1 | AK20: =IF($AD20+O$4<120,IF($AD20+O$4>0,HLOOKUP($O$3,'Mortality Tables'!$B$1:$AA$151,$A20+1+O$4,FALSE)*O$5,0),1) -> 0.000135750528 | AL20: =IF($AD20+P$4<120,IF($AD20+P$4>0,HLOOKUP($P$3,'Mortality Tables'!$B$1:$AA$151,$A20+1+P$4,FALSE)*P$5,0),1) -> 0.0001129287762 | AN20: 13 | AO20: 0.0446 | AP20: 0.5923791197 | AQ20: 0.5670870378 | AR20: 0.5923791197 | AS20: 0.5670870378
A21: 14 | B21: 131.3139 | C21: 0 | D21: + | E21: 0 | F21: *( | G21: 0 | H21: - | I21: 0 | J21: ) | K21: + | L21: 0 | M21: *( | N21: 0 | O21: - | P21: 0 | Q21: )+ | R21: 0 | S21: * | T21: 0 | U21: + | V21: 0 | W21: * | X21: 0.5549809293 | Y21: + | Z21: 0 | AA21: * | AB21: 0 | AD21: 14 | AE21: 0.0001625162976 | AF21: 0.0001282101156 | AG21: 0.0446 | AH21: 0 | AI21: 1 | AK21: =IF($AD21+O$4<120,IF($AD21+O$4>0,HLOOKUP($O$3,'Mortality Tables'!$B$1:$AA$151,$A21+1+O$4,FALSE)*O$5,0),1) -> 0.0001668045703 | AL21: =IF($AD21+P$4<120,IF($AD21+P$4>0,HLOOKUP($P$3,'Mortality Tables'!$B$1:$AA$151,$A21+1+P$4,FALSE)*P$5,0),1) -> 0.0001239218429 | AN21: 14 | AO21: 0.0446 | AP21: 0.5670870378 | AQ21: 0.5428748208 | AR21: 0.5670870378 | AS21: 0.5428748208
A22: 15 | B22: 132.3139 | C22: 0 | D22: + | E22: 0 | F22: *( | G22: 0 | H22: - | I22: 0 | J22: ) | K22: + | L22: 0 | M22: *( | N22: 0 | O22: - | P22: 0 | Q22: )+ | R22: 0 | S22: * | T22: 0 | U22: + | V22: 0 | W22: * | X22: 0.5312855919 | Y22: + | Z22: 0 | AA22: * | AB22: 0 | AD22: 15 | AE22: 0.0001924627118 | AF22: 0.0001421974385 | AG22: 0.0446 | AH22: 0 | AI22: 1 | AK22: =IF($AD22+O$4<120,IF($AD22+O$4>0,HLOOKUP($O$3,'Mortality Tables'!$B$1:$AA$151,$A22+1+O$4,FALSE)*O$5,0),1) -> 0.000198745871 | AL22: =IF($AD22+P$4<120,IF($AD22+P$4>0,HLOOKUP($P$3,'Mortality Tables'!$B$1:$AA$151,$A22+1+P$4,FALSE)*P$5,0),1) -> 0.0001359142793 | AN22: 15 | AO22: 0.0446 | AP22: 0.5428748208 | AQ22: 0.519696363 | AR22: 0.5428748208 | AS22: 0.519696363 | AU22: =L22*(N22-P22) -> 0
A23: 16 | B23: 133.3139 | C23: 0 | D23: + | F23: *( | G23: 0 | H23: - | I23: 0 | J23: ) | K23: + | M23: *( | O23: - | P23: 0 | Q23: )+ | S23: * | T23: 0 | U23: + | V23: 0 | W23: * | X23: 0.5086019451 | Y23: + | Z23: 0 | AA23: * | AB23: 0 | AD23: 16 | AE23: 0.0002222092521 | AF23: 0.0001543858958 | AG23: 0.0446 | AH23: 0.0175 | AI23: 1 | AK23: =IF($AD23+O$4<120,IF($AD23+O$4>0,HLOOKUP($O$3,'Mortality Tables'!$B$1:$AA$151,$A23+1+O$4,FALSE)*O$5,0),1) -> 0.0002306871717 | AL23: =IF($AD23+P$4<120,IF($AD23+P$4>0,HLOOKUP($P$3,'Mortality Tables'!$B$1:$AA$151,$A23+1+P$4,FALSE)*P$5,0),1) -> 0.0001459079763 | AN23: 16 | AO23: 0.0446 | AP23: 0.519696363 | AQ23: 0.4975075273 | AR23: 0.519696363 | AS23: 0.4975075273 | AU23: =L23*(N23-P23) -> 
A24: 17 | B24: 134.3139 | D24: + | F24: *( | G24: 0 | H24: - | I24: 0 | J24: ) | K24: + | M24: *( | O24: - | P24: 0 | Q24: )+ | S24: * | T24: 0 | U24: + | V24: 0 | W24: * | X24: 0.4868867941 | Y24: + | Z24: 0 | AA24: * | AB24: 0 | AD24: 17 | AE24: 0.0002541515161 | AF24: 0.0001650416653 | AG24: 0.0446 | AH24: 0.0175 | AI24: 1.0175 | AK24: =IF($AD24+O$4<120,IF($AD24+O$4>0,HLOOKUP($O$3,'Mortality Tables'!$B$1:$AA$151,$A24+1+O$4,FALSE)*O$5,0),1) -> 0.0002652902474 | AL24: =IF($AD24+P$4<120,IF($AD24+P$4>0,HLOOKUP($P$3,'Mortality Tables'!$B$1:$AA$151,$A24+1+P$4,FALSE)*P$5,0),1) -> 0.0001539029339 | AN24: 17 | AO24: 0.0446 | AP24: 0.4975075273 | AQ24: 0.4762660609 | AR24: 0.4975075273 | AS24: 0.4762660609
A25: 18 | B25: 135.3139 | D25: + | F25: *( | G25: 0 | H25: - | I25: 0 | J25: ) | K25: + | M25: *( | O25: - | P25: 0 | Q25: )+ | S25: * | T25: 0 | U25: + | V25: 0 | W25: * | X25: 0.4660987882 | Y25: + | Z25: 0 | AA25: * | AB25: 0 | AD25: 18 | AE25: 0.00028609378 | AF25: 0.0001756974347 | AG25: 0.0446 | AH25: 0.0175 | AI25: 1.03530625 | AK25: =IF($AD25+O$4<120,IF($AD25+O$4>0,HLOOKUP($O$3,'Mortality Tables'!$B$1:$AA$151,$A25+1+O$4,FALSE)*O$5,0),1) -> 0.0002998933232 | AL25: =IF($AD25+P$4<120,IF($AD25+P$4>0,HLOOKUP($P$3,'Mortality Tables'!$B$1:$AA$151,$A25+1+P$4,FALSE)*P$5,0),1) -> 0.0001618978915 | AN25: 18 | AO25: 0.0446 | AP25: 0.4762660609 | AQ25: 0.4559315154 | AR25: 0.4762660609 | AS25: 0.4559315154
A26: =A25+1 -> 19 | B26: 136.3139 | D26: + | F26: *( | G26: 0 | H26: - | I26: 0 | J26: ) | K26: + | M26: *( | O26: - | P26: 0 | Q26: )+ | S26: * | T26: 0 | U26: + | V26: 0 | W26: * | X26: 0.4461983421 | Y26: + | Z26: 0 | AA26: * | AB26: 0 | AD26: 19 | AE26: 0.0003201318306 | AF26: 0.0001839210834 | AG26: 0.0446 | AH26: 0.0175 | AI26: 1.053424109 | AK26: =IF($AD26+O$4<120,IF($AD26+O$4>0,HLOOKUP($O$3,'Mortality Tables'!$B$1:$AA$151,$A26+1+O$4,FALSE)*O$5,0),1) -> 0.000337158174 | AL26: =IF($AD26+P$4<120,IF($AD26+P$4>0,HLOOKUP($P$3,'Mortality Tables'!$B$1:$AA$151,$A26+1+P$4,FALSE)*P$5,0),1) -> 0.00016689474 | AN26: 19 | AO26: 0.0446 | AP26: 0.4559315154 | AQ26: 0.4364651688 | AR26: 0.4559315154 | AS26: 0.4364651688
A27: 20 | B27: 137.3139 | D27: + | F27: *( | G27: 0 | H27: - | I27: 0 | J27: ) | K27: + | M27: *( | O27: - | P27: 0 | Q27: )+ | S27: * | T27: 0 | U27: + | V27: 0 | W27: * | X27: 0.4271475609 | Y27: + | Z27: 0 | AA27: * | AB27: 0 | AD27: 20 | AE27: 0.000353172438 | AF27: 0.0001973638769 | AG27: 0.0446 | AH27: 0.0175 | AI27: 1.071859031 | AK27: =IF($AD27+O$4<120,IF($AD27+O$4>0,HLOOKUP($O$3,'Mortality Tables'!$B$1:$AA$151,$A27+1+O$4,FALSE)*O$5,0),1) -> 0.0003726485081 | AL27: =IF($AD27+P$4<120,IF($AD27+P$4>0,HLOOKUP($P$3,'Mortality Tables'!$B$1:$AA$151,$A27+1+P$4,FALSE)*P$5,0),1) -> 0.0001778878067 | AN27: 20 | AO27: 0.0446 | AP27: 0.4364651688 | AQ27: 0.4178299529 | AR27: 0.4364651688 | AS27: 0.4178299529
A28: 21 | B28: 138.3139 | D28: + | F28: *( | G28: 0 | H28: - | I28: 0 | J28: ) | K28: + | M28: *( | O28: - | P28: 0 | Q28: )+ | S28: * | T28: 0 | U28: + | V28: 0 | W28: * | X28: 0.4089101674 | Y28: + | Z28: 0 | AA28: * | AB28: 0 | AD28: 21 | AE28: 0.0003849023069 | AF28: 0.0002170907375 | AG28: 0.0446 | AH28: 0.0175 | AI28: 1.090616564 | AK28: =IF($AD28+O$4<120,IF($AD28+O$4>0,HLOOKUP($O$3,'Mortality Tables'!$B$1:$AA$151,$A28+1+O$4,FALSE)*O$5,0),1) -> 0.0004058787531 | AL28: =IF($AD28+P$4<120,IF($AD28+P$4>0,HLOOKUP($P$3,'Mortality Tables'!$B$1:$AA$151,$A28+1+P$4,FALSE)*P$5,0),1) -> 0.0001961142913 | AN28: 21 | AO28: 0.0446 | AP28: 0.4178299529 | AQ28: 0.3999903819 | AR28: 0.4178299529 | AS28: 0.3999903819
A29: 22 | B29: 139.3139 | D29: + | F29: *( | G29: 0 | H29: - | I29: 0 | J29: ) | K29: + | M29: *( | O29: - | P29: 0 | Q29: )+ | S29: * | T29: 0 | U29: + | V29: 0 | W29: * | X29: 0.3914514335 | Y29: + | Z29: 0 | AA29: * | AB29: 0 | AD29: 22 | AE29: 0.0004172630847 | AF29: 0.0002422399389 | AG29: 0.0446 | AH29: 0.0175 | AI29: 1.109702354 | AK29: =IF($AD29+O$4<120,IF($AD29+O$4>0,HLOOKUP($O$3,'Mortality Tables'!$B$1:$AA$151,$A29+1+O$4,FALSE)*O$5,0),1) -> 0.0004391409779 | AL29: =IF($AD29+P$4<120,IF($AD29+P$4>0,HLOOKUP($P$3,'Mortality Tables'!$B$1:$AA$151,$A29+1+P$4,FALSE)*P$5,0),1) -> 0.0002203620456 | AN29: 22 | AO29: 0.0446 | AP29: 0.3999903819 | AQ29: 0.3829124851 | AR29: 0.3999903819 | AS29: 0.3829124851
A30: 23 | B30: 140.3139 | D30: + | F30: *( | G30: 0 | H30: - | I30: 0 | J30: ) | K30: + | M30: *( | O30: - | P30: 0 | Q30: )+ | S30: * | T30: 0 | U30: + | V30: 0 | W30: * | X30: 0.3747381136 | Y30: + | Z30: 0 | AA30: * | AB30: 0 | AD30: 23 | AE30: 0.0004511504946 | AF30: 0.0002729520241 | AG30: 0.0446 | AH30: 0.0175 | AI30: 1.129122145 | AK30: =IF($AD30+O$4<120,IF($AD30+O$4>0,HLOOKUP($O$3,'Mortality Tables'!$B$1:$AA$151,$A30+1+O$4,FALSE)*O$5,0),1) -> 0.0004734253034 | AL30: =IF($AD30+P$4<120,IF($AD30+P$4>0,HLOOKUP($P$3,'Mortality Tables'!$B$1:$AA$151,$A30+1+P$4,FALSE)*P$5,0),1) -> 0.0002506772153 | AN30: 23 | AO30: 0.0446 | AP30: 0.3829124851 | AQ30: 0.3665637422 | AR30: 0.3829124851 | AS30: 0.3665637422
A31: 24 | B31: 141.3139 | D31: + | F31: *( | G31: 0 | H31: - | I31: 0 | J31: ) | K31: + | M31: *( | O31: - | P31: 0 | Q31: )+ | S31: * | T31: 0 | U31: + | V31: 0 | W31: * | X31: 0.3587383818 | Y31: + | Z31: 0 | AA31: * | AB31: 0 | AD31: 24 | AE31: 0.0004857053008 | AF31: 0.0003090906314 | AG31: 0.0446 | AH31: 0.0175 | AI31: 1.148881783 | AK31: =IF($AD31+O$4<120,IF($AD31+O$4>0,HLOOKUP($O$3,'Mortality Tables'!$B$1:$AA$151,$A31+1+O$4,FALSE)*O$5,0),1) -> 0.0005077821345 | AL31: =IF($AD31+P$4<120,IF($AD31+P$4>0,HLOOKUP($P$3,'Mortality Tables'!$B$1:$AA$151,$A31+1+P$4,FALSE)*P$5,0),1) -> 0.0002870137977 | AN31: 24 | AO31: 0.0446 | AP31: 0.3665637422 | AQ31: 0.3509130214 | AR31: 0.3665637422 | AS31: 0.3509130214
A32: 25 | B32: 142.3139 | D32: + | F32: *( | G32: 0 | H32: - | I32: 0 | J32: ) | K32: + | M32: *( | O32: - | P32: 0 | Q32: )+ | S32: * | T32: 0 | U32: + | V32: 0 | W32: * | X32: 0.3434217708 | Y32: + | Z32: 0 | AA32: * | AB32: 0 | AD32: 25 | AE32: 0.0005217736814 | AF32: 0.000350807733 | AG32: 0.0446 | AH32: 0.0175 | AI32: 1.168987214 | AK32: =IF($AD32+O$4<120,IF($AD32+O$4>0,HLOOKUP($O$3,'Mortality Tables'!$B$1:$AA$151,$A32+1+O$4,FALSE)*O$5,0),1) -> 0.000543144425 | AL32: =IF($AD32+P$4<120,IF($AD32+P$4>0,HLOOKUP($P$3,'Mortality Tables'!$B$1:$AA$151,$A32+1+P$4,FALSE)*P$5,0),1) -> 0.0003294369894 | AN32: 25 | AO32: 0.0446 | AP32: 0.3509130214 | AQ32: 0.3359305202 | AR32: 0.3509130214 | AS32: 0.3359305202
A33: 26 | B33: 143.3139 | D33: + | F33: *( | G33: 0 | H33: - | I33: 0 | J33: ) | K33: + | M33: *( | O33: - | P33: 0 | Q33: )+ | S33: * | T33: 0 | U33: + | V33: 0 | W33: * | X33: 0.3287591143 | Y33: + | Z33: 0 | AA33: * | AB33: 0 | AD33: 26 | AE33: 0.0005599456638 | AF33: 0.0003972380668 | AG33: 0.0446 | AH33: 0.0175 | AI33: 1.18944449 | AK33: =IF($AD33+O$4<120,IF($AD33+O$4>0,HLOOKUP($O$3,'Mortality Tables'!$B$1:$AA$151,$A33+1+O$4,FALSE)*O$5,0),1) -> 0.0005802841135 | AL33: =IF($AD33+P$4<120,IF($AD33+P$4>0,HLOOKUP($P$3,'Mortality Tables'!$B$1:$AA$151,$A33+1+P$4,FALSE)*P$5,0),1) -> 0.0003768996172 | AN33: 26 | AO33: 0.0446 | AP33: 0.3359305202 | AQ33: 0.3215877084 | AR33: 0.3359305202 | AS33: 0.3215877084
A34: 27 | B34: 144.3139 | D34: + | F34: *( | G34: 0 | H34: - | I34: 0 | J34: ) | K34: + | M34: *( | O34: - | P34: 0 | Q34: )+ | S34: * | T34: 0 | U34: + | V34: 0 | W34: * | X34: 0.3147224912 | Y34: + | Z34: 0 | AA34: * | AB34: 0 | AD34: 27 | AE34: 0.0006017543217 | AF34: 0.0004490907896 | AG34: 0.0446 | AH34: 0.0175 | AI34: 1.210259769 | AK34: =IF($AD34+O$4<120,IF($AD34+O$4>0,HLOOKUP($O$3,'Mortality Tables'!$B$1:$AA$151,$A34+1+O$4,FALSE)*O$5,0),1) -> 0.0006208372632 | AL34: =IF($AD34+P$4<120,IF($AD34+P$4>0,HLOOKUP($P$3,'Mortality Tables'!$B$1:$AA$151,$A34+1+P$4,FALSE)*P$5,0),1) -> 0.0004300078481 | AN34: 27 | AO34: 0.0446 | AP34: 0.3215877084 | AQ34: 0.307857274 | AR34: 0.3215877084 | AS34: 0.307857274
A35: 28 | B35: 145.3139 | D35: + | F35: *( | G35: 0 | H35: - | I35: 0 | J35: ) | K35: + | M35: *( | O35: - | P35: 0 | Q35: )+ | S35: * | T35: 0 | U35: + | V35: 0 | W35: * | X35: 0.3012851725 | Y35: + | Z35: 0 | AA35: * | AB35: 0 | AD35: 28 | AE35: 0.000647038274 | AF35: 0.0005045637915 | AG35: 0.0446 | AH35: 0.0175 | AI35: 1.231439315 | AK35: =IF($AD35+O$4<120,IF($AD35+O$4>0,HLOOKUP($O$3,'Mortality Tables'!$B$1:$AA$151,$A35+1+O$4,FALSE)*O$5,0),1) -> 0.0006648475844 | AL35: =IF($AD35+P$4<120,IF($AD35+P$4>0,HLOOKUP($P$3,'Mortality Tables'!$B$1:$AA$151,$A35+1+P$4,FALSE)*P$5,0),1) -> 0.0004867544811 | AN35: 28 | AO35: 0.0446 | AP35: 0.307857274 | AQ35: 0.294713071 | AR35: 0.307857274 | AS35: 0.294713071
A36: 29 | B36: 146.3139 | D36: + | F36: *( | G36: 0 | H36: - | I36: 0 | J36: ) | K36: + | M36: *( | O36: - | P36: 0 | Q36: )+ | S36: * | T36: 0 | U36: + | V36: 0 | W36: * | X36: 0.2884215705 | Y36: + | Z36: 0 | AA36: * | AB36: 0 | AD36: 29 | AE36: 0.0006971153522 | AF36: 0.0005667292485 | AG36: 0.0446 | AH36: 0.0175 | AI36: 1.252989503 | AK36: =IF($AD36+O$4<120,IF($AD36+O$4>0,HLOOKUP($O$3,'Mortality Tables'!$B$1:$AA$151,$A36+1+O$4,FALSE)*O$5,0),1) -> 0.0007134136152 | AL36: =IF($AD36+P$4<120,IF($AD36+P$4>0,HLOOKUP($P$3,'Mortality Tables'!$B$1:$AA$151,$A36+1+P$4,FALSE)*P$5,0),1) -> 0.0005504309855 | AN36: 29 | AO36: 0.0446 | AP36: 0.294713071 | AQ36: 0.2821300699 | AR36: 0.294713071 | AS36: 0.2821300699
A37: 30 | B37: 147.3139 | D37: + | F37: *( | G37: 0 | H37: - | I37: 0 | J37: ) | K37: + | M37: *( | O37: - | P37: 0 | Q37: )+ | S37: * | T37: 0 | U37: + | V37: 0 | W37: * | X37: 0.2761071898 | Y37: + | Z37: 0 | AA37: * | AB37: 0 | AD37: 30 | AE37: 0.0007517882457 | AF37: 0.0006346401451 | AG37: 0.0446 | AH37: 0.0175 | AI37: 1.274916819 | AK37: =IF($AD37+O$4<120,IF($AD37+O$4>0,HLOOKUP($O$3,'Mortality Tables'!$B$1:$AA$151,$A37+1+O$4,FALSE)*O$5,0),1) -> 0.0007664317583 | AL37: =IF($AD37+P$4<120,IF($AD37+P$4>0,HLOOKUP($P$3,'Mortality Tables'!$B$1:$AA$151,$A37+1+P$4,FALSE)*P$5,0),1) -> 0.0006199966325 | AN37: 30 | AO37: 0.0446 | AP37: 0.2821300699 | AQ37: 0.2700843097 | AR37: 0.2821300699 | AS37: 0.2700843097
A38: 31 | B38: 148.3139 | D38: + | F38: *( | G38: 0 | H38: - | I38: 0 | J38: ) | K38: + | M38: *( | O38: - | P38: 0 | Q38: )+ | S38: * | T38: 0 | U38: + | V38: 0 | W38: * | X38: 0.2643185811 | Y38: + | Z38: 0 | AA38: * | AB38: 0 | AD38: 31 | AE38: 0.0008138117612 | AF38: 0.0007095774152 | AG38: 0.0446 | AH38: 0.0175 | AI38: 1.297227864 | AK38: =IF($AD38+O$4<120,IF($AD38+O$4>0,HLOOKUP($O$3,'Mortality Tables'!$B$1:$AA$151,$A38+1+O$4,FALSE)*O$5,0),1) -> 0.0008268410544 | AL38: =IF($AD38+P$4<120,IF($AD38+P$4>0,HLOOKUP($P$3,'Mortality Tables'!$B$1:$AA$151,$A38+1+P$4,FALSE)*P$5,0),1) -> 0.0006965481219 | AN38: 31 | AO38: 0.0446 | AP38: 0.2700843097 | AQ38: 0.2585528525 | AR38: 0.2700843097 | AS38: 0.2585528525
A39: 32 | B39: 149.3139 | D39: + | F39: *( | G39: 0 | H39: - | I39: 0 | J39: ) | K39: + | M39: *( | O39: - | P39: 0 | Q39: )+ | S39: * | T39: 0 | U39: + | V39: 0 | W39: * | X39: 0.2530332961 | Y39: + | Z39: 0 | AA39: * | AB39: 0 | AD39: 32 | AE39: 0.0008829525799 | AF39: 0.0007897934829 | AG39: 0.0446 | AH39: 0.0175 | AI39: 1.319929351 | AK39: =IF($AD39+O$4<120,IF($AD39+O$4>0,HLOOKUP($O$3,'Mortality Tables'!$B$1:$AA$151,$A39+1+O$4,FALSE)*O$5,0),1) -> 0.000894597467 | AL39: =IF($AD39+P$4<120,IF($AD39+P$4>0,HLOOKUP($P$3,'Mortality Tables'!$B$1:$AA$151,$A39+1+P$4,FALSE)*P$5,0),1) -> 0.0007781485958 | AN39: 32 | AO39: 0.0446 | AP39: 0.2585528525 | AQ39: 0.2475137397 | AR39: 0.2585528525 | AS39: 0.2475137397
A40: 33 | B40: 150.3139 | D40: + | F40: *( | G40: 0 | H40: - | I40: 0 | J40: ) | K40: + | M40: *( | O40: - | P40: 0 | Q40: )+ | S40: * | T40: 0 | U40: + | V40: 0 | W40: * | X40: 0.242229845 | Y40: + | Z40: 0 | AA40: * | AB40: 0 | AD40: 33 | AE40: 0.0009596879468 | AF40: 0.0008768963866 | AG40: 0.0446 | AH40: 0.0175 | AI40: 1.343028115 | AK40: =IF($AD40+O$4<120,IF($AD40+O$4>0,HLOOKUP($O$3,'Mortality Tables'!$B$1:$AA$151,$A40+1+O$4,FALSE)*O$5,0),1) -> 0.0009700368918 | AL40: =IF($AD40+P$4<120,IF($AD40+P$4>0,HLOOKUP($P$3,'Mortality Tables'!$B$1:$AA$151,$A40+1+P$4,FALSE)*P$5,0),1) -> 0.0008665474416 | AN40: 33 | AO40: 0.0446 | AP40: 0.2475137397 | AQ40: 0.2369459503 | AR40: 0.2475137397 | AS40: 0.2369459503
A41: 34 | B41: 151.3139 | D41: + | F41: *( | G41: 0 | H41: - | I41: 0 | J41: ) | K41: + | M41: *( | O41: - | P41: 0 | Q41: )+ | S41: * | T41: 0 | U41: + | V41: 0 | W41: * | X41: 0.2318876556 | Y41: + | Z41: 0 | AA41: * | AB41: 0 | AD41: 34 | AE41: 0.001043643942 | AF41: 0.0009700171191 | AG41: 0.0446 | AH41: 0.0175 | AI41: 1.366531107 | AK41: =IF($AD41+O$4<120,IF($AD41+O$4>0,HLOOKUP($O$3,'Mortality Tables'!$B$1:$AA$151,$A41+1+O$4,FALSE)*O$5,0),1) -> 0.001052847295 | AL41: =IF($AD41+P$4<120,IF($AD41+P$4>0,HLOOKUP($P$3,'Mortality Tables'!$B$1:$AA$151,$A41+1+P$4,FALSE)*P$5,0),1) -> 0.0009608137662 | AN41: 34 | AO41: 0.0446 | AP41: 0.2369459503 | AQ41: 0.2268293608 | AR41: 0.2369459503 | AS41: 0.2268293608
A42: =A41+1 -> 35 | B42: 152.3139 | D42: + | F42: *( | G42: 0 | H42: - | I42: 0 | J42: ) | K42: + | M42: *( | O42: - | P42: 0 | Q42: )+ | S42: * | T42: 0 | U42: + | V42: 0 | W42: * | X42: 0.2219870338 | Y42: + | Z42: 0 | AA42: * | AB42: 0 | AD42: 35 | AE42: 0.001136383064 | AF42: 0.001069360446 | AG42: 0.0446 | AH42: 0.0175 | AI42: 1.390445401 | AK42: =IF($AD42+O$4<120,IF($AD42+O$4>0,HLOOKUP($O$3,'Mortality Tables'!$B$1:$AA$151,$A42+1+O$4,FALSE)*O$5,0),1) -> 0.001144760891 | AL42: =IF($AD42+P$4<120,IF($AD42+P$4>0,HLOOKUP($P$3,'Mortality Tables'!$B$1:$AA$151,$A42+1+P$4,FALSE)*P$5,0),1) -> 0.001060982619 | AN42: 35 | AO42: 0.0446 | AP42: 0.2268293608 | AQ42: 0.2171447069 | AR42: 0.2268293608 | AS42: 0.2171447069
A43: 36 | B43: 153.3139 | D43: + | F43: *( | G43: 0 | H43: - | I43: 0 | J43: ) | K43: + | M43: *( | O43: - | P43: 0 | Q43: )+ | S43: * | T43: 0 | U43: + | V43: 0 | W43: * | X43: 0.2125091268 | Y43: + | Z43: 0 | AA43: * | AB43: 0 | AD43: 36 | AE43: 0.001238955474 | AF43: 0.001175373965 | AG43: 0.0446 | AH43: 0.0175 | AI43: 1.414778196 | AK43: =IF($AD43+O$4<120,IF($AD43+O$4>0,HLOOKUP($O$3,'Mortality Tables'!$B$1:$AA$151,$A43+1+O$4,FALSE)*O$5,0),1) -> 0.001246903162 | AL43: =IF($AD43+P$4<120,IF($AD43+P$4>0,HLOOKUP($P$3,'Mortality Tables'!$B$1:$AA$151,$A43+1+P$4,FALSE)*P$5,0),1) -> 0.001167426276 | AN43: 36 | AO43: 0.0446 | AP43: 0.2171447069 | AQ43: 0.2078735467 | AR43: 0.2171447069 | AS43: 0.2078735467
A44: 37 | B44: 154.3139 | D44: + | F44: *( | G44: 0 | H44: - | I44: 0 | J44: ) | K44: + | M44: *( | O44: - | P44: 0 | Q44: )+ | S44: * | T44: 0 | U44: + | V44: 0 | W44: * | X44: 0.2034358863 | Y44: + | Z44: 0 | AA44: * | AB44: 0 | AD44: 37 | AE44: 0.001351107472 | AF44: 0.001286272687 | AG44: 0.0446 | AH44: 0.0175 | AI44: 1.439536814 | AK44: =IF($AD44+O$4<120,IF($AD44+O$4>0,HLOOKUP($O$3,'Mortality Tables'!$B$1:$AA$151,$A44+1+O$4,FALSE)*O$5,0),1) -> 0.00135921182 | AL44: =IF($AD44+P$4<120,IF($AD44+P$4>0,HLOOKUP($P$3,'Mortality Tables'!$B$1:$AA$151,$A44+1+P$4,FALSE)*P$5,0),1) -> 0.001278168339 | AN44: 37 | AO44: 0.0446 | AP44: 0.2078735467 | AQ44: 0.1989982258 | AR44: 0.2078735467 | AS44: 0.1989982258
A45: 38 | B45: 155.3139 | D45: + | F45: *( | G45: 0 | H45: - | I45: 0 | J45: ) | K45: + | M45: *( | O45: - | P45: 0 | Q45: )+ | S45: * | T45: 0 | U45: + | V45: 0 | W45: * | X45: 0.1947500347 | Y45: + | Z45: 0 | AA45: * | AB45: 0 | AD45: 38 | AE45: 0.00147522226 | AF45: 0.001403515242 | AG45: 0.0446 | AH45: 0.0175 | AI45: 1.464728708 | AK45: =IF($AD45+O$4<120,IF($AD45+O$4>0,HLOOKUP($O$3,'Mortality Tables'!$B$1:$AA$151,$A45+1+O$4,FALSE)*O$5,0),1) -> 0.001484185637 | AL45: =IF($AD45+P$4<120,IF($AD45+P$4>0,HLOOKUP($P$3,'Mortality Tables'!$B$1:$AA$151,$A45+1+P$4,FALSE)*P$5,0),1) -> 0.001394551865 | AN45: 38 | AO45: 0.0446 | AP45: 0.1989982258 | AQ45: 0.1905018436 | AR45: 0.1989982258 | AS45: 0.1905018436
A46: 39 | B46: 156.3139 | D46: + | F46: *( | G46: 0 | H46: - | I46: 0 | J46: ) | K46: + | M46: *( | O46: - | P46: 0 | Q46: )+ | S46: * | T46: 0 | U46: + | V46: 0 | W46: * | X46: 0.1864350323 | Y46: + | Z46: 0 | AA46: * | AB46: 0 | AD46: 39 | AE46: 0.001608954707 | AF46: 0.001524374458 | AG46: 0.0446 | AH46: 0.0175 | AI46: 1.490361461 | AK46: =IF($AD46+O$4<120,IF($AD46+O$4>0,HLOOKUP($O$3,'Mortality Tables'!$B$1:$AA$151,$A46+1+O$4,FALSE)*O$5,0),1) -> 0.001619527238 | AL46: =IF($AD46+P$4<120,IF($AD46+P$4>0,HLOOKUP($P$3,'Mortality Tables'!$B$1:$AA$151,$A46+1+P$4,FALSE)*P$5,0),1) -> 0.001513801927 | AN46: 39 | AO46: 0.0446 | AP46: 0.1905018436 | AQ46: 0.1823682209 | AR46: 0.1905018436 | AS46: 0.1823682209
A47: 40 | B47: 157.3139 | D47: + | F47: *( | G47: 0 | H47: - | I47: 0 | J47: ) | K47: + | M47: *( | O47: - | P47: 0 | Q47: )+ | S47: * | T47: 0 | U47: + | V47: 0 | W47: * | X47: 0.1784750453 | Y47: + | Z47: 0 | AA47: * | AB47: 0 | AD47: 40 | AE47: 0.001752823116 | AF47: 0.001649365897 | AG47: 0.0446 | AH47: 0.0175 | AI47: 1.516442786 | AK47: =IF($AD47+O$4<120,IF($AD47+O$4>0,HLOOKUP($O$3,'Mortality Tables'!$B$1:$AA$151,$A47+1+O$4,FALSE)*O$5,0),1) -> 0.001765755268 | AL47: =IF($AD47+P$4<120,IF($AD47+P$4>0,HLOOKUP($P$3,'Mortality Tables'!$B$1:$AA$151,$A47+1+P$4,FALSE)*P$5,0),1) -> 0.001636433745 | AN47: 40 | AO47: 0.0446 | AP47: 0.1823682209 | AQ47: 0.1745818696 | AR47: 0.1823682209 | AS47: 0.1745818696
A48: 41 | B48: 158.3139 | D48: + | F48: *( | G48: 0 | H48: - | I48: 0 | J48: ) | K48: + | M48: *( | O48: - | P48: 0 | Q48: )+ | S48: * | T48: 0 | U48: + | V48: 0 | W48: * | X48: 0.170854916 | Y48: + | Z48: 0 | AA48: * | AB48: 0 | AD48: 41 | AE48: 0.001906320293 | AF48: 0.001776438604 | AG48: 0.0446 | AH48: 0.0175 | AI48: 1.542980535 | AK48: =IF($AD48+O$4<120,IF($AD48+O$4>0,HLOOKUP($O$3,'Mortality Tables'!$B$1:$AA$151,$A48+1+O$4,FALSE)*O$5,0),1) -> 0.001922555504 | AL48: =IF($AD48+P$4<120,IF($AD48+P$4>0,HLOOKUP($P$3,'Mortality Tables'!$B$1:$AA$151,$A48+1+P$4,FALSE)*P$5,0),1) -> 0.001760203393 | AN48: 41 | AO48: 0.0446 | AP48: 0.1745818696 | AQ48: 0.1671279624 | AR48: 0.1745818696 | AS48: 0.1671279624
A49: 42 | B49: 159.3139 | D49: + | F49: *( | G49: 0 | H49: - | I49: 0 | J49: ) | K49: + | M49: *( | O49: - | P49: 0 | Q49: )+ | S49: * | T49: 0 | U49: + | V49: 0 | W49: * | X49: 0.163560134 | Y49: + | Z49: 0 | AA49: * | AB49: 0 | AD49: 42 | AE49: 0.002069336739 | AF49: 0.001905359164 | AG49: 0.0446 | AH49: 0.0175 | AI49: 1.569982695 | AK49: =IF($AD49+O$4<120,IF($AD49+O$4>0,HLOOKUP($O$3,'Mortality Tables'!$B$1:$AA$151,$A49+1+O$4,FALSE)*O$5,0),1) -> 0.002089833935 | AL49: =IF($AD49+P$4<120,IF($AD49+P$4>0,HLOOKUP($P$3,'Mortality Tables'!$B$1:$AA$151,$A49+1+P$4,FALSE)*P$5,0),1) -> 0.001884861967 | AN49: 42 | AO49: 0.0446 | AP49: 0.1671279624 | AQ49: 0.1599923056 | AR49: 0.1671279624 | AS49: 0.1599923056
A50: 43 | B50: 160.3139 | D50: + | F50: *( | G50: 0 | H50: - | I50: 0 | J50: ) | K50: + | M50: *( | O50: - | P50: 0 | Q50: )+ | S50: * | T50: 0 | U50: + | V50: 0 | W50: * | X50: 0.1565768084 | Y50: + | Z50: 0 | AA50: * | AB50: 0 | AD50: 43 | AE50: 0.002242581515 | AF50: 0.002037048042 | AG50: 0.0446 | AH50: 0.0175 | AI50: 1.597457392 | AK50: =IF($AD50+O$4<120,IF($AD50+O$4>0,HLOOKUP($O$3,'Mortality Tables'!$B$1:$AA$151,$A50+1+O$4,FALSE)*O$5,0),1) -> 0.0022682732 | AL50: =IF($AD50+P$4<120,IF($AD50+P$4>0,HLOOKUP($P$3,'Mortality Tables'!$B$1:$AA$151,$A50+1+P$4,FALSE)*P$5,0),1) -> 0.002011356357 | AN50: 43 | AO50: 0.0446 | AP50: 0.1599923056 | AQ50: 0.1531613111 | AR50: 0.1599923056 | AS50: 0.1531613111
A51: 44 | B51: 161.3139 | D51: + | F51: *( | G51: 0 | H51: - | I51: 0 | J51: ) | K51: + | M51: *( | O51: - | P51: 0 | Q51: )+ | S51: * | T51: 0 | U51: + | V51: 0 | W51: * | X51: 0.1498916412 | Y51: + | Z51: 0 | AA51: * | AB51: 0 | AD51: 44 | AE51: 0.00242557552 | AF51: 0.002169227222 | AG51: 0.0446 | AH51: 0.0175 | AI51: 1.625412896 | AK51: =IF($AD51+O$4<120,IF($AD51+O$4>0,HLOOKUP($O$3,'Mortality Tables'!$B$1:$AA$151,$A51+1+O$4,FALSE)*O$5,0),1) -> 0.002457619057 | AL51: =IF($AD51+P$4<120,IF($AD51+P$4>0,HLOOKUP($P$3,'Mortality Tables'!$B$1:$AA$151,$A51+1+P$4,FALSE)*P$5,0),1) -> 0.002137183685 | AN51: 44 | AO51: 0.0446 | AP51: 0.1531613111 | AQ51: 0.1466219712 | AR51: 0.1531613111 | AS51: 0.1466219712
A52: 45 | B52: 162.3139 | D52: + | F52: *( | G52: 0 | H52: - | I52: 0 | J52: ) | K52: + | M52: *( | O52: - | P52: 0 | Q52: )+ | S52: * | T52: 0 | U52: + | V52: 0 | W52: * | X52: 0.1434919023 | Y52: + | Z52: 0 | AA52: * | AB52: 0 | AD52: 45 | AE52: 0.002620066406 | AF52: 0.002303874428 | AG52: 0.0446 | AH52: 0.0175 | AI52: 1.653857622 | AK52: =IF($AD52+O$4<120,IF($AD52+O$4>0,HLOOKUP($O$3,'Mortality Tables'!$B$1:$AA$151,$A52+1+O$4,FALSE)*O$5,0),1) -> 0.002659590403 | AL52: =IF($AD52+P$4<120,IF($AD52+P$4>0,HLOOKUP($P$3,'Mortality Tables'!$B$1:$AA$151,$A52+1+P$4,FALSE)*P$5,0),1) -> 0.002264350431 | AN52: 45 | AO52: 0.0446 | AP52: 0.1466219712 | AQ52: 0.1403618334 | AR52: 0.1466219712 | AS52: 0.1403618334
A53: 46 | B53: 163.3139 | D53: + | F53: *( | G53: 0 | H53: - | I53: 0 | J53: ) | K53: + | M53: *( | O53: - | P53: 0 | Q53: )+ | S53: * | T53: 0 | U53: + | V53: 0 | W53: * | X53: 0.1373654053 | Y53: + | Z53: 0 | AA53: * | AB53: 0 | AD53: 46 | AE53: 0.002823921299 | AF53: 0.002439919992 | AG53: 0.0446 | AH53: 0.0175 | AI53: 1.68280013 | AK53: =IF($AD53+O$4<120,IF($AD53+O$4>0,HLOOKUP($O$3,'Mortality Tables'!$B$1:$AA$151,$A53+1+O$4,FALSE)*O$5,0),1) -> 0.002871921462 | AL53: =IF($AD53+P$4<120,IF($AD53+P$4>0,HLOOKUP($P$3,'Mortality Tables'!$B$1:$AA$151,$A53+1+P$4,FALSE)*P$5,0),1) -> 0.002391919828 | AN53: 46 | AO53: 0.0446 | AP53: 0.1403618334 | AQ53: 0.1343689771 | AR53: 0.1403618334 | AS53: 0.1343689771
A54: 47 | B54: 164.3139 | D54: + | F54: *( | G54: 0 | H54: - | I54: 0 | J54: ) | K54: + | M54: *( | O54: - | P54: 0 | Q54: )+ | S54: * | T54: 0 | U54: + | V54: 0 | W54: * | X54: 0.1315004837 | Y54: + | Z54: 0 | AA54: * | AB54: 0 | AD54: 47 | AE54: 0.003038870899 | AF54: 0.002576124566 | AG54: 0.0446 | AH54: 0.0175 | AI54: 1.712249132 | AK54: =IF($AD54+O$4<120,IF($AD54+O$4>0,HLOOKUP($O$3,'Mortality Tables'!$B$1:$AA$151,$A54+1+O$4,FALSE)*O$5,0),1) -> 0.003096714191 | AL54: =IF($AD54+P$4<120,IF($AD54+P$4>0,HLOOKUP($P$3,'Mortality Tables'!$B$1:$AA$151,$A54+1+P$4,FALSE)*P$5,0),1) -> 0.002518281274 | AN54: 47 | AO54: 0.0446 | AP54: 0.1343689771 | AQ54: 0.1286319903 | AR54: 0.1343689771 | AS54: 0.1286319903
A55: 48 | B55: 165.3139 | D55: + | F55: *( | G55: 0 | H55: - | I55: 0 | J55: ) | K55: + | M55: *( | O55: - | P55: 0 | Q55: )+ | S55: * | T55: 0 | U55: + | V55: 0 | W55: * | X55: 0.1258859694 | Y55: + | Z55: 0 | AA55: * | AB55: 0 | AD55: 48 | AE55: 0.003264556871 | AF55: 0.002711455451 | AG55: 0.0446 | AH55: 0.0175 | AI55: 1.742213492 | AK55: =IF($AD55+O$4<120,IF($AD55+O$4>0,HLOOKUP($O$3,'Mortality Tables'!$B$1:$AA$151,$A55+1+O$4,FALSE)*O$5,0),1) -> 0.003333694549 | AL55: =IF($AD55+P$4<120,IF($AD55+P$4>0,HLOOKUP($P$3,'Mortality Tables'!$B$1:$AA$151,$A55+1+P$4,FALSE)*P$5,0),1) -> 0.002642317773 | AN55: 48 | AO55: 0.0446 | AP55: 0.1286319903 | AQ55: 0.1231399486 | AR55: 0.1286319903 | AS55: 0.1231399486
A56: 49 | B56: 166.3139 | D56: + | F56: *( | G56: 0 | H56: - | I56: 0 | J56: ) | K56: + | M56: *( | O56: - | P56: 0 | Q56: )+ | S56: * | T56: 0 | U56: + | V56: 0 | W56: * | X56: 0.1205111712 | Y56: + | Z56: 0 | AA56: * | AB56: 0 | AD56: 49 | AE56: 0.003504796307 | AF56: 0.002847777405 | AG56: 0.0446 | AH56: 0.0175 | AI56: 1.772702228 | AK56: =IF($AD56+O$4<120,IF($AD56+O$4>0,HLOOKUP($O$3,'Mortality Tables'!$B$1:$AA$151,$A56+1+O$4,FALSE)*O$5,0),1) -> 0.003586923669 | AL56: =IF($AD56+P$4<120,IF($AD56+P$4>0,HLOOKUP($P$3,'Mortality Tables'!$B$1:$AA$151,$A56+1+P$4,FALSE)*P$5,0),1) -> 0.002765650043 | AN56: 49 | AO56: 0.0446 | AP56: 0.1231399486 | AQ56: 0.1178823938 | AR56: 0.1231399486 | AS56: 0.1178823938
A57: 50 | B57: 167.3139 | D57: + | F57: *( | G57: 0 | H57: - | I57: 0 | J57: ) | K57: + | M57: *( | O57: - | P57: 0 | Q57: )+ | S57: * | T57: 0 | U57: + | V57: 0 | W57: * | X57: 0.1153658541 | Y57: + | Z57: 0 | AA57: * | AB57: 0 | AD57: 50 | AE57: 0.003756758633 | AF57: 0.002987221123 | AG57: 0.0446 | AH57: 0.0175 | AI57: 1.803724517 | AK57: =IF($AD57+O$4<120,IF($AD57+O$4>0,HLOOKUP($O$3,'Mortality Tables'!$B$1:$AA$151,$A57+1+O$4,FALSE)*O$5,0),1) -> 0.003852950821 | AL57: =IF($AD57+P$4<120,IF($AD57+P$4>0,HLOOKUP($P$3,'Mortality Tables'!$B$1:$AA$151,$A57+1+P$4,FALSE)*P$5,0),1) -> 0.002891028934 | AN57: 50 | AO57: 0.0446 | AP57: 0.1178823938 | AQ57: 0.1128493144 | AR57: 0.1178823938 | AS57: 0.1128493144
A58: =A57+1 -> 51 | B58: 168.3139 | D58: + | F58: *( | G58: 0 | H58: - | I58: 0 | J58: ) | K58: + | M58: *( | O58: - | P58: 0 | Q58: )+ | S58: * | T58: 0 | U58: + | V58: 0 | W58: * | X58: 0.1104402203 | Y58: + | Z58: 0 | AA58: * | AB58: 0 | AD58: 51 | AE58: 0.004025988282 | AF58: 0.003129575074 | AG58: 0.0446 | AH58: 0.0175 | AI58: 1.835289696 | AK58: =IF($AD58+O$4<120,IF($AD58+O$4>0,HLOOKUP($O$3,'Mortality Tables'!$B$1:$AA$151,$A58+1+O$4,FALSE)*O$5,0),1) -> 0.004138039933 | AL58: =IF($AD58+P$4<120,IF($AD58+P$4>0,HLOOKUP($P$3,'Mortality Tables'!$B$1:$AA$151,$A58+1+P$4,FALSE)*P$5,0),1) -> 0.003017523423 | AN58: 51 | AO58: 0.0446 | AP58: 0.1128493144 | AQ58: 0.1080311262 | AR58: 0.1128493144 | AS58: 0.1080311262
A59: 52 | B59: 169.3139 | D59: + | F59: *( | G59: 0 | H59: - | I59: 0 | J59: ) | K59: + | M59: *( | O59: - | P59: 0 | Q59: )+ | S59: * | T59: 0 | U59: + | V59: 0 | W59: * | X59: 0.1057248902 | Y59: + | Z59: 0 | AA59: * | AB59: 0 | AD59: 52 | AE59: 0.004299952134 | AF59: 0.003287226232 | AG59: 0.0446 | AH59: 0.0175 | AI59: 1.867407266 | AK59: =IF($AD59+O$4<120,IF($AD59+O$4>0,HLOOKUP($O$3,'Mortality Tables'!$B$1:$AA$151,$A59+1+O$4,FALSE)*O$5,0),1) -> 0.004426542871 | AL59: =IF($AD59+P$4<120,IF($AD59+P$4>0,HLOOKUP($P$3,'Mortality Tables'!$B$1:$AA$151,$A59+1+P$4,FALSE)*P$5,0),1) -> 0.003160635494 | AN59: 52 | AO59: 0.0446 | AP59: 0.1080311262 | AQ59: 0.1034186542 | AR59: 0.1080311262 | AS59: 0.1034186542
A60: 53 | B60: 170.3139 | D60: + | F60: *( | G60: 0 | H60: - | I60: 0 | J60: ) | K60: + | M60: *( | O60: - | P60: 0 | Q60: )+ | S60: * | T60: 0 | U60: + | V60: 0 | W60: * | X60: 0.1012108847 | Y60: + | Z60: 0 | AA60: * | AB60: 0 | AD60: 53 | AE60: 0.004578221109 | AF60: 0.003463272333 | AG60: 0.0446 | AH60: 0.0175 | AI60: 1.900086893 | AK60: =IF($AD60+O$4<120,IF($AD60+O$4>0,HLOOKUP($O$3,'Mortality Tables'!$B$1:$AA$151,$A60+1+O$4,FALSE)*O$5,0),1) -> 0.004717589706 | AL60: =IF($AD60+P$4<120,IF($AD60+P$4>0,HLOOKUP($P$3,'Mortality Tables'!$B$1:$AA$151,$A60+1+P$4,FALSE)*P$5,0),1) -> 0.003323903736 | AN60: 53 | AO60: 0.0446 | AP60: 0.1034186542 | AQ60: 0.09900311526 | AR60: 0.1034186542 | AS60: 0.09900311526
A61: 54 | B61: 171.3139 | D61: + | F61: *( | G61: 0 | H61: - | I61: 0 | J61: ) | K61: + | M61: *( | O61: - | P61: 0 | Q61: )+ | S61: * | T61: 0 | U61: + | V61: 0 | W61: * | X61: 0.09688960821 | Y61: + | Z61: 0 | AA61: * | AB61: 0 | AD61: 54 | AE61: 0.004867573783 | AF61: 0.003662262748 | AG61: 0.0446 | AH61: 0.0175 | AI61: 1.933338414 | AK61: =IF($AD61+O$4<120,IF($AD61+O$4>0,HLOOKUP($O$3,'Mortality Tables'!$B$1:$AA$151,$A61+1+O$4,FALSE)*O$5,0),1) -> 0.005018237663 | AL61: =IF($AD61+P$4<120,IF($AD61+P$4>0,HLOOKUP($P$3,'Mortality Tables'!$B$1:$AA$151,$A61+1+P$4,FALSE)*P$5,0),1) -> 0.003511598869 | AN61: 54 | AO61: 0.0446 | AP61: 0.09900311526 | AQ61: 0.09477610115 | AR61: 0.09900311526 | AS61: 0.09477610115
A62: 55 | B62: 172.3139 | D62: + | F62: *( | G62: 0 | H62: - | I62: 0 | J62: ) | K62: + | M62: *( | O62: - | P62: 0 | Q62: )+ | S62: * | T62: 0 | U62: + | V62: 0 | W62: * | X62: 0.0927528319 | Y62: + | Z62: 0 | AA62: * | AB62: 0 | AD62: 55 | AE62: 0.005168867262 | AF62: 0.003887646161 | AG62: 0.0446 | AH62: 0.0175 | AI62: 1.967171836 | AK62: =IF($AD62+O$4<120,IF($AD62+O$4>0,HLOOKUP($O$3,'Mortality Tables'!$B$1:$AA$151,$A62+1+O$4,FALSE)*O$5,0),1) -> 0.005329019899 | AL62: =IF($AD62+P$4<120,IF($AD62+P$4>0,HLOOKUP($P$3,'Mortality Tables'!$B$1:$AA$151,$A62+1+P$4,FALSE)*P$5,0),1) -> 0.003727493523 | AN62: 55 | AO62: 0.0446 | AP62: 0.09477610115 | AQ62: 0.09072956265 | AR62: 0.09477610115 | AS62: 0.09072956265
A63: 56 | B63: 173.3139 | D63: + | F63: *( | G63: 0 | H63: - | I63: 0 | J63: ) | K63: + | M63: *( | O63: - | P63: 0 | Q63: )+ | S63: * | T63: 0 | U63: + | V63: 0 | W63: * | X63: 0.08879267844 | Y63: + | Z63: 0 | AA63: * | AB63: 0 | AD63: 56 | AE63: 0.005490186908 | AF63: 0.004146127645 | AG63: 0.0446 | AH63: 0.0175 | AI63: 2.001597343 | AK63: =IF($AD63+O$4<120,IF($AD63+O$4>0,HLOOKUP($O$3,'Mortality Tables'!$B$1:$AA$151,$A63+1+O$4,FALSE)*O$5,0),1) -> 0.005658194316 | AL63: =IF($AD63+P$4<120,IF($AD63+P$4>0,HLOOKUP($P$3,'Mortality Tables'!$B$1:$AA$151,$A63+1+P$4,FALSE)*P$5,0),1) -> 0.003978120237 | AN63: 56 | AO63: 0.0446 | AP63: 0.09072956265 | AQ63: 0.08685579423 | AR63: 0.09072956265 | AS63: 0.08685579423
A64: 57 | B64: 174.3139 | D64: + | F64: *( | G64: 0 | H64: - | I64: 0 | J64: ) | K64: + | M64: *( | O64: - | P64: 0 | Q64: )+ | S64: * | T64: 0 | U64: + | V64: 0 | W64: * | X64: 0.08500160678 | Y64: + | Z64: 0 | AA64: * | AB64: 0 | AD64: 57 | AE64: 0.005835190018 | AF64: 0.004444063533 | AG64: 0.0446 | AH64: 0.0175 | AI64: 2.036625297 | AK64: =IF($AD64+O$4<120,IF($AD64+O$4>0,HLOOKUP($O$3,'Mortality Tables'!$B$1:$AA$151,$A64+1+O$4,FALSE)*O$5,0),1) -> 0.006009080828 | AL64: =IF($AD64+P$4<120,IF($AD64+P$4>0,HLOOKUP($P$3,'Mortality Tables'!$B$1:$AA$151,$A64+1+P$4,FALSE)*P$5,0),1) -> 0.004270172723 | AN64: 57 | AO64: 0.0446 | AP64: 0.08685579423 | AQ64: 0.08314741933 | AR64: 0.08685579423 | AS64: 0.08314741933
A65: 58 | B65: 175.3139 | D65: + | F65: *( | G65: 0 | H65: - | I65: 0 | J65: ) | K65: + | M65: *( | O65: - | P65: 0 | Q65: )+ | S65: * | T65: 0 | U65: + | V65: 0 | W65: * | X65: 0.08137239784 | Y65: + | Z65: 0 | AA65: * | AB65: 0 | AD65: 58 | AE65: 0.006208862783 | AF65: 0.004786272344 | AG65: 0.0446 | AH65: 0.0175 | AI65: 2.072266239 | AK65: =IF($AD65+O$4<120,IF($AD65+O$4>0,HLOOKUP($O$3,'Mortality Tables'!$B$1:$AA$151,$A65+1+O$4,FALSE)*O$5,0),1) -> 0.006386686588 | AL65: =IF($AD65+P$4<120,IF($AD65+P$4>0,HLOOKUP($P$3,'Mortality Tables'!$B$1:$AA$151,$A65+1+P$4,FALSE)*P$5,0),1) -> 0.004608448539 | AN65: 58 | AO65: 0.0446 | AP65: 0.08314741933 | AQ65: 0.07959737635 | AR65: 0.08314741933 | AS65: 0.07959737635
A66: 59 | B66: 176.3139 | D66: + | F66: *( | G66: 0 | H66: - | I66: 0 | J66: ) | K66: + | M66: *( | O66: - | P66: 0 | Q66: )+ | S66: * | T66: 0 | U66: + | V66: 0 | W66: * | X66: 0.07789814076 | Y66: + | Z66: 0 | AA66: * | AB66: 0 | AD66: 59 | AE66: 0.006620800058 | AF66: 0.005181018909 | AG66: 0.0446 | AH66: 0.0175 | AI66: 2.108530899 | AK66: =IF($AD66+O$4<120,IF($AD66+O$4>0,HLOOKUP($O$3,'Mortality Tables'!$B$1:$AA$151,$A66+1+O$4,FALSE)*O$5,0),1) -> 0.006800772701 | AL66: =IF($AD66+P$4<120,IF($AD66+P$4>0,HLOOKUP($P$3,'Mortality Tables'!$B$1:$AA$151,$A66+1+P$4,FALSE)*P$5,0),1) -> 0.005001046266 | AN66: 59 | AO66: 0.0446 | AP66: 0.07959737635 | AQ66: 0.07619890517 | AR66: 0.07959737635 | AS66: 0.07619890517
A67: 60 | B67: 177.3139 | D67: + | F67: *( | G67: 0 | H67: - | I67: 0 | J67: ) | K67: + | M67: *( | O67: - | P67: 0 | Q67: )+ | S67: * | T67: 0 | U67: + | V67: 0 | W67: * | X67: 0.07457221976 | Y67: + | Z67: 0 | AA67: * | AB67: 0 | AD67: 60 | AE67: 0.007076690643 | AF67: 0.005630512878 | AG67: 0.0446 | AH67: 0.0175 | AI67: 2.145430189 | AK67: =IF($AD67+O$4<120,IF($AD67+O$4>0,HLOOKUP($O$3,'Mortality Tables'!$B$1:$AA$151,$A67+1+O$4,FALSE)*O$5,0),1) -> 0.007257462863 | AL67: =IF($AD67+P$4<120,IF($AD67+P$4>0,HLOOKUP($P$3,'Mortality Tables'!$B$1:$AA$151,$A67+1+P$4,FALSE)*P$5,0),1) -> 0.005449740658 | AN67: 60 | AO67: 0.0446 | AP67: 0.07619890517 | AQ67: 0.07294553434 | AR67: 0.07619890517 | AS67: 0.07294553434
A68: 61 | B68: 178.3139 | D68: + | F68: *( | G68: 0 | H68: - | I68: 0 | J68: ) | K68: + | M68: *( | O68: - | P68: 0 | Q68: )+ | S68: * | T68: 0 | U68: + | V68: 0 | W68: * | X68: 0.07138830151 | Y68: + | Z68: 0 | AA68: * | AB68: 0 | AD68: 61 | AE68: 0.007585914379 | AF68: 0.006140668443 | AG68: 0.0446 | AH68: 0.0175 | AI68: 2.182975218 | AK68: =IF($AD68+O$4<120,IF($AD68+O$4>0,HLOOKUP($O$3,'Mortality Tables'!$B$1:$AA$151,$A68+1+O$4,FALSE)*O$5,0),1) -> 0.007766570121 | AL68: =IF($AD68+P$4<120,IF($AD68+P$4>0,HLOOKUP($P$3,'Mortality Tables'!$B$1:$AA$151,$A68+1+P$4,FALSE)*P$5,0),1) -> 0.005960012701 | AN68: 61 | AO68: 0.0446 | AP68: 0.07294553434 | AQ68: 0.06983106868 | AR68: 0.07294553434 | AS68: 0.06983106868
A69: 62 | B69: 179.3139 | D69: + | F69: *( | G69: 0 | H69: - | I69: 0 | J69: ) | K69: + | M69: *( | O69: - | P69: 0 | Q69: )+ | S69: * | T69: 0 | U69: + | V69: 0 | W69: * | X69: 0.0683403231 | Y69: + | Z69: 0 | AA69: * | AB69: 0 | AD69: 62 | AE69: 0.008157081891 | AF69: 0.006710506014 | AG69: 0.0446 | AH69: 0.0175 | AI69: 2.221177284 | AK69: =IF($AD69+O$4<120,IF($AD69+O$4>0,HLOOKUP($O$3,'Mortality Tables'!$B$1:$AA$151,$A69+1+O$4,FALSE)*O$5,0),1) -> 0.008337903875 | AL69: =IF($AD69+P$4<120,IF($AD69+P$4>0,HLOOKUP($P$3,'Mortality Tables'!$B$1:$AA$151,$A69+1+P$4,FALSE)*P$5,0),1) -> 0.006529684029 | AN69: 62 | AO69: 0.0446 | AP69: 0.06983106868 | AQ69: 0.06684957752 | AR69: 0.06983106868 | AS69: 0.06684957752
A70: 63 | B70: 180.3139 | D70: + | F70: *( | G70: 0 | H70: - | I70: 0 | J70: ) | K70: + | M70: *( | O70: - | P70: 0 | Q70: )+ | S70: * | T70: 0 | U70: + | V70: 0 | W70: * | X70: 0.06542248047 | Y70: + | Z70: 0 | AA70: * | AB70: 0 | AD70: 63 | AE70: 0.008794873181 | AF70: 0.007340647879 | AG70: 0.0446 | AH70: 0.0175 | AI70: 2.260047886 | AK70: =IF($AD70+O$4<120,IF($AD70+O$4>0,HLOOKUP($O$3,'Mortality Tables'!$B$1:$AA$151,$A70+1+O$4,FALSE)*O$5,0),1) -> 0.008976651343 | AL70: =IF($AD70+P$4<120,IF($AD70+P$4>0,HLOOKUP($P$3,'Mortality Tables'!$B$1:$AA$151,$A70+1+P$4,FALSE)*P$5,0),1) -> 0.007158869716 | AN70: 63 | AO70: 0.0446 | AP70: 0.06684957752 | AQ70: 0.06399538342 | AR70: 0.06684957752 | AS70: 0.06399538342
A71: =A70+1 -> 64 | B71: 181.3139 | D71: + | F71: *( | G71: 0 | H71: - | I71: 0 | J71: ) | K71: + | M71: *( | O71: - | P71: 0 | Q71: )+ | S71: * | T71: 0 | U71: + | V71: 0 | W71: * | X71: 0.06262921738 | Y71: + | Z71: 0 | AA71: * | AB71: 0 | AD71: 64 | AE71: 0.009514812167 | AF71: 0.008034719294 | AG71: 0.0446 | AH71: 0.0175 | AI71: 2.299598724 | AK71: =IF($AD71+O$4<120,IF($AD71+O$4>0,HLOOKUP($O$3,'Mortality Tables'!$B$1:$AA$151,$A71+1+O$4,FALSE)*O$5,0),1) -> 0.009699823776 | AL71: =IF($AD71+P$4<120,IF($AD71+P$4>0,HLOOKUP($P$3,'Mortality Tables'!$B$1:$AA$151,$A71+1+P$4,FALSE)*P$5,0),1) -> 0.007849707685 | AN71: 64 | AO71: 0.0446 | AP71: 0.06399538342 | AQ71: 0.06126305133 | AR71: 0.06399538342 | AS71: 0.06126305133
A72: 65 | B72: 182.3139 | D72: + | F72: *( | G72: =AB194 -> 0 | H72: - | I72: 0 | J72: ) | K72: + | L72: =$I$3*E72 ->  | M72: *( | O72: - | P72: 0 | Q72: )+ | S72: * | T72: 0 | U72: + | V72: 0 | W72: * | X72: 0.0599552148 | Y72: + | Z72: 0 | AA72: * | AB72: 0 | AD72: 65 | AE72: =AK72*$O$6+(1-$O$6)*AL72 -> 0.01031718226 | AF72: 0.008795391837 | AG72: 0.0446 | AH72: 0.0175 | AI72: 2.339841702 | AK72: =IF($AD72+O$4<120,IF($AD72+O$4>0,HLOOKUP($O$3,'Mortality Tables'!$B$1:$AA$151,$A72+1+O$4,FALSE)*O$5,0),1) -> 0.01050740607 | AL72: =IF($AD72+P$4<120,IF($AD72+P$4>0,HLOOKUP($P$3,'Mortality Tables'!$B$1:$AA$151,$A72+1+P$4,FALSE)*P$5,0),1) -> 0.008605168034 | AN72: 65 | AO72: 0.0446 | AP72: 0.06126305133 | AQ72: 0.05864737826 | AR72: 0.06126305133 | AS72: 0.05864737826
A73: 66 | B73: 183.3139 | D73: + | E73: =IF(B73-0.0000001<$D$5-1,0,IF(AND($D$5-B73<1,$D$5-B73>0),AI73*$G$2*(1-($D$5-B73)),AI73*$G$2)) ->  | F73: *( | G73: 0 | H73: - | I73: =V443 -> 0 | J73: ) | K73: + | M73: *( | N73: =AG318 ->  | O73: - | P73: =V443 -> 0 | Q73: )+ | R73: =E73 ->  | S73: * | T73: =V443 -> 0 | U73: + | V73: =IF(AND(A73<$I$5+1,B73<$C$5),IF($C$5-B73<1,$G$5*AI73*(1-$D$3),$G$5*AI73),0) -> 0 | W73: * | X73: =X72/(1+AG73) -> 0.05739538081 | Y73: + | Z73: =$G$6 -> 0 | AA73: * | AB73: =AC195 -> 0 | AD73: 66 | AE73: 0.01121590743 | AF73: 0.009630329304 | AG73: =IF(A73<=$S$3,$R$3,IF(A73<=$S$4+$S$3,$R$4,$R$5)) -> 0.0446 | AH73: =IF(B73-0.000001<$D$5-1,0,IF(AND($D$5-B73<1,$D$5-B73>0),$K$3*(1-($D$5-B73)),$K$3)) -> 0.0175 | AI73: =IF($L$3="S",AI72+AH72,AI72*(1+AH72)) -> 2.380788932 | AK73: =IF($AD73+O$4<120,IF($AD73+O$4>0,HLOOKUP($O$3,'Mortality Tables'!$B$1:$AA$151,$A73+1+O$4,FALSE)*O$5,0),1) -> 0.0114141047 | AL73: =IF($AD73+P$4<120,IF($AD73+P$4>0,HLOOKUP($P$3,'Mortality Tables'!$B$1:$AA$151,$A73+1+P$4,FALSE)*P$5,0),1) -> 0.009432132038 | AN73: 66 | AO73: =IF(A73<=$S$3,$R$3,IF(A73<=$S$4+$S$3,$R$4,$R$5)) -> 0.0446 | AP73: 0.05864737826 | AQ73: 0.05614338336 | AR73: =(1+AO73)^-(AD73-1) -> 0.05864737826 | AS73: =(1+AO73)^(-AD73) -> 0.05614338336
A74: =A73+1 -> 67 | B74: 184.3139 | C74: =C73+E73*(G73-I73)+L73*(N73-P73)+R73*T73+V73*X73+Z73*AB73 ->  | D74: + | F74: *( | G74: 0 | H74: - | I74: 0 | J74: ) | K74: + | M74: *( | O74: - | P74: 0 | Q74: )+ | S74: * | T74: 0 | U74: + | V74: 0 | W74: * | X74: 0.05494484091 | Y74: + | Z74: 0 | AA74: * | AB74: 0 | AD74: =AD73+1 -> 67 | AE74: 0.01221783294 | AF74: 0.01054850744 | AG74: 0.0446 | AH74: 0.0175 | AI74: 2.422452738 | AK74: =IF($AD74+O$4<120,IF($AD74+O$4>0,HLOOKUP($O$3,'Mortality Tables'!$B$1:$AA$151,$A74+1+O$4,FALSE)*O$5,0),1) -> 0.01242649862 | AL74: =IF($AD74+P$4<120,IF($AD74+P$4>0,HLOOKUP($P$3,'Mortality Tables'!$B$1:$AA$151,$A74+1+P$4,FALSE)*P$5,0),1) -> 0.01033984176 | AN74: =AN73+1 -> 67 | AO74: 0.0446 | AP74: =AQ73 -> 0.05614338336 | AQ74: =AQ73/(1+AO74) -> 0.05374629845 | AR74: 0.05614338336 | AS74: 0.05374629845
A75: 68 | B75: 185.3139 | D75: + | F75: *( | G75: 0 | H75: - | I75: 0 | J75: ) | K75: + | M75: *( | O75: - | P75: 0 | Q75: )+ | S75: * | T75: 0 | U75: + | V75: 0 | W75: * | X75: 0.05259892869 | Y75: + | Z75: 0 | AA75: * | AB75: 0 | AD75: 68 | AE75: 0.01332964528 | AF75: =IF($P$6="Opposite",AK75*(1-$O$6)+$O$6*AL75,AE75) -> 0.01155654334 | AG75: 0.0446 | AH75: 0.0175 | AI75: 2.464845661 | AK75: =IF($AD75+O$4<120,IF($AD75+O$4>0,HLOOKUP($O$3,'Mortality Tables'!$B$1:$AA$151,$A75+1+O$4,FALSE)*O$5,0),1) -> 0.01355128302 | AL75: =IF($AD75+P$4<120,IF($AD75+P$4>0,HLOOKUP($P$3,'Mortality Tables'!$B$1:$AA$151,$A75+1+P$4,FALSE)*P$5,0),1) -> 0.0113349056 | AN75: 68 | AO75: 0.0446 | AP75: 0.05374629845 | AQ75: 0.05145155892 | AR75: 0.05374629845 | AS75: 0.05145155892
A76: 69 | B76: 186.3139 | D76: + | F76: *( | G76: 0 | H76: - | I76: 0 | J76: ) | K76: + | M76: *( | O76: - | P76: 0 | Q76: )+ | S76: * | T76: 0 | U76: + | V76: 0 | W76: * | X76: 0.05035317699 | Y76: + | Z76: 0 | AA76: * | AB76: 0 | AD76: 69 | AE76: 0.01456170796 | AF76: 0.01266445832 | AG76: 0.0446 | AH76: 0.0175 | AI76: 2.50798046 | AK76: =IF($AD76+O$4<120,IF($AD76+O$4>0,HLOOKUP($O$3,'Mortality Tables'!$B$1:$AA$151,$A76+1+O$4,FALSE)*O$5,0),1) -> 0.01479886417 | AL76: =IF($AD76+P$4<120,IF($AD76+P$4>0,HLOOKUP($P$3,'Mortality Tables'!$B$1:$AA$151,$A76+1+P$4,FALSE)*P$5,0),1) -> 0.01242730211 | AN76: 69 | AO76: 0.0446 | AP76: 0.05145155892 | AQ76: 0.04925479506 | AR76: 0.05145155892 | AS76: 0.04925479506
A77: 70 | B77: 187.3139 | D77: + | F77: *( | G77: 0 | H77: - | I77: 0 | J77: ) | K77: + | M77: *( | O77: - | P77: 0 | Q77: )+ | S77: * | T77: 0 | U77: + | V77: 0 | W77: * | X77: 0.0482033094 | Y77: + | Z77: 0 | AA77: * | AB77: 0 | AD77: 70 | AE77: 0.01592903716 | AF77: 0.01388592527 | AG77: 0.0446 | AH77: 0.0175 | AI77: 2.551870118 | AK77: =IF($AD77+O$4<120,IF($AD77+O$4>0,HLOOKUP($O$3,'Mortality Tables'!$B$1:$AA$151,$A77+1+O$4,FALSE)*O$5,0),1) -> 0.01618442614 | AL77: =IF($AD77+P$4<120,IF($AD77+P$4>0,HLOOKUP($P$3,'Mortality Tables'!$B$1:$AA$151,$A77+1+P$4,FALSE)*P$5,0),1) -> 0.01363053628 | AN77: 70 | AO77: 0.0446 | AP77: 0.04925479506 | AQ77: 0.04715182373 | AR77: 0.04925479506 | AS77: 0.04715182373
A78: 71 | B78: 188.3139 | D78: + | F78: *( | G78: 0 | H78: - | I78: 0 | J78: ) | K78: + | M78: *( | O78: - | P78: 0 | Q78: )+ | S78: * | T78: 0 | U78: + | V78: 0 | W78: * | X78: 0.04614523205 | Y78: + | Z78: 0 | AA78: * | AB78: 0 | AD78: 71 | AE78: 0.0174414274 | AF78: 0.01523314116 | AG78: 0.0446 | AH78: 0.0175 | AI78: 2.596527845 | AK78: =IF($AD78+O$4<120,IF($AD78+O$4>0,HLOOKUP($O$3,'Mortality Tables'!$B$1:$AA$151,$A78+1+O$4,FALSE)*O$5,0),1) -> 0.01771746318 | AL78: =IF($AD78+P$4<120,IF($AD78+P$4>0,HLOOKUP($P$3,'Mortality Tables'!$B$1:$AA$151,$A78+1+P$4,FALSE)*P$5,0),1) -> 0.01495710538 | AN78: 71 | AO78: 0.0446 | AP78: 0.04715182373 | AQ78: 0.04513864037 | AR78: 0.04715182373 | AS78: 0.04513864037
A79: 72 | B79: 189.3139 | D79: + | F79: *( | G79: 0 | H79: - | I79: 0 | J79: ) | K79: + | M79: *( | O79: - | P79: 0 | Q79: )+ | S79: * | T79: 0 | U79: + | V79: 0 | W79: * | X79: 0.04417502589 | Y79: + | Z79: 0 | AA79: * | AB79: 0 | AD79: 72 | AE79: 0.01910318573 | AF79: 0.01671522135 | AG79: 0.0446 | AH79: 0.0175 | AI79: 2.641967083 | AK79: =IF($AD79+O$4<120,IF($AD79+O$4>0,HLOOKUP($O$3,'Mortality Tables'!$B$1:$AA$151,$A79+1+O$4,FALSE)*O$5,0),1) -> 0.01940168128 | AL79: =IF($AD79+P$4<120,IF($AD79+P$4>0,HLOOKUP($P$3,'Mortality Tables'!$B$1:$AA$151,$A79+1+P$4,FALSE)*P$5,0),1) -> 0.01641672581 | AN79: 72 | AO79: 0.0446 | AP79: 0.04513864037 | AQ79: 0.04321141142 | AR79: 0.04513864037 | AS79: 0.04321141142
A80: 73 | B80: 190.3139 | D80: + | F80: *( | G80: 0 | H80: - | I80: 0 | J80: ) | K80: + | M80: *( | O80: - | P80: 0 | Q80: )+ | S80: * | T80: 0 | U80: + | V80: 0 | W80: * | X80: 0.0422889392 | Y80: + | Z80: 0 | AA80: * | AB80: 0 | AD80: 73 | AE80: 0.02095178422 | AF80: 0.01835440145 | AG80: 0.0446 | AH80: 0.0175 | AI80: 2.688201507 | AK80: =IF($AD80+O$4<120,IF($AD80+O$4>0,HLOOKUP($O$3,'Mortality Tables'!$B$1:$AA$151,$A80+1+O$4,FALSE)*O$5,0),1) -> 0.02127645706 | AL80: =IF($AD80+P$4<120,IF($AD80+P$4>0,HLOOKUP($P$3,'Mortality Tables'!$B$1:$AA$151,$A80+1+P$4,FALSE)*P$5,0),1) -> 0.0180297286 | AN80: 73 | AO80: 0.0446 | AP80: 0.04321141142 | AQ80: 0.04136646699 | AR80: 0.04321141142 | AS80: 0.04136646699
A81: 74 | B81: 191.3139 | D81: + | F81: *( | G81: 0 | H81: - | I81: 0 | J81: ) | K81: + | M81: *( | O81: - | P81: 0 | Q81: )+ | S81: * | T81: 0 | U81: + | V81: 0 | W81: * | X81: 0.04048338044 | Y81: + | Z81: 0 | AA81: * | AB81: 0 | AD81: 74 | AE81: 0.02299893857 | AF81: 0.02016910836 | AG81: 0.0446 | AH81: 0.0175 | AI81: 2.735245033 | AK81: =IF($AD81+O$4<120,IF($AD81+O$4>0,HLOOKUP($O$3,'Mortality Tables'!$B$1:$AA$151,$A81+1+O$4,FALSE)*O$5,0),1) -> 0.02335266734 | AL81: =IF($AD81+P$4<120,IF($AD81+P$4>0,HLOOKUP($P$3,'Mortality Tables'!$B$1:$AA$151,$A81+1+P$4,FALSE)*P$5,0),1) -> 0.01981537958 | AN81: 74 | AO81: 0.0446 | AP81: 0.04136646699 | AQ81: 0.03960029388 | AR81: 0.04136646699 | AS81: 0.03960029388
A82: 75 | B82: 192.3139 | G82: 0 | I82: 0 | P82: 0 | T82: 0 | V82: 0 | X82: 0.03875491139 | AB82: 0 | AD82: 75 | AE82: 0.02528296615 | AF82: 0.02219421429 | AG82: 0.0446 | AH82: 0.0175 | AI82: 2.783111821 | AK82: =IF($AD82+O$4<120,IF($AD82+O$4>0,HLOOKUP($O$3,'Mortality Tables'!$B$1:$AA$151,$A82+1+O$4,FALSE)*O$5,0),1) -> 0.02566906013 | AL82: =IF($AD82+P$4<120,IF($AD82+P$4>0,HLOOKUP($P$3,'Mortality Tables'!$B$1:$AA$151,$A82+1+P$4,FALSE)*P$5,0),1) -> 0.0218081203 | AN82: 75 | AO82: 0.0446 | AP82: 0.03960029388 | AQ82: 0.03790952889 | AR82: 0.03960029388 | AS82: 0.03790952889
A83: =A82+1 -> 76 | B83: 193.3139 | G83: 0 | I83: 0 | P83: 0 | T83: 0 | V83: 0 | X83: 0.03710024065 | AB83: 0 | AD83: 76 | AE83: 0.02784907059 | AF83: 0.02446000188 | AG83: 0.0446 | AH83: 0.0175 | AI83: 2.831816278 | AK83: =IF($AD83+O$4<120,IF($AD83+O$4>0,HLOOKUP($O$3,'Mortality Tables'!$B$1:$AA$151,$A83+1+O$4,FALSE)*O$5,0),1) -> 0.02827270418 | AL83: =IF($AD83+P$4<120,IF($AD83+P$4>0,HLOOKUP($P$3,'Mortality Tables'!$B$1:$AA$151,$A83+1+P$4,FALSE)*P$5,0),1) -> 0.02403636829 | AN83: 76 | AO83: 0.0446 | AP83: 0.03790952889 | AQ83: 0.03629095242 | AR83: 0.03790952889 | AS83: 0.03629095242
A84: =A83+1 -> 77 | B84: 194.3139 | G84: 0 | I84: 0 | P84: 0 | T84: 0 | V84: 0 | X84: 0.03551621736 | AB84: 0 | AD84: 77 | AE84: 0.03071549388 | AF84: 0.0269991687 | AG84: 0.0446 | AH84: 0.0175 | AI84: 2.881373063 | AK84: =IF($AD84+O$4<120,IF($AD84+O$4>0,HLOOKUP($O$3,'Mortality Tables'!$B$1:$AA$151,$A84+1+O$4,FALSE)*O$5,0),1) -> 0.03118003453 | AL84: =IF($AD84+P$4<120,IF($AD84+P$4>0,HLOOKUP($P$3,'Mortality Tables'!$B$1:$AA$151,$A84+1+P$4,FALSE)*P$5,0),1) -> 0.02653462805 | AN84: 77 | AO84: 0.0446 | AP84: 0.03629095242 | AQ84: 0.0347414823 | AR84: 0.03629095242 | AS84: 0.0347414823
A85: 78 | B85: 195.3139 | G85: 0 | I85: 0 | P85: 0 | T85: 0 | V85: 0 | X85: 0.03399982516 | AB85: 0 | AD85: 78 | AE85: 0.03396549135 | AF85: 0.0298680086 | AG85: 0.0446 | AH85: 0.0175 | AI85: 2.931797091 | AK85: =IF($AD85+O$4<120,IF($AD85+O$4>0,HLOOKUP($O$3,'Mortality Tables'!$B$1:$AA$151,$A85+1+O$4,FALSE)*O$5,0),1) -> 0.0344776767 | AL85: =IF($AD85+P$4<120,IF($AD85+P$4>0,HLOOKUP($P$3,'Mortality Tables'!$B$1:$AA$151,$A85+1+P$4,FALSE)*P$5,0),1) -> 0.02935582326 | AN85: 78 | AO85: 0.0446 | AP85: 0.0347414823 | AQ85: 0.03325816801 | AR85: 0.0347414823 | AS85: 0.03325816801
A86: 79 | B86: 196.3139 | G86: 0 | I86: 0 | P86: 0 | T86: 0 | V86: 0 | X86: 0.03254817649 | AB86: 0 | AD86: 79 | AE86: 0.03762203154 | AF86: 0.03311543028 | AG86: 0.0446 | AH86: 0.0175 | AI86: 2.98310354 | AK86: =IF($AD86+O$4<120,IF($AD86+O$4>0,HLOOKUP($O$3,'Mortality Tables'!$B$1:$AA$151,$A86+1+O$4,FALSE)*O$5,0),1) -> 0.03818535669 | AL86: =IF($AD86+P$4<120,IF($AD86+P$4>0,HLOOKUP($P$3,'Mortality Tables'!$B$1:$AA$151,$A86+1+P$4,FALSE)*P$5,0),1) -> 0.03255210512 | AN86: 79 | AO86: 0.0446 | AP86: 0.03325816801 | AQ86: 0.03183818496 | AR86: 0.03325816801 | AS86: 0.03183818496
A87: 80 | B87: 197.3139 | G87: 0 | I87: 0 | P87: 0 | T87: 0 | V87: 0 | X87: 0.03115850707 | AB87: 0 | AD87: 80 | AE87: 0.04177631519 | AF87: 0.0367928154 | AG87: 0.0446 | AH87: 0.0175 | AI87: 3.035307852 | AK87: =IF($AD87+O$4<120,IF($AD87+O$4>0,HLOOKUP($O$3,'Mortality Tables'!$B$1:$AA$151,$A87+1+O$4,FALSE)*O$5,0),1) -> 0.04239925266 | AL87: =IF($AD87+P$4<120,IF($AD87+P$4>0,HLOOKUP($P$3,'Mortality Tables'!$B$1:$AA$151,$A87+1+P$4,FALSE)*P$5,0),1) -> 0.03616987793 | AN87: 80 | AO87: 0.0446 | AP87: 0.03183818496 | AQ87: 0.03047882918 | AR87: 0.03183818496 | AS87: 0.03047882918
A88: 81 | B88: 198.3139 | G88: 0 | I88: 0 | P88: 0 | T88: 0 | V88: 0 | X88: 0.02982817066 | AB88: 0 | AD88: 81 | AE88: 0.04647406446 | AF88: 0.04098012451 | AG88: 0.0446 | AH88: 0.0175 | AI88: 3.08842574 | AK88: =IF($AD88+O$4<120,IF($AD88+O$4>0,HLOOKUP($O$3,'Mortality Tables'!$B$1:$AA$151,$A88+1+O$4,FALSE)*O$5,0),1) -> 0.04716080695 | AL88: =IF($AD88+P$4<120,IF($AD88+P$4>0,HLOOKUP($P$3,'Mortality Tables'!$B$1:$AA$151,$A88+1+P$4,FALSE)*P$5,0),1) -> 0.04029338202 | AN88: 81 | AO88: 0.0446 | AP88: 0.03047882918 | AQ88: 0.02917751214 | AR88: 0.03047882918 | AS88: 0.02917751214
A89: 82 | B89: 199.3139 | G89: 0 | I89: 0 | P89: 0 | T89: 0 | V89: 0 | X89: 0.02855463398 | AB89: 0 | AD89: 82 | AE89: 0.05181335011 | AF89: 0.0457487409 | AG89: 0.0446 | AH89: 0.0175 | AI89: 3.14247319 | AK89: =IF($AD89+O$4<120,IF($AD89+O$4>0,HLOOKUP($O$3,'Mortality Tables'!$B$1:$AA$151,$A89+1+O$4,FALSE)*O$5,0),1) -> 0.05257142626 | AL89: =IF($AD89+P$4<120,IF($AD89+P$4>0,HLOOKUP($P$3,'Mortality Tables'!$B$1:$AA$151,$A89+1+P$4,FALSE)*P$5,0),1) -> 0.04499066475 | AN89: 82 | AO89: 0.0446 | AP89: 0.02917751214 | AQ89: 0.02793175583 | AR89: 0.02917751214 | AS89: 0.02793175583
A90: 83 | B90: 200.3139 | G90: 0 | I90: 0 | P90: 0 | T90: 0 | V90: 0 | X90: 0.02733547194 | AB90: 0 | AD90: 83 | AE90: 0.05783572218 | AF90: 0.0511519429 | AG90: 0.0446 | AH90: 0.0175 | AI90: 3.197466471 | AK90: =IF($AD90+O$4<120,IF($AD90+O$4>0,HLOOKUP($O$3,'Mortality Tables'!$B$1:$AA$151,$A90+1+O$4,FALSE)*O$5,0),1) -> 0.05867119459 | AL90: =IF($AD90+P$4<120,IF($AD90+P$4>0,HLOOKUP($P$3,'Mortality Tables'!$B$1:$AA$151,$A90+1+P$4,FALSE)*P$5,0),1) -> 0.05031647049 | AN90: 83 | AO90: 0.0446 | AP90: 0.02793175583 | AQ90: 0.02673918804 | AR90: 0.02793175583 | AS90: 0.02673918804
A91: 84 | B91: 201.3139 | G91: 0 | I91: 0 | P91: 0 | T91: 0 | V91: 0 | X91: 0.02616836295 | AB91: 0 | AD91: 84 | AE91: 0.06464823686 | AF91: 0.05730317832 | AG91: 0.0446 | AH91: 0.0175 | AI91: 3.253422134 | AK91: =IF($AD91+O$4<120,IF($AD91+O$4>0,HLOOKUP($O$3,'Mortality Tables'!$B$1:$AA$151,$A91+1+O$4,FALSE)*O$5,0),1) -> 0.06556636918 | AL91: =IF($AD91+P$4<120,IF($AD91+P$4>0,HLOOKUP($P$3,'Mortality Tables'!$B$1:$AA$151,$A91+1+P$4,FALSE)*P$5,0),1) -> 0.056385046 | AN91: 84 | AO91: 0.0446 | AP91: 0.02673918804 | AQ91: 0.02559753785 | AR91: 0.02673918804 | AS91: 0.02559753785
A92: 85 | B92: 202.3139 | G92: 0 | I92: 0 | P92: 0 | T92: 0 | V92: 0 | X92: 0.02505108458 | AB92: 0 | AD92: 85 | AE92: 0.07233900048 | AF92: 0.06426331992 | AG92: 0.0446 | AH92: 0.0175 | AI92: 3.310357022 | AK92: =IF($AD92+O$4<120,IF($AD92+O$4>0,HLOOKUP($O$3,'Mortality Tables'!$B$1:$AA$151,$A92+1+O$4,FALSE)*O$5,0),1) -> 0.07334846056 | AL92: =IF($AD92+P$4<120,IF($AD92+P$4>0,HLOOKUP($P$3,'Mortality Tables'!$B$1:$AA$151,$A92+1+P$4,FALSE)*P$5,0),1) -> 0.06325385984 | AN92: 85 | AO92: 0.0446 | AP92: 0.02559753785 | AQ92: 0.0245046313 | AR92: 0.02559753785 | AS92: 0.0245046313
A93: 86 | B93: 203.3139 | G93: 0 | I93: 0 | P93: 0 | T93: 0 | V93: 0 | X93: 0.02398150926 | AB93: 0 | AD93: 86 | AE93: 0.08103933371 | AF93: 0.07214952385 | AG93: 0.0446 | AH93: 0.0175 | AI93: 3.368288269 | AK93: =IF($AD93+O$4<120,IF($AD93+O$4>0,HLOOKUP($O$3,'Mortality Tables'!$B$1:$AA$151,$A93+1+O$4,FALSE)*O$5,0),1) -> 0.08215055994 | AL93: =IF($AD93+P$4<120,IF($AD93+P$4>0,HLOOKUP($P$3,'Mortality Tables'!$B$1:$AA$151,$A93+1+P$4,FALSE)*P$5,0),1) -> 0.07103829762 | AN93: 86 | AO93: 0.0446 | AP93: 0.0245046313 | AQ93: 0.02345838723 | AR93: 0.0245046313 | AS93: 0.02345838723
A94: 87 | B94: 204.3139 | G94: 0 | I94: 0 | P94: 0 | T94: 0 | V94: 0 | X94: 0.02295760029 | AB94: 0 | AD94: 87 | AE94: 0.0908231913 | AF94: 0.08105549914 | AG94: 0.0446 | AH94: 0.0175 | AI94: 3.427233314 | AK94: =IF($AD94+O$4<120,IF($AD94+O$4>0,HLOOKUP($O$3,'Mortality Tables'!$B$1:$AA$151,$A94+1+O$4,FALSE)*O$5,0),1) -> 0.09204415282 | AL94: =IF($AD94+P$4<120,IF($AD94+P$4>0,HLOOKUP($P$3,'Mortality Tables'!$B$1:$AA$151,$A94+1+P$4,FALSE)*P$5,0),1) -> 0.07983453762 | AN94: 87 | AO94: 0.0446 | AP94: 0.02345838723 | AQ94: 0.02245681335 | AR94: 0.02345838723 | AS94: 0.02245681335
A95: 88 | B95: 205.3139 | G95: 0 | I95: 0 | P95: 0 | T95: 0 | V95: 0 | X95: 0.0219774079 | AB95: 0 | AD95: 88 | AE95: 0.1017849867 | AF95: 0.09105583046 | AG95: 0.0446 | AH95: 0.0175 | AI95: 3.487209897 | AK95: =IF($AD95+O$4<120,IF($AD95+O$4>0,HLOOKUP($O$3,'Mortality Tables'!$B$1:$AA$151,$A95+1+O$4,FALSE)*O$5,0),1) -> 0.1031261312 | AL95: =IF($AD95+P$4<120,IF($AD95+P$4>0,HLOOKUP($P$3,'Mortality Tables'!$B$1:$AA$151,$A95+1+P$4,FALSE)*P$5,0),1) -> 0.08971468593 | AN95: 88 | AO95: 0.0446 | AP95: 0.02245681335 | AQ95: 0.02149800244 | AR95: 0.02245681335 | AS95: 0.02149800244
A96: 89 | B96: 206.3139 | G96: 0 | I96: 0 | P96: 0 | T96: 0 | V96: 0 | X96: 0.02103906557 | AB96: 0 | AD96: 89 | AE96: 0.1140485182 | AF96: 0.1022664783 | AG96: 0.0446 | AH96: 0.0175 | AI96: 3.54823607 | AK96: =IF($AD96+O$4<120,IF($AD96+O$4>0,HLOOKUP($O$3,'Mortality Tables'!$B$1:$AA$151,$A96+1+O$4,FALSE)*O$5,0),1) -> 0.1155212732 | AL96: =IF($AD96+P$4<120,IF($AD96+P$4>0,HLOOKUP($P$3,'Mortality Tables'!$B$1:$AA$151,$A96+1+P$4,FALSE)*P$5,0),1) -> 0.1007937233 | AN96: 89 | AO96: 0.0446 | AP96: 0.02149800244 | AQ96: 0.0205801287 | AR96: 0.02149800244 | AS96: 0.0205801287
A97: 90 | B97: 207.3139 | G97: 0 | I97: 0 | P97: 0 | T97: 0 | V97: 0 | X97: 0.0201407865 | AB97: 0 | AD97: 90 | AE97: 0.1277813802 | AF97: 0.1148120283 | AG97: 0.0446 | AH97: 0.0175 | AI97: 3.610330202 | AK97: =IF($AD97+O$4<120,IF($AD97+O$4>0,HLOOKUP($O$3,'Mortality Tables'!$B$1:$AA$151,$A97+1+O$4,FALSE)*O$5,0),1) -> 0.1294025492 | AL97: =IF($AD97+P$4<120,IF($AD97+P$4>0,HLOOKUP($P$3,'Mortality Tables'!$B$1:$AA$151,$A97+1+P$4,FALSE)*P$5,0),1) -> 0.1131908594 | AN97: 90 | AO97: 0.0446 | AP97: 0.0205801287 | AQ97: 0.01970144429 | AR97: 0.0205801287 | AS97: 0.01970144429
A98: 91 | B98: 208.3139 | G98: 0 | I98: 0 | P98: 0 | T98: 0 | V98: 0 | X98: 0.01928086013 | AB98: 0 | AD98: =AD97+1 -> 91 | AE98: 0.1425129568 | AF98: 0.1284892235 | AG98: 0.0446 | AH98: 0.0175 | AI98: 3.67351098 | AK98: =IF($AD98+O$4<120,IF($AD98+O$4>0,HLOOKUP($O$3,'Mortality Tables'!$B$1:$AA$151,$A98+1+O$4,FALSE)*O$5,0),1) -> 0.1442659234 | AL98: =IF($AD98+P$4<120,IF($AD98+P$4>0,HLOOKUP($P$3,'Mortality Tables'!$B$1:$AA$151,$A98+1+P$4,FALSE)*P$5,0),1) -> 0.1267362568 | AN98: =AN97+1 -> 91 | AO98: 0.0446 | AP98: 0.01970144429 | AQ98: 0.01886027598 | AR98: 0.01970144429 | AS98: 0.01886027598
A99: 92 | B99: 209.3139 | G99: 0 | I99: 0 | P99: 0 | T99: 0 | V99: 0 | X99: 0.01845764899 | AB99: 0 | AD99: =AD98+1 -> 92 | AE99: 0.1579882596 | AF99: 0.1431498154 | AG99: 0.0446 | AH99: 0.0175 | AI99: 3.737797422 | AK99: =IF($AD99+O$4<120,IF($AD99+O$4>0,HLOOKUP($O$3,'Mortality Tables'!$B$1:$AA$151,$A99+1+O$4,FALSE)*O$5,0),1) -> 0.1598430651 | AL99: =IF($AD99+P$4<120,IF($AD99+P$4>0,HLOOKUP($P$3,'Mortality Tables'!$B$1:$AA$151,$A99+1+P$4,FALSE)*P$5,0),1) -> 0.1412950098 | AN99: =AN98+1 -> 92 | AO99: 0.0446 | AP99: 0.01886027598 | AQ99: 0.018055022 | AR99: 0.01886027598 | AS99: 0.018055022
A100: =A99+1 -> 93 | B100: =B99+1 -> 210.3139 | G100: 0 | I100: 0 | P100: 0 | T100: 0 | V100: 0 | X100: 0.01766958548 | AB100: 0 | AD100: 93 | AE100: 0.1739882112 | AF100: 0.1586477251 | AG100: 0.0446 | AH100: 0.0175 | AI100: 3.803208877 | AK100: =IF($AD100+O$4<120,IF($AD100+O$4>0,HLOOKUP($O$3,'Mortality Tables'!$B$1:$AA$151,$A100+1+O$4,FALSE)*O$5,0),1) -> 0.175905772 | AL100: =IF($AD100+P$4<120,IF($AD100+P$4>0,HLOOKUP($P$3,'Mortality Tables'!$B$1:$AA$151,$A100+1+P$4,FALSE)*P$5,0),1) -> 0.1567301643 | AN100: 93 | AO100: 0.0446 | AP100: 0.018055022 | AQ100: 0.01728414895 | AR100: 0.018055022 | AS100: 0.01728414895
A101: =A100+1 -> 94 | B101: 211.3139 | G101: 0 | I101: 0 | P101: 0 | T101: 0 | V101: 0 | X101: 0.01691516894 | AB101: 0 | AD101: 94 | AE101: 0.1904322433 | AF101: 0.1750117928 | AG101: 0.0446 | AH101: 0.0175 | AI101: 3.869765033 | AK101: =IF($AD101+O$4<120,IF($AD101+O$4>0,HLOOKUP($O$3,'Mortality Tables'!$B$1:$AA$151,$A101+1+O$4,FALSE)*O$5,0),1) -> 0.1923597996 | AL101: =IF($AD101+P$4<120,IF($AD101+P$4>0,HLOOKUP($P$3,'Mortality Tables'!$B$1:$AA$151,$A101+1+P$4,FALSE)*P$5,0),1) -> 0.1730842364 | AN101: 94 | AO101: 0.0446 | AP101: 0.01728414895 | AQ101: 0.01654618893 | AR101: 0.01728414895 | AS101: 0.01654618893
A102: 95 | B102: 212.3139 | G102: 0 | I102: 0 | P102: 0 | T102: 0 | V102: 0 | X102: 0.0161929628 | AB102: 0 | AD102: 95 | AE102: 0.2073143639 | AF102: 0.192135106 | AG102: 0.0446 | AH102: 0.0175 | AI102: 3.937485921 | AK102: =IF($AD102+O$4<120,IF($AD102+O$4>0,HLOOKUP($O$3,'Mortality Tables'!$B$1:$AA$151,$A102+1+O$4,FALSE)*O$5,0),1) -> 0.2092117712 | AL102: =IF($AD102+P$4<120,IF($AD102+P$4>0,HLOOKUP($P$3,'Mortality Tables'!$B$1:$AA$151,$A102+1+P$4,FALSE)*P$5,0),1) -> 0.1902376988 | AN102: 95 | AO102: 0.0446 | AP102: 0.01654618893 | AQ102: 0.01583973667 | AR102: 0.01654618893 | AS102: 0.01583973667
A103: 96 | B103: 213.3139 | G103: 0 | I103: 0 | P103: 0 | T103: 0 | V103: 0 | X103: 0.01550159181 | AB103: 0 | AD103: 96 | AE103: 0.2251034495 | AF103: 0.210357664 | AG103: 0.0446 | AH103: 0.0175 | AI103: 4.006391924 | AK103: =IF($AD103+O$4<120,IF($AD103+O$4>0,HLOOKUP($O$3,'Mortality Tables'!$B$1:$AA$151,$A103+1+O$4,FALSE)*O$5,0),1) -> 0.2269466727 | AL103: =IF($AD103+P$4<120,IF($AD103+P$4>0,HLOOKUP($P$3,'Mortality Tables'!$B$1:$AA$151,$A103+1+P$4,FALSE)*P$5,0),1) -> 0.2085144408 | AN103: 96 | AO103: 0.0446 | AP103: 0.01583973667 | AQ103: 0.01516344694 | AR103: 0.01583973667 | AS103: 0.01516344694
A104: 97 | B104: 214.3139 | G104: 0 | I104: 0 | P104: 0 | T104: 0 | V104: 0 | X104: 0.01483973943 | AB104: 0 | AD104: 97 | AE104: 0.2434807843 | AF104: 0.2294471925 | AG104: 0.0446 | AH104: 0.0175 | AI104: 4.076503783 | AK104: =IF($AD104+O$4<120,IF($AD104+O$4>0,HLOOKUP($O$3,'Mortality Tables'!$B$1:$AA$151,$A104+1+O$4,FALSE)*O$5,0),1) -> 0.2452349832 | AL104: =IF($AD104+P$4<120,IF($AD104+P$4>0,HLOOKUP($P$3,'Mortality Tables'!$B$1:$AA$151,$A104+1+P$4,FALSE)*P$5,0),1) -> 0.2276929936 | AN104: 97 | AO104: 0.0446 | AP104: 0.01516344694 | AQ104: 0.01451603192 | AR104: 0.01516344694 | AS104: 0.01451603192
A105: 98 | B105: 215.3139 | G105: 0 | I105: 0 | P105: 0 | T105: 0 | V105: 0 | X105: 0.01420614535 | AB105: 0 | AD105: 98 | AE105: 0.2625690969 | AF105: 0.2494366902 | AG105: 0.0446 | AH105: 0.0175 | AI105: 4.147842599 | AK105: =IF($AD105+O$4<120,IF($AD105+O$4>0,HLOOKUP($O$3,'Mortality Tables'!$B$1:$AA$151,$A105+1+O$4,FALSE)*O$5,0),1) -> 0.2642106477 | AL105: =IF($AD105+P$4<120,IF($AD105+P$4>0,HLOOKUP($P$3,'Mortality Tables'!$B$1:$AA$151,$A105+1+P$4,FALSE)*P$5,0),1) -> 0.2477951394 | AN105: 98 | AO105: 0.0446 | AP105: 0.01451603192 | AQ105: 0.01389625877 | AR105: 0.01451603192 | AS105: 0.01389625877
A106: 99 | B106: 216.3139 | G106: 0 | I106: 0 | P106: 0 | T106: 0 | V106: 0 | X106: 0.01359960305 | AB106: 0 | AD106: 99 | AE106: 0.2822638703 | AF106: 0.2702123545 | AG106: 0.0446 | AH106: 0.0175 | AI106: 4.220429845 | AK106: =IF($AD106+O$4<120,IF($AD106+O$4>0,HLOOKUP($O$3,'Mortality Tables'!$B$1:$AA$151,$A106+1+O$4,FALSE)*O$5,0),1) -> 0.2837703098 | AL106: =IF($AD106+P$4<120,IF($AD106+P$4>0,HLOOKUP($P$3,'Mortality Tables'!$B$1:$AA$151,$A106+1+P$4,FALSE)*P$5,0),1) -> 0.268705915 | AN106: 99 | AO106: 0.0446 | AP106: 0.01389625877 | AQ106: 0.01330294732 | AR106: 0.01389625877 | AS106: 0.01330294732
A107: 100 | B107: 217.3139 | G107: 0 | I107: 0 | P107: 0 | T107: 0 | V107: 0 | X107: 0.01301895754 | AB107: 0 | AD107: 100 | AE107: 0.3025724295 | AF107: 0.2916761446 | AG107: 0.0446 | AH107: 0.0175 | AI107: 4.294287367 | AK107: =IF($AD107+O$4<120,IF($AD107+O$4>0,HLOOKUP($O$3,'Mortality Tables'!$B$1:$AA$151,$A107+1+O$4,FALSE)*O$5,0),1) -> 0.3039344652 | AL107: =IF($AD107+P$4<120,IF($AD107+P$4>0,HLOOKUP($P$3,'Mortality Tables'!$B$1:$AA$151,$A107+1+P$4,FALSE)*P$5,0),1) -> 0.290314109 | AN107: 100 | AO107: 0.0446 | AP107: 0.01330294732 | AQ107: 0.01273496776 | AR107: 0.01330294732 | AS107: 0.01273496776
A108: 101 | B108: 218.3139 | G108: 0 | I108: 0 | P108: 0 | T108: 0 | V108: 0 | X108: 0.01246310314 | AB108: 0 | AD108: 101 | AE108: 0.3231324228 | AF108: 0.3136731987 | AG108: 0.0446 | AH108: 0.0175 | AI108: 4.369437396 | AK108: =IF($AD108+O$4<120,IF($AD108+O$4>0,HLOOKUP($O$3,'Mortality Tables'!$B$1:$AA$151,$A108+1+O$4,FALSE)*O$5,0),1) -> 0.3243148258 | AL108: =IF($AD108+P$4<120,IF($AD108+P$4>0,HLOOKUP($P$3,'Mortality Tables'!$B$1:$AA$151,$A108+1+P$4,FALSE)*P$5,0),1) -> 0.3124907956 | AN108: 101 | AO108: 0.0446 | AP108: 0.01273496776 | AQ108: 0.01219123852 | AR108: 0.01273496776 | AS108: 0.01219123852
A109: 102 | B109: 219.3139 | G109: 0 | I109: 0 | P109: 0 | T109: 0 | V109: 0 | X109: 0.01193098137 | AB109: 0 | AD109: 102 | AE109: 0.3437203092 | AF109: 0.3359615406 | AG109: 0.0446 | AH109: 0.0175 | AI109: 4.44590255 | AK109: =IF($AD109+O$4<120,IF($AD109+O$4>0,HLOOKUP($O$3,'Mortality Tables'!$B$1:$AA$151,$A109+1+O$4,FALSE)*O$5,0),1) -> 0.3446901553 | AL109: =IF($AD109+P$4<120,IF($AD109+P$4>0,HLOOKUP($P$3,'Mortality Tables'!$B$1:$AA$151,$A109+1+P$4,FALSE)*P$5,0),1) -> 0.3349916945 | AN109: 102 | AO109: 0.0446 | AP109: 0.01219123852 | AQ109: 0.01167072422 | AR109: 0.01219123852 | AS109: 0.01167072422
A110: 103 | B110: 220.3139 | G110: 0 | I110: 0 | P110: 0 | T110: 0 | V110: 0 | X110: 0.01142157895 | AB110: 0 | AD110: 103 | AE110: 0.3641575785 | AF110: 0.3583048801 | AG110: 0.0446 | AH110: 0.0175 | AI110: 4.523705845 | AK110: =IF($AD110+O$4<120,IF($AD110+O$4>0,HLOOKUP($O$3,'Mortality Tables'!$B$1:$AA$151,$A110+1+O$4,FALSE)*O$5,0),1) -> 0.3648891658 | AL110: =IF($AD110+P$4<120,IF($AD110+P$4>0,HLOOKUP($P$3,'Mortality Tables'!$B$1:$AA$151,$A110+1+P$4,FALSE)*P$5,0),1) -> 0.3575732928 | AN110: 103 | AO110: 0.0446 | AP110: 0.01167072422 | AQ110: 0.01117243368 | AR110: 0.01167072422 | AS110: 0.01117243368
A111: =A110+1 -> 104 | B111: 221.3139 | G111: 0 | I111: 0 | P111: 0 | T111: 0 | V111: 0 | X111: 0.01093392586 | AB111: 0 | AD111: 104 | AE111: 0.3842551932 | AF111: 0.3805987586 | AG111: 0.0446 | AH111: 0.0175 | AI111: 4.602870697 | AK111: =IF($AD111+O$4<120,IF($AD111+O$4>0,HLOOKUP($O$3,'Mortality Tables'!$B$1:$AA$151,$A111+1+O$4,FALSE)*O$5,0),1) -> 0.3847122475 | AL111: =IF($AD111+P$4<120,IF($AD111+P$4>0,HLOOKUP($P$3,'Mortality Tables'!$B$1:$AA$151,$A111+1+P$4,FALSE)*P$5,0),1) -> 0.3801417043 | AN111: 104 | AO111: 0.0446 | AP111: 0.01117243368 | AQ111: 0.01069541804 | AR111: 0.01117243368 | AS111: 0.01069541804
A112: =A111+1 -> 105 | B112: 222.3139 | G112: 0 | I112: 0 | P112: 0 | T112: 0 | V112: 0 | X112: 0.01046709349 | AB112: 0 | AD112: 105 | AE112: 0.4038140329 | AF112: 0.4026036848 | AG112: 0.0446 | AH112: 0.0175 | AI112: 4.683420934 | AK112: =IF($AD112+O$4<120,IF($AD112+O$4>0,HLOOKUP($O$3,'Mortality Tables'!$B$1:$AA$151,$A112+1+O$4,FALSE)*O$5,0),1) -> 0.4039653265 | AL112: =IF($AD112+P$4<120,IF($AD112+P$4>0,HLOOKUP($P$3,'Mortality Tables'!$B$1:$AA$151,$A112+1+P$4,FALSE)*P$5,0),1) -> 0.4024523913 | AN112: 105 | AO112: 0.0446 | AP112: 0.01069541804 | AQ112: 0.01023876894 | AR112: 0.01069541804 | AS112: 0.01023876894
A113: 106 | B113: 223.3139 | G113: 0 | I113: 0 | P113: 0 | T113: 0 | V113: 0 | X113: 0.01002019289 | AB113: 0 | AD113: 106 | AE113: 0.4227748802 | AF113: 0.4242580847 | AG113: 0.0446 | AH113: 0.0175 | AI113: 4.765380801 | AK113: =IF($AD113+O$4<120,IF($AD113+O$4>0,HLOOKUP($O$3,'Mortality Tables'!$B$1:$AA$151,$A113+1+O$4,FALSE)*O$5,0),1) -> 0.4225894796 | AL113: =IF($AD113+P$4<120,IF($AD113+P$4>0,HLOOKUP($P$3,'Mortality Tables'!$B$1:$AA$151,$A113+1+P$4,FALSE)*P$5,0),1) -> 0.4244434853 | AN113: 106 | AO113: 0.0446 | AP113: 0.01023876894 | AQ113: 0.009801616831 | AR113: 0.01023876894 | AS113: 0.009801616831
A114: 107 | B114: 224.3139 | G114: 0 | I114: 0 | P114: 0 | T114: 0 | V114: 0 | X114: 0.009592373049 | AB114: 0 | AD114: 107 | AE114: 0.4410188553 | AF114: 0.4452293572 | AG114: 0.0446 | AH114: 0.0175 | AI114: 4.848774965 | AK114: =IF($AD114+O$4<120,IF($AD114+O$4>0,HLOOKUP($O$3,'Mortality Tables'!$B$1:$AA$151,$A114+1+O$4,FALSE)*O$5,0),1) -> 0.4404925425 | AL114: =IF($AD114+P$4<120,IF($AD114+P$4>0,HLOOKUP($P$3,'Mortality Tables'!$B$1:$AA$151,$A114+1+P$4,FALSE)*P$5,0),1) -> 0.44575567 | AN114: 107 | AO114: 0.0446 | AP114: 0.009801616831 | AQ114: 0.009383129266 | AR114: 0.009801616831 | AS114: 0.009383129266
A115: 108 | B115: 225.3139 | G115: 0 | I115: 0 | P115: 0 | T115: 0 | V115: 0 | X115: 0.009182819308 | AB115: 0 | AD115: 108 | AE115: 0.4583525272 | AF115: 0.4654402371 | AG115: 0.0446 | AH115: 0.0175 | AI115: 4.933628527 | AK115: =IF($AD115+O$4<120,IF($AD115+O$4>0,HLOOKUP($O$3,'Mortality Tables'!$B$1:$AA$151,$A115+1+O$4,FALSE)*O$5,0),1) -> 0.4574665634 | AL115: =IF($AD115+P$4<120,IF($AD115+P$4>0,HLOOKUP($P$3,'Mortality Tables'!$B$1:$AA$151,$A115+1+P$4,FALSE)*P$5,0),1) -> 0.4663262008 | AN115: 108 | AO115: 0.0446 | AP115: 0.009383129266 | AQ115: 0.008982509349 | AR115: 0.009383129266 | AS115: 0.008982509349
A116: 109 | B116: 226.3139 | G116: 0 | I116: 0 | P116: 0 | T116: 0 | V116: 0 | X116: 0.008790751778 | AB116: 0 | AD116: 109 | AE116: 0.4749102232 | AF116: 0.4848521555 | AG116: 0.0446 | AH116: 0.0175 | AI116: 5.019967026 | AK116: =IF($AD116+O$4<120,IF($AD116+O$4>0,HLOOKUP($O$3,'Mortality Tables'!$B$1:$AA$151,$A116+1+O$4,FALSE)*O$5,0),1) -> 0.4736674817 | AL116: =IF($AD116+P$4<120,IF($AD116+P$4>0,HLOOKUP($P$3,'Mortality Tables'!$B$1:$AA$151,$A116+1+P$4,FALSE)*P$5,0),1) -> 0.486094897 | AN116: 109 | AO116: 0.0446 | AP116: 0.008982509349 | AQ116: 0.008598994207 | AR116: 0.008982509349 | AS116: 0.008598994207
A117: 110 | B117: 227.3139 | G117: 0 | I117: 0 | P117: 0 | T117: 0 | V117: 0 | X117: 0.008415423873 | AB117: 0 | AD117: 110 | AE117: 0.4905668159 | AF117: 0.5033696187 | AG117: 0.0446 | AH117: 0.0175 | AI117: 5.107816449 | AK117: =IF($AD117+O$4<120,IF($AD117+O$4>0,HLOOKUP($O$3,'Mortality Tables'!$B$1:$AA$151,$A117+1+O$4,FALSE)*O$5,0),1) -> 0.4889664655 | AL117: =IF($AD117+P$4<120,IF($AD117+P$4>0,HLOOKUP($P$3,'Mortality Tables'!$B$1:$AA$151,$A117+1+P$4,FALSE)*P$5,0),1) -> 0.5049699691 | AN117: 110 | AO117: 0.0446 | AP117: 0.008598994207 | AQ117: 0.00823185354 | AR117: 0.008598994207 | AS117: 0.00823185354
A118: 111 | B118: 228.3139 | G118: 0 | I118: 0 | P118: 0 | T118: 0 | V118: 0 | X118: 0.008056120882 | AB118: 0 | AD118: 111 | AE118: 0.498339805 | AF118: 0.5201107009 | AG118: 0.0446 | AH118: 0.0175 | AI118: 5.197203237 | AK118: =IF($AD118+O$4<120,IF($AD118+O$4>0,HLOOKUP($O$3,'Mortality Tables'!$B$1:$AA$151,$A118+1+O$4,FALSE)*O$5,0),1) -> 0.495618443 | AL118: =IF($AD118+P$4<120,IF($AD118+P$4>0,HLOOKUP($P$3,'Mortality Tables'!$B$1:$AA$151,$A118+1+P$4,FALSE)*P$5,0),1) -> 0.5228320629 | AN118: 111 | AO118: 0.0446 | AP118: 0.00823185354 | AQ118: 0.007880388225 | AR118: 0.00823185354 | AS118: 0.007880388225
A119: 112 | B119: 229.3139 | G119: 0 | I119: 0 | P119: 0 | T119: 0 | V119: 0 | X119: 0.007712158608 | AB119: 0 | AD119: 112 | AE119: 0.5010238234 | AF119: 0.5353350833 | AG119: 0.0446 | AH119: 0.0175 | AI119: 5.288154293 | AK119: =IF($AD119+O$4<120,IF($AD119+O$4>0,HLOOKUP($O$3,'Mortality Tables'!$B$1:$AA$151,$A119+1+O$4,FALSE)*O$5,0),1) -> 0.496734916 | AL119: =IF($AD119+P$4<120,IF($AD119+P$4>0,HLOOKUP($P$3,'Mortality Tables'!$B$1:$AA$151,$A119+1+P$4,FALSE)*P$5,0),1) -> 0.5396239908 | AN119: 112 | AO119: 0.0446 | AP119: 0.007880388225 | AQ119: 0.007543928992 | AR119: 0.007880388225 | AS119: 0.007543928992
A120: 113 | B120: 230.3139 | G120: 0 | I120: 0 | P120: 0 | T120: 0 | V120: 0 | X120: 0.007382882068 | AB120: 0 | AD120: 113 | AE120: 0.5028160507 | AF120: 0.5431102588 | AG120: 0.0446 | AH120: 0.0175 | AI120: 5.380696993 | AK120: =IF($AD120+O$4<120,IF($AD120+O$4>0,HLOOKUP($O$3,'Mortality Tables'!$B$1:$AA$151,$A120+1+O$4,FALSE)*O$5,0),1) -> 0.4977792747 | AL120: =IF($AD120+P$4<120,IF($AD120+P$4>0,HLOOKUP($P$3,'Mortality Tables'!$B$1:$AA$151,$A120+1+P$4,FALSE)*P$5,0),1) -> 0.5481470348 | AN120: 113 | AO120: 0.0446 | AP120: 0.007543928992 | AQ120: 0.007221835144 | AR120: 0.007543928992 | AS120: 0.007221835144
A121: 114 | B121: 231.3139 | G121: 0 | I121: 0 | P121: 0 | T121: 0 | V121: 0 | X121: 0.007067664243 | AB121: 0 | AD121: 114 | AE121: 0.5039457751 | AF121: 0.5439065747 | AG121: 0.0446 | AH121: 0.0175 | AI121: 5.474859191 | AK121: =IF($AD121+O$4<120,IF($AD121+O$4>0,HLOOKUP($O$3,'Mortality Tables'!$B$1:$AA$151,$A121+1+O$4,FALSE)*O$5,0),1) -> 0.4989506752 | AL121: =IF($AD121+P$4<120,IF($AD121+P$4>0,HLOOKUP($P$3,'Mortality Tables'!$B$1:$AA$151,$A121+1+P$4,FALSE)*P$5,0),1) -> 0.5489016746 | AN121: 114 | AO121: 0.0446 | AP121: 0.007221835144 | AQ121: 0.006913493341 | AR121: 0.007221835144 | AS121: 0.006913493341
A122: 115 | B122: 232.3139 | G122: 0 | I122: 0 | P122: 0 | T122: 0 | V122: 0 | X122: 0.006765904885 | AB122: 0 | AD122: 115 | AE122: 0.505 | AF122: 0.545 | AG122: 0.0446 | AH122: 0.0175 | AI122: 5.570669227 | AK122: =IF($AD122+O$4<120,IF($AD122+O$4>0,HLOOKUP($O$3,'Mortality Tables'!$B$1:$AA$151,$A122+1+O$4,FALSE)*O$5,0),1) -> 0.5 | AL122: =IF($AD122+P$4<120,IF($AD122+P$4>0,HLOOKUP($P$3,'Mortality Tables'!$B$1:$AA$151,$A122+1+P$4,FALSE)*P$5,0),1) -> 0.55 | AN122: 115 | AO122: 0.0446 | AP122: 0.006913493341 | AQ122: 0.006618316429 | AR122: 0.006913493341 | AS122: 0.006618316429
A123: 116 | B123: 233.3139 | G123: 0 | I123: 0 | P123: 0 | T123: 0 | V123: 0 | X123: 0.006477029375 | AB123: 0 | AD123: 116 | AE123: 0.505 | AF123: 0.545 | AG123: 0.0446 | AH123: 0.0175 | AI123: 5.668155938 | AK123: =IF($AD123+O$4<120,IF($AD123+O$4>0,HLOOKUP($O$3,'Mortality Tables'!$B$1:$AA$151,$A123+1+O$4,FALSE)*O$5,0),1) -> 0.5 | AL123: =IF($AD123+P$4<120,IF($AD123+P$4>0,HLOOKUP($P$3,'Mortality Tables'!$B$1:$AA$151,$A123+1+P$4,FALSE)*P$5,0),1) -> 0.55 | AN123: 116 | AO123: 0.0446 | AP123: 0.006618316429 | AQ123: 0.006335742321 | AR123: 0.006618316429 | AS123: 0.006335742321
A124: 117 | B124: 234.3139 | G124: 0 | I124: 0 | P124: 0 | T124: 0 | V124: 0 | X124: 0.006200487627 | AB124: 0 | AD124: 117 | AE124: 0.505 | AF124: 0.545 | AG124: 0.0446 | AH124: 0.0175 | AI124: 5.767348667 | AK124: =IF($AD124+O$4<120,IF($AD124+O$4>0,HLOOKUP($O$3,'Mortality Tables'!$B$1:$AA$151,$A124+1+O$4,FALSE)*O$5,0),1) -> 0.5 | AL124: =IF($AD124+P$4<120,IF($AD124+P$4>0,HLOOKUP($P$3,'Mortality Tables'!$B$1:$AA$151,$A124+1+P$4,FALSE)*P$5,0),1) -> 0.55 | AN124: 117 | AO124: 0.0446 | AP124: 0.006335742321 | AQ124: 0.006065232932 | AR124: 0.006335742321 | AS124: 0.006065232932
A125: 118 | B125: 235.3139 | G125: 0 | I125: 0 | P125: 0 | T125: 0 | V125: 0 | X125: 0.005935753041 | AB125: 0 | AD125: 118 | AE125: 0.505 | AF125: 0.545 | AG125: 0.0446 | AH125: 0.0175 | AI125: 5.868277269 | AK125: =IF($AD125+O$4<120,IF($AD125+O$4>0,HLOOKUP($O$3,'Mortality Tables'!$B$1:$AA$151,$A125+1+O$4,FALSE)*O$5,0),1) -> 0.5 | AL125: =IF($AD125+P$4<120,IF($AD125+P$4>0,HLOOKUP($P$3,'Mortality Tables'!$B$1:$AA$151,$A125+1+P$4,FALSE)*P$5,0),1) -> 0.55 | AN125: 118 | AO125: 0.0446 | AP125: 0.006065232932 | AQ125: 0.00580627315 | AR125: 0.006065232932 | AS125: 0.00580627315
A126: 119 | B126: 236.3139 | G126: 0 | I126: 0 | P126: 0 | T126: 0 | V126: 0 | X126: 0.005682321502 | AB126: 0 | AD126: 119 | AE126: 0.505 | AF126: 0.545 | AG126: 0.0446 | AH126: 0.0175 | AI126: 5.970972121 | AK126: =IF($AD126+O$4<120,IF($AD126+O$4>0,HLOOKUP($O$3,'Mortality Tables'!$B$1:$AA$151,$A126+1+O$4,FALSE)*O$5,0),1) -> 0.5 | AL126: =IF($AD126+P$4<120,IF($AD126+P$4>0,HLOOKUP($P$3,'Mortality Tables'!$B$1:$AA$151,$A126+1+P$4,FALSE)*P$5,0),1) -> 0.55 | AN126: 119 | AO126: 0.0446 | AP126: 0.00580627315 | AQ126: 0.005558369854 | AR126: 0.00580627315 | AS126: 0.005558369854
A127: =A126+1 -> 120 | B127: 237.3139 | G127: 0 | I127: 0 | P127: 0 | T127: 0 | V127: 0 | X127: 0.005439710417 | AB127: 0 | AD127: 120 | AE127: 1 | AF127: 1 | AG127: 0.0446 | AH127: 0.0175 | AI127: 6.075464133 | AK127: =IF($AD127+O$4<120,IF($AD127+O$4>0,HLOOKUP($O$3,'Mortality Tables'!$B$1:$AA$151,$A127+1+O$4,FALSE)*O$5,0),1) -> 1 | AL127: =IF($AD127+P$4<120,IF($AD127+P$4>0,HLOOKUP($P$3,'Mortality Tables'!$B$1:$AA$151,$A127+1+P$4,FALSE)*P$5,0),1) -> 1 | AN127: 120 | AO127: 0.0446 | AP127: 0.005558369854 | AQ127: 0.005321050981 | AR127: 0.005558369854 | AS127: 0.005321050981
A128: RETIREE ONLY DISCOUNT FACTOR DEVELOPMENT
A129: Year | B129: BOYAGE | D129: 1-fagr | F129: pxn | H129: fagr | J129: p1xn | L129: VBOY | N129: Fpay | P129: 1-fagr | R129: pxn1 | T129: fagr | V129: px1n1 | X129: vEOY | Z129: 1-fpay | AC129: EDTH
A130: 1 | B130: =C3 -> 118 | C130: ( | D130: =1-$D$3 -> 0.6861 | E130: * | F130: 1 | G130: + | H130: =$D$3 -> 0.3139 | I130: * | J130: 1 | K130: )* | L130: =VLOOKUP($A130,$AN$8:$AS$127,IF($R$1="Sel&Ult",3,IF($R$1="Segment",5,99)),FALSE) -> 1 | M130: * | N130: =$K$5 -> 0.5 | O130: + ( | P130: =1-$D$3 -> 0.6861 | Q130: * | R130: =1-VLOOKUP($B130,$AD$8:$AG$127,2,TRUE) -> 0.495 | S130: + | T130: =$D$3 -> 0.3139 | U130: * | V130: =1-VLOOKUP($B130+1,$AD$8:$AG$127,2,TRUE) -> 0.495 | W130: )* | X130: =VLOOKUP($A130,$AN$8:$AS$127,IF($R$1="Sel&Ult",4,IF($R$1="Segment",6,99)),FALSE) -> 0.9573042313 | Y130: * | Z130: =1-$K$5 -> 0.5 | AA130: = | AB130: =(D130*F130+H130*J130)*L130*N130+(P130*R130+T130*V130)*X130*Z130 -> 0.7369327972 | AC130: =((1-$D$3)*L130*(F130-R130)+$D$3*L130*(J130-V130))*(1+AG8)^-0.5 -> 0.4941017219
A131: 2 | B131: =B130+1 -> 119 | C131: ( | D131: =1-$D$3 -> 0.6861 | E131: * | F131: =R130 -> 0.495 | G131: + | H131: =$D$3 -> 0.3139 | I131: * | J131: =V130 -> 0.495 | K131: )* | L131: =VLOOKUP($A131,$AN$8:$AS$127,IF($R$1="Sel&Ult",3,IF($R$1="Segment",5,99)),FALSE) -> 0.9573042313 | M131: * | N131: =$K$5 -> 0.5 | O131: + ( | P131: =1-$D$3 -> 0.6861 | Q131: * | R131: =(1-VLOOKUP($B131,$AD$8:$AG$127,2,TRUE))*R130 -> 0.245025 | S131: + | T131: =$D$3 -> 0.3139 | U131: * | V131: =(1-VLOOKUP($B131+1,$AD$8:$AG$127,2,TRUE))*V130 -> 0 | W131: )* | X131: =VLOOKUP($A131,$AN$8:$AS$127,IF($R$1="Sel&Ult",4,IF($R$1="Segment",6,99)),FALSE) -> 0.9164313912 | Y131: * | Z131: =1-$K$5 -> 0.5 | AA131: = | AB131: =(D131*F131+H131*J131)*L131*N131+(P131*R131+T131*V131)*X131*Z131 -> 0.313964195 | AC131: =((1-$D$3)*L131*(F131-R131)+$D$3*L131*(J131-V131))*(1+AG9)^-0.5 -> 0.3061783
A132: 3 | B132: =B131+1 -> 120 | C132: ( | D132: 0.6861 | E132: * | F132: =R131 -> 0.245025 | G132: + | H132: 0.3139 | I132: * | J132: =V131 -> 0 | K132: )* | L132: 0.9164313912 | M132: * | N132: 0.5 | O132: + ( | P132: 0.6861 | Q132: * | R132: 0 | S132: + | T132: 0.3139 | U132: * | V132: 0 | W132: )* | X132: 0.8773036485 | Y132: * | Z132: 0.5 | AA132: = | AB132: 0.07703139779 | AC132: 0.1507380051
A133: 4 | B133: 121 | C133: ( | D133: 0.6861 | E133: * | F133: 0 | G133: + | H133: 0.3139 | I133: * | J133: 0 | K133: )* | L133: 0.8773036485 | M133: * | N133: 0.5 | O133: + ( | P133: 0.6861 | Q133: * | R133: 0 | S133: + | T133: 0.3139 | U133: * | V133: 0 | W133: )* | X133: 0.8398464948 | Y133: * | Z133: 0.5 | AA133: = | AB133: 0 | AC133: 0
A134: 5 | B134: 122 | C134: ( | D134: 0.6861 | E134: * | F134: 0 | G134: + | H134: 0.3139 | I134: * | J134: 0 | K134: )* | L134: 0.8398464948 | M134: * | N134: 0.5 | O134: + ( | P134: 0.6861 | Q134: * | R134: 0 | S134: + | T134: 0.3139 | U134: * | V134: 0 | W134: )* | X134: 0.8039886031 | Y134: * | Z134: 0.5 | AA134: = | AB134: 0 | AC134: 0
A135: 6 | B135: 123 | C135: ( | D135: 0.6861 | E135: * | F135: 0 | G135: + | H135: 0.3139 | I135: * | J135: 0 | K135: )* | L135: 0.8039886031 | M135: * | N135: 0.5 | O135: + ( | P135: 0.6861 | Q135: * | R135: 0 | S135: + | T135: 0.3139 | U135: * | V135: 0 | W135: )* | X135: 0.7696616917 | Y135: * | Z135: 0.5 | AA135: = | AB135: 0 | AC135: 0
A136: 7 | B136: 124 | C136: ( | D136: 0.6861 | E136: * | F136: 0 | G136: + | H136: 0.3139 | I136: * | J136: 0 | K136: )* | L136: 0.7696616917 | M136: * | N136: 0.5 | O136: + ( | P136: 0.6861 | Q136: * | R136: 0 | S136: + | T136: 0.3139 | U136: * | V136: 0 | W136: )* | X136: 0.7368003941 | Y136: * | Z136: 0.5 | AA136: = | AB136: 0 | AC136: 0
A137: 8 | B137: 125 | C137: ( | D137: 0.6861 | E137: * | F137: 0 | G137: + | H137: 0.3139 | I137: * | J137: 0 | K137: )* | L137: 0.7368003941 | M137: * | N137: 0.5 | O137: + ( | P137: 0.6861 | Q137: * | R137: 0 | S137: + | T137: 0.3139 | U137: * | V137: 0 | W137: )* | X137: 0.7053421349 | Y137: * | Z137: 0.5 | AA137: = | AB137: 0 | AC137: 0
A138: 9 | B138: 126 | C138: ( | D138: 0.6861 | E138: * | F138: 0 | G138: + | H138: 0.3139 | I138: * | J138: 0 | K138: )* | L138: 0.7053421349 | M138: * | N138: 0.5 | O138: + ( | P138: 0.6861 | Q138: * | R138: 0 | S138: + | T138: 0.3139 | U138: * | V138: 0 | W138: )* | X138: 0.6752270102 | Y138: * | Z138: 0.5 | AA138: = | AB138: 0 | AC138: 0
A139: 10 | B139: 127 | C139: ( | D139: 0.6861 | E139: * | F139: 0 | G139: + | H139: 0.3139 | I139: * | J139: 0 | K139: )* | L139: 0.6752270102 | M139: * | N139: 0.5 | O139: + ( | P139: 0.6861 | Q139: * | R139: 0 | S139: + | T139: 0.3139 | U139: * | V139: 0 | W139: )* | X139: 0.646397674 | Y139: * | Z139: 0.5 | AA139: = | AB139: 0 | AC139: 0
A140: 11 | B140: 128 | C140: ( | D140: 0.6861 | E140: * | F140: 0 | G140: + | H140: 0.3139 | I140: * | J140: 0 | K140: )* | L140: 0.646397674 | M140: * | N140: 0.5 | O140: + ( | P140: 0.6861 | Q140: * | R140: 0 | S140: + | T140: 0.3139 | U140: * | V140: 0 | W140: )* | X140: 0.6187992284 | Y140: * | Z140: 0.5 | AA140: = | AB140: 0 | AC140: 0
A141: 12 | B141: 129 | C141: ( | D141: 0.6861 | E141: * | F141: 0 | G141: + | H141: 0.3139 | I141: * | J141: 0 | K141: )* | L141: 0.6187992284 | M141: * | N141: 0.5 | O141: + ( | P141: 0.6861 | Q141: * | R141: 0 | S141: + | T141: 0.3139 | U141: * | V141: 0 | W141: )* | X141: 0.5923791197 | Y141: * | Z141: 0.5 | AA141: = | AB141: 0 | AC141: 0
A142: 13 | B142: 130 | C142: ( | D142: 0.6861 | E142: * | F142: 0 | G142: + | H142: 0.3139 | I142: * | J142: 0 | K142: )* | L142: 0.5923791197 | M142: * | N142: 0.5 | O142: + ( | P142: 0.6861 | Q142: * | R142: 0 | S142: + | T142: 0.3139 | U142: * | V142: 0 | W142: )* | X142: 0.5670870378 | Y142: * | Z142: 0.5 | AA142: = | AB142: 0 | AC142: 0
A143: 14 | B143: 131 | C143: ( | D143: 0.6861 | E143: * | F143: 0 | G143: + | H143: 0.3139 | I143: * | J143: 0 | K143: )* | L143: 0.5670870378 | M143: * | N143: 0.5 | O143: + ( | P143: 0.6861 | Q143: * | R143: 0 | S143: + | T143: 0.3139 | U143: * | V143: 0 | W143: )* | X143: 0.5428748208 | Y143: * | Z143: 0.5 | AA143: = | AB143: 0 | AC143: 0
A144: 15 | B144: 132 | C144: ( | D144: 0.6861 | E144: * | F144: 0 | G144: + | H144: 0.3139 | I144: * | J144: 0 | K144: )* | L144: 0.5428748208 | M144: * | N144: 0.5 | O144: + ( | P144: 0.6861 | Q144: * | R144: 0 | S144: + | T144: 0.3139 | U144: * | V144: 0 | W144: )* | X144: 0.519696363 | Y144: * | Z144: 0.5 | AA144: = | AB144: 0 | AC144: 0
A145: 16 | B145: 133 | C145: ( | D145: 0.6861 | E145: * | F145: 0 | G145: + | H145: 0.3139 | I145: * | J145: 0 | K145: )* | L145: 0.519696363 | M145: * | N145: 0.5 | O145: + ( | P145: 0.6861 | Q145: * | R145: 0 | S145: + | T145: 0.3139 | U145: * | V145: 0 | W145: )* | X145: 0.4975075273 | Y145: * | Z145: 0.5 | AA145: = | AB145: 0 | AC145: 0
A146: 17 | B146: 134 | C146: ( | D146: 0.6861 | E146: * | F146: 0 | G146: + | H146: 0.3139 | I146: * | J146: 0 | K146: )* | L146: 0.4975075273 | M146: * | N146: 0.5 | O146: + ( | P146: 0.6861 | Q146: * | R146: 0 | S146: + | T146: 0.3139 | U146: * | V146: 0 | W146: )* | X146: 0.4762660609 | Y146: * | Z146: 0.5 | AA146: = | AB146: 0 | AC146: 0
A147: 18 | B147: 135 | C147: ( | D147: 0.6861 | E147: * | F147: 0 | G147: + | H147: 0.3139 | I147: * | J147: 0 | K147: )* | L147: 0.4762660609 | M147: * | N147: 0.5 | O147: + ( | P147: 0.6861 | Q147: * | R147: 0 | S147: + | T147: 0.3139 | U147: * | V147: 0 | W147: )* | X147: 0.4559315154 | Y147: * | Z147: 0.5 | AA147: = | AB147: 0 | AC147: 0
A148: 19 | B148: 136 | C148: ( | D148: 0.6861 | E148: * | F148: 0 | G148: + | H148: 0.3139 | I148: * | J148: 0 | K148: )* | L148: 0.4559315154 | M148: * | N148: 0.5 | O148: + ( | P148: 0.6861 | Q148: * | R148: 0 | S148: + | T148: 0.3139 | U148: * | V148: 0 | W148: )* | X148: 0.4364651688 | Y148: * | Z148: 0.5 | AA148: = | AB148: 0 | AC148: 0
A149: 20 | B149: 137 | C149: ( | D149: 0.6861 | E149: * | F149: 0 | G149: + | H149: 0.3139 | I149: * | J149: 0 | K149: )* | L149: 0.4364651688 | M149: * | N149: 0.5 | O149: + ( | P149: 0.6861 | Q149: * | R149: 0 | S149: + | T149: 0.3139 | U149: * | V149: 0 | W149: )* | X149: 0.4178299529 | Y149: * | Z149: 0.5 | AA149: = | AB149: 0 | AC149: 0
A150: 21 | B150: 138 | C150: ( | D150: 0.6861 | E150: * | F150: 0 | G150: + | H150: 0.3139 | I150: * | J150: 0 | K150: )* | L150: 0.4178299529 | M150: * | N150: 0.5 | O150: + ( | P150: 0.6861 | Q150: * | R150: 0 | S150: + | T150: 0.3139 | U150: * | V150: 0 | W150: )* | X150: 0.3999903819 | Y150: * | Z150: 0.5 | AA150: = | AB150: 0 | AC150: 0
A151: 22 | B151: 139 | C151: ( | D151: 0.6861 | E151: * | F151: 0 | G151: + | H151: 0.3139 | I151: * | J151: 0 | K151: )* | L151: 0.3999903819 | M151: * | N151: 0.5 | O151: + ( | P151: 0.6861 | Q151: * | R151: 0 | S151: + | T151: 0.3139 | U151: * | V151: 0 | W151: )* | X151: 0.3829124851 | Y151: * | Z151: 0.5 | AA151: = | AB151: 0 | AC151: 0
A152: 23 | B152: 140 | C152: ( | D152: 0.6861 | E152: * | F152: 0 | G152: + | H152: 0.3139 | I152: * | J152: 0 | K152: )* | L152: 0.3829124851 | M152: * | N152: 0.5 | O152: + ( | P152: 0.6861 | Q152: * | R152: 0 | S152: + | T152: 0.3139 | U152: * | V152: 0 | W152: )* | X152: 0.3665637422 | Y152: * | Z152: 0.5 | AA152: = | AB152: 0 | AC152: 0
A153: 24 | B153: 141 | C153: ( | D153: 0.6861 | E153: * | F153: 0 | G153: + | H153: 0.3139 | I153: * | J153: 0 | K153: )* | L153: 0.3665637422 | M153: * | N153: 0.5 | O153: + ( | P153: 0.6861 | Q153: * | R153: 0 | S153: + | T153: 0.3139 | U153: * | V153: 0 | W153: )* | X153: 0.3509130214 | Y153: * | Z153: 0.5 | AA153: = | AB153: 0 | AC153: 0
A154: 25 | B154: 142 | C154: ( | D154: 0.6861 | E154: * | F154: 0 | G154: + | H154: 0.3139 | I154: * | J154: 0 | K154: )* | L154: 0.3509130214 | M154: * | N154: 0.5 | O154: + ( | P154: 0.6861 | Q154: * | R154: 0 | S154: + | T154: 0.3139 | U154: * | V154: 0 | W154: )* | X154: 0.3359305202 | Y154: * | Z154: 0.5 | AA154: = | AB154: 0 | AC154: 0
A155: 26 | B155: 143 | C155: ( | D155: 0.6861 | E155: * | F155: 0 | G155: + | H155: 0.3139 | I155: * | J155: 0 | K155: )* | L155: 0.3359305202 | M155: * | N155: 0.5 | O155: + ( | P155: 0.6861 | Q155: * | R155: 0 | S155: + | T155: 0.3139 | U155: * | V155: 0 | W155: )* | X155: 0.3215877084 | Y155: * | Z155: 0.5 | AA155: = | AB155: 0 | AC155: 0
A156: 27 | B156: 144 | C156: ( | D156: 0.6861 | E156: * | F156: 0 | G156: + | H156: 0.3139 | I156: * | J156: 0 | K156: )* | L156: 0.3215877084 | M156: * | N156: 0.5 | O156: + ( | P156: 0.6861 | Q156: * | R156: 0 | S156: + | T156: 0.3139 | U156: * | V156: 0 | W156: )* | X156: 0.307857274 | Y156: * | Z156: 0.5 | AA156: = | AB156: 0 | AC156: 0
A157: 28 | B157: 145 | C157: ( | D157: 0.6861 | E157: * | F157: 0 | G157: + | H157: 0.3139 | I157: * | J157: 0 | K157: )* | L157: 0.307857274 | M157: * | N157: 0.5 | O157: + ( | P157: 0.6861 | Q157: * | R157: 0 | S157: + | T157: 0.3139 | U157: * | V157: 0 | W157: )* | X157: 0.294713071 | Y157: * | Z157: 0.5 | AA157: = | AB157: 0 | AC157: 0
A158: 29 | B158: 146 | C158: ( | D158: 0.6861 | E158: * | F158: 0 | G158: + | H158: 0.3139 | I158: * | J158: 0 | K158: )* | L158: 0.294713071 | M158: * | N158: 0.5 | O158: + ( | P158: 0.6861 | Q158: * | R158: 0 | S158: + | T158: 0.3139 | U158: * | V158: 0 | W158: )* | X158: 0.2821300699 | Y158: * | Z158: 0.5 | AA158: = | AB158: 0 | AC158: 0
A159: 30 | B159: 147 | C159: ( | D159: 0.6861 | E159: * | F159: 0 | G159: + | H159: 0.3139 | I159: * | J159: 0 | K159: )* | L159: 0.2821300699 | M159: * | N159: 0.5 | O159: + ( | P159: 0.6861 | Q159: * | R159: 0 | S159: + | T159: 0.3139 | U159: * | V159: 0 | W159: )* | X159: 0.2700843097 | Y159: * | Z159: 0.5 | AA159: = | AB159: 0 | AC159: 0
A160: 31 | B160: 148 | C160: ( | D160: 0.6861 | E160: * | F160: 0 | G160: + | H160: 0.3139 | I160: * | J160: 0 | K160: )* | L160: 0.2700843097 | M160: * | N160: 0.5 | O160: + ( | P160: 0.6861 | Q160: * | R160: 0 | S160: + | T160: 0.3139 | U160: * | V160: 0 | W160: )* | X160: 0.2585528525 | Y160: * | Z160: 0.5 | AA160: = | AB160: 0 | AC160: 0
A161: 32 | B161: 149 | C161: ( | D161: 0.6861 | E161: * | F161: 0 | G161: + | H161: 0.3139 | I161: * | J161: 0 | K161: )* | L161: 0.2585528525 | M161: * | N161: 0.5 | O161: + ( | P161: 0.6861 | Q161: * | R161: 0 | S161: + | T161: 0.3139 | U161: * | V161: 0 | W161: )* | X161: 0.2475137397 | Y161: * | Z161: 0.5 | AA161: = | AB161: 0 | AC161: 0
A162: 33 | B162: 150 | C162: ( | D162: 0.6861 | E162: * | F162: 0 | G162: + | H162: 0.3139 | I162: * | J162: 0 | K162: )* | L162: 0.2475137397 | M162: * | N162: 0.5 | O162: + ( | P162: 0.6861 | Q162: * | R162: 0 | S162: + | T162: 0.3139 | U162: * | V162: 0 | W162: )* | X162: 0.2369459503 | Y162: * | Z162: 0.5 | AA162: = | AB162: 0 | AC162: 0
A163: 34 | B163: 151 | C163: ( | D163: 0.6861 | E163: * | F163: 0 | G163: + | H163: 0.3139 | I163: * | J163: 0 | K163: )* | L163: 0.2369459503 | M163: * | N163: 0.5 | O163: + ( | P163: 0.6861 | Q163: * | R163: 0 | S163: + | T163: 0.3139 | U163: * | V163: 0 | W163: )* | X163: 0.2268293608 | Y163: * | Z163: 0.5 | AA163: = | AB163: 0 | AC163: 0
A164: 35 | B164: 152 | C164: ( | D164: 0.6861 | E164: * | F164: 0 | G164: + | H164: 0.3139 | I164: * | J164: 0 | K164: )* | L164: 0.2268293608 | M164: * | N164: 0.5 | O164: + ( | P164: 0.6861 | Q164: * | R164: 0 | S164: + | T164: 0.3139 | U164: * | V164: 0 | W164: )* | X164: 0.2171447069 | Y164: * | Z164: 0.5 | AA164: = | AB164: 0 | AC164: 0
A165: 36 | B165: 153 | C165: ( | D165: 0.6861 | E165: * | F165: 0 | G165: + | H165: 0.3139 | I165: * | J165: 0 | K165: )* | L165: 0.2171447069 | M165: * | N165: 0.5 | O165: + ( | P165: 0.6861 | Q165: * | R165: 0 | S165: + | T165: 0.3139 | U165: * | V165: 0 | W165: )* | X165: 0.2078735467 | Y165: * | Z165: 0.5 | AA165: = | AB165: 0 | AC165: 0
A166: 37 | B166: 154 | C166: ( | D166: 0.6861 | E166: * | F166: 0 | G166: + | H166: 0.3139 | I166: * | J166: 0 | K166: )* | L166: 0.2078735467 | M166: * | N166: 0.5 | O166: + ( | P166: 0.6861 | Q166: * | R166: 0 | S166: + | T166: 0.3139 | U166: * | V166: 0 | W166: )* | X166: 0.1989982258 | Y166: * | Z166: 0.5 | AA166: = | AB166: 0 | AC166: 0
A167: 38 | B167: 155 | C167: ( | D167: 0.6861 | E167: * | F167: 0 | G167: + | H167: 0.3139 | I167: * | J167: 0 | K167: )* | L167: 0.1989982258 | M167: * | N167: 0.5 | O167: + ( | P167: 0.6861 | Q167: * | R167: 0 | S167: + | T167: 0.3139 | U167: * | V167: 0 | W167: )* | X167: 0.1905018436 | Y167: * | Z167: 0.5 | AA167: = | AB167: 0 | AC167: 0
A168: 39 | B168: 156 | C168: ( | D168: 0.6861 | E168: * | F168: 0 | G168: + | H168: 0.3139 | I168: * | J168: 0 | K168: )* | L168: 0.1905018436 | M168: * | N168: 0.5 | O168: + ( | P168: 0.6861 | Q168: * | R168: 0 | S168: + | T168: 0.3139 | U168: * | V168: 0 | W168: )* | X168: 0.1823682209 | Y168: * | Z168: 0.5 | AA168: = | AB168: 0 | AC168: 0
A169: 40 | B169: 157 | C169: ( | D169: 0.6861 | E169: * | F169: 0 | G169: + | H169: 0.3139 | I169: * | J169: 0 | K169: )* | L169: 0.1823682209 | M169: * | N169: 0.5 | O169: + ( | P169: 0.6861 | Q169: * | R169: 0 | S169: + | T169: 0.3139 | U169: * | V169: 0 | W169: )* | X169: 0.1745818696 | Y169: * | Z169: 0.5 | AA169: = | AB169: 0 | AC169: 0
A170: 41 | B170: 158 | C170: ( | D170: 0.6861 | E170: * | F170: 0 | G170: + | H170: 0.3139 | I170: * | J170: 0 | K170: )* | L170: 0.1745818696 | M170: * | N170: 0.5 | O170: + ( | P170: 0.6861 | Q170: * | R170: 0 | S170: + | T170: 0.3139 | U170: * | V170: 0 | W170: )* | X170: 0.1671279624 | Y170: * | Z170: 0.5 | AA170: = | AB170: 0 | AC170: 0
A171: 42 | B171: 159 | C171: ( | D171: 0.6861 | E171: * | F171: 0 | G171: + | H171: 0.3139 | I171: * | J171: 0 | K171: )* | L171: 0.1671279624 | M171: * | N171: 0.5 | O171: + ( | P171: 0.6861 | Q171: * | R171: 0 | S171: + | T171: 0.3139 | U171: * | V171: 0 | W171: )* | X171: 0.1599923056 | Y171: * | Z171: 0.5 | AA171: = | AB171: 0 | AC171: 0
A172: 43 | B172: 160 | C172: ( | D172: 0.6861 | E172: * | F172: 0 | G172: + | H172: 0.3139 | I172: * | J172: 0 | K172: )* | L172: 0.1599923056 | M172: * | N172: 0.5 | O172: + ( | P172: 0.6861 | Q172: * | R172: 0 | S172: + | T172: 0.3139 | U172: * | V172: 0 | W172: )* | X172: 0.1531613111 | Y172: * | Z172: 0.5 | AA172: = | AB172: 0 | AC172: 0
A173: 44 | B173: 161 | C173: ( | D173: 0.6861 | E173: * | F173: 0 | G173: + | H173: 0.3139 | I173: * | J173: 0 | K173: )* | L173: 0.1531613111 | M173: * | N173: 0.5 | O173: + ( | P173: 0.6861 | Q173: * | R173: 0 | S173: + | T173: 0.3139 | U173: * | V173: 0 | W173: )* | X173: 0.1466219712 | Y173: * | Z173: 0.5 | AA173: = | AB173: 0 | AC173: 0
A174: 45 | B174: 162 | C174: ( | D174: 0.6861 | E174: * | F174: 0 | G174: + | H174: 0.3139 | I174: * | J174: 0 | K174: )* | L174: 0.1466219712 | M174: * | N174: 0.5 | O174: + ( | P174: 0.6861 | Q174: * | R174: 0 | S174: + | T174: 0.3139 | U174: * | V174: 0 | W174: )* | X174: 0.1403618334 | Y174: * | Z174: 0.5 | AA174: = | AB174: 0 | AC174: 0
A175: 46 | B175: 163 | C175: ( | D175: 0.6861 | E175: * | F175: 0 | G175: + | H175: 0.3139 | I175: * | J175: 0 | K175: )* | L175: 0.1403618334 | M175: * | N175: 0.5 | O175: + ( | P175: 0.6861 | Q175: * | R175: 0 | S175: + | T175: 0.3139 | U175: * | V175: 0 | W175: )* | X175: 0.1343689771 | Y175: * | Z175: 0.5 | AA175: = | AB175: 0 | AC175: 0
A176: 47 | B176: 164 | C176: ( | D176: 0.6861 | E176: * | F176: 0 | G176: + | H176: 0.3139 | I176: * | J176: 0 | K176: )* | L176: 0.1343689771 | M176: * | N176: 0.5 | O176: + ( | P176: 0.6861 | Q176: * | R176: 0 | S176: + | T176: 0.3139 | U176: * | V176: 0 | W176: )* | X176: 0.1286319903 | Y176: * | Z176: 0.5 | AA176: = | AB176: 0 | AC176: 0
A177: 48 | B177: 165 | C177: ( | D177: 0.6861 | E177: * | F177: 0 | G177: + | H177: 0.3139 | I177: * | J177: 0 | K177: )* | L177: 0.1286319903 | M177: * | N177: 0.5 | O177: + ( | P177: 0.6861 | Q177: * | R177: 0 | S177: + | T177: 0.3139 | U177: * | V177: 0 | W177: )* | X177: 0.1231399486 | Y177: * | Z177: 0.5 | AA177: = | AB177: 0 | AC177: 0
A178: 49 | B178: 166 | C178: ( | D178: 0.6861 | E178: * | F178: 0 | G178: + | H178: 0.3139 | I178: * | J178: 0 | K178: )* | L178: 0.1231399486 | M178: * | N178: 0.5 | O178: + ( | P178: 0.6861 | Q178: * | R178: 0 | S178: + | T178: 0.3139 | U178: * | V178: 0 | W178: )* | X178: 0.1178823938 | Y178: * | Z178: 0.5 | AA178: = | AB178: 0 | AC178: 0
A179: 50 | B179: 167 | C179: ( | D179: 0.6861 | E179: * | F179: 0 | G179: + | H179: 0.3139 | I179: * | J179: 0 | K179: )* | L179: 0.1178823938 | M179: * | N179: 0.5 | O179: + ( | P179: 0.6861 | Q179: * | R179: 0 | S179: + | T179: 0.3139 | U179: * | V179: 0 | W179: )* | X179: 0.1128493144 | Y179: * | Z179: 0.5 | AA179: = | AB179: 0 | AC179: 0
A180: 51 | B180: 168 | C180: ( | D180: 0.6861 | E180: * | F180: 0 | G180: + | H180: 0.3139 | I180: * | J180: 0 | K180: )* | L180: 0.1128493144 | M180: * | N180: 0.5 | O180: + ( | P180: 0.6861 | Q180: * | R180: 0 | S180: + | T180: 0.3139 | U180: * | V180: 0 | W180: )* | X180: 0.1080311262 | Y180: * | Z180: 0.5 | AA180: = | AB180: 0 | AC180: 0
A181: 52 | B181: 169 | C181: ( | D181: 0.6861 | E181: * | F181: 0 | G181: + | H181: 0.3139 | I181: * | J181: 0 | K181: )* | L181: 0.1080311262 | M181: * | N181: 0.5 | O181: + ( | P181: 0.6861 | Q181: * | R181: 0 | S181: + | T181: 0.3139 | U181: * | V181: 0 | W181: )* | X181: 0.1034186542 | Y181: * | Z181: 0.5 | AA181: = | AB181: 0 | AC181: 0
A182: 53 | B182: 170 | C182: ( | D182: 0.6861 | E182: * | F182: 0 | G182: + | H182: 0.3139 | I182: * | J182: 0 | K182: )* | L182: 0.1034186542 | M182: * | N182: 0.5 | O182: + ( | P182: 0.6861 | Q182: * | R182: 0 | S182: + | T182: 0.3139 | U182: * | V182: 0 | W182: )* | X182: 0.09900311526 | Y182: * | Z182: 0.5 | AA182: = | AB182: 0 | AC182: 0
A183: 54 | B183: 171 | C183: ( | D183: 0.6861 | E183: * | F183: 0 | G183: + | H183: 0.3139 | I183: * | J183: 0 | K183: )* | L183: 0.09900311526 | M183: * | N183: 0.5 | O183: + ( | P183: 0.6861 | Q183: * | R183: 0 | S183: + | T183: 0.3139 | U183: * | V183: 0 | W183: )* | X183: 0.09477610115 | Y183: * | Z183: 0.5 | AA183: = | AB183: 0 | AC183: 0
A184: 55 | B184: 172 | C184: ( | D184: 0.6861 | E184: * | F184: 0 | G184: + | H184: 0.3139 | I184: * | J184: 0 | K184: )* | L184: 0.09477610115 | M184: * | N184: 0.5 | O184: + ( | P184: 0.6861 | Q184: * | R184: 0 | S184: + | T184: 0.3139 | U184: * | V184: 0 | W184: )* | X184: 0.09072956265 | Y184: * | Z184: 0.5 | AA184: = | AB184: 0 | AC184: 0
A185: 56 | B185: 173 | C185: ( | D185: 0.6861 | E185: * | F185: 0 | G185: + | H185: 0.3139 | I185: * | J185: 0 | K185: )* | L185: 0.09072956265 | M185: * | N185: 0.5 | O185: + ( | P185: 0.6861 | Q185: * | R185: 0 | S185: + | T185: 0.3139 | U185: * | V185: 0 | W185: )* | X185: 0.08685579423 | Y185: * | Z185: 0.5 | AA185: = | AB185: 0 | AC185: 0
A186: 57 | B186: 174 | C186: ( | D186: 0.6861 | E186: * | F186: 0 | G186: + | H186: 0.3139 | I186: * | J186: 0 | K186: )* | L186: 0.08685579423 | M186: * | N186: 0.5 | O186: + ( | P186: 0.6861 | Q186: * | R186: 0 | S186: + | T186: 0.3139 | U186: * | V186: 0 | W186: )* | X186: 0.08314741933 | Y186: * | Z186: 0.5 | AA186: = | AB186: 0 | AC186: 0
A187: 58 | B187: 175 | C187: ( | D187: 0.6861 | E187: * | F187: 0 | G187: + | H187: 0.3139 | I187: * | J187: 0 | K187: )* | L187: 0.08314741933 | M187: * | N187: 0.5 | O187: + ( | P187: 0.6861 | Q187: * | R187: 0 | S187: + | T187: 0.3139 | U187: * | V187: 0 | W187: )* | X187: 0.07959737635 | Y187: * | Z187: 0.5 | AA187: = | AB187: 0 | AC187: 0
A188: 59 | B188: 176 | C188: ( | D188: 0.6861 | E188: * | F188: 0 | G188: + | H188: 0.3139 | I188: * | J188: 0 | K188: )* | L188: 0.07959737635 | M188: * | N188: 0.5 | O188: + ( | P188: 0.6861 | Q188: * | R188: 0 | S188: + | T188: 0.3139 | U188: * | V188: 0 | W188: )* | X188: 0.07619890517 | Y188: * | Z188: 0.5 | AA188: = | AB188: 0 | AC188: 0
A189: 60 | B189: 177 | C189: ( | D189: 0.6861 | E189: * | F189: 0 | G189: + | H189: 0.3139 | I189: * | J189: 0 | K189: )* | L189: 0.07619890517 | M189: * | N189: 0.5 | O189: + ( | P189: 0.6861 | Q189: * | R189: 0 | S189: + | T189: 0.3139 | U189: * | V189: 0 | W189: )* | X189: 0.07294553434 | Y189: * | Z189: 0.5 | AA189: = | AB189: 0 | AC189: 0
A190: 61 | B190: 178 | C190: ( | D190: 0.6861 | E190: * | F190: 0 | G190: + | H190: 0.3139 | I190: * | J190: 0 | K190: )* | L190: 0.07294553434 | M190: * | N190: 0.5 | O190: + ( | P190: 0.6861 | Q190: * | R190: 0 | S190: + | T190: 0.3139 | U190: * | V190: 0 | W190: )* | X190: 0.06983106868 | Y190: * | Z190: 0.5 | AA190: = | AB190: 0 | AC190: 0
A191: 62 | B191: 179 | C191: ( | D191: 0.6861 | E191: * | F191: 0 | G191: + | H191: 0.3139 | I191: * | J191: 0 | K191: )* | L191: 0.06983106868 | M191: * | N191: 0.5 | O191: + ( | P191: 0.6861 | Q191: * | R191: 0 | S191: + | T191: 0.3139 | U191: * | V191: 0 | W191: )* | X191: 0.06684957752 | Y191: * | Z191: 0.5 | AA191: = | AB191: 0 | AC191: 0
A192: 63 | B192: 180 | C192: ( | D192: 0.6861 | E192: * | F192: 0 | G192: + | H192: 0.3139 | I192: * | J192: 0 | K192: )* | L192: 0.06684957752 | M192: * | N192: 0.5 | O192: + ( | P192: 0.6861 | Q192: * | R192: 0 | S192: + | T192: 0.3139 | U192: * | V192: 0 | W192: )* | X192: 0.06399538342 | Y192: * | Z192: 0.5 | AA192: = | AB192: 0 | AC192: 0
A193: 64 | B193: 181 | C193: ( | D193: 0.6861 | E193: * | F193: 0 | G193: + | H193: 0.3139 | I193: * | J193: 0 | K193: )* | L193: 0.06399538342 | M193: * | N193: 0.5 | O193: + ( | P193: 0.6861 | Q193: * | R193: 0 | S193: + | T193: 0.3139 | U193: * | V193: 0 | W193: )* | X193: 0.06126305133 | Y193: * | Z193: 0.5 | AA193: = | AB193: 0 | AC193: 0
A194: 65 | B194: 182 | C194: ( | D194: 0.6861 | E194: * | F194: 0 | G194: + | H194: 0.3139 | I194: * | J194: 0 | K194: )* | L194: 0.06126305133 | M194: * | N194: 0.5 | O194: + ( | P194: 0.6861 | Q194: * | R194: 0 | S194: + | T194: 0.3139 | U194: * | V194: 0 | W194: )* | X194: 0.05864737826 | Y194: * | Z194: 0.5 | AA194: = | AB194: 0 | AC194: 0
A195: 66 | B195: 183 | C195: ( | D195: =1-$D$3 -> 0.6861 | E195: * | F195: 0 | G195: + | H195: =$D$3 -> 0.3139 | I195: * | J195: 0 | K195: )* | L195: =VLOOKUP($A195,$AN$8:$AS$127,IF($R$1="Sel&Ult",3,IF($R$1="Segment",5,99)),FALSE) -> 0.05864737826 | M195: * | N195: =$K$5 -> 0.5 | O195: + ( | P195: =1-$D$3 -> 0.6861 | Q195: * | R195: =(1-VLOOKUP($B195,$AD$8:$AG$127,2,TRUE))*R194 -> 0 | S195: + | T195: =$D$3 -> 0.3139 | U195: * | V195: =(1-VLOOKUP($B195+1,$AD$8:$AG$127,2,TRUE))*V194 -> 0 | W195: )* | X195: =VLOOKUP($A195,$AN$8:$AS$127,IF($R$1="Sel&Ult",4,IF($R$1="Segment",6,99)),FALSE) -> 0.05614338336 | Y195: * | Z195: =1-$K$5 -> 0.5 | AA195: = | AB195: =(D195*F195+H195*J195)*L195*N195+(P195*R195+T195*V195)*X195*Z195 -> 0 | AC195: =((1-$D$3)*L195*(F195-R195)+$D$3*L195*(J195-V195))*(1+AG73)^-0.5 -> 0
A196: 67 | B196: =B195+1 -> 184 | C196: ( | D196: 0.6861 | E196: * | F196: =R195 -> 0 | G196: + | H196: 0.3139 | I196: * | J196: =V195 -> 0 | K196: )* | L196: 0.05614338336 | M196: * | N196: 0.5 | O196: + ( | P196: 0.6861 | Q196: * | R196: 0 | S196: + | T196: 0.3139 | U196: * | V196: 0 | W196: )* | X196: 0.05374629845 | Y196: * | Z196: 0.5 | AA196: = | AB196: 0 | AC196: 0
A197: 68 | B197: 185 | C197: ( | D197: 0.6861 | E197: * | F197: 0 | G197: + | H197: 0.3139 | I197: * | J197: 0 | K197: )* | L197: 0.05374629845 | M197: * | N197: 0.5 | O197: + ( | P197: 0.6861 | Q197: * | R197: 0 | S197: + | T197: 0.3139 | U197: * | V197: 0 | W197: )* | X197: 0.05145155892 | Y197: * | Z197: 0.5 | AA197: = | AB197: 0 | AC197: 0
A198: 69 | B198: 186 | C198: ( | D198: 0.6861 | E198: * | F198: 0 | G198: + | H198: 0.3139 | I198: * | J198: 0 | K198: )* | L198: 0.05145155892 | M198: * | N198: 0.5 | O198: + ( | P198: 0.6861 | Q198: * | R198: 0 | S198: + | T198: 0.3139 | U198: * | V198: 0 | W198: )* | X198: 0.04925479506 | Y198: * | Z198: 0.5 | AA198: = | AB198: 0 | AC198: 0
A199: 70 | B199: 187 | C199: ( | D199: 0.6861 | E199: * | F199: 0 | G199: + | H199: 0.3139 | I199: * | J199: 0 | K199: )* | L199: 0.04925479506 | M199: * | N199: 0.5 | O199: + ( | P199: 0.6861 | Q199: * | R199: 0 | S199: + | T199: 0.3139 | U199: * | V199: 0 | W199: )* | X199: 0.04715182373 | Y199: * | Z199: 0.5 | AA199: = | AB199: 0 | AC199: 0
A200: 71 | B200: 188 | C200: ( | D200: 0.6861 | E200: * | F200: 0 | G200: + | H200: 0.3139 | I200: * | J200: 0 | K200: )* | L200: 0.04715182373 | M200: * | N200: 0.5 | O200: + ( | P200: 0.6861 | Q200: * | R200: 0 | S200: + | T200: 0.3139 | U200: * | V200: 0 | W200: )* | X200: 0.04513864037 | Y200: * | Z200: 0.5 | AA200: = | AB200: 0 | AC200: 0
... 295 more rows

Sheet After (hidden)
A1: WITH SPECIAL LANGUAGE - CELL D29, Life Ins Ben Factor (basis of 1.415(b)-1(c)(3)(A)) | J1: HARD CODED | K1: NOT USED | L1: REFERENCED IN | Q1: Interest Rate Method | R1: Sel&Ult
A2: Age | B2: Total | C2: Integer | D2: Fraction | F2: Retonly | G2: ='Service Purchase'!C20 ->  | J2: Int Rate | K2: ='Service Purchase'!B39 -> 0.0446 | O2: Mortality | R2: Segmented Interest Rates
A3: Ret | B3: ='Service Purchase'!C47 -> 118.3139 | C3: =INT(B3) -> 118 | D3: =B3-C3 -> 0.3139 | F3: Benonly | G3: =G2 ->  | H3: jspct | I3: =IF(AND('Service Purchase'!$N$2=3,'Service Purchase'!$O$2=2),0.5*0.85,IF('Service Purchase'!$N$2=1,0.8*0.85,IF('Service Purchase'!$N$2=3,0.75*0.85,0.8*0.8))) -> 0.68 | J3: Cola Rate, Type | K3: ='Service Purchase'!B55 -> 0.0175 | L3: C | N3: Table | O3: ='Service Purchase'!B44 -> 1 | P3: ='Service Purchase'!B45 -> 2 | R3: =K2 -> 0.0446 | S3: 999
A4: Ben | B4: ='Service Purchase'!C48 -> 118.3139 | C4: =INT(B4) -> 118 | D4: =B4-C4 -> 0.3139 | F4: Both | G4: =G2 ->  | J4: Timing | K4: 0 | N4: sf | O4: 0 | P4: 0 | R4: =K2 -> 0.0446 | S4: 999 | AO4: Interest Rate Factor Lookup
B5: Contingent Age | C5: 999 | D5: ='Service Purchase'!C50 -> 133.3139 | F5: Certain | G5: 0 | H5: Period | I5: 0 | J5: Fpay | K5: =IF(K4=1,13/24,IF(K4=2,11/24,0.5)) -> 0.5 | N5: mult | O5: ='Service Purchase'!C44 -> 1 | P5: ='Service Purchase'!C45 -> 1 | R5: =K2 -> 0.0446
A6: Present Value | C6: =C127 ->  | F6: LumpDB | G6: 0 | N6: Unisex | O6: ='Service Purchase'!B75 -> 0.9 | P6: Opposite | AE6: Unisex applied | AK6: Ret | AL6: Ben | AP6: Select and Ultimate Method | AR6: Segmented Rate Method
A7: Year | B7: Age | C7: Value | D7: = | E7: RetOnly$ | G7: Retonly | I7: Both | K7: + | L7: BenOnly$ | N7: Benonly | P7: Both | Q7: + | R7: Both$ | T7: Both | U7: + | V7: Cert$ | X7: Cert | Y7: + | Z7: Lump$ | AB7: Lump Prob | AE7: Ret Mort | AF7: Ben Mort | AG7: Interst by Yr | AH7: Esc | AI7: ESCACCUM | AK7: Qx | AL7: Qx | AN7: Year | AO7: Interst by Yr | AP7: Vboy | AQ7: Veoy | AR7: Vboy | AS7: Veoy
A8: 1 | B8: =B3 -> 118.3139 | C8: 0 | D8: + | E8: =IF(B8-0.0000001<$D$5-1,0,IF(AND($D$5-B8<1,$D$5-B8>0),AI8*$G$2*(1-($D$5-B8)),AI8*$G$2)) -> 0 | F8: *( | G8: =AB130 -> 0.7369327972 | H8: - | I8: =V378 -> 0.6078044227 | J8: ) | K8: + | L8: =$I$3*E8 -> 0 | M8: *( | N8: =AG253 -> 0.5915367126 | O8: - | P8: =V378 -> 0.6078044227 | Q8: )+ | R8: =E8 -> 0 | S8: * | T8: =V378 -> 0.6078044227 | U8: + | V8: =IF(AND(A8<$I$5+1,B8<$C$5),IF($C$5-B8<1,$G$5*AI8*(1-$D$3),$G$5*AI8),0) -> 0 | W8: * | X8: =L130*N130+X130*Z130 -> 0.9786521156 | Y8: + | Z8: =$G$6 -> 0 | AA8: * | AB8: =AC130 -> 0.4941017219 | AD8: 1 | AE8: =AK8*$O$6+(1-$O$6)*AL8 -> 0.0003740573382 | AF8: =IF($P$6="Opposite",AK8*(1-$O$6)+$O$6*AL8,AE8) -> 0.0003711318456 | AG8: =IF(A8<=$S$3,$R$3,IF(A8<=$S$4+$S$3,$R$4,$R$5)) -> 0.0446 | AH8: =IF(B8-0.000001<$D$5-1,0,IF(AND($D$5-B8<1,$D$5-B8>0),$K$3*(1-($D$5-B8)),$K$3)) -> 0 | AI8: 1 | AK8: =IF($AD8+O$4<120,IF($AD8+O$4>0,HLOOKUP($O$3,'Mortality Tables'!$B$1:$AA$151,$A8+1+O$4,FALSE)*O$5,0),1) -> 0.0003744230248 | AL8: =IF($AD8+P$4<120,IF($AD8+P$4>0,HLOOKUP($P$3,'Mortality Tables'!$B$1:$AA$151,$A8+1+P$4,FALSE)*P$5,0),1) -> 0.000370766159 | AN8: 1 | AO8: =IF(A8<=$S$3,$R$3,IF(A8<=$S$4+$S$3,$R$4,$R$5)) -> 0.0446 | AP8: 1 | AQ8: =1/(1+AO8) -> 0.9573042313 | AR8: =(1+AO8)^-(AD8-1) -> 1 | AS8: =(1+AO8)^(-AD8) -> 0.9573042313
A9: =A8+1 -> 2 | B9: =B8+1 -> 119.3139 | C9: =C8+E8*(G8-I8)+L8*(N8-P8)+R8*T8+V8*X8+Z8*AB8 -> 0 | D9: + | E9: =IF(B9-0.0000001<$D$5-1,0,IF(AND($D$5-B9<1,$D$5-B9>0),AI9*$G$2*(1-($D$5-B9)),AI9*$G$2)) -> 0 | F9: *( | G9: 0.313964195 | H9: - | I9: =V379 -> 0.1187459511 | J9: ) | K9: + | L9: 0 | M9: *( | N9: =AG254 -> 0.1456686958 | O9: - | P9: =V379 -> 0.1187459511 | Q9: )+ | R9: =E9 -> 0 | S9: * | T9: =V379 -> 0.1187459511 | U9: + | V9: =IF(AND(A9<$I$5+1,B9<$C$5),IF($C$5-B9<1,$G$5*AI9*(1-$D$3),$G$5*AI9),0) -> 0 | W9: * | X9: =X8/(1+AG9) -> 0.9368678113 | Y9: + | Z9: =$G$6 -> 0 | AA9: * | AB9: =AC131 -> 0.3061783 | AD9: =AD8+1 -> 2 | AE9: 0.0002518664512 | AF9: =IF($P$6="Opposite",AK9*(1-$O$6)+$O$6*AL9,AE9) -> 0.0002438490166 | AG9: =IF(A9<=$S$3,$R$3,IF(A9<=$S$4+$S$3,$R$4,$R$5)) -> 0.0446 | AH9: =IF(B9-0.000001<$D$5-1,0,IF(AND($D$5-B9<1,$D$5-B9>0),$K$3*(1-($D$5-B9)),$K$3)) -> 0 | AI9: =IF($L$3="S",AI8+AH8,AI8*(1+AH8)) -> 1 | AK9: =IF($AD9+O$4<120,IF($AD9+O$4>0,HLOOKUP($O$3,'Mortality Tables'!$B$1:$AA$151,$A9+1+O$4,FALSE)*O$5,0),1) -> 0.0002528686305 | AL9: =IF($AD9+P$4<120,IF($AD9+P$4>0,HLOOKUP($P$3,'Mortality Tables'!$B$1:$AA$151,$A9+1+P$4,FALSE)*P$5,0),1) -> 0.0002428468373 | AN9: =AN8+1 -> 2 | AO9: =IF(A9<=$S$3,$R$3,IF(A9<=$S$4+$S$3,$R$4,$R$5)) -> 0.0446 | AP9: =AQ8 -> 0.9573042313 | AQ9: =AQ8/(1+AO9) -> 0.9164313912 | AR9: =(1+AO9)^-(AD9-1) -> 0.9573042313 | AS9: =(1+AO9)^(-AD9) -> 0.9164313912
A10: =A9+1 -> 3 | B10: 120.3139 | C10: =C9+E9*(G9-I9)+L9*(N9-P9)+R9*T9+V9*X9+Z9*AB9 -> 0 | D10: + | E10: 0 | F10: *( | G10: 0.07703139779 | H10: - | I10: 0.01094152838 | J10: ) | K10: + | L10: 0 | M10: *( | N10: 0.007973712564 | O10: - | P10: 0.01094152838 | Q10: )+ | R10: 0 | S10: * | T10: 0.01094152838 | U10: + | V10: 0 | W10: * | X10: 0.8968675199 | Y10: + | Z10: 0 | AA10: * | AB10: 0.1507380051 | AD10: =AD9+1 -> 3 | AE10: 0.0002073407982 | AF10: =IF($P$6="Opposite",AK10*(1-$O$6)+$O$6*AL10,AE10) -> 0.0001838253472 | AG10: 0.0446 | AH10: 0 | AI10: 1 | AK10: =IF($AD10+O$4<120,IF($AD10+O$4>0,HLOOKUP($O$3,'Mortality Tables'!$B$1:$AA$151,$A10+1+O$4,FALSE)*O$5,0),1) -> 0.0002102802296 | AL10: =IF($AD10+P$4<120,IF($AD10+P$4>0,HLOOKUP($P$3,'Mortality Tables'!$B$1:$AA$151,$A10+1+P$4,FALSE)*P$5,0),1) -> 0.0001808859158 | AN10: =AN9+1 -> 3 | AO10: 0.0446 | AP10: =AQ9 -> 0.9164313912 | AQ10: =AQ9/(1+AO10) -> 0.8773036485 | AR10: 0.9164313912 | AS10: 0.8773036485
A11: 4 | B11: 121.3139 | C11: 0 | D11: + | E11: 0 | F11: *( | G11: 0 | H11: - | I11: 0 | J11: ) | K11: + | L11: 0 | M11: *( | N11: 0 | O11: - | P11: 0 | Q11: )+ | R11: 0 | S11: * | T11: 0 | U11: + | V11: 0 | W11: * | X11: 0.8585750717 | Y11: + | Z11: 0 | AA11: * | AB11: 0 | AD11: 4 | AE11: 0.0001605214111 | AF11: =IF($P$6="Opposite",AK11*(1-$O$6)+$O$6*AL11,AE11) -> 0.0001386484051 | AG11: 0.0446 | AH11: 0 | AI11: 1 | AK11: =IF($AD11+O$4<120,IF($AD11+O$4>0,HLOOKUP($O$3,'Mortality Tables'!$B$1:$AA$151,$A11+1+O$4,FALSE)*O$5,0),1) -> 0.0001632555369 | AL11: =IF($AD11+P$4<120,IF($AD11+P$4>0,HLOOKUP($P$3,'Mortality Tables'!$B$1:$AA$151,$A11+1+P$4,FALSE)*P$5,0),1) -> 0.0001359142793 | AN11: 4 | AO11: 0.0446 | AP11: 0.8773036485 | AQ11: 0.8398464948 | AR11: 0.8773036485 | AS11: 0.8398464948
A12: 5 | B12: 122.3139 | C12: 0 | D12: + | E12: 0 | F12: *( | G12: 0 | H12: - | I12: 0 | J12: ) | K12: + | L12: 0 | M12: *( | N12: 0 | O12: - | P12: 0 | Q12: )+ | R12: 0 | S12: * | T12: 0 | U12: + | V12: 0 | W12: * | X12: 0.821917549 | Y12: + | Z12: 0 | AA12: * | AB12: 0 | AD12: 5 | AE12: 0.0001415545782 | AF12: 0.0001241043785 | AG12: 0.0446 | AH12: 0 | AI12: 1 | AK12: =IF($AD12+O$4<120,IF($AD12+O$4>0,HLOOKUP($O$3,'Mortality Tables'!$B$1:$AA$151,$A12+1+O$4,FALSE)*O$5,0),1) -> 0.0001437358531 | AL12: =IF($AD12+P$4<120,IF($AD12+P$4>0,HLOOKUP($P$3,'Mortality Tables'!$B$1:$AA$151,$A12+1+P$4,FALSE)*P$5,0),1) -> 0.0001219231035 | AN12: 5 | AO12: 0.0446 | AP12: 0.8398464948 | AQ12: 0.8039886031 | AR12: 0.8398464948 | AS12: 0.8039886031
A13: 6 | B13: 123.3139 | C13: 0 | D13: + | E13: 0 | F13: *( | G13: 0 | H13: - | I13: 0 | J13: ) | K13: + | L13: 0 | M13: *( | N13: 0 | O13: - | P13: 0 | Q13: )+ | R13: 0 | S13: * | T13: 0 | U13: + | V13: 0 | W13: * | X13: 0.7868251474 | Y13: + | Z13: 0 | AA13: * | AB13: 0 | AD13: 6 | AE13: 0.0001270800926 | AF13: 0.0001145011447 | AG13: 0.0446 | AH13: 0 | AI13: 1 | AK13: =IF($AD13+O$4<120,IF($AD13+O$4>0,HLOOKUP($O$3,'Mortality Tables'!$B$1:$AA$151,$A13+1+O$4,FALSE)*O$5,0),1) -> 0.0001286524611 | AL13: =IF($AD13+P$4<120,IF($AD13+P$4>0,HLOOKUP($P$3,'Mortality Tables'!$B$1:$AA$151,$A13+1+P$4,FALSE)*P$5,0),1) -> 0.0001129287762 | AN13: 6 | AO13: 0.0446 | AP13: 0.8039886031 | AQ13: 0.7696616917 | AR13: 0.8039886031 | AS13: 0.7696616917
A14: 7 | B14: 124.3139 | C14: 0 | D14: + | E14: 0 | F14: *( | G14: 0 | H14: - | I14: 0 | J14: ) | K14: + | L14: 0 | M14: *( | N14: 0 | O14: - | P14: 0 | Q14: )+ | R14: 0 | S14: * | T14: 0 | U14: + | V14: 0 | W14: * | X14: 0.7532310429 | Y14: + | Z14: 0 | AA14: * | AB14: 0 | AD14: 7 | AE14: 0.0001127055441 | AF14: 0.0001057973436 | AG14: 0.0446 | AH14: 0 | AI14: 1 | AK14: =IF($AD14+O$4<120,IF($AD14+O$4>0,HLOOKUP($O$3,'Mortality Tables'!$B$1:$AA$151,$A14+1+O$4,FALSE)*O$5,0),1) -> 0.0001135690691 | AL14: =IF($AD14+P$4<120,IF($AD14+P$4>0,HLOOKUP($P$3,'Mortality Tables'!$B$1:$AA$151,$A14+1+P$4,FALSE)*P$5,0),1) -> 0.0001049338186 | AN14: 7 | AO14: 0.0446 | AP14: 0.7696616917 | AQ14: 0.7368003941 | AR14: 0.7696616917 | AS14: 0.7368003941
A15: 8 | B15: 125.3139 | C15: 0 | D15: + | E15: 0 | F15: *( | G15: 0 | H15: - | I15: 0 | J15: ) | K15: + | L15: 0 | M15: *( | N15: 0 | O15: - | P15: 0 | Q15: )+ | R15: 0 | S15: * | T15: 0 | U15: + | V15: 0 | W15: * | X15: 0.7210712645 | Y15: + | Z15: 0 | AA15: * | AB15: 0 | AD15: 8 | AE15: 9.593539797e-05 | AF15: 9.682736509e-05 | AG15: 0.0446 | AH15: 0 | AI15: 1 | AK15: =IF($AD15+O$4<120,IF($AD15+O$4>0,HLOOKUP($O$3,'Mortality Tables'!$B$1:$AA$151,$A15+1+O$4,FALSE)*O$5,0),1) -> 9.582390208e-05 | AL15: =IF($AD15+P$4<120,IF($AD15+P$4>0,HLOOKUP($P$3,'Mortality Tables'!$B$1:$AA$151,$A15+1+P$4,FALSE)*P$5,0),1) -> 9.693886097e-05 | AN15: 8 | AO15: 0.0446 | AP15: 0.7368003941 | AQ15: 0.7053421349 | AR15: 0.7368003941 | AS15: 0.7053421349
A16: 9 | B16: 126.3139 | C16: 0 | D16: + | E16: 0 | F16: *( | G16: 0 | H16: - | I16: 0 | J16: ) | K16: + | L16: 0 | M16: *( | N16: 0 | O16: - | P16: 0 | Q16: )+ | R16: 0 | S16: * | T16: 0 | U16: + | V16: 0 | W16: * | X16: 0.6902845726 | Y16: + | Z16: 0 | AA16: * | AB16: 0 | AD16: 9 | AE16: 7.926518884e-05 | AF16: 8.875681927e-05 | AG16: 0.0446 | AH16: 0 | AI16: 1 | AK16: =IF($AD16+O$4<120,IF($AD16+O$4>0,HLOOKUP($O$3,'Mortality Tables'!$B$1:$AA$151,$A16+1+O$4,FALSE)*O$5,0),1) -> 7.807873503e-05 | AL16: =IF($AD16+P$4<120,IF($AD16+P$4>0,HLOOKUP($P$3,'Mortality Tables'!$B$1:$AA$151,$A16+1+P$4,FALSE)*P$5,0),1) -> 8.994327307e-05 | AN16: 9 | AO16: 0.0446 | AP16: 0.7053421349 | AQ16: 0.6752270102 | AR16: 0.7053421349 | AS16: 0.6752270102
A17: 10 | B17: 127.3139 | C17: 0 | D17: + | E17: 0 | F17: *( | G17: 0 | H17: - | I17: 0 | J17: ) | K17: + | L17: 0 | M17: *( | N17: 0 | O17: - | P17: 0 | Q17: )+ | R17: 0 | S17: * | T17: 0 | U17: + | V17: 0 | W17: * | X17: 0.6608123421 | Y17: + | Z17: 0 | AA17: * | AB17: 0 | AD17: 10 | AE17: 6.748611177e-05 | AF17: 8.211806119e-05 | AG17: 0.0446 | AH17: 0 | AI17: 1 | AK17: =IF($AD17+O$4<120,IF($AD17+O$4>0,HLOOKUP($O$3,'Mortality Tables'!$B$1:$AA$151,$A17+1+O$4,FALSE)*O$5,0),1) -> 6.565711809e-05 | AL17: =IF($AD17+P$4<120,IF($AD17+P$4>0,HLOOKUP($P$3,'Mortality Tables'!$B$1:$AA$151,$A17+1+P$4,FALSE)*P$5,0),1) -> 8.394705486e-05 | AN17: 10 | AO17: 0.0446 | AP17: 0.6752270102 | AQ17: 0.646397674 | AR17: 0.6752270102 | AS17: 0.646397674
A18: 11 | B18: 128.3139 | C18: 0 | D18: + | E18: 0 | F18: *( | G18: 0 | H18: - | I18: 0 | J18: ) | K18: + | L18: 0 | M18: *( | N18: 0 | O18: - | P18: 0 | Q18: )+ | R18: 0 | S18: * | T18: 0 | U18: + | V18: 0 | W18: * | X18: 0.6325984512 | Y18: + | Z18: 0 | AA18: * | AB18: 0 | AD18: 11 | AE18: 7.088011578e-05 | AF18: 8.427182999e-05 | AG18: 0.0446 | AH18: 0 | AI18: 1 | AK18: =IF($AD18+O$4<120,IF($AD18+O$4>0,HLOOKUP($O$3,'Mortality Tables'!$B$1:$AA$151,$A18+1+O$4,FALSE)*O$5,0),1) -> 6.920615151e-05 | AL18: =IF($AD18+P$4<120,IF($AD18+P$4>0,HLOOKUP($P$3,'Mortality Tables'!$B$1:$AA$151,$A18+1+P$4,FALSE)*P$5,0),1) -> 8.594579427e-05 | AN18: 11 | AO18: 0.0446 | AP18: 0.646397674 | AQ18: 0.6187992284 | AR18: 0.646397674 | AS18: 0.6187992284
A19: 12 | B19: 129.3139 | C19: 0 | D19: + | E19: 0 | F19: *( | G19: 0 | H19: - | I19: 0 | J19: ) | K19: + | L19: 0 | M19: *( | N19: 0 | O19: - | P19: 0 | Q19: )+ | R19: 0 | S19: * | T19: 0 | U19: + | V19: 0 | W19: * | X19: 0.605589174 | Y19: + | Z19: 0 | AA19: * | AB19: 0 | AD19: 12 | AE19: 0.000102623469 | AF19: 0.00010023547 | AG19: 0.0446 | AH19: 0 | AI19: 1 | AK19: =IF($AD19+O$4<120,IF($AD19+O$4>0,HLOOKUP($O$3,'Mortality Tables'!$B$1:$AA$151,$A19+1+O$4,FALSE)*O$5,0),1) -> 0.0001029219689 | AL19: =IF($AD19+P$4<120,IF($AD19+P$4>0,HLOOKUP($P$3,'Mortality Tables'!$B$1:$AA$151,$A19+1+P$4,FALSE)*P$5,0),1) -> 9.993697008e-05 | AN19: 12 | AO19: 0.0446 | AP19: 0.6187992284 | AQ19: 0.5923791197 | AR19: 0.6187992284 | AS19: 0.5923791197
A20: 13 | B20: 130.3139 | C20: 0 | D20: + | E20: 0 | F20: *( | G20: 0 | H20: - | I20: 0 | J20: ) | K20: + | L20: 0 | M20: *( | N20: 0 | O20: - | P20: 0 | Q20: )+ | R20: 0 | S20: * | T20: 0 | U20: + | V20: 0 | W20: * | X20: 0.5797330787 | Y20: + | Z20: 0 | AA20: * | AB20: 0 | AD20: 13 | AE20: 0.0001334683528 | AF20: 0.0001152109514 | AG20: 0.0446 | AH20: 0 | AI20: 1 | AK20: =IF($AD20+O$4<120,IF($AD20+O$4>0,HLOOKUP($O$3,'Mortality Tables'!$B$1:$AA$151,$A20+1+O$4,FALSE)*O$5,0),1) -> 0.000135750528 | AL20: =IF($AD20+P$4<120,IF($AD20+P$4>0,HLOOKUP($P$3,'Mortality Tables'!$B$1:$AA$151,$A20+1+P$4,FALSE)*P$5,0),1) -> 0.0001129287762 | AN20: 13 | AO20: 0.0446 | AP20: 0.5923791197 | AQ20: 0.5670870378 | AR20: 0.5923791197 | AS20: 0.5670870378
A21: 14 | B21: 131.3139 | C21: 0 | D21: + | E21: 0 | F21: *( | G21: 0 | H21: - | I21: 0 | J21: ) | K21: + | L21: 0 | M21: *( | N21: 0 | O21: - | P21: 0 | Q21: )+ | R21: 0 | S21: * | T21: 0 | U21: + | V21: 0 | W21: * | X21: 0.5549809293 | Y21: + | Z21: 0 | AA21: * | AB21: 0 | AD21: 14 | AE21: 0.0001625162976 | AF21: 0.0001282101156 | AG21: 0.0446 | AH21: 0 | AI21: 1 | AK21: =IF($AD21+O$4<120,IF($AD21+O$4>0,HLOOKUP($O$3,'Mortality Tables'!$B$1:$AA$151,$A21+1+O$4,FALSE)*O$5,0),1) -> 0.0001668045703 | AL21: =IF($AD21+P$4<120,IF($AD21+P$4>0,HLOOKUP($P$3,'Mortality Tables'!$B$1:$AA$151,$A21+1+P$4,FALSE)*P$5,0),1) -> 0.0001239218429 | AN21: 14 | AO21: 0.0446 | AP21: 0.5670870378 | AQ21: 0.5428748208 | AR21: 0.5670870378 | AS21: 0.5428748208
A22: 15 | B22: 132.3139 | C22: 0 | D22: + | E22: 0 | F22: *( | G22: 0 | H22: - | I22: 0 | J22: ) | K22: + | L22: 0 | M22: *( | N22: 0 | O22: - | P22: 0 | Q22: )+ | R22: 0 | S22: * | T22: 0 | U22: + | V22: 0 | W22: * | X22: 0.5312855919 | Y22: + | Z22: 0 | AA22: * | AB22: 0 | AD22: 15 | AE22: 0.0001924627118 | AF22: 0.0001421974385 | AG22: 0.0446 | AH22: 0 | AI22: 1 | AK22: =IF($AD22+O$4<120,IF($AD22+O$4>0,HLOOKUP($O$3,'Mortality Tables'!$B$1:$AA$151,$A22+1+O$4,FALSE)*O$5,0),1) -> 0.000198745871 | AL22: =IF($AD22+P$4<120,IF($AD22+P$4>0,HLOOKUP($P$3,'Mortality Tables'!$B$1:$AA$151,$A22+1+P$4,FALSE)*P$5,0),1) -> 0.0001359142793 | AN22: 15 | AO22: 0.0446 | AP22: 0.5428748208 | AQ22: 0.519696363 | AR22: 0.5428748208 | AS22: 0.519696363
A23: 16 | B23: 133.3139 | C23: 0 | D23: + | F23: *( | G23: 0 | H23: - | I23: 0 | J23: ) | K23: + | M23: *( | O23: - | P23: 0 | Q23: )+ | S23: * | T23: 0 | U23: + | V23: 0 | W23: * | X23: 0.5086019451 | Y23: + | Z23: 0 | AA23: * | AB23: 0 | AD23: 16 | AE23: 0.0002222092521 | AF23: 0.0001543858958 | AG23: 0.0446 | AH23: 0.0175 | AI23: 1 | AK23: =IF($AD23+O$4<120,IF($AD23+O$4>0,HLOOKUP($O$3,'Mortality Tables'!$B$1:$AA$151,$A23+1+O$4,FALSE)*O$5,0),1) -> 0.0002306871717 | AL23: =IF($AD23+P$4<120,IF($AD23+P$4>0,HLOOKUP($P$3,'Mortality Tables'!$B$1:$AA$151,$A23+1+P$4,FALSE)*P$5,0),1) -> 0.0001459079763 | AN23: 16 | AO23: 0.0446 | AP23: 0.519696363 | AQ23: 0.4975075273 | AR23: 0.519696363 | AS23: 0.4975075273
A24: 17 | B24: 134.3139 | D24: + | F24: *( | G24: 0 | H24: - | I24: 0 | J24: ) | K24: + | M24: *( | O24: - | P24: 0 | Q24: )+ | S24: * | T24: 0 | U24: + | V24: 0 | W24: * | X24: 0.4868867941 | Y24: + | Z24: 0 | AA24: * | AB24: 0 | AD24: 17 | AE24: 0.0002541515161 | AF24: 0.0001650416653 | AG24: 0.0446 | AH24: 0.0175 | AI24: 1.0175 | AK24: =IF($AD24+O$4<120,IF($AD24+O$4>0,HLOOKUP($O$3,'Mortality Tables'!$B$1:$AA$151,$A24+1+O$4,FALSE)*O$5,0),1) -> 0.0002652902474 | AL24: =IF($AD24+P$4<120,IF($AD24+P$4>0,HLOOKUP($P$3,'Mortality Tables'!$B$1:$AA$151,$A24+1+P$4,FALSE)*P$5,0),1) -> 0.0001539029339 | AN24: 17 | AO24: 0.0446 | AP24: 0.4975075273 | AQ24: 0.4762660609 | AR24: 0.4975075273 | AS24: 0.4762660609
A25: 18 | B25: 135.3139 | D25: + | F25: *( | G25: 0 | H25: - | I25: 0 | J25: ) | K25: + | M25: *( | O25: - | P25: 0 | Q25: )+ | S25: * | T25: 0 | U25: + | V25: 0 | W25: * | X25: 0.4660987882 | Y25: + | Z25: 0 | AA25: * | AB25: 0 | AD25: 18 | AE25: 0.00028609378 | AF25: 0.0001756974347 | AG25: 0.0446 | AH25: 0.0175 | AI25: 1.03530625 | AK25: =IF($AD25+O$4<120,IF($AD25+O$4>0,HLOOKUP($O$3,'Mortality Tables'!$B$1:$AA$151,$A25+1+O$4,FALSE)*O$5,0),1) -> 0.0002998933232 | AL25: =IF($AD25+P$4<120,IF($AD25+P$4>0,HLOOKUP($P$3,'Mortality Tables'!$B$1:$AA$151,$A25+1+P$4,FALSE)*P$5,0),1) -> 0.0001618978915 | AN25: 18 | AO25: 0.0446 | AP25: 0.4762660609 | AQ25: 0.4559315154 | AR25: 0.4762660609 | AS25: 0.4559315154
A26: =A25+1 -> 19 | B26: 136.3139 | D26: + | F26: *( | G26: 0 | H26: - | I26: 0 | J26: ) | K26: + | M26: *( | O26: - | P26: 0 | Q26: )+ | S26: * | T26: 0 | U26: + | V26: 0 | W26: * | X26: 0.4461983421 | Y26: + | Z26: 0 | AA26: * | AB26: 0 | AD26: 19 | AE26: 0.0003201318306 | AF26: 0.0001839210834 | AG26: 0.0446 | AH26: 0.0175 | AI26: 1.053424109 | AK26: =IF($AD26+O$4<120,IF($AD26+O$4>0,HLOOKUP($O$3,'Mortality Tables'!$B$1:$AA$151,$A26+1+O$4,FALSE)*O$5,0),1) -> 0.000337158174 | AL26: =IF($AD26+P$4<120,IF($AD26+P$4>0,HLOOKUP($P$3,'Mortality Tables'!$B$1:$AA$151,$A26+1+P$4,FALSE)*P$5,0),1) -> 0.00016689474 | AN26: 19 | AO26: 0.0446 | AP26: 0.4559315154 | AQ26: 0.4364651688 | AR26: 0.4559315154 | AS26: 0.4364651688
A27: 20 | B27: 137.3139 | D27: + | F27: *( | G27: 0 | H27: - | I27: 0 | J27: ) | K27: + | M27: *( | O27: - | P27: 0 | Q27: )+ | S27: * | T27: 0 | U27: + | V27: 0 | W27: * | X27: 0.4271475609 | Y27: + | Z27: 0 | AA27: * | AB27: 0 | AD27: 20 | AE27: 0.000353172438 | AF27: 0.0001973638769 | AG27: 0.0446 | AH27: 0.0175 | AI27: 1.071859031 | AK27: =IF($AD27+O$4<120,IF($AD27+O$4>0,HLOOKUP($O$3,'Mortality Tables'!$B$1:$AA$151,$A27+1+O$4,FALSE)*O$5,0),1) -> 0.0003726485081 | AL27: =IF($AD27+P$4<120,IF($AD27+P$4>0,HLOOKUP($P$3,'Mortality Tables'!$B$1:$AA$151,$A27+1+P$4,FALSE)*P$5,0),1) -> 0.0001778878067 | AN27: 20 | AO27: 0.0446 | AP27: 0.4364651688 | AQ27: 0.4178299529 | AR27: 0.4364651688 | AS27: 0.4178299529
A28: 21 | B28: 138.3139 | D28: + | F28: *( | G28: 0 | H28: - | I28: 0 | J28: ) | K28: + | M28: *( | O28: - | P28: 0 | Q28: )+ | S28: * | T28: 0 | U28: + | V28: 0 | W28: * | X28: 0.4089101674 | Y28: + | Z28: 0 | AA28: * | AB28: 0 | AD28: 21 | AE28: 0.0003849023069 | AF28: 0.0002170907375 | AG28: 0.0446 | AH28: 0.0175 | AI28: 1.090616564 | AK28: =IF($AD28+O$4<120,IF($AD28+O$4>0,HLOOKUP($O$3,'Mortality Tables'!$B$1:$AA$151,$A28+1+O$4,FALSE)*O$5,0),1) -> 0.0004058787531 | AL28: =IF($AD28+P$4<120,IF($AD28+P$4>0,HLOOKUP($P$3,'Mortality Tables'!$B$1:$AA$151,$A28+1+P$4,FALSE)*P$5,0),1) -> 0.0001961142913 | AN28: 21 | AO28: 0.0446 | AP28: 0.4178299529 | AQ28: 0.3999903819 | AR28: 0.4178299529 | AS28: 0.3999903819
A29: 22 | B29: 139.3139 | D29: + | F29: *( | G29: 0 | H29: - | I29: 0 | J29: ) | K29: + | M29: *( | O29: - | P29: 0 | Q29: )+ | S29: * | T29: 0 | U29: + | V29: 0 | W29: * | X29: 0.3914514335 | Y29: + | Z29: 0 | AA29: * | AB29: 0 | AD29: 22 | AE29: 0.0004172630847 | AF29: 0.0002422399389 | AG29: 0.0446 | AH29: 0.0175 | AI29: 1.109702354 | AK29: =IF($AD29+O$4<120,IF($AD29+O$4>0,HLOOKUP($O$3,'Mortality Tables'!$B$1:$AA$151,$A29+1+O$4,FALSE)*O$5,0),1) -> 0.0004391409779 | AL29: =IF($AD29+P$4<120,IF($AD29+P$4>0,HLOOKUP($P$3,'Mortality Tables'!$B$1:$AA$151,$A29+1+P$4,FALSE)*P$5,0),1) -> 0.0002203620456 | AN29: 22 | AO29: 0.0446 | AP29: 0.3999903819 | AQ29: 0.3829124851 | AR29: 0.3999903819 | AS29: 0.3829124851
A30: 23 | B30: 140.3139 | D30: + | F30: *( | G30: 0 | H30: - | I30: 0 | J30: ) | K30: + | M30: *( | O30: - | P30: 0 | Q30: )+ | S30: * | T30: 0 | U30: + | V30: 0 | W30: * | X30: 0.3747381136 | Y30: + | Z30: 0 | AA30: * | AB30: 0 | AD30: 23 | AE30: 0.0004511504946 | AF30: 0.0002729520241 | AG30: 0.0446 | AH30: 0.0175 | AI30: 1.129122145 | AK30: =IF($AD30+O$4<120,IF($AD30+O$4>0,HLOOKUP($O$3,'Mortality Tables'!$B$1:$AA$151,$A30+1+O$4,FALSE)*O$5,0),1) -> 0.0004734253034 | AL30: =IF($AD30+P$4<120,IF($AD30+P$4>0,HLOOKUP($P$3,'Mortality Tables'!$B$1:$AA$151,$A30+1+P$4,FALSE)*P$5,0),1) -> 0.0002506772153 | AN30: 23 | AO30: 0.0446 | AP30: 0.3829124851 | AQ30: 0.3665637422 | AR30: 0.3829124851 | AS30: 0.3665637422
A31: 24 | B31: 141.3139 | D31: + | F31: *( | G31: 0 | H31: - | I31: 0 | J31: ) | K31: + | M31: *( | O31: - | P31: 0 | Q31: )+ | S31: * | T31: 0 | U31: + | V31: 0 | W31: * | X31: 0.3587383818 | Y31: + | Z31: 0 | AA31: * | AB31: 0 | AD31: 24 | AE31: 0.0004857053008 | AF31: 0.0003090906314 | AG31: 0.0446 | AH31: 0.0175 | AI31: 1.148881783 | AK31: =IF($AD31+O$4<120,IF($AD31+O$4>0,HLOOKUP($O$3,'Mortality Tables'!$B$1:$AA$151,$A31+1+O$4,FALSE)*O$5,0),1) -> 0.0005077821345 | AL31: =IF($AD31+P$4<120,IF($AD31+P$4>0,HLOOKUP($P$3,'Mortality Tables'!$B$1:$AA$151,$A31+1+P$4,FALSE)*P$5,0),1) -> 0.0002870137977 | AN31: 24 | AO31: 0.0446 | AP31: 0.3665637422 | AQ31: 0.3509130214 | AR31: 0.3665637422 | AS31: 0.3509130214
A32: 25 | B32: 142.3139 | D32: + | F32: *( | G32: 0 | H32: - | I32: 0 | J32: ) | K32: + | M32: *( | O32: - | P32: 0 | Q32: )+ | S32: * | T32: 0 | U32: + | V32: 0 | W32: * | X32: 0.3434217708 | Y32: + | Z32: 0 | AA32: * | AB32: 0 | AD32: 25 | AE32: 0.0005217736814 | AF32: 0.000350807733 | AG32: 0.0446 | AH32: 0.0175 | AI32: 1.168987214 | AK32: =IF($AD32+O$4<120,IF($AD32+O$4>0,HLOOKUP($O$3,'Mortality Tables'!$B$1:$AA$151,$A32+1+O$4,FALSE)*O$5,0),1) -> 0.000543144425 | AL32: =IF($AD32+P$4<120,IF($AD32+P$4>0,HLOOKUP($P$3,'Mortality Tables'!$B$1:$AA$151,$A32+1+P$4,FALSE)*P$5,0),1) -> 0.0003294369894 | AN32: 25 | AO32: 0.0446 | AP32: 0.3509130214 | AQ32: 0.3359305202 | AR32: 0.3509130214 | AS32: 0.3359305202
A33: 26 | B33: 143.3139 | D33: + | F33: *( | G33: 0 | H33: - | I33: 0 | J33: ) | K33: + | M33: *( | O33: - | P33: 0 | Q33: )+ | S33: * | T33: 0 | U33: + | V33: 0 | W33: * | X33: 0.3287591143 | Y33: + | Z33: 0 | AA33: * | AB33: 0 | AD33: 26 | AE33: 0.0005599456638 | AF33: 0.0003972380668 | AG33: 0.0446 | AH33: 0.0175 | AI33: 1.18944449 | AK33: =IF($AD33+O$4<120,IF($AD33+O$4>0,HLOOKUP($O$3,'Mortality Tables'!$B$1:$AA$151,$A33+1+O$4,FALSE)*O$5,0),1) -> 0.0005802841135 | AL33: =IF($AD33+P$4<120,IF($AD33+P$4>0,HLOOKUP($P$3,'Mortality Tables'!$B$1:$AA$151,$A33+1+P$4,FALSE)*P$5,0),1) -> 0.0003768996172 | AN33: 26 | AO33: 0.0446 | AP33: 0.3359305202 | AQ33: 0.3215877084 | AR33: 0.3359305202 | AS33: 0.3215877084
A34: 27 | B34: 144.3139 | D34: + | F34: *( | G34: 0 | H34: - | I34: 0 | J34: ) | K34: + | M34: *( | O34: - | P34: 0 | Q34: )+ | S34: * | T34: 0 | U34: + | V34: 0 | W34: * | X34: 0.3147224912 | Y34: + | Z34: 0 | AA34: * | AB34: 0 | AD34: 27 | AE34: 0.0006017543217 | AF34: 0.0004490907896 | AG34: 0.0446 | AH34: 0.0175 | AI34: 1.210259769 | AK34: =IF($AD34+O$4<120,IF($AD34+O$4>0,HLOOKUP($O$3,'Mortality Tables'!$B$1:$AA$151,$A34+1+O$4,FALSE)*O$5,0),1) -> 0.0006208372632 | AL34: =IF($AD34+P$4<120,IF($AD34+P$4>0,HLOOKUP($P$3,'Mortality Tables'!$B$1:$AA$151,$A34+1+P$4,FALSE)*P$5,0),1) -> 0.0004300078481 | AN34: 27 | AO34: 0.0446 | AP34: 0.3215877084 | AQ34: 0.307857274 | AR34: 0.3215877084 | AS34: 0.307857274
A35: 28 | B35: 145.3139 | D35: + | F35: *( | G35: 0 | H35: - | I35: 0 | J35: ) | K35: + | M35: *( | O35: - | P35: 0 | Q35: )+ | S35: * | T35: 0 | U35: + | V35: 0 | W35: * | X35: 0.3012851725 | Y35: + | Z35: 0 | AA35: * | AB35: 0 | AD35: 28 | AE35: 0.000647038274 | AF35: 0.0005045637915 | AG35: 0.0446 | AH35: 0.0175 | AI35: 1.231439315 | AK35: =IF($AD35+O$4<120,IF($AD35+O$4>0,HLOOKUP($O$3,'Mortality Tables'!$B$1:$AA$151,$A35+1+O$4,FALSE)*O$5,0),1) -> 0.0006648475844 | AL35: =IF($AD35+P$4<120,IF($AD35+P$4>0,HLOOKUP($P$3,'Mortality Tables'!$B$1:$AA$151,$A35+1+P$4,FALSE)*P$5,0),1) -> 0.0004867544811 | AN35: 28 | AO35: 0.0446 | AP35: 0.307857274 | AQ35: 0.294713071 | AR35: 0.307857274 | AS35: 0.294713071
A36: 29 | B36: 146.3139 | D36: + | F36: *( | G36: 0 | H36: - | I36: 0 | J36: ) | K36: + | M36: *( | O36: - | P36: 0 | Q36: )+ | S36: * | T36: 0 | U36: + | V36: 0 | W36: * | X36: 0.2884215705 | Y36: + | Z36: 0 | AA36: * | AB36: 0 | AD36: 29 | AE36: 0.0006971153522 | AF36: 0.0005667292485 | AG36: 0.0446 | AH36: 0.0175 | AI36: 1.252989503 | AK36: =IF($AD36+O$4<120,IF($AD36+O$4>0,HLOOKUP($O$3,'Mortality Tables'!$B$1:$AA$151,$A36+1+O$4,FALSE)*O$5,0),1) -> 0.0007134136152 | AL36: =IF($AD36+P$4<120,IF($AD36+P$4>0,HLOOKUP($P$3,'Mortality Tables'!$B$1:$AA$151,$A36+1+P$4,FALSE)*P$5,0),1) -> 0.0005504309855 | AN36: 29 | AO36: 0.0446 | AP36: 0.294713071 | AQ36: 0.2821300699 | AR36: 0.294713071 | AS36: 0.2821300699
A37: 30 | B37: 147.3139 | D37: + | F37: *( | G37: 0 | H37: - | I37: 0 | J37: ) | K37: + | M37: *( | O37: - | P37: 0 | Q37: )+ | S37: * | T37: 0 | U37: + | V37: 0 | W37: * | X37: 0.2761071898 | Y37: + | Z37: 0 | AA37: * | AB37: 0 | AD37: 30 | AE37: 0.0007517882457 | AF37: 0.0006346401451 | AG37: 0.0446 | AH37: 0.0175 | AI37: 1.274916819 | AK37: =IF($AD37+O$4<120,IF($AD37+O$4>0,HLOOKUP($O$3,'Mortality Tables'!$B$1:$AA$151,$A37+1+O$4,FALSE)*O$5,0),1) -> 0.0007664317583 | AL37: =IF($AD37+P$4<120,IF($AD37+P$4>0,HLOOKUP($P$3,'Mortality Tables'!$B$1:$AA$151,$A37+1+P$4,FALSE)*P$5,0),1) -> 0.0006199966325 | AN37: 30 | AO37: 0.0446 | AP37: 0.2821300699 | AQ37: 0.2700843097 | AR37: 0.2821300699 | AS37: 0.2700843097
A38: 31 | B38: 148.3139 | D38: + | F38: *( | G38: 0 | H38: - | I38: 0 | J38: ) | K38: + | M38: *( | O38: - | P38: 0 | Q38: )+ | S38: * | T38: 0 | U38: + | V38: 0 | W38: * | X38: 0.2643185811 | Y38: + | Z38: 0 | AA38: * | AB38: 0 | AD38: 31 | AE38: 0.0008138117612 | AF38: 0.0007095774152 | AG38: 0.0446 | AH38: 0.0175 | AI38: 1.297227864 | AK38: =IF($AD38+O$4<120,IF($AD38+O$4>0,HLOOKUP($O$3,'Mortality Tables'!$B$1:$AA$151,$A38+1+O$4,FALSE)*O$5,0),1) -> 0.0008268410544 | AL38: =IF($AD38+P$4<120,IF($AD38+P$4>0,HLOOKUP($P$3,'Mortality Tables'!$B$1:$AA$151,$A38+1+P$4,FALSE)*P$5,0),1) -> 0.0006965481219 | AN38: 31 | AO38: 0.0446 | AP38: 0.2700843097 | AQ38: 0.2585528525 | AR38: 0.2700843097 | AS38: 0.2585528525
A39: 32 | B39: 149.3139 | D39: + | F39: *( | G39: 0 | H39: - | I39: 0 | J39: ) | K39: + | M39: *( | O39: - | P39: 0 | Q39: )+ | S39: * | T39: 0 | U39: + | V39: 0 | W39: * | X39: 0.2530332961 | Y39: + | Z39: 0 | AA39: * | AB39: 0 | AD39: 32 | AE39: 0.0008829525799 | AF39: 0.0007897934829 | AG39: 0.0446 | AH39: 0.0175 | AI39: 1.319929351 | AK39: =IF($AD39+O$4<120,IF($AD39+O$4>0,HLOOKUP($O$3,'Mortality Tables'!$B$1:$AA$151,$A39+1+O$4,FALSE)*O$5,0),1) -> 0.000894597467 | AL39: =IF($AD39+P$4<120,IF($AD39+P$4>0,HLOOKUP($P$3,'Mortality Tables'!$B$1:$AA$151,$A39+1+P$4,FALSE)*P$5,0),1) -> 0.0007781485958 | AN39: 32 | AO39: 0.0446 | AP39: 0.2585528525 | AQ39: 0.2475137397 | AR39: 0.2585528525 | AS39: 0.2475137397
A40: 33 | B40: 150.3139 | D40: + | F40: *( | G40: 0 | H40: - | I40: 0 | J40: ) | K40: + | M40: *( | O40: - | P40: 0 | Q40: )+ | S40: * | T40: 0 | U40: + | V40: 0 | W40: * | X40: 0.242229845 | Y40: + | Z40: 0 | AA40: * | AB40: 0 | AD40: 33 | AE40: 0.0009596879468 | AF40: 0.0008768963866 | AG40: 0.0446 | AH40: 0.0175 | AI40: 1.343028115 | AK40: =IF($AD40+O$4<120,IF($AD40+O$4>0,HLOOKUP($O$3,'Mortality Tables'!$B$1:$AA$151,$A40+1+O$4,FALSE)*O$5,0),1) -> 0.0009700368918 | AL40: =IF($AD40+P$4<120,IF($AD40+P$4>0,HLOOKUP($P$3,'Mortality Tables'!$B$1:$AA$151,$A40+1+P$4,FALSE)*P$5,0),1) -> 0.0008665474416 | AN40: 33 | AO40: 0.0446 | AP40: 0.2475137397 | AQ40: 0.2369459503 | AR40: 0.2475137397 | AS40: 0.2369459503
A41: 34 | B41: 151.3139 | D41: + | F41: *( | G41: 0 | H41: - | I41: 0 | J41: ) | K41: + | M41: *( | O41: - | P41: 0 | Q41: )+ | S41: * | T41: 0 | U41: + | V41: 0 | W41: * | X41: 0.2318876556 | Y41: + | Z41: 0 | AA41: * | AB41: 0 | AD41: 34 | AE41: 0.001043643942 | AF41: 0.0009700171191 | AG41: 0.0446 | AH41: 0.0175 | AI41: 1.366531107 | AK41: =IF($AD41+O$4<120,IF($AD41+O$4>0,HLOOKUP($O$3,'Mortality Tables'!$B$1:$AA$151,$A41+1+O$4,FALSE)*O$5,0),1) -> 0.001052847295 | AL41: =IF($AD41+P$4<120,IF($AD41+P$4>0,HLOOKUP($P$3,'Mortality Tables'!$B$1:$AA$151,$A41+1+P$4,FALSE)*P$5,0),1) -> 0.0009608137662 | AN41: 34 | AO41: 0.0446 | AP41: 0.2369459503 | AQ41: 0.2268293608 | AR41: 0.2369459503 | AS41: 0.2268293608
A42: =A41+1 -> 35 | B42: 152.3139 | D42: + | F42: *( | G42: 0 | H42: - | I42: 0 | J42: ) | K42: + | M42: *( | O42: - | P42: 0 | Q42: )+ | S42: * | T42: 0 | U42: + | V42: 0 | W42: * | X42: 0.2219870338 | Y42: + | Z42: 0 | AA42: * | AB42: 0 | AD42: 35 | AE42: 0.001136383064 | AF42: 0.001069360446 | AG42: 0.0446 | AH42: 0.0175 | AI42: 1.390445401 | AK42: =IF($AD42+O$4<120,IF($AD42+O$4>0,HLOOKUP($O$3,'Mortality Tables'!$B$1:$AA$151,$A42+1+O$4,FALSE)*O$5,0),1) -> 0.001144760891 | AL42: =IF($AD42+P$4<120,IF($AD42+P$4>0,HLOOKUP($P$3,'Mortality Tables'!$B$1:$AA$151,$A42+1+P$4,FALSE)*P$5,0),1) -> 0.001060982619 | AN42: 35 | AO42: 0.0446 | AP42: 0.2268293608 | AQ42: 0.2171447069 | AR42: 0.2268293608 | AS42: 0.2171447069
A43: 36 | B43: 153.3139 | D43: + | F43: *( | G43: 0 | H43: - | I43: 0 | J43: ) | K43: + | M43: *( | O43: - | P43: 0 | Q43: )+ | S43: * | T43: 0 | U43: + | V43: 0 | W43: * | X43: 0.2125091268 | Y43: + | Z43: 0 | AA43: * | AB43: 0 | AD43: 36 | AE43: 0.001238955474 | AF43: 0.001175373965 | AG43: 0.0446 | AH43: 0.0175 | AI43: 1.414778196 | AK43: =IF($AD43+O$4<120,IF($AD43+O$4>0,HLOOKUP($O$3,'Mortality Tables'!$B$1:$AA$151,$A43+1+O$4,FALSE)*O$5,0),1) -> 0.001246903162 | AL43: =IF($AD43+P$4<120,IF($AD43+P$4>0,HLOOKUP($P$3,'Mortality Tables'!$B$1:$AA$151,$A43+1+P$4,FALSE)*P$5,0),1) -> 0.001167426276 | AN43: 36 | AO43: 0.0446 | AP43: 0.2171447069 | AQ43: 0.2078735467 | AR43: 0.2171447069 | AS43: 0.2078735467
A44: 37 | B44: 154.3139 | D44: + | F44: *( | G44: 0 | H44: - | I44: 0 | J44: ) | K44: + | M44: *( | O44: - | P44: 0 | Q44: )+ | S44: * | T44: 0 | U44: + | V44: 0 | W44: * | X44: 0.2034358863 | Y44: + | Z44: 0 | AA44: * | AB44: 0 | AD44: 37 | AE44: 0.001351107472 | AF44: 0.001286272687 | AG44: 0.0446 | AH44: 0.0175 | AI44: 1.439536814 | AK44: =IF($AD44+O$4<120,IF($AD44+O$4>0,HLOOKUP($O$3,'Mortality Tables'!$B$1:$AA$151,$A44+1+O$4,FALSE)*O$5,0),1) -> 0.00135921182 | AL44: =IF($AD44+P$4<120,IF($AD44+P$4>0,HLOOKUP($P$3,'Mortality Tables'!$B$1:$AA$151,$A44+1+P$4,FALSE)*P$5,0),1) -> 0.001278168339 | AN44: 37 | AO44: 0.0446 | AP44: 0.2078735467 | AQ44: 0.1989982258 | AR44: 0.2078735467 | AS44: 0.1989982258
A45: 38 | B45: 155.3139 | D45: + | F45: *( | G45: 0 | H45: - | I45: 0 | J45: ) | K45: + | M45: *( | O45: - | P45: 0 | Q45: )+ | S45: * | T45: 0 | U45: + | V45: 0 | W45: * | X45: 0.1947500347 | Y45: + | Z45: 0 | AA45: * | AB45: 0 | AD45: 38 | AE45: 0.00147522226 | AF45: 0.001403515242 | AG45: 0.0446 | AH45: 0.0175 | AI45: 1.464728708 | AK45: =IF($AD45+O$4<120,IF($AD45+O$4>0,HLOOKUP($O$3,'Mortality Tables'!$B$1:$AA$151,$A45+1+O$4,FALSE)*O$5,0),1) -> 0.001484185637 | AL45: =IF($AD45+P$4<120,IF($AD45+P$4>0,HLOOKUP($P$3,'Mortality Tables'!$B$1:$AA$151,$A45+1+P$4,FALSE)*P$5,0),1) -> 0.001394551865 | AN45: 38 | AO45: 0.0446 | AP45: 0.1989982258 | AQ45: 0.1905018436 | AR45: 0.1989982258 | AS45: 0.1905018436
A46: 39 | B46: 156.3139 | D46: + | F46: *( | G46: 0 | H46: - | I46: 0 | J46: ) | K46: + | M46: *( | O46: - | P46: 0 | Q46: )+ | S46: * | T46: 0 | U46: + | V46: 0 | W46: * | X46: 0.1864350323 | Y46: + | Z46: 0 | AA46: * | AB46: 0 | AD46: 39 | AE46: 0.001608954707 | AF46: 0.001524374458 | AG46: 0.0446 | AH46: 0.0175 | AI46: 1.490361461 | AK46: =IF($AD46+O$4<120,IF($AD46+O$4>0,HLOOKUP($O$3,'Mortality Tables'!$B$1:$AA$151,$A46+1+O$4,FALSE)*O$5,0),1) -> 0.001619527238 | AL46: =IF($AD46+P$4<120,IF($AD46+P$4>0,HLOOKUP($P$3,'Mortality Tables'!$B$1:$AA$151,$A46+1+P$4,FALSE)*P$5,0),1) -> 0.001513801927 | AN46: 39 | AO46: 0.0446 | AP46: 0.1905018436 | AQ46: 0.1823682209 | AR46: 0.1905018436 | AS46: 0.1823682209
A47: 40 | B47: 157.3139 | D47: + | F47: *( | G47: 0 | H47: - | I47: 0 | J47: ) | K47: + | M47: *( | O47: - | P47: 0 | Q47: )+ | S47: * | T47: 0 | U47: + | V47: 0 | W47: * | X47: 0.1784750453 | Y47: + | Z47: 0 | AA47: * | AB47: 0 | AD47: 40 | AE47: 0.001752823116 | AF47: 0.001649365897 | AG47: 0.0446 | AH47: 0.0175 | AI47: 1.516442786 | AK47: =IF($AD47+O$4<120,IF($AD47+O$4>0,HLOOKUP($O$3,'Mortality Tables'!$B$1:$AA$151,$A47+1+O$4,FALSE)*O$5,0),1) -> 0.001765755268 | AL47: =IF($AD47+P$4<120,IF($AD47+P$4>0,HLOOKUP($P$3,'Mortality Tables'!$B$1:$AA$151,$A47+1+P$4,FALSE)*P$5,0),1) -> 0.001636433745 | AN47: 40 | AO47: 0.0446 | AP47: 0.1823682209 | AQ47: 0.1745818696 | AR47: 0.1823682209 | AS47: 0.1745818696
A48: 41 | B48: 158.3139 | D48: + | F48: *( | G48: 0 | H48: - | I48: 0 | J48: ) | K48: + | M48: *( | O48: - | P48: 0 | Q48: )+ | S48: * | T48: 0 | U48: + | V48: 0 | W48: * | X48: 0.170854916 | Y48: + | Z48: 0 | AA48: * | AB48: 0 | AD48: 41 | AE48: 0.001906320293 | AF48: 0.001776438604 | AG48: 0.0446 | AH48: 0.0175 | AI48: 1.542980535 | AK48: =IF($AD48+O$4<120,IF($AD48+O$4>0,HLOOKUP($O$3,'Mortality Tables'!$B$1:$AA$151,$A48+1+O$4,FALSE)*O$5,0),1) -> 0.001922555504 | AL48: =IF($AD48+P$4<120,IF($AD48+P$4>0,HLOOKUP($P$3,'Mortality Tables'!$B$1:$AA$151,$A48+1+P$4,FALSE)*P$5,0),1) -> 0.001760203393 | AN48: 41 | AO48: 0.0446 | AP48: 0.1745818696 | AQ48: 0.1671279624 | AR48: 0.1745818696 | AS48: 0.1671279624
A49: 42 | B49: 159.3139 | D49: + | F49: *( | G49: 0 | H49: - | I49: 0 | J49: ) | K49: + | M49: *( | O49: - | P49: 0 | Q49: )+ | S49: * | T49: 0 | U49: + | V49: 0 | W49: * | X49: 0.163560134 | Y49: + | Z49: 0 | AA49: * | AB49: 0 | AD49: 42 | AE49: 0.002069336739 | AF49: 0.001905359164 | AG49: 0.0446 | AH49: 0.0175 | AI49: 1.569982695 | AK49: =IF($AD49+O$4<120,IF($AD49+O$4>0,HLOOKUP($O$3,'Mortality Tables'!$B$1:$AA$151,$A49+1+O$4,FALSE)*O$5,0),1) -> 0.002089833935 | AL49: =IF($AD49+P$4<120,IF($AD49+P$4>0,HLOOKUP($P$3,'Mortality Tables'!$B$1:$AA$151,$A49+1+P$4,FALSE)*P$5,0),1) -> 0.001884861967 | AN49: 42 | AO49: 0.0446 | AP49: 0.1671279624 | AQ49: 0.1599923056 | AR49: 0.1671279624 | AS49: 0.1599923056
A50: 43 | B50: 160.3139 | D50: + | F50: *( | G50: 0 | H50: - | I50: 0 | J50: ) | K50: + | M50: *( | O50: - | P50: 0 | Q50: )+ | S50: * | T50: 0 | U50: + | V50: 0 | W50: * | X50: 0.1565768084 | Y50: + | Z50: 0 | AA50: * | AB50: 0 | AD50: 43 | AE50: 0.002242581515 | AF50: 0.002037048042 | AG50: 0.0446 | AH50: 0.0175 | AI50: 1.597457392 | AK50: =IF($AD50+O$4<120,IF($AD50+O$4>0,HLOOKUP($O$3,'Mortality Tables'!$B$1:$AA$151,$A50+1+O$4,FALSE)*O$5,0),1) -> 0.0022682732 | AL50: =IF($AD50+P$4<120,IF($AD50+P$4>0,HLOOKUP($P$3,'Mortality Tables'!$B$1:$AA$151,$A50+1+P$4,FALSE)*P$5,0),1) -> 0.002011356357 | AN50: 43 | AO50: 0.0446 | AP50: 0.1599923056 | AQ50: 0.1531613111 | AR50: 0.1599923056 | AS50: 0.1531613111
A51: 44 | B51: 161.3139 | D51: + | F51: *( | G51: 0 | H51: - | I51: 0 | J51: ) | K51: + | M51: *( | O51: - | P51: 0 | Q51: )+ | S51: * | T51: 0 | U51: + | V51: 0 | W51: * | X51: 0.1498916412 | Y51: + | Z51: 0 | AA51: * | AB51: 0 | AD51: 44 | AE51: 0.00242557552 | AF51: 0.002169227222 | AG51: 0.0446 | AH51: 0.0175 | AI51: 1.625412896 | AK51: =IF($AD51+O$4<120,IF($AD51+O$4>0,HLOOKUP($O$3,'Mortality Tables'!$B$1:$AA$151,$A51+1+O$4,FALSE)*O$5,0),1) -> 0.002457619057 | AL51: =IF($AD51+P$4<120,IF($AD51+P$4>0,HLOOKUP($P$3,'Mortality Tables'!$B$1:$AA$151,$A51+1+P$4,FALSE)*P$5,0),1) -> 0.002137183685 | AN51: 44 | AO51: 0.0446 | AP51: 0.1531613111 | AQ51: 0.1466219712 | AR51: 0.1531613111 | AS51: 0.1466219712
A52: 45 | B52: 162.3139 | D52: + | F52: *( | G52: 0 | H52: - | I52: 0 | J52: ) | K52: + | M52: *( | O52: - | P52: 0 | Q52: )+ | S52: * | T52: 0 | U52: + | V52: 0 | W52: * | X52: 0.1434919023 | Y52: + | Z52: 0 | AA52: * | AB52: 0 | AD52: 45 | AE52: 0.002620066406 | AF52: 0.002303874428 | AG52: 0.0446 | AH52: 0.0175 | AI52: 1.653857622 | AK52: =IF($AD52+O$4<120,IF($AD52+O$4>0,HLOOKUP($O$3,'Mortality Tables'!$B$1:$AA$151,$A52+1+O$4,FALSE)*O$5,0),1) -> 0.002659590403 | AL52: =IF($AD52+P$4<120,IF($AD52+P$4>0,HLOOKUP($P$3,'Mortality Tables'!$B$1:$AA$151,$A52+1+P$4,FALSE)*P$5,0),1) -> 0.002264350431 | AN52: 45 | AO52: 0.0446 | AP52: 0.1466219712 | AQ52: 0.1403618334 | AR52: 0.1466219712 | AS52: 0.1403618334
A53: 46 | B53: 163.3139 | D53: + | F53: *( | G53: 0 | H53: - | I53: 0 | J53: ) | K53: + | M53: *( | O53: - | P53: 0 | Q53: )+ | S53: * | T53: 0 | U53: + | V53: 0 | W53: * | X53: 0.1373654053 | Y53: + | Z53: 0 | AA53: * | AB53: 0 | AD53: 46 | AE53: 0.002823921299 | AF53: 0.002439919992 | AG53: 0.0446 | AH53: 0.0175 | AI53: 1.68280013 | AK53: =IF($AD53+O$4<120,IF($AD53+O$4>0,HLOOKUP($O$3,'Mortality Tables'!$B$1:$AA$151,$A53+1+O$4,FALSE)*O$5,0),1) -> 0.002871921462 | AL53: =IF($AD53+P$4<120,IF($AD53+P$4>0,HLOOKUP($P$3,'Mortality Tables'!$B$1:$AA$151,$A53+1+P$4,FALSE)*P$5,0),1) -> 0.002391919828 | AN53: 46 | AO53: 0.0446 | AP53: 0.1403618334 | AQ53: 0.1343689771 | AR53: 0.1403618334 | AS53: 0.1343689771
A54: 47 | B54: 164.3139 | D54: + | F54: *( | G54: 0 | H54: - | I54: 0 | J54: ) | K54: + | M54: *( | O54: - | P54: 0 | Q54: )+ | S54: * | T54: 0 | U54: + | V54: 0 | W54: * | X54: 0.1315004837 | Y54: + | Z54: 0 | AA54: * | AB54: 0 | AD54: 47 | AE54: 0.003038870899 | AF54: 0.002576124566 | AG54: 0.0446 | AH54: 0.0175 | AI54: 1.712249132 | AK54: =IF($AD54+O$4<120,IF($AD54+O$4>0,HLOOKUP($O$3,'Mortality Tables'!$B$1:$AA$151,$A54+1+O$4,FALSE)*O$5,0),1) -> 0.003096714191 | AL54: =IF($AD54+P$4<120,IF($AD54+P$4>0,HLOOKUP($P$3,'Mortality Tables'!$B$1:$AA$151,$A54+1+P$4,FALSE)*P$5,0),1) -> 0.002518281274 | AN54: 47 | AO54: 0.0446 | AP54: 0.1343689771 | AQ54: 0.1286319903 | AR54: 0.1343689771 | AS54: 0.1286319903
A55: 48 | B55: 165.3139 | D55: + | F55: *( | G55: 0 | H55: - | I55: 0 | J55: ) | K55: + | M55: *( | O55: - | P55: 0 | Q55: )+ | S55: * | T55: 0 | U55: + | V55: 0 | W55: * | X55: 0.1258859694 | Y55: + | Z55: 0 | AA55: * | AB55: 0 | AD55: 48 | AE55: 0.003264556871 | AF55: 0.002711455451 | AG55: 0.0446 | AH55: 0.0175 | AI55: 1.742213492 | AK55: =IF($AD55+O$4<120,IF($AD55+O$4>0,HLOOKUP($O$3,'Mortality Tables'!$B$1:$AA$151,$A55+1+O$4,FALSE)*O$5,0),1) -> 0.003333694549 | AL55: =IF($AD55+P$4<120,IF($AD55+P$4>0,HLOOKUP($P$3,'Mortality Tables'!$B$1:$AA$151,$A55+1+P$4,FALSE)*P$5,0),1) -> 0.002642317773 | AN55: 48 | AO55: 0.0446 | AP55: 0.1286319903 | AQ55: 0.1231399486 | AR55: 0.1286319903 | AS55: 0.1231399486
A56: 49 | B56: 166.3139 | D56: + | F56: *( | G56: 0 | H56: - | I56: 0 | J56: ) | K56: + | M56: *( | O56: - | P56: 0 | Q56: )+ | S56: * | T56: 0 | U56: + | V56: 0 | W56: * | X56: 0.1205111712 | Y56: + | Z56: 0 | AA56: * | AB56: 0 | AD56: 49 | AE56: 0.003504796307 | AF56: 0.002847777405 | AG56: 0.0446 | AH56: 0.0175 | AI56: 1.772702228 | AK56: =IF($AD56+O$4<120,IF($AD56+O$4>0,HLOOKUP($O$3,'Mortality Tables'!$B$1:$AA$151,$A56+1+O$4,FALSE)*O$5,0),1) -> 0.003586923669 | AL56: =IF($AD56+P$4<120,IF($AD56+P$4>0,HLOOKUP($P$3,'Mortality Tables'!$B$1:$AA$151,$A56+1+P$4,FALSE)*P$5,0),1) -> 0.002765650043 | AN56: 49 | AO56: 0.0446 | AP56: 0.1231399486 | AQ56: 0.1178823938 | AR56: 0.1231399486 | AS56: 0.1178823938
A57: 50 | B57: 167.3139 | D57: + | F57: *( | G57: 0 | H57: - | I57: 0 | J57: ) | K57: + | M57: *( | O57: - | P57: 0 | Q57: )+ | S57: * | T57: 0 | U57: + | V57: 0 | W57: * | X57: 0.1153658541 | Y57: + | Z57: 0 | AA57: * | AB57: 0 | AD57: 50 | AE57: 0.003756758633 | AF57: 0.002987221123 | AG57: 0.0446 | AH57: 0.0175 | AI57: 1.803724517 | AK57: =IF($AD57+O$4<120,IF($AD57+O$4>0,HLOOKUP($O$3,'Mortality Tables'!$B$1:$AA$151,$A57+1+O$4,FALSE)*O$5,0),1) -> 0.003852950821 | AL57: =IF($AD57+P$4<120,IF($AD57+P$4>0,HLOOKUP($P$3,'Mortality Tables'!$B$1:$AA$151,$A57+1+P$4,FALSE)*P$5,0),1) -> 0.002891028934 | AN57: 50 | AO57: 0.0446 | AP57: 0.1178823938 | AQ57: 0.1128493144 | AR57: 0.1178823938 | AS57: 0.1128493144
A58: =A57+1 -> 51 | B58: 168.3139 | D58: + | F58: *( | G58: 0 | H58: - | I58: 0 | J58: ) | K58: + | M58: *( | O58: - | P58: 0 | Q58: )+ | S58: * | T58: 0 | U58: + | V58: 0 | W58: * | X58: 0.1104402203 | Y58: + | Z58: 0 | AA58: * | AB58: 0 | AD58: 51 | AE58: 0.004025988282 | AF58: 0.003129575074 | AG58: 0.0446 | AH58: 0.0175 | AI58: 1.835289696 | AK58: =IF($AD58+O$4<120,IF($AD58+O$4>0,HLOOKUP($O$3,'Mortality Tables'!$B$1:$AA$151,$A58+1+O$4,FALSE)*O$5,0),1) -> 0.004138039933 | AL58: =IF($AD58+P$4<120,IF($AD58+P$4>0,HLOOKUP($P$3,'Mortality Tables'!$B$1:$AA$151,$A58+1+P$4,FALSE)*P$5,0),1) -> 0.003017523423 | AN58: 51 | AO58: 0.0446 | AP58: 0.1128493144 | AQ58: 0.1080311262 | AR58: 0.1128493144 | AS58: 0.1080311262
A59: 52 | B59: 169.3139 | D59: + | F59: *( | G59: 0 | H59: - | I59: 0 | J59: ) | K59: + | M59: *( | O59: - | P59: 0 | Q59: )+ | S59: * | T59: 0 | U59: + | V59: 0 | W59: * | X59: 0.1057248902 | Y59: + | Z59: 0 | AA59: * | AB59: 0 | AD59: 52 | AE59: 0.004299952134 | AF59: 0.003287226232 | AG59: 0.0446 | AH59: 0.0175 | AI59: 1.867407266 | AK59: =IF($AD59+O$4<120,IF($AD59+O$4>0,HLOOKUP($O$3,'Mortality Tables'!$B$1:$AA$151,$A59+1+O$4,FALSE)*O$5,0),1) -> 0.004426542871 | AL59: =IF($AD59+P$4<120,IF($AD59+P$4>0,HLOOKUP($P$3,'Mortality Tables'!$B$1:$AA$151,$A59+1+P$4,FALSE)*P$5,0),1) -> 0.003160635494 | AN59: 52 | AO59: 0.0446 | AP59: 0.1080311262 | AQ59: 0.1034186542 | AR59: 0.1080311262 | AS59: 0.1034186542
A60: 53 | B60: 170.3139 | D60: + | F60: *( | G60: 0 | H60: - | I60: 0 | J60: ) | K60: + | M60: *( | O60: - | P60: 0 | Q60: )+ | S60: * | T60: 0 | U60: + | V60: 0 | W60: * | X60: 0.1012108847 | Y60: + | Z60: 0 | AA60: * | AB60: 0 | AD60: 53 | AE60: 0.004578221109 | AF60: 0.003463272333 | AG60: 0.0446 | AH60: 0.0175 | AI60: 1.900086893 | AK60: =IF($AD60+O$4<120,IF($AD60+O$4>0,HLOOKUP($O$3,'Mortality Tables'!$B$1:$AA$151,$A60+1+O$4,FALSE)*O$5,0),1) -> 0.004717589706 | AL60: =IF($AD60+P$4<120,IF($AD60+P$4>0,HLOOKUP($P$3,'Mortality Tables'!$B$1:$AA$151,$A60+1+P$4,FALSE)*P$5,0),1) -> 0.003323903736 | AN60: 53 | AO60: 0.0446 | AP60: 0.1034186542 | AQ60: 0.09900311526 | AR60: 0.1034186542 | AS60: 0.09900311526
A61: 54 | B61: 171.3139 | D61: + | F61: *( | G61: 0 | H61: - | I61: 0 | J61: ) | K61: + | M61: *( | O61: - | P61: 0 | Q61: )+ | S61: * | T61: 0 | U61: + | V61: 0 | W61: * | X61: 0.09688960821 | Y61: + | Z61: 0 | AA61: * | AB61: 0 | AD61: 54 | AE61: 0.004867573783 | AF61: 0.003662262748 | AG61: 0.0446 | AH61: 0.0175 | AI61: 1.933338414 | AK61: =IF($AD61+O$4<120,IF($AD61+O$4>0,HLOOKUP($O$3,'Mortality Tables'!$B$1:$AA$151,$A61+1+O$4,FALSE)*O$5,0),1) -> 0.005018237663 | AL61: =IF($AD61+P$4<120,IF($AD61+P$4>0,HLOOKUP($P$3,'Mortality Tables'!$B$1:$AA$151,$A61+1+P$4,FALSE)*P$5,0),1) -> 0.003511598869 | AN61: 54 | AO61: 0.0446 | AP61: 0.09900311526 | AQ61: 0.09477610115 | AR61: 0.09900311526 | AS61: 0.09477610115
A62: 55 | B62: 172.3139 | D62: + | F62: *( | G62: 0 | H62: - | I62: 0 | J62: ) | K62: + | M62: *( | O62: - | P62: 0 | Q62: )+ | S62: * | T62: 0 | U62: + | V62: 0 | W62: * | X62: 0.0927528319 | Y62: + | Z62: 0 | AA62: * | AB62: 0 | AD62: 55 | AE62: 0.005168867262 | AF62: 0.003887646161 | AG62: 0.0446 | AH62: 0.0175 | AI62: 1.967171836 | AK62: =IF($AD62+O$4<120,IF($AD62+O$4>0,HLOOKUP($O$3,'Mortality Tables'!$B$1:$AA$151,$A62+1+O$4,FALSE)*O$5,0),1) -> 0.005329019899 | AL62: =IF($AD62+P$4<120,IF($AD62+P$4>0,HLOOKUP($P$3,'Mortality Tables'!$B$1:$AA$151,$A62+1+P$4,FALSE)*P$5,0),1) -> 0.003727493523 | AN62: 55 | AO62: 0.0446 | AP62: 0.09477610115 | AQ62: 0.09072956265 | AR62: 0.09477610115 | AS62: 0.09072956265
A63: 56 | B63: 173.3139 | D63: + | F63: *( | G63: 0 | H63: - | I63: 0 | J63: ) | K63: + | M63: *( | O63: - | P63: 0 | Q63: )+ | S63: * | T63: 0 | U63: + | V63: 0 | W63: * | X63: 0.08879267844 | Y63: + | Z63: 0 | AA63: * | AB63: 0 | AD63: 56 | AE63: 0.005490186908 | AF63: 0.004146127645 | AG63: 0.0446 | AH63: 0.0175 | AI63: 2.001597343 | AK63: =IF($AD63+O$4<120,IF($AD63+O$4>0,HLOOKUP($O$3,'Mortality Tables'!$B$1:$AA$151,$A63+1+O$4,FALSE)*O$5,0),1) -> 0.005658194316 | AL63: =IF($AD63+P$4<120,IF($AD63+P$4>0,HLOOKUP($P$3,'Mortality Tables'!$B$1:$AA$151,$A63+1+P$4,FALSE)*P$5,0),1) -> 0.003978120237 | AN63: 56 | AO63: 0.0446 | AP63: 0.09072956265 | AQ63: 0.08685579423 | AR63: 0.09072956265 | AS63: 0.08685579423
A64: 57 | B64: 174.3139 | D64: + | F64: *( | G64: 0 | H64: - | I64: 0 | J64: ) | K64: + | M64: *( | O64: - | P64: 0 | Q64: )+ | S64: * | T64: 0 | U64: + | V64: 0 | W64: * | X64: 0.08500160678 | Y64: + | Z64: 0 | AA64: * | AB64: 0 | AD64: 57 | AE64: 0.005835190018 | AF64: 0.004444063533 | AG64: 0.0446 | AH64: 0.0175 | AI64: 2.036625297 | AK64: =IF($AD64+O$4<120,IF($AD64+O$4>0,HLOOKUP($O$3,'Mortality Tables'!$B$1:$AA$151,$A64+1+O$4,FALSE)*O$5,0),1) -> 0.006009080828 | AL64: =IF($AD64+P$4<120,IF($AD64+P$4>0,HLOOKUP($P$3,'Mortality Tables'!$B$1:$AA$151,$A64+1+P$4,FALSE)*P$5,0),1) -> 0.004270172723 | AN64: 57 | AO64: 0.0446 | AP64: 0.08685579423 | AQ64: 0.08314741933 | AR64: 0.08685579423 | AS64: 0.08314741933
A65: 58 | B65: 175.3139 | D65: + | F65: *( | G65: 0 | H65: - | I65: 0 | J65: ) | K65: + | M65: *( | O65: - | P65: 0 | Q65: )+ | S65: * | T65: 0 | U65: + | V65: 0 | W65: * | X65: 0.08137239784 | Y65: + | Z65: 0 | AA65: * | AB65: 0 | AD65: 58 | AE65: 0.006208862783 | AF65: 0.004786272344 | AG65: 0.0446 | AH65: 0.0175 | AI65: 2.072266239 | AK65: =IF($AD65+O$4<120,IF($AD65+O$4>0,HLOOKUP($O$3,'Mortality Tables'!$B$1:$AA$151,$A65+1+O$4,FALSE)*O$5,0),1) -> 0.006386686588 | AL65: =IF($AD65+P$4<120,IF($AD65+P$4>0,HLOOKUP($P$3,'Mortality Tables'!$B$1:$AA$151,$A65+1+P$4,FALSE)*P$5,0),1) -> 0.004608448539 | AN65: 58 | AO65: 0.0446 | AP65: 0.08314741933 | AQ65: 0.07959737635 | AR65: 0.08314741933 | AS65: 0.07959737635
A66: 59 | B66: 176.3139 | D66: + | F66: *( | G66: 0 | H66: - | I66: 0 | J66: ) | K66: + | M66: *( | O66: - | P66: 0 | Q66: )+ | S66: * | T66: 0 | U66: + | V66: 0 | W66: * | X66: 0.07789814076 | Y66: + | Z66: 0 | AA66: * | AB66: 0 | AD66: 59 | AE66: 0.006620800058 | AF66: 0.005181018909 | AG66: 0.0446 | AH66: 0.0175 | AI66: 2.108530899 | AK66: =IF($AD66+O$4<120,IF($AD66+O$4>0,HLOOKUP($O$3,'Mortality Tables'!$B$1:$AA$151,$A66+1+O$4,FALSE)*O$5,0),1) -> 0.006800772701 | AL66: =IF($AD66+P$4<120,IF($AD66+P$4>0,HLOOKUP($P$3,'Mortality Tables'!$B$1:$AA$151,$A66+1+P$4,FALSE)*P$5,0),1) -> 0.005001046266 | AN66: 59 | AO66: 0.0446 | AP66: 0.07959737635 | AQ66: 0.07619890517 | AR66: 0.07959737635 | AS66: 0.07619890517
A67: 60 | B67: 177.3139 | D67: + | F67: *( | G67: 0 | H67: - | I67: 0 | J67: ) | K67: + | M67: *( | O67: - | P67: 0 | Q67: )+ | S67: * | T67: 0 | U67: + | V67: 0 | W67: * | X67: 0.07457221976 | Y67: + | Z67: 0 | AA67: * | AB67: 0 | AD67: 60 | AE67: 0.007076690643 | AF67: 0.005630512878 | AG67: 0.0446 | AH67: 0.0175 | AI67: 2.145430189 | AK67: =IF($AD67+O$4<120,IF($AD67+O$4>0,HLOOKUP($O$3,'Mortality Tables'!$B$1:$AA$151,$A67+1+O$4,FALSE)*O$5,0),1) -> 0.007257462863 | AL67: =IF($AD67+P$4<120,IF($AD67+P$4>0,HLOOKUP($P$3,'Mortality Tables'!$B$1:$AA$151,$A67+1+P$4,FALSE)*P$5,0),1) -> 0.005449740658 | AN67: 60 | AO67: 0.0446 | AP67: 0.07619890517 | AQ67: 0.07294553434 | AR67: 0.07619890517 | AS67: 0.07294553434
A68: 61 | B68: 178.3139 | D68: + | F68: *( | G68: 0 | H68: - | I68: 0 | J68: ) | K68: + | M68: *( | O68: - | P68: 0 | Q68: )+ | S68: * | T68: 0 | U68: + | V68: 0 | W68: * | X68: 0.07138830151 | Y68: + | Z68: 0 | AA68: * | AB68: 0 | AD68: 61 | AE68: 0.007585914379 | AF68: 0.006140668443 | AG68: 0.0446 | AH68: 0.0175 | AI68: 2.182975218 | AK68: =IF($AD68+O$4<120,IF($AD68+O$4>0,HLOOKUP($O$3,'Mortality Tables'!$B$1:$AA$151,$A68+1+O$4,FALSE)*O$5,0),1) -> 0.007766570121 | AL68: =IF($AD68+P$4<120,IF($AD68+P$4>0,HLOOKUP($P$3,'Mortality Tables'!$B$1:$AA$151,$A68+1+P$4,FALSE)*P$5,0),1) -> 0.005960012701 | AN68: 61 | AO68: 0.0446 | AP68: 0.07294553434 | AQ68: 0.06983106868 | AR68: 0.07294553434 | AS68: 0.06983106868
A69: 62 | B69: 179.3139 | D69: + | F69: *( | G69: 0 | H69: - | I69: 0 | J69: ) | K69: + | M69: *( | O69: - | P69: 0 | Q69: )+ | S69: * | T69: 0 | U69: + | V69: 0 | W69: * | X69: 0.0683403231 | Y69: + | Z69: 0 | AA69: * | AB69: 0 | AD69: 62 | AE69: 0.008157081891 | AF69: 0.006710506014 | AG69: 0.0446 | AH69: 0.0175 | AI69: 2.221177284 | AK69: =IF($AD69+O$4<120,IF($AD69+O$4>0,HLOOKUP($O$3,'Mortality Tables'!$B$1:$AA$151,$A69+1+O$4,FALSE)*O$5,0),1) -> 0.008337903875 | AL69: =IF($AD69+P$4<120,IF($AD69+P$4>0,HLOOKUP($P$3,'Mortality Tables'!$B$1:$AA$151,$A69+1+P$4,FALSE)*P$5,0),1) -> 0.006529684029 | AN69: 62 | AO69: 0.0446 | AP69: 0.06983106868 | AQ69: 0.06684957752 | AR69: 0.06983106868 | AS69: 0.06684957752
A70: 63 | B70: 180.3139 | D70: + | F70: *( | G70: 0 | H70: - | I70: 0 | J70: ) | K70: + | M70: *( | O70: - | P70: 0 | Q70: )+ | S70: * | T70: 0 | U70: + | V70: 0 | W70: * | X70: 0.06542248047 | Y70: + | Z70: 0 | AA70: * | AB70: 0 | AD70: 63 | AE70: 0.008794873181 | AF70: 0.007340647879 | AG70: 0.0446 | AH70: 0.0175 | AI70: 2.260047886 | AK70: =IF($AD70+O$4<120,IF($AD70+O$4>0,HLOOKUP($O$3,'Mortality Tables'!$B$1:$AA$151,$A70+1+O$4,FALSE)*O$5,0),1) -> 0.008976651343 | AL70: =IF($AD70+P$4<120,IF($AD70+P$4>0,HLOOKUP($P$3,'Mortality Tables'!$B$1:$AA$151,$A70+1+P$4,FALSE)*P$5,0),1) -> 0.007158869716 | AN70: 63 | AO70: 0.0446 | AP70: 0.06684957752 | AQ70: 0.06399538342 | AR70: 0.06684957752 | AS70: 0.06399538342
A71: =A70+1 -> 64 | B71: 181.3139 | D71: + | F71: *( | G71: 0 | H71: - | I71: 0 | J71: ) | K71: + | M71: *( | O71: - | P71: 0 | Q71: )+ | S71: * | T71: 0 | U71: + | V71: 0 | W71: * | X71: 0.06262921738 | Y71: + | Z71: 0 | AA71: * | AB71: 0 | AD71: 64 | AE71: 0.009514812167 | AF71: 0.008034719294 | AG71: 0.0446 | AH71: 0.0175 | AI71: 2.299598724 | AK71: =IF($AD71+O$4<120,IF($AD71+O$4>0,HLOOKUP($O$3,'Mortality Tables'!$B$1:$AA$151,$A71+1+O$4,FALSE)*O$5,0),1) -> 0.009699823776 | AL71: =IF($AD71+P$4<120,IF($AD71+P$4>0,HLOOKUP($P$3,'Mortality Tables'!$B$1:$AA$151,$A71+1+P$4,FALSE)*P$5,0),1) -> 0.007849707685 | AN71: 64 | AO71: 0.0446 | AP71: 0.06399538342 | AQ71: 0.06126305133 | AR71: 0.06399538342 | AS71: 0.06126305133
A72: 65 | B72: 182.3139 | D72: + | F72: *( | G72: =AB194 -> 0 | H72: - | I72: 0 | J72: ) | K72: + | L72: =$I$3*E72 ->  | M72: *( | O72: - | P72: 0 | Q72: )+ | S72: * | T72: 0 | U72: + | V72: 0 | W72: * | X72: 0.0599552148 | Y72: + | Z72: 0 | AA72: * | AB72: 0 | AD72: 65 | AE72: =AK72*$O$6+(1-$O$6)*AL72 -> 0.01031718226 | AF72: 0.008795391837 | AG72: 0.0446 | AH72: 0.0175 | AI72: 2.339841702 | AK72: =IF($AD72+O$4<120,IF($AD72+O$4>0,HLOOKUP($O$3,'Mortality Tables'!$B$1:$AA$151,$A72+1+O$4,FALSE)*O$5,0),1) -> 0.01050740607 | AL72: =IF($AD72+P$4<120,IF($AD72+P$4>0,HLOOKUP($P$3,'Mortality Tables'!$B$1:$AA$151,$A72+1+P$4,FALSE)*P$5,0),1) -> 0.008605168034 | AN72: 65 | AO72: 0.0446 | AP72: 0.06126305133 | AQ72: 0.05864737826 | AR72: 0.06126305133 | AS72: 0.05864737826
A73: 66 | B73: 183.3139 | D73: + | E73: =IF(B73-0.0000001<$D$5-1,0,IF(AND($D$5-B73<1,$D$5-B73>0),AI73*$G$2*(1-($D$5-B73)),AI73*$G$2)) ->  | F73: *( | G73: 0 | H73: - | I73: =V443 -> 0 | J73: ) | K73: + | M73: *( | N73: =AG318 ->  | O73: - | P73: =V443 -> 0 | Q73: )+ | R73: =E73 ->  | S73: * | T73: =V443 -> 0 | U73: + | V73: =IF(AND(A73<$I$5+1,B73<$C$5),IF($C$5-B73<1,$G$5*AI73*(1-$D$3),$G$5*AI73),0) -> 0 | W73: * | X73: =X72/(1+AG73) -> 0.05739538081 | Y73: + | Z73: =$G$6 -> 0 | AA73: * | AB73: =AC195 -> 0 | AD73: 66 | AE73: 0.01121590743 | AF73: 0.009630329304 | AG73: =IF(A73<=$S$3,$R$3,IF(A73<=$S$4+$S$3,$R$4,$R$5)) -> 0.0446 | AH73: =IF(B73-0.000001<$D$5-1,0,IF(AND($D$5-B73<1,$D$5-B73>0),$K$3*(1-($D$5-B73)),$K$3)) -> 0.0175 | AI73: =IF($L$3="S",AI72+AH72,AI72*(1+AH72)) -> 2.380788932 | AK73: =IF($AD73+O$4<120,IF($AD73+O$4>0,HLOOKUP($O$3,'Mortality Tables'!$B$1:$AA$151,$A73+1+O$4,FALSE)*O$5,0),1) -> 0.0114141047 | AL73: =IF($AD73+P$4<120,IF($AD73+P$4>0,HLOOKUP($P$3,'Mortality Tables'!$B$1:$AA$151,$A73+1+P$4,FALSE)*P$5,0),1) -> 0.009432132038 | AN73: 66 | AO73: =IF(A73<=$S$3,$R$3,IF(A73<=$S$4+$S$3,$R$4,$R$5)) -> 0.0446 | AP73: 0.05864737826 | AQ73: 0.05614338336 | AR73: =(1+AO73)^-(AD73-1) -> 0.05864737826 | AS73: =(1+AO73)^(-AD73) -> 0.05614338336
A74: =A73+1 -> 67 | B74: 184.3139 | C74: =C73+E73*(G73-I73)+L73*(N73-P73)+R73*T73+V73*X73+Z73*AB73 ->  | D74: + | F74: *( | G74: 0 | H74: - | I74: 0 | J74: ) | K74: + | M74: *( | O74: - | P74: 0 | Q74: )+ | S74: * | T74: 0 | U74: + | V74: 0 | W74: * | X74: 0.05494484091 | Y74: + | Z74: 0 | AA74: * | AB74: 0 | AD74: =AD73+1 -> 67 | AE74: 0.01221783294 | AF74: 0.01054850744 | AG74: 0.0446 | AH74: 0.0175 | AI74: 2.422452738 | AK74: =IF($AD74+O$4<120,IF($AD74+O$4>0,HLOOKUP($O$3,'Mortality Tables'!$B$1:$AA$151,$A74+1+O$4,FALSE)*O$5,0),1) -> 0.01242649862 | AL74: =IF($AD74+P$4<120,IF($AD74+P$4>0,HLOOKUP($P$3,'Mortality Tables'!$B$1:$AA$151,$A74+1+P$4,FALSE)*P$5,0),1) -> 0.01033984176 | AN74: =AN73+1 -> 67 | AO74: 0.0446 | AP74: =AQ73 -> 0.05614338336 | AQ74: =AQ73/(1+AO74) -> 0.05374629845 | AR74: 0.05614338336 | AS74: 0.05374629845
A75: 68 | B75: 185.3139 | D75: + | F75: *( | G75: 0 | H75: - | I75: 0 | J75: ) | K75: + | M75: *( | O75: - | P75: 0 | Q75: )+ | S75: * | T75: 0 | U75: + | V75: 0 | W75: * | X75: 0.05259892869 | Y75: + | Z75: 0 | AA75: * | AB75: 0 | AD75: 68 | AE75: 0.01332964528 | AF75: =IF($P$6="Opposite",AK75*(1-$O$6)+$O$6*AL75,AE75) -> 0.01155654334 | AG75: 0.0446 | AH75: 0.0175 | AI75: 2.464845661 | AK75: =IF($AD75+O$4<120,IF($AD75+O$4>0,HLOOKUP($O$3,'Mortality Tables'!$B$1:$AA$151,$A75+1+O$4,FALSE)*O$5,0),1) -> 0.01355128302 | AL75: =IF($AD75+P$4<120,IF($AD75+P$4>0,HLOOKUP($P$3,'Mortality Tables'!$B$1:$AA$151,$A75+1+P$4,FALSE)*P$5,0),1) -> 0.0113349056 | AN75: 68 | AO75: 0.0446 | AP75: 0.05374629845 | AQ75: 0.05145155892 | AR75: 0.05374629845 | AS75: 0.05145155892
A76: 69 | B76: 186.3139 | D76: + | F76: *( | G76: 0 | H76: - | I76: 0 | J76: ) | K76: + | M76: *( | O76: - | P76: 0 | Q76: )+ | S76: * | T76: 0 | U76: + | V76: 0 | W76: * | X76: 0.05035317699 | Y76: + | Z76: 0 | AA76: * | AB76: 0 | AD76: 69 | AE76: 0.01456170796 | AF76: 0.01266445832 | AG76: 0.0446 | AH76: 0.0175 | AI76: 2.50798046 | AK76: =IF($AD76+O$4<120,IF($AD76+O$4>0,HLOOKUP($O$3,'Mortality Tables'!$B$1:$AA$151,$A76+1+O$4,FALSE)*O$5,0),1) -> 0.01479886417 | AL76: =IF($AD76+P$4<120,IF($AD76+P$4>0,HLOOKUP($P$3,'Mortality Tables'!$B$1:$AA$151,$A76+1+P$4,FALSE)*P$5,0),1) -> 0.01242730211 | AN76: 69 | AO76: 0.0446 | AP76: 0.05145155892 | AQ76: 0.04925479506 | AR76: 0.05145155892 | AS76: 0.04925479506
A77: 70 | B77: 187.3139 | D77: + | F77: *( | G77: 0 | H77: - | I77: 0 | J77: ) | K77: + | M77: *( | O77: - | P77: 0 | Q77: )+ | S77: * | T77: 0 | U77: + | V77: 0 | W77: * | X77: 0.0482033094 | Y77: + | Z77: 0 | AA77: * | AB77: 0 | AD77: 70 | AE77: 0.01592903716 | AF77: 0.01388592527 | AG77: 0.0446 | AH77: 0.0175 | AI77: 2.551870118 | AK77: =IF($AD77+O$4<120,IF($AD77+O$4>0,HLOOKUP($O$3,'Mortality Tables'!$B$1:$AA$151,$A77+1+O$4,FALSE)*O$5,0),1) -> 0.01618442614 | AL77: =IF($AD77+P$4<120,IF($AD77+P$4>0,HLOOKUP($P$3,'Mortality Tables'!$B$1:$AA$151,$A77+1+P$4,FALSE)*P$5,0),1) -> 0.01363053628 | AN77: 70 | AO77: 0.0446 | AP77: 0.04925479506 | AQ77: 0.04715182373 | AR77: 0.04925479506 | AS77: 0.04715182373
A78: 71 | B78: 188.3139 | D78: + | F78: *( | G78: 0 | H78: - | I78: 0 | J78: ) | K78: + | M78: *( | O78: - | P78: 0 | Q78: )+ | S78: * | T78: 0 | U78: + | V78: 0 | W78: * | X78: 0.04614523205 | Y78: + | Z78: 0 | AA78: * | AB78: 0 | AD78: 71 | AE78: 0.0174414274 | AF78: 0.01523314116 | AG78: 0.0446 | AH78: 0.0175 | AI78: 2.596527845 | AK78: =IF($AD78+O$4<120,IF($AD78+O$4>0,HLOOKUP($O$3,'Mortality Tables'!$B$1:$AA$151,$A78+1+O$4,FALSE)*O$5,0),1) -> 0.01771746318 | AL78: =IF($AD78+P$4<120,IF($AD78+P$4>0,HLOOKUP($P$3,'Mortality Tables'!$B$1:$AA$151,$A78+1+P$4,FALSE)*P$5,0),1) -> 0.01495710538 | AN78: 71 | AO78: 0.0446 | AP78: 0.04715182373 | AQ78: 0.04513864037 | AR78: 0.04715182373 | AS78: 0.04513864037
A79: 72 | B79: 189.3139 | D79: + | F79: *( | G79: 0 | H79: - | I79: 0 | J79: ) | K79: + | M79: *( | O79: - | P79: 0 | Q79: )+ | S79: * | T79: 0 | U79: + | V79: 0 | W79: * | X79: 0.04417502589 | Y79: + | Z79: 0 | AA79: * | AB79: 0 | AD79: 72 | AE79: 0.01910318573 | AF79: 0.01671522135 | AG79: 0.0446 | AH79: 0.0175 | AI79: 2.641967083 | AK79: =IF($AD79+O$4<120,IF($AD79+O$4>0,HLOOKUP($O$3,'Mortality Tables'!$B$1:$AA$151,$A79+1+O$4,FALSE)*O$5,0),1) -> 0.01940168128 | AL79: =IF($AD79+P$4<120,IF($AD79+P$4>0,HLOOKUP($P$3,'Mortality Tables'!$B$1:$AA$151,$A79+1+P$4,FALSE)*P$5,0),1) -> 0.01641672581 | AN79: 72 | AO79: 0.0446 | AP79: 0.04513864037 | AQ79: 0.04321141142 | AR79: 0.04513864037 | AS79: 0.04321141142
A80: 73 | B80: 190.3139 | D80: + | F80: *( | G80: 0 | H80: - | I80: 0 | J80: ) | K80: + | M80: *( | O80: - | P80: 0 | Q80: )+ | S80: * | T80: 0 | U80: + | V80: 0 | W80: * | X80: 0.0422889392 | Y80: + | Z80: 0 | AA80: * | AB80: 0 | AD80: 73 | AE80: 0.02095178422 | AF80: 0.01835440145 | AG80: 0.0446 | AH80: 0.0175 | AI80: 2.688201507 | AK80: =IF($AD80+O$4<120,IF($AD80+O$4>0,HLOOKUP($O$3,'Mortality Tables'!$B$1:$AA$151,$A80+1+O$4,FALSE)*O$5,0),1) -> 0.02127645706 | AL80: =IF($AD80+P$4<120,IF($AD80+P$4>0,HLOOKUP($P$3,'Mortality Tables'!$B$1:$AA$151,$A80+1+P$4,FALSE)*P$5,0),1) -> 0.0180297286 | AN80: 73 | AO80: 0.0446 | AP80: 0.04321141142 | AQ80: 0.04136646699 | AR80: 0.04321141142 | AS80: 0.04136646699
A81: 74 | B81: 191.3139 | D81: + | F81: *( | G81: 0 | H81: - | I81: 0 | J81: ) | K81: + | M81: *( | O81: - | P81: 0 | Q81: )+ | S81: * | T81: 0 | U81: + | V81: 0 | W81: * | X81: 0.04048338044 | Y81: + | Z81: 0 | AA81: * | AB81: 0 | AD81: 74 | AE81: 0.02299893857 | AF81: 0.02016910836 | AG81: 0.0446 | AH81: 0.0175 | AI81: 2.735245033 | AK81: =IF($AD81+O$4<120,IF($AD81+O$4>0,HLOOKUP($O$3,'Mortality Tables'!$B$1:$AA$151,$A81+1+O$4,FALSE)*O$5,0),1) -> 0.02335266734 | AL81: =IF($AD81+P$4<120,IF($AD81+P$4>0,HLOOKUP($P$3,'Mortality Tables'!$B$1:$AA$151,$A81+1+P$4,FALSE)*P$5,0),1) -> 0.01981537958 | AN81: 74 | AO81: 0.0446 | AP81: 0.04136646699 | AQ81: 0.03960029388 | AR81: 0.04136646699 | AS81: 0.03960029388
A82: 75 | B82: 192.3139 | G82: 0 | I82: 0 | P82: 0 | T82: 0 | V82: 0 | X82: 0.03875491139 | AB82: 0 | AD82: 75 | AE82: 0.02528296615 | AF82: 0.02219421429 | AG82: 0.0446 | AH82: 0.0175 | AI82: 2.783111821 | AK82: =IF($AD82+O$4<120,IF($AD82+O$4>0,HLOOKUP($O$3,'Mortality Tables'!$B$1:$AA$151,$A82+1+O$4,FALSE)*O$5,0),1) -> 0.02566906013 | AL82: =IF($AD82+P$4<120,IF($AD82+P$4>0,HLOOKUP($P$3,'Mortality Tables'!$B$1:$AA$151,$A82+1+P$4,FALSE)*P$5,0),1) -> 0.0218081203 | AN82: 75 | AO82: 0.0446 | AP82: 0.03960029388 | AQ82: 0.03790952889 | AR82: 0.03960029388 | AS82: 0.03790952889
A83: =A82+1 -> 76 | B83: 193.3139 | G83: 0 | I83: 0 | P83: 0 | T83: 0 | V83: 0 | X83: 0.03710024065 | AB83: 0 | AD83: 76 | AE83: 0.02784907059 | AF83: 0.02446000188 | AG83: 0.0446 | AH83: 0.0175 | AI83: 2.831816278 | AK83: =IF($AD83+O$4<120,IF($AD83+O$4>0,HLOOKUP($O$3,'Mortality Tables'!$B$1:$AA$151,$A83+1+O$4,FALSE)*O$5,0),1) -> 0.02827270418 | AL83: =IF($AD83+P$4<120,IF($AD83+P$4>0,HLOOKUP($P$3,'Mortality Tables'!$B$1:$AA$151,$A83+1+P$4,FALSE)*P$5,0),1) -> 0.02403636829 | AN83: 76 | AO83: 0.0446 | AP83: 0.03790952889 | AQ83: 0.03629095242 | AR83: 0.03790952889 | AS83: 0.03629095242
A84: =A83+1 -> 77 | B84: 194.3139 | G84: 0 | I84: 0 | P84: 0 | T84: 0 | V84: 0 | X84: 0.03551621736 | AB84: 0 | AD84: 77 | AE84: 0.03071549388 | AF84: 0.0269991687 | AG84: 0.0446 | AH84: 0.0175 | AI84: 2.881373063 | AK84: =IF($AD84+O$4<120,IF($AD84+O$4>0,HLOOKUP($O$3,'Mortality Tables'!$B$1:$AA$151,$A84+1+O$4,FALSE)*O$5,0),1) -> 0.03118003453 | AL84: =IF($AD84+P$4<120,IF($AD84+P$4>0,HLOOKUP($P$3,'Mortality Tables'!$B$1:$AA$151,$A84+1+P$4,FALSE)*P$5,0),1) -> 0.02653462805 | AN84: 77 | AO84: 0.0446 | AP84: 0.03629095242 | AQ84: 0.0347414823 | AR84: 0.03629095242 | AS84: 0.0347414823
A85: 78 | B85: 195.3139 | G85: 0 | I85: 0 | P85: 0 | T85: 0 | V85: 0 | X85: 0.03399982516 | AB85: 0 | AD85: 78 | AE85: 0.03396549135 | AF85: 0.0298680086 | AG85: 0.0446 | AH85: 0.0175 | AI85: 2.931797091 | AK85: =IF($AD85+O$4<120,IF($AD85+O$4>0,HLOOKUP($O$3,'Mortality Tables'!$B$1:$AA$151,$A85+1+O$4,FALSE)*O$5,0),1) -> 0.0344776767 | AL85: =IF($AD85+P$4<120,IF($AD85+P$4>0,HLOOKUP($P$3,'Mortality Tables'!$B$1:$AA$151,$A85+1+P$4,FALSE)*P$5,0),1) -> 0.02935582326 | AN85: 78 | AO85: 0.0446 | AP85: 0.0347414823 | AQ85: 0.03325816801 | AR85: 0.0347414823 | AS85: 0.03325816801
A86: 79 | B86: 196.3139 | G86: 0 | I86: 0 | P86: 0 | T86: 0 | V86: 0 | X86: 0.03254817649 | AB86: 0 | AD86: 79 | AE86: 0.03762203154 | AF86: 0.03311543028 | AG86: 0.0446 | AH86: 0.0175 | AI86: 2.98310354 | AK86: =IF($AD86+O$4<120,IF($AD86+O$4>0,HLOOKUP($O$3,'Mortality Tables'!$B$1:$AA$151,$A86+1+O$4,FALSE)*O$5,0),1) -> 0.03818535669 | AL86: =IF($AD86+P$4<120,IF($AD86+P$4>0,HLOOKUP($P$3,'Mortality Tables'!$B$1:$AA$151,$A86+1+P$4,FALSE)*P$5,0),1) -> 0.03255210512 | AN86: 79 | AO86: 0.0446 | AP86: 0.03325816801 | AQ86: 0.03183818496 | AR86: 0.03325816801 | AS86: 0.03183818496
A87: 80 | B87: 197.3139 | G87: 0 | I87: 0 | P87: 0 | T87: 0 | V87: 0 | X87: 0.03115850707 | AB87: 0 | AD87: 80 | AE87: 0.04177631519 | AF87: 0.0367928154 | AG87: 0.0446 | AH87: 0.0175 | AI87: 3.035307852 | AK87: =IF($AD87+O$4<120,IF($AD87+O$4>0,HLOOKUP($O$3,'Mortality Tables'!$B$1:$AA$151,$A87+1+O$4,FALSE)*O$5,0),1) -> 0.04239925266 | AL87: =IF($AD87+P$4<120,IF($AD87+P$4>0,HLOOKUP($P$3,'Mortality Tables'!$B$1:$AA$151,$A87+1+P$4,FALSE)*P$5,0),1) -> 0.03616987793 | AN87: 80 | AO87: 0.0446 | AP87: 0.03183818496 | AQ87: 0.03047882918 | AR87: 0.03183818496 | AS87: 0.03047882918
A88: 81 | B88: 198.3139 | G88: 0 | I88: 0 | P88: 0 | T88: 0 | V88: 0 | X88: 0.02982817066 | AB88: 0 | AD88: 81 | AE88: 0.04647406446 | AF88: 0.04098012451 | AG88: 0.0446 | AH88: 0.0175 | AI88: 3.08842574 | AK88: =IF($AD88+O$4<120,IF($AD88+O$4>0,HLOOKUP($O$3,'Mortality Tables'!$B$1:$AA$151,$A88+1+O$4,FALSE)*O$5,0),1) -> 0.04716080695 | AL88: =IF($AD88+P$4<120,IF($AD88+P$4>0,HLOOKUP($P$3,'Mortality Tables'!$B$1:$AA$151,$A88+1+P$4,FALSE)*P$5,0),1) -> 0.04029338202 | AN88: 81 | AO88: 0.0446 | AP88: 0.03047882918 | AQ88: 0.02917751214 | AR88: 0.03047882918 | AS88: 0.02917751214
A89: 82 | B89: 199.3139 | G89: 0 | I89: 0 | P89: 0 | T89: 0 | V89: 0 | X89: 0.02855463398 | AB89: 0 | AD89: 82 | AE89: 0.05181335011 | AF89: 0.0457487409 | AG89: 0.0446 | AH89: 0.0175 | AI89: 3.14247319 | AK89: =IF($AD89+O$4<120,IF($AD89+O$4>0,HLOOKUP($O$3,'Mortality Tables'!$B$1:$AA$151,$A89+1+O$4,FALSE)*O$5,0),1) -> 0.05257142626 | AL89: =IF($AD89+P$4<120,IF($AD89+P$4>0,HLOOKUP($P$3,'Mortality Tables'!$B$1:$AA$151,$A89+1+P$4,FALSE)*P$5,0),1) -> 0.04499066475 | AN89: 82 | AO89: 0.0446 | AP89: 0.02917751214 | AQ89: 0.02793175583 | AR89: 0.02917751214 | AS89: 0.02793175583
A90: 83 | B90: 200.3139 | G90: 0 | I90: 0 | P90: 0 | T90: 0 | V90: 0 | X90: 0.02733547194 | AB90: 0 | AD90: 83 | AE90: 0.05783572218 | AF90: 0.0511519429 | AG90: 0.0446 | AH90: 0.0175 | AI90: 3.197466471 | AK90: =IF($AD90+O$4<120,IF($AD90+O$4>0,HLOOKUP($O$3,'Mortality Tables'!$B$1:$AA$151,$A90+1+O$4,FALSE)*O$5,0),1) -> 0.05867119459 | AL90: =IF($AD90+P$4<120,IF($AD90+P$4>0,HLOOKUP($P$3,'Mortality Tables'!$B$1:$AA$151,$A90+1+P$4,FALSE)*P$5,0),1) -> 0.05031647049 | AN90: 83 | AO90: 0.0446 | AP90: 0.02793175583 | AQ90: 0.02673918804 | AR90: 0.02793175583 | AS90: 0.02673918804
A91: 84 | B91: 201.3139 | G91: 0 | I91: 0 | P91: 0 | T91: 0 | V91: 0 | X91: 0.02616836295 | AB91: 0 | AD91: 84 | AE91: 0.06464823686 | AF91: 0.05730317832 | AG91: 0.0446 | AH91: 0.0175 | AI91: 3.253422134 | AK91: =IF($AD91+O$4<120,IF($AD91+O$4>0,HLOOKUP($O$3,'Mortality Tables'!$B$1:$AA$151,$A91+1+O$4,FALSE)*O$5,0),1) -> 0.06556636918 | AL91: =IF($AD91+P$4<120,IF($AD91+P$4>0,HLOOKUP($P$3,'Mortality Tables'!$B$1:$AA$151,$A91+1+P$4,FALSE)*P$5,0),1) -> 0.056385046 | AN91: 84 | AO91: 0.0446 | AP91: 0.02673918804 | AQ91: 0.02559753785 | AR91: 0.02673918804 | AS91: 0.02559753785
A92: 85 | B92: 202.3139 | G92: 0 | I92: 0 | P92: 0 | T92: 0 | V92: 0 | X92: 0.02505108458 | AB92: 0 | AD92: 85 | AE92: 0.07233900048 | AF92: 0.06426331992 | AG92: 0.0446 | AH92: 0.0175 | AI92: 3.310357022 | AK92: =IF($AD92+O$4<120,IF($AD92+O$4>0,HLOOKUP($O$3,'Mortality Tables'!$B$1:$AA$151,$A92+1+O$4,FALSE)*O$5,0),1) -> 0.07334846056 | AL92: =IF($AD92+P$4<120,IF($AD92+P$4>0,HLOOKUP($P$3,'Mortality Tables'!$B$1:$AA$151,$A92+1+P$4,FALSE)*P$5,0),1) -> 0.06325385984 | AN92: 85 | AO92: 0.0446 | AP92: 0.02559753785 | AQ92: 0.0245046313 | AR92: 0.02559753785 | AS92: 0.0245046313
A93: 86 | B93: 203.3139 | G93: 0 | I93: 0 | P93: 0 | T93: 0 | V93: 0 | X93: 0.02398150926 | AB93: 0 | AD93: 86 | AE93: 0.08103933371 | AF93: 0.07214952385 | AG93: 0.0446 | AH93: 0.0175 | AI93: 3.368288269 | AK93: =IF($AD93+O$4<120,IF($AD93+O$4>0,HLOOKUP($O$3,'Mortality Tables'!$B$1:$AA$151,$A93+1+O$4,FALSE)*O$5,0),1) -> 0.08215055994 | AL93: =IF($AD93+P$4<120,IF($AD93+P$4>0,HLOOKUP($P$3,'Mortality Tables'!$B$1:$AA$151,$A93+1+P$4,FALSE)*P$5,0),1) -> 0.07103829762 | AN93: 86 | AO93: 0.0446 | AP93: 0.0245046313 | AQ93: 0.02345838723 | AR93: 0.0245046313 | AS93: 0.02345838723
A94: 87 | B94: 204.3139 | G94: 0 | I94: 0 | P94: 0 | T94: 0 | V94: 0 | X94: 0.02295760029 | AB94: 0 | AD94: 87 | AE94: 0.0908231913 | AF94: 0.08105549914 | AG94: 0.0446 | AH94: 0.0175 | AI94: 3.427233314 | AK94: =IF($AD94+O$4<120,IF($AD94+O$4>0,HLOOKUP($O$3,'Mortality Tables'!$B$1:$AA$151,$A94+1+O$4,FALSE)*O$5,0),1) -> 0.09204415282 | AL94: =IF($AD94+P$4<120,IF($AD94+P$4>0,HLOOKUP($P$3,'Mortality Tables'!$B$1:$AA$151,$A94+1+P$4,FALSE)*P$5,0),1) -> 0.07983453762 | AN94: 87 | AO94: 0.0446 | AP94: 0.02345838723 | AQ94: 0.02245681335 | AR94: 0.02345838723 | AS94: 0.02245681335
A95: 88 | B95: 205.3139 | G95: 0 | I95: 0 | P95: 0 | T95: 0 | V95: 0 | X95: 0.0219774079 | AB95: 0 | AD95: 88 | AE95: 0.1017849867 | AF95: 0.09105583046 | AG95: 0.0446 | AH95: 0.0175 | AI95: 3.487209897 | AK95: =IF($AD95+O$4<120,IF($AD95+O$4>0,HLOOKUP($O$3,'Mortality Tables'!$B$1:$AA$151,$A95+1+O$4,FALSE)*O$5,0),1) -> 0.1031261312 | AL95: =IF($AD95+P$4<120,IF($AD95+P$4>0,HLOOKUP($P$3,'Mortality Tables'!$B$1:$AA$151,$A95+1+P$4,FALSE)*P$5,0),1) -> 0.08971468593 | AN95: 88 | AO95: 0.0446 | AP95: 0.02245681335 | AQ95: 0.02149800244 | AR95: 0.02245681335 | AS95: 0.02149800244
A96: 89 | B96: 206.3139 | G96: 0 | I96: 0 | P96: 0 | T96: 0 | V96: 0 | X96: 0.02103906557 | AB96: 0 | AD96: 89 | AE96: 0.1140485182 | AF96: 0.1022664783 | AG96: 0.0446 | AH96: 0.0175 | AI96: 3.54823607 | AK96: =IF($AD96+O$4<120,IF($AD96+O$4>0,HLOOKUP($O$3,'Mortality Tables'!$B$1:$AA$151,$A96+1+O$4,FALSE)*O$5,0),1) -> 0.1155212732 | AL96: =IF($AD96+P$4<120,IF($AD96+P$4>0,HLOOKUP($P$3,'Mortality Tables'!$B$1:$AA$151,$A96+1+P$4,FALSE)*P$5,0),1) -> 0.1007937233 | AN96: 89 | AO96: 0.0446 | AP96: 0.02149800244 | AQ96: 0.0205801287 | AR96: 0.02149800244 | AS96: 0.0205801287
A97: 90 | B97: 207.3139 | G97: 0 | I97: 0 | P97: 0 | T97: 0 | V97: 0 | X97: 0.0201407865 | AB97: 0 | AD97: 90 | AE97: 0.1277813802 | AF97: 0.1148120283 | AG97: 0.0446 | AH97: 0.0175 | AI97: 3.610330202 | AK97: =IF($AD97+O$4<120,IF($AD97+O$4>0,HLOOKUP($O$3,'Mortality Tables'!$B$1:$AA$151,$A97+1+O$4,FALSE)*O$5,0),1) -> 0.1294025492 | AL97: =IF($AD97+P$4<120,IF($AD97+P$4>0,HLOOKUP($P$3,'Mortality Tables'!$B$1:$AA$151,$A97+1+P$4,FALSE)*P$5,0),1) -> 0.1131908594 | AN97: 90 | AO97: 0.0446 | AP97: 0.0205801287 | AQ97: 0.01970144429 | AR97: 0.0205801287 | AS97: 0.01970144429
A98: 91 | B98: 208.3139 | G98: 0 | I98: 0 | P98: 0 | T98: 0 | V98: 0 | X98: 0.01928086013 | AB98: 0 | AD98: =AD97+1 -> 91 | AE98: 0.1425129568 | AF98: 0.1284892235 | AG98: 0.0446 | AH98: 0.0175 | AI98: 3.67351098 | AK98: =IF($AD98+O$4<120,IF($AD98+O$4>0,HLOOKUP($O$3,'Mortality Tables'!$B$1:$AA$151,$A98+1+O$4,FALSE)*O$5,0),1) -> 0.1442659234 | AL98: =IF($AD98+P$4<120,IF($AD98+P$4>0,HLOOKUP($P$3,'Mortality Tables'!$B$1:$AA$151,$A98+1+P$4,FALSE)*P$5,0),1) -> 0.1267362568 | AN98: =AN97+1 -> 91 | AO98: 0.0446 | AP98: 0.01970144429 | AQ98: 0.01886027598 | AR98: 0.01970144429 | AS98: 0.01886027598
A99: 92 | B99: 209.3139 | G99: 0 | I99: 0 | P99: 0 | T99: 0 | V99: 0 | X99: 0.01845764899 | AB99: 0 | AD99: =AD98+1 -> 92 | AE99: 0.1579882596 | AF99: 0.1431498154 | AG99: 0.0446 | AH99: 0.0175 | AI99: 3.737797422 | AK99: =IF($AD99+O$4<120,IF($AD99+O$4>0,HLOOKUP($O$3,'Mortality Tables'!$B$1:$AA$151,$A99+1+O$4,FALSE)*O$5,0),1) -> 0.1598430651 | AL99: =IF($AD99+P$4<120,IF($AD99+P$4>0,HLOOKUP($P$3,'Mortality Tables'!$B$1:$AA$151,$A99+1+P$4,FALSE)*P$5,0),1) -> 0.1412950098 | AN99: =AN98+1 -> 92 | AO99: 0.0446 | AP99: 0.01886027598 | AQ99: 0.018055022 | AR99: 0.01886027598 | AS99: 0.018055022
A100: =A99+1 -> 93 | B100: =B99+1 -> 210.3139 | G100: 0 | I100: 0 | P100: 0 | T100: 0 | V100: 0 | X100: 0.01766958548 | AB100: 0 | AD100: 93 | AE100: 0.1739882112 | AF100: 0.1586477251 | AG100: 0.0446 | AH100: 0.0175 | AI100: 3.803208877 | AK100: =IF($AD100+O$4<120,IF($AD100+O$4>0,HLOOKUP($O$3,'Mortality Tables'!$B$1:$AA$151,$A100+1+O$4,FALSE)*O$5,0),1) -> 0.175905772 | AL100: =IF($AD100+P$4<120,IF($AD100+P$4>0,HLOOKUP($P$3,'Mortality Tables'!$B$1:$AA$151,$A100+1+P$4,FALSE)*P$5,0),1) -> 0.1567301643 | AN100: 93 | AO100: 0.0446 | AP100: 0.018055022 | AQ100: 0.01728414895 | AR100: 0.018055022 | AS100: 0.01728414895
